Workbook

Sheet 利用方法
A1: 本シートの利用方法
B3: 環境保全取組ﾁｪｯｸｼｰﾄの各項目はSDGｓ推進における具体的な行動の実例です。
B4: 各項目をＳＤＧｓにおける17のターゲットと関連させることで、SDGｓへの取組状況の
B5: 実態を把握することができます。
B8: １）すでに評価されている旧ブック等からの結果コピー
B9: 本ファイルブックの「環境保全取組チェックシート」は評価を直接記入することもできますが、
B10: これまでの様式ブックでおこなっていた結果をそのままコピーできます。
B11: 結果をコピーする場合は対象ブックファイルを開いて、以下のボタンをクリックします。
B16: ※本ファイルを開いた後に、データを読み取りたい環境保全取組ﾁｪｯｸｼｰﾄ（コピー元）を開いてください。
B17: 注：コピーできるのはver3.00以降（令和2年以降）のブック様式のみです。それ以前のブックはエラーとなります。
B18: バージョンはシートの本シートのヘッダー名、もしくは「ファイル」「情報」でのタグ名で確認でlきます。
B19: ファイルのシート名をオリジナル「取組ﾁｪｯｸｼｰﾄ改訂版」から変更した場合は読み取りができません。
B20: この機能を利用するにはマクロを有効しておく必要があります。
B21: 本ファイルを保存する際、拡張子を.xlsm以外で保存すると、マクロ機能はなくなります。
B23: ２）環境保全取組チェックシート採点方法
C30: 取組状況 | E30: 記号 | F30: 配点
C31: 取組が十分に配慮、実行されている （おおむね７割以上対応できている） | E31: ○ | F31: 100点
C32: 取組が実行されているが、十分ではない （３割～７割程度の対応の出来である） | E32: △ | F32: 50点
C33: 取組がわずかしか実行されていない （対応状況がおおむね３割以下である） | E33: × | F33: １0点
C34: 事業者として全く取り組みされていない | E34: "空欄" | F34: 0点
C35: 該当しない取組 （事業者として該当していない） | E35: ― | F35: 対象外
A39: ※ | B39: ３）SDGｓマトリクスシート利用方法
B41: （１） 評価方法
B42: 「取組ﾁｪｯｸｼｰﾄ」で採点を記入すると、「ＳＤＧｓマトリクス」シートにも評価結果が反映されます。
B43: 本環境保全取組項目とSDGｓ １７のターゲットとの関連を紐づけすることで、SDGｓ取組状況を
B44: 視覚的に評価することができます。
B45: 項目の評価で「－」（対象外）を選択すると、SDGｓでの取組みでも関連なしと採点されますので、
B46: 「－」と選択する場合は、慎重に判断する必要があります。
B48: （２）環境保全取組項目とSDGｓ１７ターゲットとの関連性
B49: 「SDGｓマトリクス」シートのSDGｓ17のターゲットのセル欄（灰色）には、デフォルトで「環境保全
B50: 取組ﾁｪｯｸｼｰﾄ」での項目と、多いに相関性があるものには”◎”、やや関連性のあるものには
B51: 予め ”○”が記載されています。
B52: 各項目のデフォルト記載での◎、○と、ＳＤＧｓのゴール関連性はあくまで参考です。事業所の
B53: 事業や取組内容によって変わる場合がありますので、事業所の考え方や状況に合わせ修正
B54: できます。
B55: 関連性を変更すると、確認のため文字色が赤となりますが、色は書式設定で変更できます。
B56: 注：取組項目の採点（○、△、×、空欄の評価）はこのシートではできません。チェックは「取組
B57: ﾁｪｯｸｼｰﾄ」でおこないます。）
B59: （３）取組状況の結果把握
B60: SDGｓ取組状況はマトリクス表の最終段にパーセント表示され、2つの「ＳＤＧｓグラフ」シートで
B61: 全体の取り組み状況がグラフで図示されます。取組の進展状況の把握に利用ください。
B63: （４）配点方法
B64: 各項目の評価点を関連度◎が１、○が０．５を乗じて配点はされ、空欄の評価点は無視します。
B65: チェック項目の○、△、×評価との乗算合計点を、チェック項目とSDGｓが関連する項目の合計
B66: 満点数で除した値が、１００%満点で表示されます。
H77: 埼玉県温暖化対策エコアップ認証制度

Sheet 取組ﾁｪｯｸｼｰﾄ改訂版
B1: <項目① ： 廃棄物の排出抑制、リサイクル、適正処理> | I1: ○ | J1: △ | K1: × | L1: －
B2: （チェック欄） | E2: SDGs関連ゴール | H2: 記入点 | I2: 小計 | J2: 対象 | K2: 対象数 | L2: 評価点
B3: 1 紙の使用量の抑制（再生紙については「グリーン購入」参照）
D4: 会議用資料や事務手続書類の簡素化に取り組んでいる | E4: １１、１２ | H4: =IF(B4="○",1,IF(B4="△",0.5,IF(B4="×",0.1,""))) ->  | I4: =SUM(H4:H9) -> 0 | J4: =COUNTIF(B4,"○")+COUNTIF(B4,"△")+COUNTIF(B4,"×")+COUNTBLANK(B4) -> 1 | K4: =SUM(J4:J9) -> 6 | L4: =IFERROR(I4/K4,"") -> 0
D5: 両面印刷、両面コピーを徹底している | H5: =IF(B5="○",1,IF(B5="△",0.5,IF(B5="×",0.1,""))) ->  | J5: 1
D6: 使用済み用紙の裏面の利用をしている | J6: 1
D7: 使用済み封筒の再利用をしている | J7: 1
D8: Ａ４判化等による文書のスリム化に取り組んでいる | J8: 1
D9: 電子メディア、プロジェクタ利用等によるペーパーレス化に取り組んでいる | J9: 1
B10: 2 廃棄物の発生そのものを抑える取組
D11: 使い捨て製品（紙コップ、紙皿、使い捨て容器入りの弁当等）の使用や購入を抑制している | E11: １１、１２ | I11: =SUM(H11:H17) -> 0 | J11: =COUNTIF(B11,"○")+COUNTIF(B11,"△")+COUNTIF(B11,"×")+COUNTBLANK(B11) -> 1 | K11: =SUM(J11:J17) -> 7 | L11: =IFERROR(I11/K11,"") -> 0
D12: リターナブル容器（ビール瓶、一升瓶等）に入った製品を優先的に購入、使用している | J12: 1
D13: 再使用又はリサイクルしやすい製品を優先的に購入、使用している | J13: 1
D14: コピー機、パソコン、プリンタ等について、リサイクルしやすい素材を使用しているものを採用している | J14: 1
D15: 詰め替え可能な製品の利用や備品の修理などにより、製品等の長期使用を進めている | J15: 1
D16: 包装・梱包（段ボール、魚箱等）の削減、再使用に取り組んでいる | J16: 1
D17: 業務プロセスにおいて廃棄物及び不良材等の発生抑制に取り組んでいる | J17: 1
B18: 3 オフィス等におけるリサイクルの促進
D19: 紙、金属缶、ガラスびん、プラスチック、電池等について、分別回収ボックスの適正配置などにより、ごみの分別を徹底している | E19: １１、１２ | I19: =SUM(H19:H25) -> 0 | J19: =COUNTIF(B19,"○")+COUNTIF(B19,"△")+COUNTIF(B19,"×")+COUNTBLANK(B19) -> 1 | K19: =SUM(J19:J25) -> 7 | L19: =IFERROR(I19/K19,"") -> 0
D20: 回収した資源ごみがリサイクルされるよう確認している | J20: 1
D21: 秘密文書においても溶解処理等原料リサイクルに配慮している。 | J21: 1
D22: コピー機、プリンターのトナーカートリッジの回収とリサイクルを進めている | J22: 1
D23: 食べ残し、食品残滓等の有機物質については可能な限りコンポスト化（堆肥化）し、土壌に還元、利用している | J23: 1
D24: 廃食用油のせっけん等への再利用を行っている | J24: 1
D25: 包装、梱包等のリサイクルに取り組んでいる | J25: 1
B26: 4 出荷・販売等に際しての梱包等に関する配慮
D27: 簡易包装の推進、多重包装の見直し、量り売り、ばら売りの推進等により、包装紙、容器、買い物袋、食品トレイ、ラップ等の削減に取り組んでいる | E27: １１、１２ | I27: =SUM(H27:H31) -> 0 | J27: =COUNTIF(B27,"○")+COUNTIF(B27,"△")+COUNTIF(B27,"×")+COUNTBLANK(B27) -> 1 | K27: =SUM(J27:J31) -> 5 | L27: =IFERROR(I27/K27,"") -> 0
D28: 環境負荷の少ない梱包材への代替に取り組んでいる | J28: =COUNTIF(B28,"○")+COUNTIF(B28,"△")+COUNTIF(B28,"×")+COUNTBLANK(B28) -> 1
D29: 詰め替え式の容器・製品の販売促進に取り組んでいる | J29: =COUNTIF(B29,"○")+COUNTIF(B29,"△")+COUNTIF(B29,"×")+COUNTBLANK(B29) -> 1
D30: リターナブル容器入りの製品の販売促進に取り組んでいる | J30: =COUNTIF(B30,"○")+COUNTIF(B30,"△")+COUNTIF(B30,"×")+COUNTBLANK(B30) -> 1
D31: 紙パック、食品トレイ、アルミ缶、スチール缶、ペットボトル等の店頭回収・リサイクルに取り組んでいる | J31: =COUNTIF(B31,"○")+COUNTIF(B31,"△")+COUNTIF(B31,"×")+COUNTBLANK(B31) -> 1
B32: 5 生産工程における取組
D33: 工程から発生する金属くず、紙くず、廃液などの回収・再利用のための設備を設置し、活用している | E33: １１、１２ | I33: =SUM(H33:H33) -> 0 | J33: =COUNTIF(B33,"○")+COUNTIF(B33,"△")+COUNTIF(B33,"×")+COUNTBLANK(B33) -> 1 | K33: =SUM(J33:J33) -> 1 | L33: =IFERROR(I33/K33,"") -> 0
B34: 6 産業廃棄物等の適正処理
D35: 産業廃棄物管理票（マニフェスト）をもとに廃棄物の適正な処理を確認している | E35: １１、１２ | I35: =SUM(H35:H40) -> 0 | J35: =COUNTIF(B35,"○")+COUNTIF(B35,"△")+COUNTIF(B35,"×")+COUNTBLANK(B35) -> 1 | K35: =SUM(J35:J40) -> 6 | L35: =IFERROR(I35/K35,"") -> 0
D36: 廃棄物の最終処分先を定期的に、直接、チェックしている | J36: 1
D37: 廃棄物焼却の際、焼却に適さないものが混入しないよう徹底するとともに、ばい煙の処理、近隣環境への配慮等を行っている | J37: 1
D38: メタン発生防止のため、生ごみ等の分別・リサイクルや適正な焼却処分を極力行うことにより、有機物の埋立処分を抑制している | J38: 1
D39: 有害廃棄物、医療廃棄物の管理（リストの作成、マニフェスト、適正処理のチェック）を徹底している | J39: 1
D40: 廃棄物が適切に処分できるよう、廃棄物の性状に関する情報（WDS等を利用）を処分業者に伝えている。 | J40: 1
C41: チェック欄数：３２ | I41: =SUM(I4:I40) -> 0 | K41: =SUM(K4:K40) -> 32 | L41: =I41/K41 -> 0
D42: =IF( (COUNTIF(項目②チェック欄,"○")+COUNTIF(項目②チェック欄,"△")+COUNTIF(項目②チェック欄,"×")+COUNTIF(項目②チェック欄,"―"))=0,"達成率 %",IF( (COUNTIF(項目②チェック欄,"○")+COUNTIF(項目②チェック欄,"△")+COUNTIF(項目②チェック欄,"×"))=0,"達成率 ― %",(COUNTIF(項目②チェック欄,"○")+COUNTIF(項目②チェック欄,"△")*0.5+COUNTIF(項目②チェック欄,"×")*0.1)/(COUNTIF(項目②チェック欄,"○")+COUNTIF(項目②チェック欄,"△")+COUNTIF(項目②チェック欄,"×")+COUNTBLANK(項目②チェック欄))*100)) -> 達成率 %
B43: <項目② ： 大気汚染、水質汚濁等の防止> | I43: =COUNTBLANK(項目②チェック欄) -> 32
B44: （チェック欄） | E44: SDGs関連ゴール
B45: 1 大気汚染物質排出量の削減
D46: 大気汚染の少ないプロセス・機器（低ＮＯｘ燃焼・粉塵発生機器など）を採用している | E46: ３、１１、１３ | I46: =SUM(H46:H52) -> 0 | J46: =COUNTIF(B46,"○")+COUNTIF(B46,"△")+COUNTIF(B46,"×")+COUNTBLANK(B46) -> 1 | K46: =SUM(J46:J52) -> 7 | L46: =IFERROR(I46/K46,"") -> 0
D47: 日常の管理における大気汚染防止への配慮（燃焼管理等）を行っている | J47: 1
D48: 大気汚染について、法令による基準より厳しい自主管理基準を設定し、その達成に努めている | J48: 1
D49: ばい煙等の測定・監視やばい煙処理設備の点検を定期的に行っている | J49: 1
D50: 事故や災害の際の汚染防止対策のための準備や訓練を行っている | J50: 1
D51: アイドリングストップ等運転方法の配慮（急発進・急加速や空ぶかしの排除、駐停車中のエンジンの停止等）を行っている | J51: 1
D52: ハイブリッド車や低燃費車、低排出ガス認定車、電気自動車、圧縮天然ガス自動車等の低公害車の利用に取り組んでいる | J52: 1
B53: 2 水質汚濁物質排出量の削減
D54: 水質汚濁の少ない工事・プロセス・機器（廃液の回収・再利用など）を採用している | E54: ３、６、１１、１４ | I54: =SUM(H54:H62) -> 0 | J54: =COUNTIF(B54,"○")+COUNTIF(B54,"△")+COUNTIF(B54,"×")+COUNTBLANK(B54) -> 1 | K54: =SUM(J54:J62) -> 9 | L54: =IFERROR(I54/K54,"") -> 0
D55: 排水処理装置を適切に設置している | J55: 1
D56: 排水が閉鎖性水域（湖、内湾など）に流入する場合は、窒素・燐の除去対策を講じている | J56: 1
D57: 排水処理にクローズド・システムを採用している | J57: 1
D58: 排水に有害物質や有機汚濁物質（生ごみ等）が混入しないようにしている | J58: 1
D59: 排水に含まれる有害物質が地下浸透しないよう配慮している | J59: 1
D60: 水質汚濁等について、法令による基準より厳しい自主管理基準を設定し、その達成に努めている | J60: 1
D61: 排水等の測定・監視や排水処理設備の点検を定期的に行っている | J61: 1
D62: 事故や災害の際の汚染防止対策のための準備や訓練を行っている | J62: 1
B63: 3 悪臭、騒音、振動等の防止
D64: 悪臭防止のため排出口の位置等の配慮を行っている | E64: ３、１１ | I64: =SUM(H64:H66) -> 0 | J64: =COUNTIF(B64,"○")+COUNTIF(B64,"△")+COUNTIF(B64,"×")+COUNTBLANK(B64) -> 1 | K64: =SUM(J64:J66) -> 3 | L64: =IFERROR(I64/K64,"") -> 0
D65: 低騒音型機器の使用、防音・防振設備の設置・管理等により騒音・振動を防止するとともに、日常的な測定・監視を実施している | J65: =COUNTIF(B65,"○")+COUNTIF(B65,"△")+COUNTIF(B65,"×")+COUNTBLANK(B65) -> 1
D66: 夜間照明による光害を防止するための措置を講じている | J66: =COUNTIF(B66,"○")+COUNTIF(B66,"△")+COUNTIF(B66,"×")+COUNTBLANK(B66) -> 1
C67: チェック欄数：１９ | I67: =SUM(I46:I66) -> 0 | K67: =SUM(K46:K66) -> 19 | L67: =I67/K67 -> 0
D68: =IF( (COUNTIF(項目③チェック欄,"○")+COUNTIF(項目③チェック欄,"△")+COUNTIF(項目③チェック欄,"×")+COUNTIF(項目③チェック欄,"―"))=0,"達成率 %",IF( (COUNTIF(項目③チェック欄,"○")+COUNTIF(項目③チェック欄,"△")+COUNTIF(項目③チェック欄,"×"))=0,"達成率 ― %",(COUNTIF(項目③チェック欄,"○")+COUNTIF(項目③チェック欄,"△")*0.5+COUNTIF(項目③チェック欄,"×")*0.1)/(COUNTIF(項目③チェック欄,"○")+COUNTIF(項目③チェック欄,"△")+COUNTIF(項目③チェック欄,"×")+COUNTIF(項目③チェック欄,""))*100)) -> 達成率 %
B69: <項目③ ： 化学物質対策>
B70: （チェック欄） | E70: SDGs関連ゴール
B71: 1 化学物質の管理の徹底
D72: 有害性のおそれのある化学物質について、その種類、使用量、保管量、使用方法、使用場所、保管場所等を経時的に把握し、記録管理している | E72: ３、１１、１２、１５ | H72: =IF(B72="○",1,IF(B72="△",0.5,IF(B72="×",0.1,""))) ->  | I72: =SUM(H72:H83) -> 0 | J72: =COUNTIF(B72,"○")+COUNTIF(B72,"△")+COUNTIF(B72,"×")+COUNTBLANK(B72) -> 1 | K72: =SUM(J72:J83) -> 12 | L72: =IFERROR(I72/K72,"") -> 0
D73: 有害性のおそれのある化学物質の環境への排出量の計測、推定等を行っている | J73: 1
D74: 有害性のおそれのある化学物質の製品への表示を徹底している | J74: 1
D75: 作業従事者に対して取り扱う化学物質に関する危害情報(ＧＨＳマークの理解等）を周知させている。 | J75: 1
D76: 化学物質の安全性に関する情報伝達のため（Ｍ）ＳＤＳ（化学物質安全性データシート）を使用している | J76: 1
D77: 有害性のおそれのある物質のタンク、パイプ類は浸透、漏洩、拡散などを防止できる構造となっている | J77: 1
D78: 有害性のおそれのある物質のタンク、パイプ等の保守・点検を定期的に行っている | J78: 1
D79: 使用した有害物質を回収するシステムができている | J79: 1
D80: 有害性のおそれのある物質の輸送、保管等に当たり、事故等の汚染防止のための準備や訓練を行っている | J80: 1
D81: 有害性のおそれのある物質の削減に取り組んでいる | J81: 1
D82: 燃料油や溶剤等の揮発の防止に取り組んでいる | J82: 1
D83: 施設の消毒、除草や害虫駆除に当たり、薬剤使用の削減、合理化等に取り組んでいる | J83: 1
B84: 2 温室効果ガス特定フロン（CFC,CHFC等)、代替フロン（ＨＦＣ、ＰＦＣ、ＳＦ６ 等）の排出抑制、削減、適正処理
D85: オゾン層を破壊する特定フロン等の削減、全廃（生産用フロン、冷却設備・空調設備の冷媒用フロン（Ｒ２２使用機器）の削減、ハロン消火設備等の代替）を行っている | E85: １３ | I85: =SUM(H85:H93) -> 0 | J85: =COUNTIF(B85,"○")+COUNTIF(B85,"△")+COUNTIF(B85,"×")+COUNTBLANK(B85) -> 1 | K85: =SUM(J85:J93) -> 9 | L85: =IFERROR(I85/K85,"") -> 0
D86: フロンの削減、回収・適正処理に取り組んでいる | J86: 1
D87: 特定フロン、代替フロン類をどれだけ使用し、漏出しているか把握している | J87: 1
D88: 製造工程において、代替フロン類（ＨＦＣ、ＰＦＣ、ＳＦ６ 等）の排出抑制、回収処理に取り組んでいる | J88: 1
D89: 製造工程において、可能な範囲で代替フロン類（ＨＦＣ、ＰＦＣ、ＳＦ６ 等）をその他の物質に代替している | J89: 1
D90: ＨＦＣ、ＰＦＣ、ＳＦ６ 等を使用しない製造工程に変換している | J90: 1
D91: 製品購入の際には、できるだけＨＦＣ、ＰＦＣ、ＳＦ６ 等を使用していない製品（例・ＣＯ₂等冷媒）を選ぶように配慮している | J91: 1
D92: ＨＦＣ、ＰＦＣ、ＳＦ６ 等を使用している製品を廃棄する際の回収に取り組んでいる | J92: 1
D93: フロン使用機器について不調時の修理、漏洩防止、法令に定められた定期点検等がおこなわれ、履歴を記録・保存している | J93: 1
C94: チェック欄数：２１ | I94: =SUM(I72:I93) -> 0 | K94: =SUM(K72:K93) -> 21 | L94: =I94/K94 -> 0
D95: =IF((COUNTIF(項目⑤チェック欄,"○")+COUNTIF(項目⑤チェック欄,"△")+COUNTIF(項目⑤チェック欄,"×")+COUNTIF(項目⑤チェック欄,"―"))=0,"達成率 %",IF((COUNTIF(項目⑤チェック欄,"○")+COUNTIF(項目⑤チェック欄,"△")+COUNTIF(項目⑤チェック欄,"×"))=0,"達成率 ― %",(COUNTIF(項目⑤チェック欄,"○")+COUNTIF(項目⑤チェック欄,"△")*0.5+COUNTIF(項目⑤チェック欄,"×")*0.1)/(COUNTIF(項目⑤チェック欄,"○")+COUNTIF(項目⑤チェック欄,"△")+COUNTIF(項目⑤チェック欄,"×")+COUNTIF(項目⑤チェック欄,""))*100)) -> 達成率 %
B96: <項目④ ： 節水・水の効率利用> | E96: SDGs関連ゴール
B97: （チェック欄）
D98: 雨水の貯留タンクや雨水利用施設の設置等により、雨水利用を行っている | E98: ６ | I98: =SUM(H98:H104) -> 0 | J98: =COUNTIF(B98,"○")+COUNTIF(B98,"△")+COUNTIF(B98,"×")+COUNTBLANK(B98) -> 1 | K98: =SUM(J98:J104) -> 7 | L98: =IFERROR(I98/K98,"") -> 0
D99: 雨水を地下浸透させる設備（浸透升、透水性舗装等）の導入や工夫等、雨水流出抑制行っている | J99: 1
D100: 汚排水の再利用（中水利用）を行っている | J100: 1
D101: 節水型の家電製品、水洗トイレ等を積極的に導入している | J101: 1
D102: 蛇口に節水こま（適量の水を流す機能を持つこま）を設置している | J102: 1
D103: 地盤沈下が問題となっている地域にあっては、地下水汲み上げの削減を行っている | J103: 1
D104: 水道配管からの漏洩を定期的に点検している | J104: 1
C105: チェック欄数：７ | I105: =SUM(I98:I104) -> 0 | K105: =SUM(K98:K104) -> 7 | L105: =I105/K105 -> 0
D106: =IF( (COUNTIF(項目⑥チェック欄,"○")+COUNTIF(項目⑥チェック欄,"△")+COUNTIF(項目⑥チェック欄,"×")+COUNTIF(項目⑥チェック欄,"―"))=0,"達成率 %",IF( (COUNTIF(項目⑥チェック欄,"○")+COUNTIF(項目⑥チェック欄,"△")+COUNTIF(項目⑥チェック欄,"×"))=0,"達成率 ― %",(COUNTIF(項目⑥チェック欄,"○")+COUNTIF(項目⑥チェック欄,"△")*0.5+COUNTIF(項目⑥チェック欄,"×")*0.1)/(COUNTIF(項目⑥チェック欄,"○")+COUNTIF(項目⑥チェック欄,"△")+COUNTIF(項目⑥チェック欄,"×")+COUNTIF(項目⑥チェック欄,""))*100)) -> 達成率 %
B107: <項目⑤ ： 製品の開発・設計等における環境配慮>
B108: （チェック欄） | E108: SDGs関連ゴール
B109: 1 製品（プライベートブランド商品を含む）設計に当たっての環境配慮
D110: 製品の小型化・軽量化等により、同一機能に対して資源使用量のミニマム化を指向している | E110: ９、１１、１２ | I110: =SUM(H110:H117) -> 0 | J110: =COUNTIF(B110,"○")+COUNTIF(B110,"△")+COUNTIF(B110,"×")+COUNTBLANK(B110) -> 1 | K110: =SUM(J110:J117) -> 8 | L110: =IFERROR(I110/K110,"") -> 0
D111: 製品の長寿命化を指向している | J111: 1
D112: 製品の使用過程でのエネルギー削減を指向している | J112: 1
D113: 再生資源の積極的利用に取り組んでいる | J113: 1
D114: 廃棄物の発生抑制のため、モデルチェンジの適正化に取り組んでいる | J114: 1
D115: リサイクルしやすいよう、素材の種類や製品の部品点数の削減や、ネジの数を減らすことなどによる解体しやすい構造を指向している | J115: 1
D116: 製品の包装は可能な限り簡素化している | J116: 1
D117: 自社独自の環境保全型商品等の開発に積極的に取り組んでいる | J117: 1
B118: 2 製品の出荷、販売後における環境負荷の削減
D119: フロン類の回収に取り組んでいる | E119: １２、１３ | I119: =SUM(H119:H122) -> 0 | J119: =COUNTIF(B119,"○")+COUNTIF(B119,"△")+COUNTIF(B119,"×")+COUNTBLANK(B119) -> 1 | K119: =SUM(J119:J122) -> 4 | L119: =IFERROR(I119/K119,"") -> 0
D120: フロン類の漏洩防止のための留意点など、製品に関する環境への負荷を低減するための消費者への情報提供を行っている | J120: =COUNTIF(B120,"○")+COUNTIF(B120,"△")+COUNTIF(B120,"×")+COUNTBLANK(B120) -> 1
D121: 修理部品の長期的な確保に自主的に取り組んでいる | J121: =COUNTIF(B121,"○")+COUNTIF(B121,"△")+COUNTIF(B121,"×")+COUNTBLANK(B121) -> 1
D122: 使用後の製品、容器包装等回収、リサイクルに取り組んでいる | J122: =COUNTIF(B122,"○")+COUNTIF(B122,"△")+COUNTIF(B122,"×")+COUNTBLANK(B122) -> 1
B123: 3 製品（プライベートブランド商品を含む）に係る製品アセスメント等
D124: 自社製品及び社外から購入する部品等について、想定される環境負荷のチェックリストを作成している | E124: １２ | I124: =SUM(H124:H128) -> 0 | J124: =COUNTIF(B124,"○")+COUNTIF(B124,"△")+COUNTIF(B124,"×")+COUNTBLANK(B124) -> 1 | K124: =SUM(J124:J128) -> 5 | L124: =IFERROR(I124/K124,"") -> 0
D125: 新製品開発、モデルチェンジ等にあたり、環境負荷の測定・記録や製品アセスメント（製品が廃棄物になった場合の適正処理困難性の評価、製品の生産から消費、廃棄に至る各段階での環境負荷の評価（ライフサイクルアセスメント）等を含む）を実施している | J125: =COUNTIF(B125,"○")+COUNTIF(B125,"△")+COUNTIF(B125,"×")+COUNTBLANK(B125) -> 1
D126: 製品の使用時や廃棄時の環境負荷の量をカタログ等に表示している | J126: =COUNTIF(B126,"○")+COUNTIF(B126,"△")+COUNTIF(B126,"×")+COUNTBLANK(B126) -> 1
D127: 既存製品についても、計画的に製品アセスメント等を実施している | J127: =COUNTIF(B127,"○")+COUNTIF(B127,"△")+COUNTIF(B127,"×")+COUNTBLANK(B127) -> 1
D128: 外部から製品の環境負荷に関するデータの提供の依頼があった場合、協力している | J128: =COUNTIF(B128,"○")+COUNTIF(B128,"△")+COUNTIF(B128,"×")+COUNTBLANK(B128) -> 1
B129: 4 環境保全型商品等の販売及び消費者に対する情報提供
D130: 再生資源を使用した商品、再生可能な商品、繰り返し使える商品、省資源・省エネルギー型の商品、容器包装を簡素化した商品、エコマーク製品等を重点的に販売している | E130: ３ | I130: =SUM(H130:H133) -> 0 | J130: =COUNTIF(B130,"○")+COUNTIF(B130,"△")+COUNTIF(B130,"×")+COUNTBLANK(B130) -> 1 | K130: =SUM(J130:J133) -> 4 | L130: =IFERROR(I130/K130,"") -> 0
D131: 上記商品の販売目標を定め、販売促進に積極的に取り組んでいる | J131: =COUNTIF(B131,"○")+COUNTIF(B131,"△")+COUNTIF(B131,"×")+COUNTBLANK(B131) -> 1
D132: 販売の際に環境保全型製品の表示、製品アセスメントの結果の表示等を行っている | J132: =COUNTIF(B132,"○")+COUNTIF(B132,"△")+COUNTIF(B132,"×")+COUNTBLANK(B132) -> 1
D133: 消費者等に環境保全型商品に関する情報を積極的に提供している | H133: =IF(B133="○",1,IF(B133="△",0.5,IF(B133="×",0.1,""))) ->  | J133: =COUNTIF(B133,"○")+COUNTIF(B133,"△")+COUNTIF(B133,"×")+COUNTBLANK(B133) -> 1
C134: チェック欄数：２１ | I134: =SUM(I110:I133) -> 0 | K134: =SUM(K110:K133) -> 21 | L134: =I134/K134 -> 0
D135: =IF( (COUNTIF(項目⑦チェック欄,"○")+COUNTIF(項目⑦チェック欄,"△")+COUNTIF(項目⑦チェック欄,"×")+COUNTIF(項目⑦チェック欄,"―"))=0,"達成率 %",IF( (COUNTIF(項目⑦チェック欄,"○")+COUNTIF(項目⑦チェック欄,"△")+COUNTIF(項目⑦チェック欄,"×"))=0,"達成率 ― %",(COUNTIF(項目⑦チェック欄,"○")+COUNTIF(項目⑦チェック欄,"△")*0.5+COUNTIF(項目⑦チェック欄,"×")*0.1)/(COUNTIF(項目⑦チェック欄,"○")+COUNTIF(項目⑦チェック欄,"△")+COUNTIF(項目⑦チェック欄,"×")+COUNTIF(項目⑦チェック欄,""))*100)) -> 達成率 %
B136: <項目⑥ ： 建築物の建築・解体、開発事業に当たっての環境配慮>
B137: （チェック欄） | E137: SDGs関連ゴール
B138: 1 新規事業を始める際の環境影響評価・環境配慮
D139: 新規事業を始める際、企画・計画・設計段階、建設段階、運用段階、改修・解体段階のそれぞれの段階における環境影響を評価し、これに基づいて環境保全のため適切な対策を行っている | E139: １１、１２ | I139: =SUM(H139:H141) -> 0 | J139: =COUNTIF(B139,"○")+COUNTIF(B139,"△")+COUNTIF(B139,"×")+COUNTBLANK(B139) -> 1 | K139: =SUM(J139:J141) -> 3 | L139: =IFERROR(I139/K139,"") -> 0
D140: 事業実施前に行われた環境影響評価の結果が妥当であったかどうかのフォローアップを、事業中及び事業後に行っている | J140: =COUNTIF(B140,"○")+COUNTIF(B140,"△")+COUNTIF(B140,"×")+COUNTBLANK(B140) -> 1
D141: 発注者及び設計者に対し、省エネルギー、建設副産物のリサイクル、合板型枠の使用合理化等、環境保全の提案をしている | J141: =COUNTIF(B141,"○")+COUNTIF(B141,"△")+COUNTIF(B141,"×")+COUNTBLANK(B141) -> 1
B142: 2 環境整備と周辺の自然環境の保全
D143: 敷地内、壁面、屋上等の緑化を行っている（大気浄化、都市気象の緩和にも資する） | E143: １１、１５ | I143: =SUM(H143:H145) -> 0 | J143: =COUNTIF(B143,"○")+COUNTIF(B143,"△")+COUNTIF(B143,"×")+COUNTBLANK(B143) -> 1 | K143: =SUM(J143:J145) -> 3 | L143: =IFERROR(I143/K143,"") -> 0
D144: 地域の自然環境との調和に配慮し、生態系や景観の保全に取り組んでいる | J144: =COUNTIF(B144,"○")+COUNTIF(B144,"△")+COUNTIF(B144,"×")+COUNTBLANK(B144) -> 1
D145: 環境を改変する代替措置として環境修復（ミティゲーション）を計画・設計に盛り込んでいる | J145: =COUNTIF(B145,"○")+COUNTIF(B145,"△")+COUNTIF(B145,"×")+COUNTBLANK(B145) -> 1
B146: 3 環境負荷の少ない建築材の使用等
D147: 建築物の建築・改築に当たり、環境負荷の少ない建築材の使用、建築材の使用合理化に取り組んでいる（合板型等の木材の使用合理化、高炉セメント、再生素材の積極的使用等） | E147: １１、１２ | I147: =SUM(H147:H147) -> 0 | J147: =COUNTIF(B147,"○")+COUNTIF(B147,"△")+COUNTIF(B147,"×")+COUNTBLANK(B147) -> 1 | K147: =SUM(J147:J147) -> 1 | L147: =IFERROR(I147/K147,"") -> 0
B148: 4 環境に配慮した工法
D149: 低騒音型の建築機械の使用等により工事騒音・振動の防止に取り組んでいる | E149: ３、１１、１５ | I149: =SUM(H149:H156) -> 0 | J149: =COUNTIF(B149,"○")+COUNTIF(B149,"△")+COUNTIF(B149,"×")+COUNTBLANK(B149) -> 1 | K149: =SUM(J149:J156) -> 8 | L149: =IFERROR(I149/K149,"") -> 0
D150: アスベストや粉じんの飛散防止等に取り組んでいる | J150: 1
D151: 工事濁水による水質汚濁の防止等に取り組んでいる | J151: 1
D152: 出入り車輌の排ガス・騒音・振動の防止に取り組んでいる | J152: 1
D153: 掘削工事、盛土工事における地盤の変化の防止に取り組んでいる | J153: 1
D154: 工事中の樹木の保護を行っている | J154: 1
D155: 木材、コンクリート塊、汚泥、残土等の建設副産物の削減、再利用、分別、リサイクルに取り組んでいる | J155: 1
D156: フロン、アスベストその他の有害物質の適正処理、代替材の使用等を行っている | J156: 1
B157: 5 建築物、構築物の環境への影響を予防するための方策
D158: 竣工建築の環境面に配慮した管理、メンテナンス等を行っている | E158: ９、１１ | I158: =SUM(H158:H160) -> 0 | J158: =COUNTIF(B158,"○")+COUNTIF(B158,"△")+COUNTIF(B158,"×")+COUNTBLANK(B158) -> 1 | K158: =SUM(J158:J160) -> 3 | L158: =IFERROR(I158/K158,"") -> 0
D159: 建造物の老朽化や運用の診断を行い、改善や環境保全設備の見直し等の提案を行っている | J159: =COUNTIF(B159,"○")+COUNTIF(B159,"△")+COUNTIF(B159,"×")+COUNTBLANK(B159) -> 1
D160: 建築物の耐久性の向上に取り組んでいる | J160: =COUNTIF(B160,"○")+COUNTIF(B160,"△")+COUNTIF(B160,"×")+COUNTBLANK(B160) -> 1
B161: 6 施設閉鎖、建築物の解体等の際の環境配慮
D162: 施設の閉鎖時に、環境影響評価を行っている | E162: １１ | I162: =SUM(H162:H164) -> 0 | J162: =COUNTIF(B162,"○")+COUNTIF(B162,"△")+COUNTIF(B162,"×")+COUNTBLANK(B162) -> 1 | K162: =SUM(J162:J164) -> 3 | L162: =IFERROR(I162/K162,"") -> 0
D163: 建築物の解体に当たっては、吹きつけアスベストを事前に除去している | J163: =COUNTIF(B163,"○")+COUNTIF(B163,"△")+COUNTIF(B163,"×")+COUNTBLANK(B163) -> 1
D164: 現状から用途転換をする等の計画プロジェクトの前に環境影響評価を行っている | J164: =COUNTIF(B164,"○")+COUNTIF(B164,"△")+COUNTIF(B164,"×")+COUNTBLANK(B164) -> 1
C165: チェック欄数：２１ | I165: =SUM(I139:I164) -> 0 | K165: =SUM(K139:K164) -> 21 | L165: =I165/K165 -> 0
D166: =IF( (COUNTIF(項目⑧チェック欄,"○")+COUNTIF(項目⑧チェック欄,"△")+COUNTIF(項目⑧チェック欄,"×")+COUNTIF(項目⑧チェック欄,"―"))=0,"達成率 %",IF( (COUNTIF(項目⑧チェック欄,"○")+COUNTIF(項目⑧チェック欄,"△")+COUNTIF(項目⑧チェック欄,"×"))=0,"達成率 ― %",(COUNTIF(項目⑧チェック欄,"○")+COUNTIF(項目⑧チェック欄,"△")*0.5+COUNTIF(項目⑧チェック欄,"×")*0.1)/(COUNTIF(項目⑧チェック欄,"○")+COUNTIF(項目⑧チェック欄,"△")+COUNTIF(項目⑧チェック欄,"×")+COUNTIF(項目⑧チェック欄,""))*100)) -> 達成率 %
B168: <項目⑦ ： グリーン購入>
B169: （チェック欄） | E169: SDGs関連ゴール
B170: 1 再生紙の使用
D171: コピー用紙、コンピューター用紙、伝票・事務用箋等、印刷物・パンフレット等、トイレットペーパー、名刺、その他の紙について、再生紙又は未利用繊維への転換を進めている | E171: １２ | I171: =SUM(H171:H173) -> 0 | J171: =COUNTIF(B171,"○")+COUNTIF(B171,"△")+COUNTIF(B171,"×")+COUNTBLANK(B171) -> 1 | K171: =SUM(J171:J173) -> 3 | L171: =IFERROR(I171/K171,"") -> 0
D172: 再生パルプの使用率や白色度を考慮した再生紙利用の目標・基準を立て、使用状況を把握しながら取り組んでいる | J172: =COUNTIF(B172,"○")+COUNTIF(B172,"△")+COUNTIF(B172,"×")+COUNTBLANK(B172) -> 1
D173: 再生パルプ使用率が印刷物等に明記されている | J173: =COUNTIF(B173,"○")+COUNTIF(B173,"△")+COUNTIF(B173,"×")+COUNTBLANK(B173) -> 1
B174: 2 その他環境に配慮した物品等の購入、使用
D175: エコマーク商品を優先的に購入している | E175: １２ | I175: =SUM(H175:H179) -> 0 | J175: =COUNTIF(B175,"○")+COUNTIF(B175,"△")+COUNTIF(B175,"×")+COUNTBLANK(B175) -> 1 | K175: =SUM(J175:J179) -> 5 | L175: =IFERROR(I175/K175,"") -> 0
D176: 再生材料から作られた製品を優先的に、あるいは再生パルプ使用率を確認し購入、使用している | J176: =COUNTIF(B176,"○")+COUNTIF(B176,"△")+COUNTIF(B176,"×")+COUNTBLANK(B176) -> 1
D177: 間伐材、未利用資源等を利用した製品を積極的に購入、使用している | J177: =COUNTIF(B177,"○")+COUNTIF(B177,"△")+COUNTIF(B177,"×")+COUNTBLANK(B177) -> 1
D178: 木材の調達に当たり、跡地の緑化・植林・環境修復が適切に行われていることに配慮し、又は跡地緑化等に協力している | J178: =COUNTIF(B178,"○")+COUNTIF(B178,"△")+COUNTIF(B178,"×")+COUNTBLANK(B178) -> 1
D179: その他、無漂白製品（衣料品等）、水性塗料等の環境への負荷の少ない製品を優先的に購入、使用している | J179: =COUNTIF(B179,"○")+COUNTIF(B179,"△")+COUNTIF(B179,"×")+COUNTBLANK(B179) -> 1
B180: 3 環境に配慮した物品等の調達に係る基準等
D181: 環境に配慮した物品等の調達に係る基準、リストを作成し、現状に合わせて、見直しを行っている | E181: １２ | I181: =SUM(H181:H183) -> 0 | J181: =COUNTIF(B181,"○")+COUNTIF(B181,"△")+COUNTIF(B181,"×")+COUNTBLANK(B181) -> 1 | K181: =SUM(J181:J183) -> 3 | L181: =IFERROR(I181/K181,"") -> 0
D182: 基準、リストに基づく調達状況を把握している | J182: =COUNTIF(B182,"○")+COUNTIF(B182,"△")+COUNTIF(B182,"×")+COUNTBLANK(B182) -> 1
D183: 原料・中間材の購入に当たって環境配慮のチェックを行っている | J183: =COUNTIF(B183,"○")+COUNTIF(B183,"△")+COUNTIF(B183,"×")+COUNTBLANK(B183) -> 1
C184: チェック欄数：１１ | I184: =SUM(I171:I183) -> 0 | K184: =SUM(K171:K183) -> 11 | L184: =I184/K184 -> 0
D185: =IF( (COUNTIF(項目⑨チェック欄,"○")+COUNTIF(項目⑨チェック欄,"△")+COUNTIF(項目⑨チェック欄,"×")+COUNTIF(項目⑨チェック欄,"―"))=0,"達成率 %",IF( (COUNTIF(項目⑨チェック欄,"○")+COUNTIF(項目⑨チェック欄,"△")+COUNTIF(項目⑨チェック欄,"×"))=0,"達成率 ― %",(COUNTIF(項目⑨チェック欄,"○")+COUNTIF(項目⑨チェック欄,"△")*0.5+COUNTIF(項目⑨チェック欄,"×")*0.1)/(COUNTIF(項目⑨チェック欄,"○")+COUNTIF(項目⑨チェック欄,"△")+COUNTIF(項目⑨チェック欄,"×")+COUNTIF(項目⑨チェック欄,""))*100)) -> 達成率 %
B186: <項目⑧ ： 環境教育、環境保全のための仕組みの整備>
B187: （チェック欄） | E187: SDGs関連ゴール
B188: 1 環境保全に関する職員等への教育、意識の向上
D189: 職員等に環境意識の向上や、環境保全活動に必要な教育を行う計画を定めている | E189: ４、１１ | I189: =SUM(H189:H193) -> 0 | J189: =COUNTIF(B189,"○")+COUNTIF(B189,"△")+COUNTIF(B189,"×")+COUNTBLANK(B189) -> 1 | K189: =SUM(J189:J193) -> 5 | L189: =IFERROR(I189/K189,"") -> 0
D190: 職員等に環境教育を実施している | J190: =COUNTIF(B190,"○")+COUNTIF(B190,"△")+COUNTIF(B190,"×")+COUNTBLANK(B190) -> 1
D191: 環境教育の有効性を確認する効果測定等をおこなっている。 | J191: =COUNTIF(B191,"○")+COUNTIF(B191,"△")+COUNTIF(B191,"×")+COUNTBLANK(B191) -> 1
D192: 職員等の力量評価や環境保全上必要な資格、能力等を保有できるように養成している | J192: =COUNTIF(B192,"○")+COUNTIF(B192,"△")+COUNTIF(B192,"×")+COUNTBLANK(B192) -> 1
D193: 委託・協力会社などの職員等についても、必要な知識、能力等を保有するよう、対応をとっている | J193: =COUNTIF(B193,"○")+COUNTIF(B193,"△")+COUNTIF(B193,"×")+COUNTBLANK(B193) -> 1
B194: 2 職員等の自主的なボランティア活動に対する支援
D195: ボランティア休暇など、組織の制度として支援システムがある | E195: ４、８ | I195: =SUM(H195:H196) -> 0 | J195: =COUNTIF(B195,"○")+COUNTIF(B195,"△")+COUNTIF(B195,"×")+COUNTBLANK(B195) -> 1 | K195: =SUM(J195:J196) -> 2 | L195: =IFERROR(I195/K195,"") -> 0
D196: 環境に関する研究や活動を行っているサークル等に対する支援を行っている | J196: =COUNTIF(B196,"○")+COUNTIF(B196,"△")+COUNTIF(B196,"×")+COUNTBLANK(B196) -> 1
B197: 3 通勤に係る環境への負荷の低減 | H197: =IF(B197="○",1,IF(B197="△",0.5,IF(B197="×",0.1,""))) -> 
D198: 通勤等に公共交通機関を利用するよう指導している | E198: １２ | I198: =SUM(H198:H198) -> 0 | J198: =COUNTIF(B198,"○")+COUNTIF(B198,"△")+COUNTIF(B198,"×")+COUNTBLANK(B198) -> 1 | K198: =SUM(J198:J198) -> 1 | L198: =IFERROR(I198/K198,"") -> 0
B199: 4 法規制等への対応
D200: 法規制等の最新情報を常に入手している | E200: ３、１１～１５ | I200: =SUM(H200:H203) -> 0 | J200: =COUNTIF(B200,"○")+COUNTIF(B200,"△")+COUNTIF(B200,"×")+COUNTBLANK(B200) -> 1 | K200: =SUM(J200:J203) -> 4 | L200: =IFERROR(I200/K200,"") -> 0
D201: 業務プロセスについて法規制に対しての遵守評価がおこなわれている | J201: =COUNTIF(B201,"○")+COUNTIF(B201,"△")+COUNTIF(B201,"×")+COUNTBLANK(B201) -> 1
... 53 more rows

Sheet 評価表
C4: （１）環境保全の取組のチェック結果 ※申請時からの達成率の変化状況
C6: 項 目 | E6: 廃棄物 | G6: 大気・水質 | I6: 化学物質 | K6: 節水・水 | M6: 製品開発
C7: 今回達成率 | E7: =ROUND(Sheet1!V3,0) -> 0 | F7: ％ | G7: =ROUND(Sheet1!V4,0) -> 0 | H7: ％ | I7: =ROUND(Sheet1!V5,0) -> 0 | J7: ％ | K7: =ROUND(Sheet1!V6,0) -> 0 | L7: ％ | M7: =ROUND(Sheet1!V7,0) -> 0 | N7: ％
C8: 認証申請時達成率 | F8: ％ | H8: ％ | J8: ％ | L8: ％ | N8: ％
C9: 項 目 | E9: 建築・開発 | G9: グリーン購入 | I9: 環境教育 | K9: その他
C10: 今回達成率 | E10: =ROUND(Sheet1!V8,0) -> 0 | F10: ％ | G10: =ROUND(Sheet1!V9,0) -> 0 | H10: ％ | I10: =ROUND(Sheet1!V10,0) -> 0 | J10: ％ | K10: =ROUND(Sheet1!V11,0) -> 0 | L10: ％
C11: 認証申請時達成率 | F11: ％ | H11: ％ | J11: ％ | L11: ％
D13: ※上表の認証申請時達成率に申請時の数値を記入すると、「レーダーチャート}に結果が表されます。
D14: 今回達成率は「取組チェックシート」採点結果が表記されます。

Sheet 各項目グラフ
A1: ◆エコアップ環境保全取組各項目グループでの達成度評価 | C1: 事 業 所 名 | AP1: 作 成 日 | AQ1: 2024-04-03
A2: 対 象 項 目 | B2: 取 組 内 容 | C2: 自社の主要取り組み(任意記入） | D2: 達 成 度
F3: 0.02 | G3: =F3+0.02 -> 0.04 | H3: =G3+0.02 -> 0.06 | I3: 0.08 | J3: 0.1 | K3: 0.12 | L3: 0.14 | M3: 0.16 | N3: 0.18 | O3: 0.2 | P3: 0.22 | Q3: 0.24 | R3: 0.26 | S3: 0.28 | T3: 0.3 | U3: 0.32 | V3: 0.34 | W3: 0.36 | X3: 0.38 | Y3: 0.4 | Z3: 0.42 | AA3: 0.44 | AB3: 0.46 | AC3: 0.48 | AD3: 0.5 | AE3: 0.52 | AF3: 0.54 | AG3: 0.56 | AH3: 0.58 | AI3: 0.6 | AJ3: 0.62 | AK3: 0.64 | AL3: 0.66 | AM3: 0.68 | AN3: 0.7 | AO3: 0.72 | AP3: 0.74 | AQ3: 0.76 | AR3: 0.78 | AS3: 0.8 | AT3: 0.82 | AU3: 0.84 | AV3: 0.86 | AW3: 0.88 | AX3: 0.9 | AY3: 0.92 | AZ3: 0.94 | BA3: 0.96 | BB3: 0.98 | BC3: 1
J4: 0.1 | O4: 0.2 | T4: 0.3 | Y4: 0.4 | AD4: 0.5 | AI4: 0.6 | AN4: 0.7 | AS4: 0.8 | AX4: 0.9 | BC4: 100%
A5: ① 廃棄物の排出抑制、リサイクル、適正処理 | B5: 1 紙の使用抑制（再生紙については「グリーン購入」） | D5: =取組ﾁｪｯｸｼｰﾄ改訂版!$L$4 -> 0
C6: 会議用資料や事務手続書類の簡素化に取り組んでいる
C7: 両面印刷、両面コピーを徹底している
C8: 使用済み用紙の裏面の利用をしている
C9: 使用済み封筒の再利用をしている
C10: Ａ４判化等による文書のスリム化に取り組んでいる
C11: 電子メディア、プロジェクタ利用等によるペーパーレス化に取り組んでいる
B12: 2 廃棄物の発生そのものを抑える取組 | D12: =取組ﾁｪｯｸｼｰﾄ改訂版!$L$11 -> 0
C13: 使い捨て製品（紙コップ、紙皿、使い捨て容器入りの弁当等）の使用や購入を抑制している
C14: リターナブル容器（ビール瓶、一升瓶等）に入った製品を優先的に購入、使用している
C15: 再使用又はリサイクルしやすい製品を優先的に購入、使用している
C16: コピー機、パソコン、プリンタ等について、リサイクルしやすい素材を使用しているものを採用している
C17: 詰め替え可能な製品の利用や備品の修理などにより、製品等の長期使用を進めている
C18: 包装・梱包（段ボール、魚箱等）の削減、再使用に取り組んでいる
C19: 業務プロセスにおいて廃棄物及び不良材等の発生抑制に取り組んでいる
B20: 3 オフィス等におけるリサイクルの促進 | D20: =取組ﾁｪｯｸｼｰﾄ改訂版!$L$19 -> 0
C21: 紙、金属缶、ガラスびん、プラスチック、電池等について、分別回収ボックスの適正配置などにより、ごみの分別を徹底している
C22: 回収した資源ごみがリサイクルされるよう確認している
C23: 秘密文書においても溶解処理等原料リサイクルに配慮している。
C24: コピー機、プリンターのトナーカートリッジの回収とリサイクルを進めている
C25: 食べ残し、食品残滓等の有機物質については可能な限りコンポスト化（堆肥化）し、土壌に還元、利用している
C26: 廃食用油のせっけん等への再利用を行っている
C27: 包装、梱包等のリサイクルに取り組んでいる
B28: 4 出荷・販売等に際しての梱包等に関する配慮 | D28: =取組ﾁｪｯｸｼｰﾄ改訂版!$L$27 -> 0
C29: 簡易包装の推進、多重包装の見直し、量り売り、ばら売りの推進等により、包装紙、容器、買い物袋、食品トレイ、ラップ等の削減に取り組んでいる
C30: 環境負荷の少ない梱包材への代替に取り組んでいる
C31: 詰め替え式の容器・製品の販売促進に取り組んでいる
C32: リターナブル容器入りの製品の販売促進に取り組んでいる
C33: 紙パック、食品トレイ、アルミ缶、スチール缶、ペットボトル等の店頭回収・リサイクルに取り組んでいる
B34: 5 生産工程における取組 | D34: =取組ﾁｪｯｸｼｰﾄ改訂版!$L$33 -> 0
C35: 工程から発生する金属くず、紙くず、廃液などの回収・再利用のための設備を設置し、活用している
B36: 6 産業廃棄物等の適正処理 | D36: =取組ﾁｪｯｸｼｰﾄ改訂版!$L$35 -> 0
C37: 産業廃棄物管理票（マニフェスト）をもとに廃棄物の適正な処理を確認している
C38: 廃棄物の最終処分先を定期的に、直接、チェックしている
C39: 廃棄物焼却の際、焼却に適さないものが混入しないよう徹底するとともに、ばい煙の処理、近隣環境への配慮等を行っている
C40: メタン発生防止のため、生ごみ等の分別・リサイクルや適正な焼却処分を極力行うことにより、有機物の埋立処分を抑制している
C41: 有害廃棄物、医療廃棄物の管理（リストの作成、マニフェスト、適正処理のチェック）を徹底している
C42: 廃棄物が適切に処分できるよう、廃棄物の性状に関する情報（WDS等を利用）を処分業者に伝えている。
A47: ② 大気汚染、水質汚濁等防止 | B47: 1 大気汚染物質排出量の削減 | D47: =取組ﾁｪｯｸｼｰﾄ改訂版!$L$46 -> 0
C48: 大気汚染の少ないプロセス・機器（低ＮＯｘ燃焼・粉塵発生機器など）を採用している
C49: 日常の管理における大気汚染防止への配慮（燃焼管理等）を行っている
C50: 大気汚染について、法令による基準より厳しい自主管理基準を設定し、その達成に努めている
C51: ばい煙等の測定・監視やばい煙処理設備の点検を定期的に行っている
C52: 事故や災害の際の汚染防止対策のための準備や訓練を行っている
C53: アイドリングストップ等運転方法の配慮（急発進・急加速や空ぶかしの排除、駐停車中のエンジンの停止等）を行っている
C54: ハイブリッド車や低燃費車、低排出ガス認定車、電気自動車、圧縮天然ガス自動車等の低公害車の利用に取り組んでいる
B55: 2 水質汚濁物質排出量の削減 | D55: =取組ﾁｪｯｸｼｰﾄ改訂版!$L$54 -> 0
C56: 水質汚濁の少ない工事・プロセス・機器（廃液の回収・再利用など）を採用している
C57: 排水処理装置を適切に設置している
C58: 排水が閉鎖性水域（湖、内湾など）に流入する場合は、窒素・燐の除去対策を講じている
C59: 排水処理にクローズド・システムを採用している
C60: 排水に有害物質や有機汚濁物質（生ごみ等）が混入しないようにしている
C61: 排水に含まれる有害物質が地下浸透しないよう配慮している
C62: 水質汚濁等について、法令による基準より厳しい自主管理基準を設定し、その達成に努めている
C63: 排水等の測定・監視や排水処理設備の点検を定期的に行っている
C64: 事故や災害の際の汚染防止対策のための準備や訓練を行っている
B65: 3 悪臭、騒音、振動等の防止 | D65: =取組ﾁｪｯｸｼｰﾄ改訂版!$L$64 -> 0
C66: 悪臭防止のため排出口の位置等の配慮を行っている
C67: 低騒音型機器の使用、防音・防振設備の設置・管理等により騒音・振動を防止するとともに、日常的な測定・監視を実施している
C68: 夜間照明による光害を防止するための措置を講じている
A73: ③ 化学物質対策> | B73: 1 化学物質の管理の徹底 | D73: =取組ﾁｪｯｸｼｰﾄ改訂版!$L$72 -> 0
C74: 有害性のおそれのある化学物質について、その種類、使用量、保管量、使用方法、使用場所、保管場所等を経時的に把握し、記録管理している
C75: 有害性のおそれのある化学物質の環境への排出量の計測、推定等を行っている
C76: 有害性のおそれのある化学物質の製品への表示を徹底している
C77: 作業従事者に対して取り扱う化学物質に関する危害情報(ＧＨＳマークの理解等）を周知させている。
C78: 化学物質の安全性に関する情報伝達のため（Ｍ）ＳＤＳ（化学物質安全性データシート）を使用している
C79: 有害性のおそれのある物質のタンク、パイプ類は浸透、漏洩、拡散などを防止できる構造となっている
C80: 有害性のおそれのある物質のタンク、パイプ等の保守・点検を定期的に行っている
C81: 使用した有害物質を回収するシステムができている
C82: 有害性のおそれのある物質の輸送、保管等に当たり、事故等の汚染防止のための準備や訓練を行っている
C83: 有害性のおそれのある物質の削減に取り組んでいる
C84: 燃料油や溶剤等の揮発の防止に取り組んでいる
C85: 施設の消毒、除草や害虫駆除に当たり、薬剤使用の削減、合理化等に取り組んでいる
B86: 2 温室効果ガス特定フロン、代替フロンの排出抑制、削減、適正処理 | D86: =取組ﾁｪｯｸｼｰﾄ改訂版!$L$85 -> 0
C87: オゾン層を破壊する特定フロン等の削減、全廃（生産用フロン、冷却設備・空調設備の冷媒用フロン（Ｒ２２使用機器）の削減、ハロン消火設備等の代替）を行っている
C88: フロンの削減、回収・適正処理に取り組んでいる
C89: 特定フロン、代替フロン類をどれだけ使用し、漏出しているか把握している
C90: 製造工程において、代替フロン類（ＨＦＣ、ＰＦＣ、ＳＦ６ 等）の排出抑制、回収処理に取り組んでいる
C91: 製造工程において、可能な範囲で代替フロン類（ＨＦＣ、ＰＦＣ、ＳＦ６ 等）をその他の物質に代替している
C92: ＨＦＣ、ＰＦＣ、ＳＦ６ 等を使用しない製造工程に変換している
C93: 製品購入の際には、できるだけＨＦＣ、ＰＦＣ、ＳＦ６ 等を使用していない製品（例・ＣＯ₂等冷媒）を選ぶように配慮している
C94: ＨＦＣ、ＰＦＣ、ＳＦ６ 等を使用している製品を廃棄する際の回収に取り組んでいる
C95: フロン使用機器について不調時の修理、漏洩防止、法令に定められた定期点検等がおこなわれ、履歴を記録・保存している
A99: ④ 節水・水の効率利用 | B99: 節水・水の効率利用 | D99: =取組ﾁｪｯｸｼｰﾄ改訂版!$L$98 -> 0
C100: 雨水の貯留タンクや雨水利用施設の設置等により、雨水利用を行っている
C101: 雨水を地下浸透させる設備（浸透升、透水性舗装等）の導入や工夫等、雨水流出抑制行っている
C102: 汚排水の再利用（中水利用）を行っている
C103: 節水型の家電製品、水洗トイレ等を積極的に導入している
C104: 蛇口に節水こま（適量の水を流す機能を持つこま）を設置している
C105: 地盤沈下が問題となっている地域にあっては、地下水汲み上げの削減を行っている
C106: 水道配管からの漏洩を定期的に点検している
A111: ⑤ 製品の開発・設計等における環境配慮 | B111: 1 製品（プライベートブランド商品を含む）設計に当たっての環境配慮 | D111: =取組ﾁｪｯｸｼｰﾄ改訂版!$L$110 -> 0
C112: 製品の小型化・軽量化等により、同一機能に対して資源使用量のミニマム化を指向している
C113: 製品の長寿命化を指向している
C114: 製品の使用過程でのエネルギー削減を指向している
C115: 再生資源の積極的利用に取り組んでいる
C116: 廃棄物の発生抑制のため、モデルチェンジの適正化に取り組んでいる
C117: リサイクルしやすいよう、素材の種類や製品の部品点数の削減や、ネジの数を減らすことなどによる解体しやすい構造を指向している
C118: 製品の包装は可能な限り簡素化している
C119: 自社独自の環境保全型商品等の開発に積極的に取り組んでいる
B120: 2 製品の出荷、販売後における環境負荷の削減 | D120: =取組ﾁｪｯｸｼｰﾄ改訂版!$L$119 -> 0
C121: フロン類の回収に取り組んでいる
C122: フロン類の漏洩防止のための留意点など、製品に関する環境への負荷を低減するための消費者への情報提供を行っている
C123: 修理部品の長期的な確保に自主的に取り組んでいる
C124: 使用後の製品、容器包装等回収、リサイクルに取り組んでいる
B125: 3 製品（プライベートブランド商品を含む）に係る製品アセスメント等 | D125: =取組ﾁｪｯｸｼｰﾄ改訂版!$L$124 -> 0
C126: 自社製品及び社外から購入する部品等について、想定される環境負荷のチェックリストを作成している
C127: 新製品開発、モデルチェンジ等にあたり、環境負荷の測定・記録や製品アセスメント（製品が廃棄物になった場合の適正処理困難性の評価、製品の生産から消費、廃棄に至る各段階での環境負荷の評価（ライフサイクルアセスメント）等を含む）を実施している
C128: 製品の使用時や廃棄時の環境負荷の量をカタログ等に表示している
C129: 既存製品についても、計画的に製品アセスメント等を実施している
C130: 外部から製品の環境負荷に関するデータの提供の依頼があった場合、協力している
B131: 4 環境保全型商品等の販売及び消費者に対する情報提供 | D131: =取組ﾁｪｯｸｼｰﾄ改訂版!$L$130 -> 0
C132: 再生資源を使用した商品、再生可能な商品、繰り返し使える商品、省資源・省エネルギー型の商品、容器包装を簡素化した商品、エコマーク製品等を重点的に販売している
C133: 上記商品の販売目標を定め、販売促進に積極的に取り組んでいる
C134: 販売の際に環境保全型製品の表示、製品アセスメントの結果の表示等を行っている
C135: 消費者等に環境保全型商品に関する情報を積極的に提供している
A140: ⑥ 建築物の建築・解体、開発事業に当たっての環境配慮 | B140: 1 新規事業を始める際の環境影響評価・環境配慮 | D140: =取組ﾁｪｯｸｼｰﾄ改訂版!$L$139 -> 0
C141: 新規事業を始める際、企画・計画・設計段階、建設段階、運用段階、改修・解体段階のそれぞれの段階における環境影響を評価し、これに基づいて環境保全のため適切な対策を行っている
C142: 事業実施前に行われた環境影響評価の結果が妥当であったかどうかのフォローアップを、事業中及び事業後に行っている
C143: 発注者及び設計者に対し、省エネルギー、建設副産物のリサイクル、合板型枠の使用合理化等、環境保全の提案をしている
B144: 2 環境整備と周辺の自然環境の保全 | D144: =取組ﾁｪｯｸｼｰﾄ改訂版!$L$143 -> 0
C145: 敷地内、壁面、屋上等の緑化を行っている（大気浄化、都市気象の緩和にも資する）
C146: 地域の自然環境との調和に配慮し、生態系や景観の保全に取り組んでいる
C147: 環境を改変する代替措置として環境修復（ミティゲーション）を計画・設計に盛り込んでいる
B148: 3 環境負荷の少ない建築材の使用等 | D148: =取組ﾁｪｯｸｼｰﾄ改訂版!$L$147 -> 0
C149: 建築物の建築・改築に当たり、環境負荷の少ない建築材の使用、建築材の使用合理化に取り組んでいる（合板型等の木材の使用合理化、高炉セメント、再生素材の積極的使用等）
B150: 4 環境に配慮した工法 | D150: =取組ﾁｪｯｸｼｰﾄ改訂版!$L$149 -> 0
C151: 低騒音型の建築機械の使用等により工事騒音・振動の防止に取り組んでいる
C152: アスベストや粉じんの飛散防止等に取り組んでいる
C153: 工事濁水による水質汚濁の防止等に取り組んでいる
C154: 出入り車輌の排ガス・騒音・振動の防止に取り組んでいる
C155: 掘削工事、盛土工事における地盤の変化の防止に取り組んでいる
C156: 工事中の樹木の保護を行っている
C157: 木材、コンクリート塊、汚泥、残土等の建設副産物の削減、再利用、分別、リサイクルに取り組んでいる
C158: フロン、アスベストその他の有害物質の適正処理、代替材の使用等を行っている
B159: 5 建築物、構築物の環境への影響を予防するための方策 | D159: =取組ﾁｪｯｸｼｰﾄ改訂版!$L$158 -> 0
C160: 竣工建築の環境面に配慮した管理、メンテナンス等を行っている
C161: 建造物の老朽化や運用の診断を行い、改善や環境保全設備の見直し等の提案を行っている
C162: 建築物の耐久性の向上に取り組んでいる
B163: 6 施設閉鎖、建築物の解体等の際の環境配慮 | D163: =取組ﾁｪｯｸｼｰﾄ改訂版!$L$162 -> 0
C164: 施設の閉鎖時に、環境影響評価を行っている
C165: 建築物の解体に当たっては、吹きつけアスベストを事前に除去している
C166: 現状から用途転換をする等の計画プロジェクトの前に環境影響評価を行っている
A172: ⑦ グリーン購入 | B172: 1 再生紙の使用 | D172: =取組ﾁｪｯｸｼｰﾄ改訂版!$L$171 -> 0
C173: コピー用紙、コンピューター用紙、伝票・事務用箋等、印刷物・パンフレット等、トイレットペーパー、名刺、その他の紙について、再生紙又は未利用繊維への転換を進めている
C174: 再生パルプの使用率や白色度を考慮した再生紙利用の目標・基準を立て、使用状況を把握しながら取り組んでいる
C175: 再生パルプ使用率が印刷物等に明記されている
B176: 2 その他環境に配慮した物品等の購入、使用 | D176: =取組ﾁｪｯｸｼｰﾄ改訂版!$L$175 -> 0
C177: エコマーク商品を優先的に購入している
C178: 再生材料から作られた製品を優先的に、あるいは再生パルプ使用率を確認し購入、使用している
C179: 間伐材、未利用資源等を利用した製品を積極的に購入、使用している
C180: 木材の調達に当たり、跡地の緑化・植林・環境修復が適切に行われていることに配慮し、又は跡地緑化等に協力している
C181: その他、無漂白製品（衣料品等）、水性塗料等の環境への負荷の少ない製品を優先的に購入、使用している
B182: 3 環境に配慮した物品等の調達に係る基準等 | D182: =取組ﾁｪｯｸｼｰﾄ改訂版!$L$181 -> 0
C183: 環境に配慮した物品等の調達に係る基準、リストを作成し、現状に合わせて、見直しを行っている
C184: 基準、リストに基づく調達状況を把握している
C185: 原料・中間材の購入に当たって環境配慮のチェックを行っている
A190: ⑧ 環境教育、環境保全のための仕組み整備 | B190: 1 環境保全に関する職員等への教育、意識の向上 | D190: =取組ﾁｪｯｸｼｰﾄ改訂版!L189 -> 0
C191: 職員等に環境意識の向上や、環境保全活動に必要な教育を行う計画を定めている | D191: =取組ﾁｪｯｸｼｰﾄ改訂版!L190 -> 0
C192: 職員等に環境教育を実施している | D192: =取組ﾁｪｯｸｼｰﾄ改訂版!L191 -> 0
C193: 環境教育の有効性を確認する効果測定等をおこなっている。 | D193: =取組ﾁｪｯｸｼｰﾄ改訂版!L192 -> 0
C194: 職員等の力量評価や環境保全上必要な資格、能力等を保有できるように養成している | D194: =取組ﾁｪｯｸｼｰﾄ改訂版!L193 -> 0
C195: 委託・協力会社などの職員等についても、必要な知識、能力等を保有するよう、対応をとっている | D195: =取組ﾁｪｯｸｼｰﾄ改訂版!L194 -> 0
B196: 2 職員等の自主的なボランティア活動に対する支援 | D196: =取組ﾁｪｯｸｼｰﾄ改訂版!L195 -> 0
C197: ボランティア休暇など、組織の制度として支援システムがある | D197: =取組ﾁｪｯｸｼｰﾄ改訂版!L196 -> 0
C198: 環境に関する研究や活動を行っているサークル等に対する支援を行っている | D198: =取組ﾁｪｯｸｼｰﾄ改訂版!L197 -> 0
B199: 3 通勤に係る環境への負荷の低減 | D199: =取組ﾁｪｯｸｼｰﾄ改訂版!L198 -> 0
C200: 通勤等に公共交通機関を利用するよう指導している | D200: =取組ﾁｪｯｸｼｰﾄ改訂版!L199 -> 0
B201: 4 法規制等への対応 | D201: =取組ﾁｪｯｸｼｰﾄ改訂版!L200 -> 0
C202: 法規制等の最新情報を常に入手している | D202: =取組ﾁｪｯｸｼｰﾄ改訂版!L201 -> 0
C203: 業務プロセスについて法規制に対しての遵守評価がおこなわれている | D203: =取組ﾁｪｯｸｼｰﾄ改訂版!L202 -> 0
C204: 法規制等の変化に対応する手順ができている | D204: =取組ﾁｪｯｸｼｰﾄ改訂版!L203 -> 0
C205: 埼玉県の条例規制内容も把握している。 | D205: =取組ﾁｪｯｸｼｰﾄ改訂版!L204 -> 0
B206: 5 環境対応のための組織体制整備 | D206: =取組ﾁｪｯｸｼｰﾄ改訂版!L205 -> 0
C207: 環境経営システムを実行するに当たり役割分担や責任、権限などが明確に定められている | D207: =取組ﾁｪｯｸｼｰﾄ改訂版!L206 -> 0
C208: 環境保全活動等を実行するに当たり、全組織的に推進する体制となっている | D208: =取組ﾁｪｯｸｼｰﾄ改訂版!L207 -> 0
C209: 環境保全活動等を実行するに当たり必要な人材や情報、その他の資源が用意できる体制がある | D209: =取組ﾁｪｯｸｼｰﾄ改訂版!L208 -> 0
C210: 環境保全活動等を所管する役員が任命されている | D210: =取組ﾁｪｯｸｼｰﾄ改訂版!L209 -> 0
C211: 職員の採用の際、環境への意識の高さ、環境に関する知識等を判断材料のひとつにしている | D211: =取組ﾁｪｯｸｼｰﾄ改訂版!L210 -> 0
B212: 6 コミュニケーション | D212: =取組ﾁｪｯｸｼｰﾄ改訂版!L211 -> 0
C213: 環境保全活動に必要な情報やその実績、評価結果などが内部で適切に伝達される仕組みが整えられている | D213: =取組ﾁｪｯｸｼｰﾄ改訂版!L212 -> 0
C214: 外部からの意見や苦情、問い合わせなどを受け付け、対応し、情報を管理する仕組みが整えられている | D214: =取組ﾁｪｯｸｼｰﾄ改訂版!L213 -> 0
B215: 7 運用管理 | D215: =取組ﾁｪｯｸｼｰﾄ改訂版!L214 -> 0
C216: 環境保全活動上、必要な作業手順や運用基準等が明確に定められている | D216: =取組ﾁｪｯｸｼｰﾄ改訂版!L215 -> 0
C217: 必要な場合、委託・協力会社などに対しても作業手順や運用基準が徹底されるよう、配慮している | D217: =取組ﾁｪｯｸｼｰﾄ改訂版!L216 -> 0
B218: 8 取引先への働きかけ等 | D218: =取組ﾁｪｯｸｼｰﾄ改訂版!L217 -> 0
C219: 協力会社、納入会社、委託業者、子会社等について、環境保全の面から評価し、その選定に活かすとともに、改善支援を行っている
C220: 委託契約等に環境配慮が契約管理に組み込まれている
C221: 協力会社、子会社等に教育プログラムを提供している
C222: 顧客や発注者に対し、環境保全の提案をしている
A227: ⑨ その他（情報提供、社会貢献、地域の環境保全ほか） | B227: 1 事業上の環境に関する情報の提供、公表 | D227: =取組ﾁｪｯｸｼｰﾄ改訂版!L226 -> 0
C228: 事業活動に伴う重要な環境負荷・環境に関する主要な目標、環境担当者の連絡先等を公表している | D228: =取組ﾁｪｯｸｼｰﾄ改訂版!L227 -> 0
C229: 消費者等に対して、情報提供や啓発活動を行っている | D229: =取組ﾁｪｯｸｼｰﾄ改訂版!L228 -> 0
C230: 外部からの情報の提供、公表の依頼に対する窓口を置いている | D230: =取組ﾁｪｯｸｼｰﾄ改訂版!L229 -> 0
B231: 2 環境に関する取組等に関する外部の関係者の意見等の聴取 | D231: =取組ﾁｪｯｸｼｰﾄ改訂版!L230 -> 0
C232: 意見聴取を定期的に行い、環境に対する取組の際に考慮している | D232: =取組ﾁｪｯｸｼｰﾄ改訂版!L231 -> 0
... 22 more rows

Sheet SDGｓマトリクス
B1: <項目① ： 廃棄物の排出抑制、リサイクル、適正処理> | H1: 1．貧困をなくそう | I1: 2．飢餓をゼロ | J1: 3．すべての人に健康と福祉を | K1: 4．質の高い教育をみんなに | L1: 5．ジェンダー平等を実現しよう | M1: 6．安全な水とトイレを世界中に | N1: 7．エネルギーをみんなに そしてクリーンに | O1: 8．働きがいも経済成長も | P1: 9．産業と技術革新の基盤をつくろう | Q1: 10．人や国の不平等をなくそう | R1: 11．住み続けられるまちづくりを | S1: 12．つくる責任 つかう責任 | T1: 13．気候変動に具体的な対策を | U1: 14．海の豊かさを守ろう | V1: 15．陸の豊かさも守ろう | W1: 16．平和と公正をすべての人に | X1: 17．パートナーシップで目標を達成しよう | AD1: ○ | AE1: △ | AF1: × | AG1: － | AO1: ◎
B2: （チェック欄） | E2: SDGs関連ゴール | AC2: 記入点 | AD2: 小計 | AE2: 対象 | AF2: 対象数 | AG2: 評価点 | AH2: SDGs小計 | AI2: 項目評点 | AL2: 各ゴールの評点 | AO2: ○
B3: 1 紙の使用量の抑制（再生紙については「グリーン購入」参照）
B4: =取組ﾁｪｯｸｼｰﾄ改訂版!B4 -> 0 | D4: 会議用資料や事務手続書類の簡素化に取り組んでいる | E4: １１、１２ | R4: ○ | S4: ◎ | AC4: =IF(B4="○",1,IF(B4="△",0.5,IF(B4="×",0.1,""))) ->  | AD4: =SUM(AC4:AC9) -> 0 | AE4: =COUNTIF(B4,"○")+COUNTIF(B4,"△")+COUNTIF(B4,"×")+COUNTIF(B4,0) -> 1 | AF4: =SUM(AE4:AE9) -> 6 | AG4: =AD4/AF4 -> 0 | AH4: =SUMPRODUCT((H4:X4="○")*($AE4=1))*0.5+SUMPRODUCT((H4:X4="◎")*($AE4=1)) -> 1.5
B5: =取組ﾁｪｯｸｼｰﾄ改訂版!B5 -> 0 | D5: 両面印刷、両面コピーを徹底している | R5: ○ | S5: ◎ | AC5: =IF(B5="○",1,IF(B5="△",0.5,IF(B5="×",0.1,""))) ->  | AE5: 1 | AH5: 1.5
B6: =取組ﾁｪｯｸｼｰﾄ改訂版!B6 -> 0 | D6: 使用済み用紙の裏面の利用をしている | R6: ○ | S6: ◎ | AC6: =IF(B6="○",1,IF(B6="△",0.5,IF(B6="×",0.1,""))) ->  | AE6: 1 | AH6: 1.5
B7: =取組ﾁｪｯｸｼｰﾄ改訂版!B7 -> 0 | D7: 使用済み封筒の再利用をしている | R7: ○ | S7: ◎ | AE7: 1 | AH7: 1.5
B8: =取組ﾁｪｯｸｼｰﾄ改訂版!B8 -> 0 | D8: Ａ４判化等による文書のスリム化に取り組んでいる | R8: ○ | S8: ◎ | AE8: 1 | AH8: 1.5
B9: =取組ﾁｪｯｸｼｰﾄ改訂版!B9 -> 0 | D9: 電子メディア、プロジェクタ利用等によるペーパーレス化に取り組んでいる | R9: ○ | S9: ◎ | AE9: =COUNTIF(B9,"○")+COUNTIF(B9,"△")+COUNTIF(B9,"×")+COUNTIF(B9,0) -> 1 | AH9: 1.5
B10: =取組ﾁｪｯｸｼｰﾄ改訂版!B10 -> 2 廃棄物の発生そのものを抑える取組 | H10: =(SUMPRODUCT((H4:H9="○")*($AC4:$AC9=1))*0.5+SUMPRODUCT((H4:H9="○")*($AC4:$AC9=0.5))*0.25+SUMPRODUCT((H4:H9="○")*($AC4:$AC9=0.1))*0.05+SUMPRODUCT((H4:H9="◎")*($AC4:$AC9=1))+SUMPRODUCT((H4:H9="◎")*($AC4:$AC9=0.5)*0.5)+SUMPRODUCT((H4:H9="◎")*($AC4:$AC9=0.1))*0.1) -> 0 | I10: 0 | J10: 0 | K10: 0 | L10: 0 | M10: 0 | N10: 0 | O10: 0 | P10: 0 | Q10: 0 | R10: 0 | S10: =(SUMPRODUCT((S4:S9="○")*($AC4:$AC9=1))*0.5+SUMPRODUCT((S4:S9="○")*($AC4:$AC9=0.5))*0.25+SUMPRODUCT((S4:S9="○")*($AC4:$AC9=0.1))*0.05+SUMPRODUCT((S4:S9="◎")*($AC4:$AC9=1))+SUMPRODUCT((S4:S9="◎")*($AC4:$AC9=0.5)*0.5)+SUMPRODUCT((S4:S9="◎")*($AC4:$AC9=0.1))*0.1) -> 0 | T10: =(SUMPRODUCT((T4:T9="○")*($AC4:$AC9=1))*0.5+SUMPRODUCT((T4:T9="○")*($AC4:$AC9=0.5))*0.25+SUMPRODUCT((T4:T9="○")*($AC4:$AC9=0.1))*0.05+SUMPRODUCT((T4:T9="◎")*($AC4:$AC9=1))+SUMPRODUCT((T4:T9="◎")*($AC4:$AC9=0.5)*0.5)+SUMPRODUCT((T4:T9="◎")*($AC4:$AC9=0.1))*0.1) -> 0 | U10: 0 | V10: 0 | W10: 0 | X10: 0 | AE10: =SUBTOTAL(9,AE4:AE9) -> 6 | AH10: =SUM(AH4:AH9) -> 9 | AI10: =IF(AE10=0,"",SUM(H10:X10)/AH10) -> 0 | AL10: =IFERROR(H10/((SUMPRODUCT((H4:H9="○")*($AC4:$AC9=1))*0.5+SUMPRODUCT((H4:H9="○")*($AC4:$AC9=0.5))*0.5+SUMPRODUCT((H4:H9="○")*($AC4:$AC9=0.1))*0.5+SUMPRODUCT((H4:H9="◎")*($AC4:$AC9=1))+SUMPRODUCT((H4:H9="◎")*($AC4:$AC9=0.5)*0.5)+SUMPRODUCT((H4:H9="◎")*($AC4:$AC9=0.1))*0.1)),0) -> 0 | AM10: =IFERROR(I10/((SUMPRODUCT((I4:I9="○")*($AC4:$AC9=1))*0.5+SUMPRODUCT((I4:I9="○")*($AC4:$AC9=0.5))*0.5+SUMPRODUCT((I4:I9="○")*($AC4:$AC9=0.1))*0.5+SUMPRODUCT((I4:I9="◎")*($AC4:$AC9=1))+SUMPRODUCT((I4:I9="◎")*($AC4:$AC9=0.5)*0.5)+SUMPRODUCT((I4:I9="◎")*($AC4:$AC9=0.1))*0.1)),0) -> 0 | AN10: 0 | AO10: 0 | AP10: 0 | AQ10: 0 | AR10: 0 | AS10: 0 | AT10: 0 | AU10: 0 | AV10: 0 | AW10: 0 | AX10: 0 | AY10: 0 | AZ10: 0 | BA10: 0 | BB10: 0
B11: =取組ﾁｪｯｸｼｰﾄ改訂版!B11 -> 0 | D11: 使い捨て製品（紙コップ、紙皿、使い捨て容器入りの弁当等）の使用や購入を抑制している | E11: １１、１２ | R11: ○ | S11: ◎ | AD11: =SUM(AC11:AC17) -> 0 | AE11: 1 | AF11: =SUM(AE11:AE17) -> 7 | AG11: =AD11/AF11 -> 0 | AH11: 1.5
B12: =取組ﾁｪｯｸｼｰﾄ改訂版!B12 -> 0 | D12: リターナブル容器（ビール瓶、一升瓶等）に入った製品を優先的に購入、使用している | R12: ○ | S12: ◎ | AE12: 1 | AH12: 1.5
B13: =取組ﾁｪｯｸｼｰﾄ改訂版!B13 -> 0 | D13: 再使用又はリサイクルしやすい製品を優先的に購入、使用している | R13: ○ | S13: ◎ | AE13: 1 | AH13: 1.5
B14: =取組ﾁｪｯｸｼｰﾄ改訂版!B14 -> 0 | D14: コピー機、パソコン、プリンタ等について、リサイクルしやすい素材を使用しているものを採用している | R14: ○ | S14: ◎ | AE14: 1 | AH14: 1.5
B15: =取組ﾁｪｯｸｼｰﾄ改訂版!B15 -> 0 | D15: 詰め替え可能な製品の利用や備品の修理などにより、製品等の長期使用を進めている | R15: ○ | S15: ◎ | AE15: 1 | AH15: 1.5
B16: =取組ﾁｪｯｸｼｰﾄ改訂版!B16 -> 0 | D16: 包装・梱包（段ボール、魚箱等）の削減、再使用に取り組んでいる | R16: ○ | S16: ◎ | AE16: 1 | AH16: 1.5
B17: =取組ﾁｪｯｸｼｰﾄ改訂版!B17 -> 0 | D17: 業務プロセスにおいて廃棄物及び不良材等の発生抑制に取り組んでいる | R17: ○ | S17: ◎ | AE17: 1 | AH17: 1.5
B18: =取組ﾁｪｯｸｼｰﾄ改訂版!B18 -> 3 オフィス等におけるリサイクルの促進 | H18: =(SUMPRODUCT((H11:H17="○")*($AC11:$AC17=1))*0.5+SUMPRODUCT((H11:H17="○")*($AC11:$AC17=0.5))*0.25+SUMPRODUCT((H11:H17="○")*($AC11:$AC17=0.1))*0.05+SUMPRODUCT((H11:H17="◎")*($AC11:$AC17=1))+SUMPRODUCT((H11:H17="◎")*($AC11:$AC17=0.5)*0.5)+SUMPRODUCT((H11:H17="◎")*($AC11:$AC17=0.1))*0.1) -> 0 | I18: 0 | J18: 0 | K18: 0 | L18: 0 | M18: 0 | N18: 0 | O18: 0 | P18: 0 | Q18: 0 | R18: =(SUMPRODUCT((R11:R17="○")*($AC11:$AC17=1))*0.5+SUMPRODUCT((R11:R17="○")*($AC11:$AC17=0.5))*0.25+SUMPRODUCT((R11:R17="○")*($AC11:$AC17=0.1))*0.05+SUMPRODUCT((R11:R17="◎")*($AC11:$AC17=1))+SUMPRODUCT((R11:R17="◎")*($AC11:$AC17=0.5)*0.5)+SUMPRODUCT((R11:R17="◎")*($AC11:$AC17=0.1))*0.1) -> 0 | S18: =(SUMPRODUCT((S11:S17="○")*($AC11:$AC17=1))*0.5+SUMPRODUCT((S11:S17="○")*($AC11:$AC17=0.5))*0.25+SUMPRODUCT((S11:S17="○")*($AC11:$AC17=0.1))*0.05+SUMPRODUCT((S11:S17="◎")*($AC11:$AC17=1))+SUMPRODUCT((S11:S17="◎")*($AC11:$AC17=0.5)*0.5)+SUMPRODUCT((S11:S17="◎")*($AC11:$AC17=0.1))*0.1) -> 0 | T18: 0 | U18: 0 | V18: 0 | W18: 0 | X18: 0 | AE18: =SUBTOTAL(9,AE11:AE17) -> 7 | AH18: =SUM(AH11:AH17) -> 10.5 | AI18: =IF(AE18=0,"",SUM(H18:X18)/AH18) -> 0 | AL18: =IFERROR(H18/((SUMPRODUCT((H11:H17="○")*($AC11:$AC17=1))*0.5+SUMPRODUCT((H11:H17="○")*($AC11:$AC17=0.5))*0.5+SUMPRODUCT((H11:H17="○")*($AC11:$AC17=0.1))*0.5+SUMPRODUCT((H11:H17="◎")*($AC11:$AC17=1))+SUMPRODUCT((H11:H17="◎")*($AC11:$AC17=0.5)*0.5)+SUMPRODUCT((H11:H17="◎")*($AC11:$AC17=0.1))*0.1)),0) -> 0 | AM18: =IFERROR(I18/((SUMPRODUCT((I11:I17="○")*($AC11:$AC17=1))*0.5+SUMPRODUCT((I11:I17="○")*($AC11:$AC17=0.5))*0.5+SUMPRODUCT((I11:I17="○")*($AC11:$AC17=0.1))*0.5+SUMPRODUCT((I11:I17="◎")*($AC11:$AC17=1))+SUMPRODUCT((I11:I17="◎")*($AC11:$AC17=0.5)*0.5)+SUMPRODUCT((I11:I17="◎")*($AC11:$AC17=0.1))*0.1)),0) -> 0 | AN18: 0 | AO18: 0 | AP18: 0 | AQ18: 0 | AR18: 0 | AS18: 0 | AT18: 0 | AU18: 0 | AV18: 0 | AW18: 0 | AX18: 0 | AY18: 0 | AZ18: 0 | BA18: 0 | BB18: 0
B19: =取組ﾁｪｯｸｼｰﾄ改訂版!B19 -> 0 | D19: 紙、金属缶、ガラスびん、プラスチック、電池等について、分別回収ボックスの適正配置などにより、ごみの分別を徹底している | E19: １１、１２ | R19: ○ | S19: ◎ | AD19: =SUM(AC19:AC25) -> 0 | AE19: =COUNTIF(B19,"○")+COUNTIF(B19,"△")+COUNTIF(B19,"×")+COUNTIF(B19,0) -> 1 | AF19: =SUM(AD19:AD25) -> 0 | AG19: =AD19/AF19 ->  | AH19: 1.5
B20: =取組ﾁｪｯｸｼｰﾄ改訂版!B20 -> 0 | D20: 回収した資源ごみがリサイクルされるよう確認している | R20: ○ | S20: ◎ | AE20: 1 | AH20: 1.5
B21: =取組ﾁｪｯｸｼｰﾄ改訂版!B21 -> 0 | D21: 秘密文書においても溶解処理等原料リサイクルに配慮している。 | R21: ○ | S21: ◎ | AE21: 1 | AH21: 1.5
B22: =取組ﾁｪｯｸｼｰﾄ改訂版!B22 -> 0 | D22: コピー機、プリンターのトナーカートリッジの回収とリサイクルを進めている | R22: ○ | S22: ◎ | AE22: 1 | AH22: 1.5
B23: =取組ﾁｪｯｸｼｰﾄ改訂版!B23 -> 0 | D23: 食べ残し、食品残滓等の有機物質については可能な限りコンポスト化（堆肥化）し、土壌に還元、利用している | R23: ○ | S23: ◎ | AE23: 1 | AH23: 1.5
B24: =取組ﾁｪｯｸｼｰﾄ改訂版!B24 -> 0 | D24: 廃食用油のせっけん等への再利用を行っている | R24: ○ | S24: ◎ | AE24: =COUNTIF(B24,"○")+COUNTIF(B24,"△")+COUNTIF(B24,"×")+COUNTIF(B24,0) -> 1 | AH24: 1.5
B25: =取組ﾁｪｯｸｼｰﾄ改訂版!B25 -> 0 | D25: 包装、梱包等のリサイクルに取り組んでいる | R25: ○ | S25: ◎ | AE25: =COUNTIF(B25,"○")+COUNTIF(B25,"△")+COUNTIF(B25,"×")+COUNTIF(B25,0) -> 1 | AH25: 1.5
B26: =取組ﾁｪｯｸｼｰﾄ改訂版!B26 -> 4 出荷・販売等に際しての梱包等に関する配慮 | H26: =(SUMPRODUCT((H19:H25="○")*($AC19:$AC25=1))*0.5+SUMPRODUCT((H19:H25="○")*($AC19:$AC25=0.5))*0.25+SUMPRODUCT((H19:H25="○")*($AC19:$AC25=0.1))*0.05+SUMPRODUCT((H19:H25="◎")*($AC19:$AC25=1))+SUMPRODUCT((H19:H25="◎")*($AC19:$AC25=0.5)*0.5)+SUMPRODUCT((H19:H25="◎")*($AC19:$AC25=0.1))*0.1) -> 0 | I26: =(SUMPRODUCT((I19:I25="○")*($AC19:$AC25=1))*0.5+SUMPRODUCT((I19:I25="○")*($AC19:$AC25=0.5))*0.25+SUMPRODUCT((I19:I25="○")*($AC19:$AC25=0.1))*0.05+SUMPRODUCT((I19:I25="◎")*($AC19:$AC25=1))+SUMPRODUCT((I19:I25="◎")*($AC19:$AC25=0.5)*0.5)+SUMPRODUCT((I19:I25="◎")*($AC19:$AC25=0.1))*0.1) -> 0 | J26: =(SUMPRODUCT((J19:J25="○")*($AC19:$AC25=1))*0.5+SUMPRODUCT((J19:J25="○")*($AC19:$AC25=0.5))*0.25+SUMPRODUCT((J19:J25="○")*($AC19:$AC25=0.1))*0.05+SUMPRODUCT((J19:J25="◎")*($AC19:$AC25=1))+SUMPRODUCT((J19:J25="◎")*($AC19:$AC25=0.5)*0.5)+SUMPRODUCT((J19:J25="◎")*($AC19:$AC25=0.1))*0.1) -> 0 | K26: =(SUMPRODUCT((K19:K25="○")*($AC19:$AC25=1))*0.5+SUMPRODUCT((K19:K25="○")*($AC19:$AC25=0.5))*0.25+SUMPRODUCT((K19:K25="○")*($AC19:$AC25=0.1))*0.05+SUMPRODUCT((K19:K25="◎")*($AC19:$AC25=1))+SUMPRODUCT((K19:K25="◎")*($AC19:$AC25=0.5)*0.5)+SUMPRODUCT((K19:K25="◎")*($AC19:$AC25=0.1))*0.1) -> 0 | L26: =(SUMPRODUCT((L19:L25="○")*($AC19:$AC25=1))*0.5+SUMPRODUCT((L19:L25="○")*($AC19:$AC25=0.5))*0.25+SUMPRODUCT((L19:L25="○")*($AC19:$AC25=0.1))*0.05+SUMPRODUCT((L19:L25="◎")*($AC19:$AC25=1))+SUMPRODUCT((L19:L25="◎")*($AC19:$AC25=0.5)*0.5)+SUMPRODUCT((L19:L25="◎")*($AC19:$AC25=0.1))*0.1) -> 0 | M26: =(SUMPRODUCT((M19:M25="○")*($AC19:$AC25=1))*0.5+SUMPRODUCT((M19:M25="○")*($AC19:$AC25=0.5))*0.25+SUMPRODUCT((M19:M25="○")*($AC19:$AC25=0.1))*0.05+SUMPRODUCT((M19:M25="◎")*($AC19:$AC25=1))+SUMPRODUCT((M19:M25="◎")*($AC19:$AC25=0.5)*0.5)+SUMPRODUCT((M19:M25="◎")*($AC19:$AC25=0.1))*0.1) -> 0 | N26: =(SUMPRODUCT((N19:N25="○")*($AC19:$AC25=1))*0.5+SUMPRODUCT((N19:N25="○")*($AC19:$AC25=0.5))*0.25+SUMPRODUCT((N19:N25="○")*($AC19:$AC25=0.1))*0.05+SUMPRODUCT((N19:N25="◎")*($AC19:$AC25=1))+SUMPRODUCT((N19:N25="◎")*($AC19:$AC25=0.5)*0.5)+SUMPRODUCT((N19:N25="◎")*($AC19:$AC25=0.1))*0.1) -> 0 | O26: =(SUMPRODUCT((O19:O25="○")*($AC19:$AC25=1))*0.5+SUMPRODUCT((O19:O25="○")*($AC19:$AC25=0.5))*0.25+SUMPRODUCT((O19:O25="○")*($AC19:$AC25=0.1))*0.05+SUMPRODUCT((O19:O25="◎")*($AC19:$AC25=1))+SUMPRODUCT((O19:O25="◎")*($AC19:$AC25=0.5)*0.5)+SUMPRODUCT((O19:O25="◎")*($AC19:$AC25=0.1))*0.1) -> 0 | P26: =(SUMPRODUCT((P19:P25="○")*($AC19:$AC25=1))*0.5+SUMPRODUCT((P19:P25="○")*($AC19:$AC25=0.5))*0.25+SUMPRODUCT((P19:P25="○")*($AC19:$AC25=0.1))*0.05+SUMPRODUCT((P19:P25="◎")*($AC19:$AC25=1))+SUMPRODUCT((P19:P25="◎")*($AC19:$AC25=0.5)*0.5)+SUMPRODUCT((P19:P25="◎")*($AC19:$AC25=0.1))*0.1) -> 0 | Q26: =(SUMPRODUCT((Q19:Q25="○")*($AC19:$AC25=1))*0.5+SUMPRODUCT((Q19:Q25="○")*($AC19:$AC25=0.5))*0.25+SUMPRODUCT((Q19:Q25="○")*($AC19:$AC25=0.1))*0.05+SUMPRODUCT((Q19:Q25="◎")*($AC19:$AC25=1))+SUMPRODUCT((Q19:Q25="◎")*($AC19:$AC25=0.5)*0.5)+SUMPRODUCT((Q19:Q25="◎")*($AC19:$AC25=0.1))*0.1) -> 0 | R26: =(SUMPRODUCT((R19:R25="○")*($AC19:$AC25=1))*0.5+SUMPRODUCT((R19:R25="○")*($AC19:$AC25=0.5))*0.25+SUMPRODUCT((R19:R25="○")*($AC19:$AC25=0.1))*0.05+SUMPRODUCT((R19:R25="◎")*($AC19:$AC25=1))+SUMPRODUCT((R19:R25="◎")*($AC19:$AC25=0.5)*0.5)+SUMPRODUCT((R19:R25="◎")*($AC19:$AC25=0.1))*0.1) -> 0 | S26: =(SUMPRODUCT((S19:S25="○")*($AC19:$AC25=1))*0.5+SUMPRODUCT((S19:S25="○")*($AC19:$AC25=0.5))*0.25+SUMPRODUCT((S19:S25="○")*($AC19:$AC25=0.1))*0.05+SUMPRODUCT((S19:S25="◎")*($AC19:$AC25=1))+SUMPRODUCT((S19:S25="◎")*($AC19:$AC25=0.5)*0.5)+SUMPRODUCT((S19:S25="◎")*($AC19:$AC25=0.1))*0.1) -> 0 | T26: =(SUMPRODUCT((T19:T25="○")*($AC19:$AC25=1))*0.5+SUMPRODUCT((T19:T25="○")*($AC19:$AC25=0.5))*0.25+SUMPRODUCT((T19:T25="○")*($AC19:$AC25=0.1))*0.05+SUMPRODUCT((T19:T25="◎")*($AC19:$AC25=1))+SUMPRODUCT((T19:T25="◎")*($AC19:$AC25=0.5)*0.5)+SUMPRODUCT((T19:T25="◎")*($AC19:$AC25=0.1))*0.1) -> 0 | U26: =(SUMPRODUCT((U19:U25="○")*($AC19:$AC25=1))*0.5+SUMPRODUCT((U19:U25="○")*($AC19:$AC25=0.5))*0.25+SUMPRODUCT((U19:U25="○")*($AC19:$AC25=0.1))*0.05+SUMPRODUCT((U19:U25="◎")*($AC19:$AC25=1))+SUMPRODUCT((U19:U25="◎")*($AC19:$AC25=0.5)*0.5)+SUMPRODUCT((U19:U25="◎")*($AC19:$AC25=0.1))*0.1) -> 0 | V26: =(SUMPRODUCT((V19:V25="○")*($AC19:$AC25=1))*0.5+SUMPRODUCT((V19:V25="○")*($AC19:$AC25=0.5))*0.25+SUMPRODUCT((V19:V25="○")*($AC19:$AC25=0.1))*0.05+SUMPRODUCT((V19:V25="◎")*($AC19:$AC25=1))+SUMPRODUCT((V19:V25="◎")*($AC19:$AC25=0.5)*0.5)+SUMPRODUCT((V19:V25="◎")*($AC19:$AC25=0.1))*0.1) -> 0 | W26: =(SUMPRODUCT((W19:W25="○")*($AC19:$AC25=1))*0.5+SUMPRODUCT((W19:W25="○")*($AC19:$AC25=0.5))*0.25+SUMPRODUCT((W19:W25="○")*($AC19:$AC25=0.1))*0.05+SUMPRODUCT((W19:W25="◎")*($AC19:$AC25=1))+SUMPRODUCT((W19:W25="◎")*($AC19:$AC25=0.5)*0.5)+SUMPRODUCT((W19:W25="◎")*($AC19:$AC25=0.1))*0.1) -> 0 | X26: =(SUMPRODUCT((X19:X25="○")*($AC19:$AC25=1))*0.5+SUMPRODUCT((X19:X25="○")*($AC19:$AC25=0.5))*0.25+SUMPRODUCT((X19:X25="○")*($AC19:$AC25=0.1))*0.05+SUMPRODUCT((X19:X25="◎")*($AC19:$AC25=1))+SUMPRODUCT((X19:X25="◎")*($AC19:$AC25=0.5)*0.5)+SUMPRODUCT((X19:X25="◎")*($AC19:$AC25=0.1))*0.1) -> 0 | AE26: =SUBTOTAL(9,AE19:AE25) -> 7 | AH26: =SUM(AH19:AH25) -> 10.5 | AI26: =IF(AE26=0,"",SUM(H26:X26)/AH26) -> 0 | AL26: =IFERROR(H26/((SUMPRODUCT((H19:H25="○")*($AC19:$AC25=1))*0.5+SUMPRODUCT((H19:H25="○")*($AC19:$AC25=0.5))*0.5+SUMPRODUCT((H19:H25="○")*($AC19:$AC25=0.1))*0.5+SUMPRODUCT((H19:H25="◎")*($AC19:$AC25=1))+SUMPRODUCT((H19:H25="◎")*($AC19:$AC25=0.5)*0.5)+SUMPRODUCT((H19:H25="◎")*($AC19:$AC25=0.1))*0.1)),0) -> 0 | AM26: =IFERROR(I26/((SUMPRODUCT((I19:I25="○")*($AC19:$AC25=1))*0.5+SUMPRODUCT((I19:I25="○")*($AC19:$AC25=0.5))*0.5+SUMPRODUCT((I19:I25="○")*($AC19:$AC25=0.1))*0.5+SUMPRODUCT((I19:I25="◎")*($AC19:$AC25=1))+SUMPRODUCT((I19:I25="◎")*($AC19:$AC25=0.5)*0.5)+SUMPRODUCT((I19:I25="◎")*($AC19:$AC25=0.1))*0.1)),0) -> 0 | AN26: 0 | AO26: 0 | AP26: 0 | AQ26: 0 | AR26: 0 | AS26: 0 | AT26: 0 | AU26: 0 | AV26: 0 | AW26: 0 | AX26: 0 | AY26: 0 | AZ26: 0 | BA26: 0 | BB26: 0
B27: =取組ﾁｪｯｸｼｰﾄ改訂版!B27 -> 0 | D27: 簡易包装の推進、多重包装の見直し、量り売り、ばら売りの推進等により、包装紙、容器、買い物袋、食品トレイ、ラップ等の削減に取り組んでいる | E27: １１、１２ | R27: ○ | S27: ◎ | AD27: =SUM(AC27:AC31) -> 0 | AE27: =COUNTIF(B27,"○")+COUNTIF(B27,"△")+COUNTIF(B27,"×")+COUNTIF(B27,0) -> 1 | AF27: =SUM(AE27:AE31) -> 5 | AG27: =AD27/AF27 -> 0 | AH27: 1.5
B28: =取組ﾁｪｯｸｼｰﾄ改訂版!B28 -> 0 | D28: 環境負荷の少ない梱包材への代替に取り組んでいる | R28: ○ | S28: ◎ | AE28: 1 | AH28: 1.5
B29: =取組ﾁｪｯｸｼｰﾄ改訂版!B29 -> 0 | D29: 詰め替え式の容器・製品の販売促進に取り組んでいる | R29: ○ | S29: ◎ | AE29: 1 | AH29: 1.5
B30: =取組ﾁｪｯｸｼｰﾄ改訂版!B30 -> 0 | D30: リターナブル容器入りの製品の販売促進に取り組んでいる | R30: ○ | S30: ◎ | AE30: 1 | AH30: 1.5
B31: =取組ﾁｪｯｸｼｰﾄ改訂版!B31 -> 0 | D31: 紙パック、食品トレイ、アルミ缶、スチール缶、ペットボトル等の店頭回収・リサイクルに取り組んでいる | R31: ○ | S31: ◎ | AE31: 1 | AH31: 1.5
B32: =取組ﾁｪｯｸｼｰﾄ改訂版!B32 -> 5 生産工程における取組 | H32: =(SUMPRODUCT((H27:H31="○")*($AC27:$AC31=1))*0.5+SUMPRODUCT((H27:H31="○")*($AC27:$AC31=0.5))*0.25+SUMPRODUCT((H27:H31="○")*($AC27:$AC31=0.1))*0.05+SUMPRODUCT((H27:H31="◎")*($AC27:$AC31=1))+SUMPRODUCT((H27:H31="◎")*($AC27:$AC31=0.5)*0.5)+SUMPRODUCT((H27:H31="◎")*($AC27:$AC31=0.1))*0.1) -> 0 | I32: 0 | J32: 0 | K32: 0 | L32: 0 | M32: 0 | N32: 0 | O32: 0 | P32: 0 | Q32: 0 | R32: =(SUMPRODUCT((R27:R31="○")*($AC27:$AC31=1))*0.5+SUMPRODUCT((R27:R31="○")*($AC27:$AC31=0.5))*0.25+SUMPRODUCT((R27:R31="○")*($AC27:$AC31=0.1))*0.05+SUMPRODUCT((R27:R31="◎")*($AC27:$AC31=1))+SUMPRODUCT((R27:R31="◎")*($AC27:$AC31=0.5)*0.5)+SUMPRODUCT((R27:R31="◎")*($AC27:$AC31=0.1))*0.1) -> 0 | S32: =(SUMPRODUCT((S27:S31="○")*($AC27:$AC31=1))*0.5+SUMPRODUCT((S27:S31="○")*($AC27:$AC31=0.5))*0.25+SUMPRODUCT((S27:S31="○")*($AC27:$AC31=0.1))*0.05+SUMPRODUCT((S27:S31="◎")*($AC27:$AC31=1))+SUMPRODUCT((S27:S31="◎")*($AC27:$AC31=0.5)*0.5)+SUMPRODUCT((S27:S31="◎")*($AC27:$AC31=0.1))*0.1) -> 0 | T32: 0 | U32: 0 | V32: 0 | W32: 0 | X32: 0 | AE32: =SUBTOTAL(9,AE27:AE31) -> 5 | AH32: =SUM(AH27:AH31) -> 7.5 | AI32: =IF(AE32=0,"",SUM(H32:X32)/AH32) -> 0 | AL32: =IFERROR(H32/((SUMPRODUCT((H27:H31="○")*($AC27:$AC31=1))*0.5+SUMPRODUCT((H27:H31="○")*($AC27:$AC31=0.5))*0.5+SUMPRODUCT((H27:H31="○")*($AC27:$AC31=0.1))*0.5+SUMPRODUCT((H27:H31="◎")*($AC27:$AC31=1))+SUMPRODUCT((H27:H31="◎")*($AC27:$AC31=0.5)*0.5)+SUMPRODUCT((H27:H31="◎")*($AC27:$AC31=0.1))*0.1)),0) -> 0 | AM32: =IFERROR(I32/((SUMPRODUCT((I27:I31="○")*($AC27:$AC31=1))*0.5+SUMPRODUCT((I27:I31="○")*($AC27:$AC31=0.5))*0.5+SUMPRODUCT((I27:I31="○")*($AC27:$AC31=0.1))*0.5+SUMPRODUCT((I27:I31="◎")*($AC27:$AC31=1))+SUMPRODUCT((I27:I31="◎")*($AC27:$AC31=0.5)*0.5)+SUMPRODUCT((I27:I31="◎")*($AC27:$AC31=0.1))*0.1)),0) -> 0 | AN32: 0 | AO32: 0 | AP32: 0 | AQ32: 0 | AR32: 0 | AS32: 0 | AT32: 0 | AU32: 0 | AV32: 0 | AW32: 0 | AX32: 0 | AY32: 0 | AZ32: 0 | BA32: 0 | BB32: 0
B33: =取組ﾁｪｯｸｼｰﾄ改訂版!B33 -> 0 | D33: 工程から発生する金属くず、紙くず、廃液などの回収・再利用のための設備を設置し、活用している | E33: １１、１２ | R33: ○ | S33: ◎ | AD33: =SUM(AC33:AC33) -> 0 | AE33: =COUNTIF(B33,"○")+COUNTIF(B33,"△")+COUNTIF(B33,"×")+COUNTIF(B33,0) -> 1 | AF33: =SUM(AE33:AE33) -> 1 | AG33: =AD33/AF33 -> 0 | AH33: 1.5
B34: =取組ﾁｪｯｸｼｰﾄ改訂版!B34 -> 6 産業廃棄物等の適正処理 | H34: =(SUMPRODUCT((H33:H33="○")*($AC33:$AC33=1))*0.5+SUMPRODUCT((H33:H33="○")*($AC33:$AC33=0.5))*0.25+SUMPRODUCT((H33:H33="○")*($AC33:$AC33=0.1))*0.05+SUMPRODUCT((H33:H33="◎")*($AC33:$AC33=1))+SUMPRODUCT((H33:H33="◎")*($AC33:$AC33=0.5)*0.5)+SUMPRODUCT((H33:H33="◎")*($AC33:$AC33=0.1))*0.1) -> 0 | I34: 0 | J34: 0 | K34: 0 | L34: 0 | M34: 0 | N34: 0 | O34: 0 | P34: 0 | Q34: 0 | R34: =(SUMPRODUCT((R33:R33="○")*($AC33:$AC33=1))*0.5+SUMPRODUCT((R33:R33="○")*($AC33:$AC33=0.5))*0.25+SUMPRODUCT((R33:R33="○")*($AC33:$AC33=0.1))*0.05+SUMPRODUCT((R33:R33="◎")*($AC33:$AC33=1))+SUMPRODUCT((R33:R33="◎")*($AC33:$AC33=0.5)*0.5)+SUMPRODUCT((R33:R33="◎")*($AC33:$AC33=0.1))*0.1) -> 0 | S34: =(SUMPRODUCT((S33:S33="○")*($AC33:$AC33=1))*0.5+SUMPRODUCT((S33:S33="○")*($AC33:$AC33=0.5))*0.25+SUMPRODUCT((S33:S33="○")*($AC33:$AC33=0.1))*0.05+SUMPRODUCT((S33:S33="◎")*($AC33:$AC33=1))+SUMPRODUCT((S33:S33="◎")*($AC33:$AC33=0.5)*0.5)+SUMPRODUCT((S33:S33="◎")*($AC33:$AC33=0.1))*0.1) -> 0 | T34: 0 | U34: 0 | V34: 0 | W34: 0 | X34: 0 | AE34: =SUBTOTAL(9,AE33:AE33) -> 1 | AH34: =SUM(AH33:AH33) -> 1.5 | AI34: =IF(AE34=0,"",SUM(H34:X34)/AH34) -> 0 | AL34: =IFERROR(H34/((SUMPRODUCT((H33:H33="○")*($AC33:$AC33=1))*0.5+SUMPRODUCT((H33:H33="○")*($AC33:$AC33=0.5))*0.5+SUMPRODUCT((H33:H33="○")*($AC33:$AC33=0.1))*0.5+SUMPRODUCT((H33:H33="◎")*($AC33:$AC33=1))+SUMPRODUCT((H33:H33="◎")*($AC33:$AC33=0.5)*0.5)+SUMPRODUCT((H33:H33="◎")*($AC33:$AC33=0.1))*0.1)),0) -> 0 | AM34: =IFERROR(I34/((SUMPRODUCT((I33:I33="○")*($AC33:$AC33=1))*0.5+SUMPRODUCT((I33:I33="○")*($AC33:$AC33=0.5))*0.5+SUMPRODUCT((I33:I33="○")*($AC33:$AC33=0.1))*0.5+SUMPRODUCT((I33:I33="◎")*($AC33:$AC33=1))+SUMPRODUCT((I33:I33="◎")*($AC33:$AC33=0.5)*0.5)+SUMPRODUCT((I33:I33="◎")*($AC33:$AC33=0.1))*0.1)),0) -> 0 | AN34: 0 | AO34: 0 | AP34: 0 | AQ34: 0 | AR34: 0 | AS34: 0 | AT34: 0 | AU34: 0 | AV34: 0 | AW34: 0 | AX34: 0 | AY34: 0 | AZ34: 0 | BA34: 0 | BB34: 0
B35: =取組ﾁｪｯｸｼｰﾄ改訂版!B35 -> 0 | D35: 産業廃棄物管理票（マニフェスト）をもとに廃棄物の適正な処理を確認している | E35: １１、１２ | S35: ◎ | AD35: =SUM(AC35:AC40) -> 0 | AE35: =COUNTIF(B35,"○")+COUNTIF(B35,"△")+COUNTIF(B35,"×")+COUNTIF(B35,0) -> 1 | AF35: =SUM(AE35:AE40) -> 6 | AG35: =AD35/AF35 -> 0 | AH35: 1
B36: =取組ﾁｪｯｸｼｰﾄ改訂版!B36 -> 0 | D36: 廃棄物の最終処分先を定期的に、直接、チェックしている | S36: ◎ | AE36: 1 | AH36: 1
B37: =取組ﾁｪｯｸｼｰﾄ改訂版!B37 -> 0 | D37: 廃棄物焼却の際、焼却に適さないものが混入しないよう徹底するとともに、ばい煙の処理、近隣環境への配慮等を行っている | R37: ○ | S37: ◎ | AE37: 1 | AH37: 1.5
B38: =取組ﾁｪｯｸｼｰﾄ改訂版!B38 -> 0 | D38: メタン発生防止のため、生ごみ等の分別・リサイクルや適正な焼却処分を極力行うことにより、有機物の埋立処分を抑制している | R38: ○ | S38: ◎ | AE38: 1 | AH38: 1.5
B39: =取組ﾁｪｯｸｼｰﾄ改訂版!B39 -> 0 | D39: 有害廃棄物、医療廃棄物の管理（リストの作成、マニフェスト、適正処理のチェック）を徹底している | R39: ○ | S39: ◎ | AE39: 1 | AH39: 1.5
B40: =取組ﾁｪｯｸｼｰﾄ改訂版!B40 -> 0 | D40: 廃棄物が適切に処分できるよう、廃棄物の性状に関する情報（WDS等を利用）を処分業者に伝えている。 | R40: ○ | S40: ◎ | AE40: 1 | AH40: 1.5
C41: チェック欄数：３２ | H41: =(SUMPRODUCT((H35:H40="○")*($AC35:$AC40=1))*0.5+SUMPRODUCT((H35:H40="○")*($AC35:$AC40=0.5))*0.25+SUMPRODUCT((H35:H40="○")*($AC35:$AC40=0.1))*0.05+SUMPRODUCT((H35:H40="◎")*($AC35:$AC40=1))+SUMPRODUCT((H35:H40="◎")*($AC35:$AC40=0.5)*0.5)+SUMPRODUCT((H35:H40="◎")*($AC35:$AC40=0.1))*0.1)/$AF35 -> 0 | I41: 0 | J41: 0 | K41: 0 | L41: 0 | M41: 0 | N41: 0 | O41: 0 | P41: 0 | Q41: 0 | R41: =(SUMPRODUCT((R35:R40="○")*($AC35:$AC40=1))*0.5+SUMPRODUCT((R35:R40="○")*($AC35:$AC40=0.5))*0.25+SUMPRODUCT((R35:R40="○")*($AC35:$AC40=0.1))*0.05+SUMPRODUCT((R35:R40="◎")*($AC35:$AC40=1))+SUMPRODUCT((R35:R40="◎")*($AC35:$AC40=0.5)*0.5)+SUMPRODUCT((R35:R40="◎")*($AC35:$AC40=0.1))*0.1) -> 0 | S41: =(SUMPRODUCT((S35:S40="○")*($AC35:$AC40=1))*0.5+SUMPRODUCT((S35:S40="○")*($AC35:$AC40=0.5))*0.25+SUMPRODUCT((S35:S40="○")*($AC35:$AC40=0.1))*0.05+SUMPRODUCT((S35:S40="◎")*($AC35:$AC40=1))+SUMPRODUCT((S35:S40="◎")*($AC35:$AC40=0.5)*0.5)+SUMPRODUCT((S35:S40="◎")*($AC35:$AC40=0.1))*0.1) -> 0 | T41: =(SUMPRODUCT((T35:T40="○")*($AC35:$AC40=1))*0.5+SUMPRODUCT((T35:T40="○")*($AC35:$AC40=0.5))*0.25+SUMPRODUCT((T35:T40="○")*($AC35:$AC40=0.1))*0.05+SUMPRODUCT((T35:T40="◎")*($AC35:$AC40=1))+SUMPRODUCT((T35:T40="◎")*($AC35:$AC40=0.5)*0.5)+SUMPRODUCT((T35:T40="◎")*($AC35:$AC40=0.1))*0.1) -> 0 | U41: =(SUMPRODUCT((U35:U40="○")*($AC35:$AC40=1))*0.5+SUMPRODUCT((U35:U40="○")*($AC35:$AC40=0.5))*0.25+SUMPRODUCT((U35:U40="○")*($AC35:$AC40=0.1))*0.05+SUMPRODUCT((U35:U40="◎")*($AC35:$AC40=1))+SUMPRODUCT((U35:U40="◎")*($AC35:$AC40=0.5)*0.5)+SUMPRODUCT((U35:U40="◎")*($AC35:$AC40=0.1))*0.1) -> 0 | V41: =(SUMPRODUCT((V35:V40="○")*($AC35:$AC40=1))*0.5+SUMPRODUCT((V35:V40="○")*($AC35:$AC40=0.5))*0.25+SUMPRODUCT((V35:V40="○")*($AC35:$AC40=0.1))*0.05+SUMPRODUCT((V35:V40="◎")*($AC35:$AC40=1))+SUMPRODUCT((V35:V40="◎")*($AC35:$AC40=0.5)*0.5)+SUMPRODUCT((V35:V40="◎")*($AC35:$AC40=0.1))*0.1) -> 0 | W41: =(SUMPRODUCT((W35:W40="○")*($AC35:$AC40=1))*0.5+SUMPRODUCT((W35:W40="○")*($AC35:$AC40=0.5))*0.25+SUMPRODUCT((W35:W40="○")*($AC35:$AC40=0.1))*0.05+SUMPRODUCT((W35:W40="◎")*($AC35:$AC40=1))+SUMPRODUCT((W35:W40="◎")*($AC35:$AC40=0.5)*0.5)+SUMPRODUCT((W35:W40="◎")*($AC35:$AC40=0.1))*0.1) -> 0 | X41: =(SUMPRODUCT((X35:X40="○")*($AC35:$AC40=1))*0.5+SUMPRODUCT((X35:X40="○")*($AC35:$AC40=0.5))*0.25+SUMPRODUCT((X35:X40="○")*($AC35:$AC40=0.1))*0.05+SUMPRODUCT((X35:X40="◎")*($AC35:$AC40=1))+SUMPRODUCT((X35:X40="◎")*($AC35:$AC40=0.5)*0.5)+SUMPRODUCT((X35:X40="◎")*($AC35:$AC40=0.1))*0.1) -> 0 | AD41: =SUM(AD4:AD40) -> 0 | AE41: =SUBTOTAL(9,AE35:AE40) -> 6 | AF41: =SUM(AF4:AF40) -> 25 | AG41: =AD41/AF41 -> 0 | AH41: =SUM(AH35:AH40) -> 8 | AI41: =IF(AE41=0,"",SUM(H41:X41)/AH41) -> 0 | AL41: =IFERROR(H41/((SUMPRODUCT((H35:H40="○")*($AC35:$AC40=1))*0.5+SUMPRODUCT((H35:H40="○")*($AC35:$AC40=0.5))*0.5+SUMPRODUCT((H35:H40="○")*($AC35:$AC40=0.1))*0.5+SUMPRODUCT((H35:H40="◎")*($AC35:$AC40=1))+SUMPRODUCT((H35:H40="◎")*($AC35:$AC40=0.5)*0.5)+SUMPRODUCT((H35:H40="◎")*($AC35:$AC40=0.1))*0.1)),0) -> 0 | AM41: =IFERROR(I41/((SUMPRODUCT((I35:I40="○")*($AC35:$AC40=1))*0.5+SUMPRODUCT((I35:I40="○")*($AC35:$AC40=0.5))*0.5+SUMPRODUCT((I35:I40="○")*($AC35:$AC40=0.1))*0.5+SUMPRODUCT((I35:I40="◎")*($AC35:$AC40=1))+SUMPRODUCT((I35:I40="◎")*($AC35:$AC40=0.5)*0.5)+SUMPRODUCT((I35:I40="◎")*($AC35:$AC40=0.1))*0.1)),0) -> 0 | AN41: =IFERROR(J41/((SUMPRODUCT((J35:J40="○")*($AC35:$AC40=1))*0.5+SUMPRODUCT((J35:J40="○")*($AC35:$AC40=0.5))*0.5+SUMPRODUCT((J35:J40="○")*($AC35:$AC40=0.1))*0.5+SUMPRODUCT((J35:J40="◎")*($AC35:$AC40=1))+SUMPRODUCT((J35:J40="◎")*($AC35:$AC40=0.5)*0.5)+SUMPRODUCT((J35:J40="◎")*($AC35:$AC40=0.1))*0.1)),0) -> 0 | AO41: =IFERROR(K41/((SUMPRODUCT((K35:K40="○")*($AC35:$AC40=1))*0.5+SUMPRODUCT((K35:K40="○")*($AC35:$AC40=0.5))*0.5+SUMPRODUCT((K35:K40="○")*($AC35:$AC40=0.1))*0.5+SUMPRODUCT((K35:K40="◎")*($AC35:$AC40=1))+SUMPRODUCT((K35:K40="◎")*($AC35:$AC40=0.5)*0.5)+SUMPRODUCT((K35:K40="◎")*($AC35:$AC40=0.1))*0.1)),0) -> 0 | AP41: =IFERROR(L41/((SUMPRODUCT((L35:L40="○")*($AC35:$AC40=1))*0.5+SUMPRODUCT((L35:L40="○")*($AC35:$AC40=0.5))*0.5+SUMPRODUCT((L35:L40="○")*($AC35:$AC40=0.1))*0.5+SUMPRODUCT((L35:L40="◎")*($AC35:$AC40=1))+SUMPRODUCT((L35:L40="◎")*($AC35:$AC40=0.5)*0.5)+SUMPRODUCT((L35:L40="◎")*($AC35:$AC40=0.1))*0.1)),0) -> 0 | AQ41: =IFERROR(M41/((SUMPRODUCT((M35:M40="○")*($AC35:$AC40=1))*0.5+SUMPRODUCT((M35:M40="○")*($AC35:$AC40=0.5))*0.5+SUMPRODUCT((M35:M40="○")*($AC35:$AC40=0.1))*0.5+SUMPRODUCT((M35:M40="◎")*($AC35:$AC40=1))+SUMPRODUCT((M35:M40="◎")*($AC35:$AC40=0.5)*0.5)+SUMPRODUCT((M35:M40="◎")*($AC35:$AC40=0.1))*0.1)),0) -> 0 | AR41: =IFERROR(N41/((SUMPRODUCT((N35:N40="○")*($AC35:$AC40=1))*0.5+SUMPRODUCT((N35:N40="○")*($AC35:$AC40=0.5))*0.5+SUMPRODUCT((N35:N40="○")*($AC35:$AC40=0.1))*0.5+SUMPRODUCT((N35:N40="◎")*($AC35:$AC40=1))+SUMPRODUCT((N35:N40="◎")*($AC35:$AC40=0.5)*0.5)+SUMPRODUCT((N35:N40="◎")*($AC35:$AC40=0.1))*0.1)),0) -> 0 | AS41: =IFERROR(O41/((SUMPRODUCT((O35:O40="○")*($AC35:$AC40=1))*0.5+SUMPRODUCT((O35:O40="○")*($AC35:$AC40=0.5))*0.5+SUMPRODUCT((O35:O40="○")*($AC35:$AC40=0.1))*0.5+SUMPRODUCT((O35:O40="◎")*($AC35:$AC40=1))+SUMPRODUCT((O35:O40="◎")*($AC35:$AC40=0.5)*0.5)+SUMPRODUCT((O35:O40="◎")*($AC35:$AC40=0.1))*0.1)),0) -> 0 | AT41: =IFERROR(P41/((SUMPRODUCT((P35:P40="○")*($AC35:$AC40=1))*0.5+SUMPRODUCT((P35:P40="○")*($AC35:$AC40=0.5))*0.5+SUMPRODUCT((P35:P40="○")*($AC35:$AC40=0.1))*0.5+SUMPRODUCT((P35:P40="◎")*($AC35:$AC40=1))+SUMPRODUCT((P35:P40="◎")*($AC35:$AC40=0.5)*0.5)+SUMPRODUCT((P35:P40="◎")*($AC35:$AC40=0.1))*0.1)),0) -> 0 | AU41: =IFERROR(Q41/((SUMPRODUCT((Q35:Q40="○")*($AC35:$AC40=1))*0.5+SUMPRODUCT((Q35:Q40="○")*($AC35:$AC40=0.5))*0.5+SUMPRODUCT((Q35:Q40="○")*($AC35:$AC40=0.1))*0.5+SUMPRODUCT((Q35:Q40="◎")*($AC35:$AC40=1))+SUMPRODUCT((Q35:Q40="◎")*($AC35:$AC40=0.5)*0.5)+SUMPRODUCT((Q35:Q40="◎")*($AC35:$AC40=0.1))*0.1)),0) -> 0 | AV41: =IFERROR(R41/((SUMPRODUCT((R35:R40="○")*($AC35:$AC40=1))*0.5+SUMPRODUCT((R35:R40="○")*($AC35:$AC40=0.5))*0.5+SUMPRODUCT((R35:R40="○")*($AC35:$AC40=0.1))*0.5+SUMPRODUCT((R35:R40="◎")*($AC35:$AC40=1))+SUMPRODUCT((R35:R40="◎")*($AC35:$AC40=0.5)*0.5)+SUMPRODUCT((R35:R40="◎")*($AC35:$AC40=0.1))*0.1)),0) -> 0 | AW41: =IFERROR(S41/((SUMPRODUCT((S35:S40="○")*($AC35:$AC40=1))*0.5+SUMPRODUCT((S35:S40="○")*($AC35:$AC40=0.5))*0.5+SUMPRODUCT((S35:S40="○")*($AC35:$AC40=0.1))*0.5+SUMPRODUCT((S35:S40="◎")*($AC35:$AC40=1))+SUMPRODUCT((S35:S40="◎")*($AC35:$AC40=0.5)*0.5)+SUMPRODUCT((S35:S40="◎")*($AC35:$AC40=0.1))*0.1)),0) -> 0 | AX41: =IFERROR(T41/((SUMPRODUCT((T35:T40="○")*($AC35:$AC40=1))*0.5+SUMPRODUCT((T35:T40="○")*($AC35:$AC40=0.5))*0.5+SUMPRODUCT((T35:T40="○")*($AC35:$AC40=0.1))*0.5+SUMPRODUCT((T35:T40="◎")*($AC35:$AC40=1))+SUMPRODUCT((T35:T40="◎")*($AC35:$AC40=0.5)*0.5)+SUMPRODUCT((T35:T40="◎")*($AC35:$AC40=0.1))*0.1)),0) -> 0 | AY41: =IFERROR(U41/((SUMPRODUCT((U35:U40="○")*($AC35:$AC40=1))*0.5+SUMPRODUCT((U35:U40="○")*($AC35:$AC40=0.5))*0.5+SUMPRODUCT((U35:U40="○")*($AC35:$AC40=0.1))*0.5+SUMPRODUCT((U35:U40="◎")*($AC35:$AC40=1))+SUMPRODUCT((U35:U40="◎")*($AC35:$AC40=0.5)*0.5)+SUMPRODUCT((U35:U40="◎")*($AC35:$AC40=0.1))*0.1)),0) -> 0 | AZ41: =IFERROR(V41/((SUMPRODUCT((V35:V40="○")*($AC35:$AC40=1))*0.5+SUMPRODUCT((V35:V40="○")*($AC35:$AC40=0.5))*0.5+SUMPRODUCT((V35:V40="○")*($AC35:$AC40=0.1))*0.5+SUMPRODUCT((V35:V40="◎")*($AC35:$AC40=1))+SUMPRODUCT((V35:V40="◎")*($AC35:$AC40=0.5)*0.5)+SUMPRODUCT((V35:V40="◎")*($AC35:$AC40=0.1))*0.1)),0) -> 0 | BA41: =IFERROR(W41/((SUMPRODUCT((W35:W40="○")*($AC35:$AC40=1))*0.5+SUMPRODUCT((W35:W40="○")*($AC35:$AC40=0.5))*0.5+SUMPRODUCT((W35:W40="○")*($AC35:$AC40=0.1))*0.5+SUMPRODUCT((W35:W40="◎")*($AC35:$AC40=1))+SUMPRODUCT((W35:W40="◎")*($AC35:$AC40=0.5)*0.5)+SUMPRODUCT((W35:W40="◎")*($AC35:$AC40=0.1))*0.1)),0) -> 0 | BB41: =IFERROR(X41/((SUMPRODUCT((X35:X40="○")*($AC35:$AC40=1))*0.5+SUMPRODUCT((X35:X40="○")*($AC35:$AC40=0.5))*0.5+SUMPRODUCT((X35:X40="○")*($AC35:$AC40=0.1))*0.5+SUMPRODUCT((X35:X40="◎")*($AC35:$AC40=1))+SUMPRODUCT((X35:X40="◎")*($AC35:$AC40=0.5)*0.5)+SUMPRODUCT((X35:X40="◎")*($AC35:$AC40=0.1))*0.1)),0) -> 0
D42: =IF( (COUNTIF(項目②チェック欄,"○")+COUNTIF(項目②チェック欄,"△")+COUNTIF(項目②チェック欄,"×")+COUNTIF(項目②チェック欄,"―"))=0,"達成率 %",IF( (COUNTIF(項目②チェック欄,"○")+COUNTIF(項目②チェック欄,"△")+COUNTIF(項目②チェック欄,"×"))=0,"達成率 ― %",(COUNTIF(項目②チェック欄,"○")+COUNTIF(項目②チェック欄,"△")*0.5+COUNTIF(項目②チェック欄,"×")*0.1)/(COUNTIF(項目②チェック欄,"○")+COUNTIF(項目②チェック欄,"△")+COUNTIF(項目②チェック欄,"×")+COUNTBLANK(項目②チェック欄))*100)) -> 達成率 %
B43: =取組ﾁｪｯｸｼｰﾄ改訂版!B43 -> <項目② ： 大気汚染、水質汚濁等の防止> | AD43: =COUNTBLANK(項目②チェック欄) -> 0
B44: =取組ﾁｪｯｸｼｰﾄ改訂版!B44 -> （チェック欄） | E44: SDGs関連ゴール
B45: =取組ﾁｪｯｸｼｰﾄ改訂版!B45 -> 1 大気汚染物質排出量の削減
B46: =取組ﾁｪｯｸｼｰﾄ改訂版!B46 -> 0 | D46: 大気汚染の少ないプロセス・機器（低ＮＯｘ燃焼・粉塵発生機器など）を採用している | E46: ３、１１、１３ | J46: ○ | R46: ◎ | AD46: =SUM(AC46:AC52) -> 0 | AE46: =COUNTIF(B46,"○")+COUNTIF(B46,"△")+COUNTIF(B46,"×")+COUNTIF(B46,0) -> 1 | AF46: =SUM(AE46:AE52) -> 7 | AG46: =AD46/AF46 -> 0 | AH46: =SUMPRODUCT((H46:X46="○")*($AE46=1))*0.5+SUMPRODUCT((H46:X46="◎")*($AE46=1)) -> 1.5
B47: =取組ﾁｪｯｸｼｰﾄ改訂版!B47 -> 0 | D47: 日常の管理における大気汚染防止への配慮（燃焼管理等）を行っている | J47: ○ | R47: ◎ | AE47: 1 | AH47: 1.5
B48: =取組ﾁｪｯｸｼｰﾄ改訂版!B48 -> 0 | D48: 大気汚染について、法令による基準より厳しい自主管理基準を設定し、その達成に努めている | J48: ○ | R48: ◎ | AE48: 1 | AH48: 1.5
B49: =取組ﾁｪｯｸｼｰﾄ改訂版!B49 -> 0 | D49: ばい煙等の測定・監視やばい煙処理設備の点検を定期的に行っている | J49: ○ | R49: ◎ | AE49: 1 | AH49: 1.5
B50: =取組ﾁｪｯｸｼｰﾄ改訂版!B50 -> 0 | D50: 事故や災害の際の汚染防止対策のための準備や訓練を行っている | J50: ○ | R50: ◎ | AE50: 1 | AH50: 1.5
B51: =取組ﾁｪｯｸｼｰﾄ改訂版!B51 -> 0 | D51: アイドリングストップ等運転方法の配慮（急発進・急加速や空ぶかしの排除、駐停車中のエンジンの停止等）を行っている | R51: ◎ | T51: ◎ | AE51: 1 | AH51: 2
B52: =取組ﾁｪｯｸｼｰﾄ改訂版!B52 -> 0 | D52: ハイブリッド車や低燃費車、低排出ガス認定車、電気自動車、圧縮天然ガス自動車等の低公害車の利用に取り組んでいる | R52: ◎ | T52: ◎ | AE52: 1 | AH52: 2
B53: =取組ﾁｪｯｸｼｰﾄ改訂版!B53 -> 2 水質汚濁物質排出量の削減 | H53: =(SUMPRODUCT((H46:H52="○")*($AC46:$AC52=1))*0.5+SUMPRODUCT((H46:H52="○")*($AC46:$AC52=0.5))*0.25+SUMPRODUCT((H46:H52="○")*($AC46:$AC52=0.1))*0.05+SUMPRODUCT((H46:H52="◎")*($AC46:$AC52=1))+SUMPRODUCT((H46:H52="◎")*($AC46:$AC52=0.5)*0.5)+SUMPRODUCT((H46:H52="◎")*($AC46:$AC52=0.1))*0.1) -> 0 | I53: =(SUMPRODUCT((I46:I52="○")*($AC46:$AC52=1))*0.5+SUMPRODUCT((I46:I52="○")*($AC46:$AC52=0.5))*0.25+SUMPRODUCT((I46:I52="○")*($AC46:$AC52=0.1))*0.05+SUMPRODUCT((I46:I52="◎")*($AC46:$AC52=1))+SUMPRODUCT((I46:I52="◎")*($AC46:$AC52=0.5)*0.5)+SUMPRODUCT((I46:I52="◎")*($AC46:$AC52=0.1))*0.1) -> 0 | J53: =(SUMPRODUCT((J46:J52="○")*($AC46:$AC52=1))*0.5+SUMPRODUCT((J46:J52="○")*($AC46:$AC52=0.5))*0.25+SUMPRODUCT((J46:J52="○")*($AC46:$AC52=0.1))*0.05+SUMPRODUCT((J46:J52="◎")*($AC46:$AC52=1))+SUMPRODUCT((J46:J52="◎")*($AC46:$AC52=0.5)*0.5)+SUMPRODUCT((J46:J52="◎")*($AC46:$AC52=0.1))*0.1) -> 0 | K53: =(SUMPRODUCT((K46:K52="○")*($AC46:$AC52=1))*0.5+SUMPRODUCT((K46:K52="○")*($AC46:$AC52=0.5))*0.25+SUMPRODUCT((K46:K52="○")*($AC46:$AC52=0.1))*0.05+SUMPRODUCT((K46:K52="◎")*($AC46:$AC52=1))+SUMPRODUCT((K46:K52="◎")*($AC46:$AC52=0.5)*0.5)+SUMPRODUCT((K46:K52="◎")*($AC46:$AC52=0.1))*0.1) -> 0 | L53: =(SUMPRODUCT((L46:L52="○")*($AC46:$AC52=1))*0.5+SUMPRODUCT((L46:L52="○")*($AC46:$AC52=0.5))*0.25+SUMPRODUCT((L46:L52="○")*($AC46:$AC52=0.1))*0.05+SUMPRODUCT((L46:L52="◎")*($AC46:$AC52=1))+SUMPRODUCT((L46:L52="◎")*($AC46:$AC52=0.5)*0.5)+SUMPRODUCT((L46:L52="◎")*($AC46:$AC52=0.1))*0.1) -> 0 | M53: =(SUMPRODUCT((M46:M52="○")*($AC46:$AC52=1))*0.5+SUMPRODUCT((M46:M52="○")*($AC46:$AC52=0.5))*0.25+SUMPRODUCT((M46:M52="○")*($AC46:$AC52=0.1))*0.05+SUMPRODUCT((M46:M52="◎")*($AC46:$AC52=1))+SUMPRODUCT((M46:M52="◎")*($AC46:$AC52=0.5)*0.5)+SUMPRODUCT((M46:M52="◎")*($AC46:$AC52=0.1))*0.1) -> 0 | N53: =(SUMPRODUCT((N46:N52="○")*($AC46:$AC52=1))*0.5+SUMPRODUCT((N46:N52="○")*($AC46:$AC52=0.5))*0.25+SUMPRODUCT((N46:N52="○")*($AC46:$AC52=0.1))*0.05+SUMPRODUCT((N46:N52="◎")*($AC46:$AC52=1))+SUMPRODUCT((N46:N52="◎")*($AC46:$AC52=0.5)*0.5)+SUMPRODUCT((N46:N52="◎")*($AC46:$AC52=0.1))*0.1) -> 0 | O53: =(SUMPRODUCT((O46:O52="○")*($AC46:$AC52=1))*0.5+SUMPRODUCT((O46:O52="○")*($AC46:$AC52=0.5))*0.25+SUMPRODUCT((O46:O52="○")*($AC46:$AC52=0.1))*0.05+SUMPRODUCT((O46:O52="◎")*($AC46:$AC52=1))+SUMPRODUCT((O46:O52="◎")*($AC46:$AC52=0.5)*0.5)+SUMPRODUCT((O46:O52="◎")*($AC46:$AC52=0.1))*0.1) -> 0 | P53: =(SUMPRODUCT((P46:P52="○")*($AC46:$AC52=1))*0.5+SUMPRODUCT((P46:P52="○")*($AC46:$AC52=0.5))*0.25+SUMPRODUCT((P46:P52="○")*($AC46:$AC52=0.1))*0.05+SUMPRODUCT((P46:P52="◎")*($AC46:$AC52=1))+SUMPRODUCT((P46:P52="◎")*($AC46:$AC52=0.5)*0.5)+SUMPRODUCT((P46:P52="◎")*($AC46:$AC52=0.1))*0.1) -> 0 | Q53: =(SUMPRODUCT((Q46:Q52="○")*($AC46:$AC52=1))*0.5+SUMPRODUCT((Q46:Q52="○")*($AC46:$AC52=0.5))*0.25+SUMPRODUCT((Q46:Q52="○")*($AC46:$AC52=0.1))*0.05+SUMPRODUCT((Q46:Q52="◎")*($AC46:$AC52=1))+SUMPRODUCT((Q46:Q52="◎")*($AC46:$AC52=0.5)*0.5)+SUMPRODUCT((Q46:Q52="◎")*($AC46:$AC52=0.1))*0.1) -> 0 | R53: =(SUMPRODUCT((R46:R52="○")*($AC46:$AC52=1))*0.5+SUMPRODUCT((R46:R52="○")*($AC46:$AC52=0.5))*0.25+SUMPRODUCT((R46:R52="○")*($AC46:$AC52=0.1))*0.05+SUMPRODUCT((R46:R52="◎")*($AC46:$AC52=1))+SUMPRODUCT((R46:R52="◎")*($AC46:$AC52=0.5)*0.5)+SUMPRODUCT((R46:R52="◎")*($AC46:$AC52=0.1))*0.1) -> 0 | S53: =(SUMPRODUCT((S46:S52="○")*($AC46:$AC52=1))*0.5+SUMPRODUCT((S46:S52="○")*($AC46:$AC52=0.5))*0.25+SUMPRODUCT((S46:S52="○")*($AC46:$AC52=0.1))*0.05+SUMPRODUCT((S46:S52="◎")*($AC46:$AC52=1))+SUMPRODUCT((S46:S52="◎")*($AC46:$AC52=0.5)*0.5)+SUMPRODUCT((S46:S52="◎")*($AC46:$AC52=0.1))*0.1) -> 0 | T53: =(SUMPRODUCT((T46:T52="○")*($AC46:$AC52=1))*0.5+SUMPRODUCT((T46:T52="○")*($AC46:$AC52=0.5))*0.25+SUMPRODUCT((T46:T52="○")*($AC46:$AC52=0.1))*0.05+SUMPRODUCT((T46:T52="◎")*($AC46:$AC52=1))+SUMPRODUCT((T46:T52="◎")*($AC46:$AC52=0.5)*0.5)+SUMPRODUCT((T46:T52="◎")*($AC46:$AC52=0.1))*0.1) -> 0 | U53: =(SUMPRODUCT((U46:U52="○")*($AC46:$AC52=1))*0.5+SUMPRODUCT((U46:U52="○")*($AC46:$AC52=0.5))*0.25+SUMPRODUCT((U46:U52="○")*($AC46:$AC52=0.1))*0.05+SUMPRODUCT((U46:U52="◎")*($AC46:$AC52=1))+SUMPRODUCT((U46:U52="◎")*($AC46:$AC52=0.5)*0.5)+SUMPRODUCT((U46:U52="◎")*($AC46:$AC52=0.1))*0.1) -> 0 | V53: =(SUMPRODUCT((V46:V52="○")*($AC46:$AC52=1))*0.5+SUMPRODUCT((V46:V52="○")*($AC46:$AC52=0.5))*0.25+SUMPRODUCT((V46:V52="○")*($AC46:$AC52=0.1))*0.05+SUMPRODUCT((V46:V52="◎")*($AC46:$AC52=1))+SUMPRODUCT((V46:V52="◎")*($AC46:$AC52=0.5)*0.5)+SUMPRODUCT((V46:V52="◎")*($AC46:$AC52=0.1))*0.1) -> 0 | W53: =(SUMPRODUCT((W46:W52="○")*($AC46:$AC52=1))*0.5+SUMPRODUCT((W46:W52="○")*($AC46:$AC52=0.5))*0.25+SUMPRODUCT((W46:W52="○")*($AC46:$AC52=0.1))*0.05+SUMPRODUCT((W46:W52="◎")*($AC46:$AC52=1))+SUMPRODUCT((W46:W52="◎")*($AC46:$AC52=0.5)*0.5)+SUMPRODUCT((W46:W52="◎")*($AC46:$AC52=0.1))*0.1) -> 0 | X53: =(SUMPRODUCT((X46:X52="○")*($AC46:$AC52=1))*0.5+SUMPRODUCT((X46:X52="○")*($AC46:$AC52=0.5))*0.25+SUMPRODUCT((X46:X52="○")*($AC46:$AC52=0.1))*0.05+SUMPRODUCT((X46:X52="◎")*($AC46:$AC52=1))+SUMPRODUCT((X46:X52="◎")*($AC46:$AC52=0.5)*0.5)+SUMPRODUCT((X46:X52="◎")*($AC46:$AC52=0.1))*0.1) -> 0 | AE53: =SUBTOTAL(9,AE46:AE52) -> 7 | AH53: =SUM(AH46:AH52) -> 11.5 | AI53: =IF(AE53=0,"",SUM(H53:X53)/AH53) -> 0 | AL53: =IFERROR(H53/((SUMPRODUCT((H46:H52="○")*($AC46:$AC52=1))*0.5+SUMPRODUCT((H46:H52="○")*($AC46:$AC52=0.5))*0.5+SUMPRODUCT((H46:H52="○")*($AC46:$AC52=0.1))*0.5+SUMPRODUCT((H46:H52="◎")*($AC46:$AC52=1))+SUMPRODUCT((H46:H52="◎")*($AC46:$AC52=0.5)*0.5)+SUMPRODUCT((H46:H52="◎")*($AC46:$AC52=0.1))*0.1)),0) -> 0 | AM53: =IFERROR(I53/((SUMPRODUCT((I46:I52="○")*($AC46:$AC52=1))*0.5+SUMPRODUCT((I46:I52="○")*($AC46:$AC52=0.5))*0.5+SUMPRODUCT((I46:I52="○")*($AC46:$AC52=0.1))*0.5+SUMPRODUCT((I46:I52="◎")*($AC46:$AC52=1))+SUMPRODUCT((I46:I52="◎")*($AC46:$AC52=0.5)*0.5)+SUMPRODUCT((I46:I52="◎")*($AC46:$AC52=0.1))*0.1)),0) -> 0 | AN53: 0 | AO53: 0 | AP53: 0 | AQ53: 0 | AR53: 0 | AS53: 0 | AT53: 0 | AU53: 0 | AV53: 0 | AW53: 0 | AX53: 0 | AY53: 0 | AZ53: 0 | BA53: 0 | BB53: 0
B54: =取組ﾁｪｯｸｼｰﾄ改訂版!B54 -> 0 | D54: 水質汚濁の少ない工事・プロセス・機器（廃液の回収・再利用など）を採用している | E54: ３、６、１１、１４ | J54: ○ | M54: ◎ | R54: ◎ | T54: ○ | AD54: =SUM(AC54:AC62) -> 0 | AE54: =COUNTIF(B54,"○")+COUNTIF(B54,"△")+COUNTIF(B54,"×")+COUNTIF(B54,0) -> 1 | AF54: =SUM(AE54:AE62) -> 9 | AG54: =AD54/AF54 -> 0 | AH54: 3
B55: =取組ﾁｪｯｸｼｰﾄ改訂版!B55 -> 0 | D55: 排水処理装置を適切に設置している | M55: ◎ | R55: ◎ | T55: ○ | AE55: 1 | AH55: 2.5
B56: =取組ﾁｪｯｸｼｰﾄ改訂版!B56 -> 0 | D56: 排水が閉鎖性水域（湖、内湾など）に流入する場合は、窒素・燐の除去対策を講じている | M56: ◎ | R56: ◎ | T56: ○ | AE56: 1 | AH56: 2.5
B57: =取組ﾁｪｯｸｼｰﾄ改訂版!B57 -> 0 | D57: 排水処理にクローズド・システムを採用している | J57: ○ | M57: ◎ | R57: ◎ | T57: ○ | AE57: 1 | AH57: 3
B58: =取組ﾁｪｯｸｼｰﾄ改訂版!B58 -> 0 | D58: 排水に有害物質や有機汚濁物質（生ごみ等）が混入しないようにしている | J58: ◎ | M58: ◎ | R58: ◎ | T58: ○ | AE58: 1 | AH58: 3.5
B59: =取組ﾁｪｯｸｼｰﾄ改訂版!B59 -> 0 | D59: 排水に含まれる有害物質が地下浸透しないよう配慮している | J59: ◎ | M59: ◎ | R59: ◎ | T59: ○ | AE59: 1 | AH59: 3.5
B60: =取組ﾁｪｯｸｼｰﾄ改訂版!B60 -> 0 | D60: 水質汚濁等について、法令による基準より厳しい自主管理基準を設定し、その達成に努めている | J60: ○ | M60: ◎ | R60: ◎ | T60: ○ | AE60: 1 | AH60: 3
B61: =取組ﾁｪｯｸｼｰﾄ改訂版!B61 -> 0 | D61: 排水等の測定・監視や排水処理設備の点検を定期的に行っている | J61: ○ | M61: ◎ | R61: ◎ | T61: ○ | AE61: 1 | AH61: 3
B62: =取組ﾁｪｯｸｼｰﾄ改訂版!B62 -> 0 | D62: 事故や災害の際の汚染防止対策のための準備や訓練を行っている | J62: ○ | M62: ◎ | R62: ◎ | T62: ○ | AE62: 1 | AH62: 3
B63: =取組ﾁｪｯｸｼｰﾄ改訂版!B63 -> 3 悪臭、騒音、振動等の防止 | H63: =(SUMPRODUCT((H54:H62="○")*($AC54:$AC62=1))*0.5+SUMPRODUCT((H54:H62="○")*($AC54:$AC62=0.5))*0.25+SUMPRODUCT((H54:H62="○")*($AC54:$AC62=0.1))*0.05+SUMPRODUCT((H54:H62="◎")*($AC54:$AC62=1))+SUMPRODUCT((H54:H62="◎")*($AC54:$AC62=0.5)*0.5)+SUMPRODUCT((H54:H62="◎")*($AC54:$AC62=0.1))*0.1) -> 0 | I63: 0 | J63: 0 | K63: 0 | L63: 0 | M63: 0 | N63: 0 | O63: 0 | P63: 0 | Q63: 0 | R63: =(SUMPRODUCT((R54:R62="○")*($AC54:$AC62=1))*0.5+SUMPRODUCT((R54:R62="○")*($AC54:$AC62=0.5))*0.25+SUMPRODUCT((R54:R62="○")*($AC54:$AC62=0.1))*0.05+SUMPRODUCT((R54:R62="◎")*($AC54:$AC62=1))+SUMPRODUCT((R54:R62="◎")*($AC54:$AC62=0.5)*0.5)+SUMPRODUCT((R54:R62="◎")*($AC54:$AC62=0.1))*0.1) -> 0 | S63: =(SUMPRODUCT((S54:S62="○")*($AC54:$AC62=1))*0.5+SUMPRODUCT((S54:S62="○")*($AC54:$AC62=0.5))*0.25+SUMPRODUCT((S54:S62="○")*($AC54:$AC62=0.1))*0.05+SUMPRODUCT((S54:S62="◎")*($AC54:$AC62=1))+SUMPRODUCT((S54:S62="◎")*($AC54:$AC62=0.5)*0.5)+SUMPRODUCT((S54:S62="◎")*($AC54:$AC62=0.1))*0.1) -> 0 | T63: 0 | U63: 0 | V63: 0 | W63: 0 | X63: 0 | AE63: =SUBTOTAL(9,AE54:AE62) -> 9 | AH63: =SUM(AH54:AH62) -> 27 | AI63: =IF(AE63=0,"",SUM(H63:X63)/AH63) -> 0 | AL63: =IFERROR(H63/((SUMPRODUCT((H54:H62="○")*($AC54:$AC62=1))*0.5+SUMPRODUCT((H54:H62="○")*($AC54:$AC62=0.5))*0.5+SUMPRODUCT((H54:H62="○")*($AC54:$AC62=0.1))*0.5+SUMPRODUCT((H54:H62="◎")*($AC54:$AC62=1))+SUMPRODUCT((H54:H62="◎")*($AC54:$AC62=0.5)*0.5)+SUMPRODUCT((H54:H62="◎")*($AC54:$AC62=0.1))*0.1)),0) -> 0 | AM63: =IFERROR(I63/((SUMPRODUCT((I54:I62="○")*($AC54:$AC62=1))*0.5+SUMPRODUCT((I54:I62="○")*($AC54:$AC62=0.5))*0.5+SUMPRODUCT((I54:I62="○")*($AC54:$AC62=0.1))*0.5+SUMPRODUCT((I54:I62="◎")*($AC54:$AC62=1))+SUMPRODUCT((I54:I62="◎")*($AC54:$AC62=0.5)*0.5)+SUMPRODUCT((I54:I62="◎")*($AC54:$AC62=0.1))*0.1)),0) -> 0 | AN63: 0 | AO63: 0 | AP63: 0 | AQ63: 0 | AR63: 0 | AS63: 0 | AT63: 0 | AU63: 0 | AV63: 0 | AW63: 0 | AX63: 0 | AY63: 0 | AZ63: 0 | BA63: 0 | BB63: 0
B64: =取組ﾁｪｯｸｼｰﾄ改訂版!B64 -> 0 | D64: 悪臭防止のため排出口の位置等の配慮を行っている | E64: ３、１１ | J64: ◎ | R64: ◎ | AD64: =SUM(AC64:AC66) -> 0 | AE64: =COUNTIF(B64,"○")+COUNTIF(B64,"△")+COUNTIF(B64,"×")+COUNTIF(B64,0) -> 1 | AF64: =SUM(AE64:AE66) -> 3 | AG64: =AD64/AF64 -> 0 | AH64: 2
B65: =取組ﾁｪｯｸｼｰﾄ改訂版!B65 -> 0 | D65: 低騒音型機器の使用、防音・防振設備の設置・管理等により騒音・振動を防止するとともに、日常的な測定・監視を実施している | J65: ◎ | R65: ◎ | AE65: 1 | AH65: 2
B66: =取組ﾁｪｯｸｼｰﾄ改訂版!B66 -> 0 | D66: 夜間照明による光害を防止するための措置を講じている | J66: ◎ | R66: ◎ | AE66: 1 | AH66: 2
C67: チェック欄数：１９ | H67: =(SUMPRODUCT((H64:H66="○")*($AC64:$AC66=1))*0.5+SUMPRODUCT((H64:H66="○")*($AC64:$AC66=0.5))*0.25+SUMPRODUCT((H64:H66="○")*($AC64:$AC66=0.1))*0.05+SUMPRODUCT((H64:H66="◎")*($AC64:$AC66=1))+SUMPRODUCT((H64:H66="◎")*($AC64:$AC66=0.5)*0.5)+SUMPRODUCT((H64:H66="◎")*($AC64:$AC66=0.1))*0.1) -> 0 | I67: 0 | J67: 0 | K67: 0 | L67: 0 | M67: 0 | N67: 0 | O67: 0 | P67: 0 | Q67: 0 | R67: =(SUMPRODUCT((R64:R66="○")*($AC64:$AC66=1))*0.5+SUMPRODUCT((R64:R66="○")*($AC64:$AC66=0.5))*0.25+SUMPRODUCT((R64:R66="○")*($AC64:$AC66=0.1))*0.05+SUMPRODUCT((R64:R66="◎")*($AC64:$AC66=1))+SUMPRODUCT((R64:R66="◎")*($AC64:$AC66=0.5)*0.5)+SUMPRODUCT((R64:R66="◎")*($AC64:$AC66=0.1))*0.1) -> 0 | S67: =(SUMPRODUCT((S64:S66="○")*($AC64:$AC66=1))*0.5+SUMPRODUCT((S64:S66="○")*($AC64:$AC66=0.5))*0.25+SUMPRODUCT((S64:S66="○")*($AC64:$AC66=0.1))*0.05+SUMPRODUCT((S64:S66="◎")*($AC64:$AC66=1))+SUMPRODUCT((S64:S66="◎")*($AC64:$AC66=0.5)*0.5)+SUMPRODUCT((S64:S66="◎")*($AC64:$AC66=0.1))*0.1) -> 0 | T67: 0 | U67: 0 | V67: 0 | W67: 0 | X67: 0 | AD67: =SUM(AD46:AD66) -> 0 | AE67: =SUBTOTAL(9,AE64:AE66) -> 3 | AF67: =SUM(AF46:AF66) -> 19 | AG67: =AD67/AF67 -> 0 | AH67: =SUM(AH64:AH66) -> 6 | AI67: =IF(AE67=0,"",SUM(H67:X67)/AH67) -> 0 | AL67: =IFERROR(H67/((SUMPRODUCT((H64:H66="○")*($AC64:$AC66=1))*0.5+SUMPRODUCT((H64:H66="○")*($AC64:$AC66=0.5))*0.5+SUMPRODUCT((H64:H66="○")*($AC64:$AC66=0.1))*0.5+SUMPRODUCT((H64:H66="◎")*($AC64:$AC66=1))+SUMPRODUCT((H64:H66="◎")*($AC64:$AC66=0.5)*0.5)+SUMPRODUCT((H64:H66="◎")*($AC64:$AC66=0.1))*0.1)),0) -> 0 | AM67: =IFERROR(I67/((SUMPRODUCT((I64:I66="○")*($AC64:$AC66=1))*0.5+SUMPRODUCT((I64:I66="○")*($AC64:$AC66=0.5))*0.5+SUMPRODUCT((I64:I66="○")*($AC64:$AC66=0.1))*0.5+SUMPRODUCT((I64:I66="◎")*($AC64:$AC66=1))+SUMPRODUCT((I64:I66="◎")*($AC64:$AC66=0.5)*0.5)+SUMPRODUCT((I64:I66="◎")*($AC64:$AC66=0.1))*0.1)),0) -> 0 | AN67: 0 | AO67: 0 | AP67: 0 | AQ67: 0 | AR67: 0 | AS67: 0 | AT67: 0 | AU67: 0 | AV67: 0 | AW67: 0 | AX67: 0 | AY67: 0 | AZ67: 0 | BA67: 0 | BB67: 0
D68: =IF( (COUNTIF(項目③チェック欄,"○")+COUNTIF(項目③チェック欄,"△")+COUNTIF(項目③チェック欄,"×")+COUNTIF(項目③チェック欄,"―"))=0,"達成率 %",IF( (COUNTIF(項目③チェック欄,"○")+COUNTIF(項目③チェック欄,"△")+COUNTIF(項目③チェック欄,"×"))=0,"達成率 ― %",(COUNTIF(項目③チェック欄,"○")+COUNTIF(項目③チェック欄,"△")*0.5+COUNTIF(項目③チェック欄,"×")*0.1)/(COUNTIF(項目③チェック欄,"○")+COUNTIF(項目③チェック欄,"△")+COUNTIF(項目③チェック欄,"×")+COUNTIF(項目③チェック欄,""))*100)) -> 達成率 %
B69: =取組ﾁｪｯｸｼｰﾄ改訂版!B69 -> <項目③ ： 化学物質対策>
B70: =取組ﾁｪｯｸｼｰﾄ改訂版!B70 -> （チェック欄） | E70: SDGs関連ゴール
B71: =取組ﾁｪｯｸｼｰﾄ改訂版!B71 -> 1 化学物質の管理の徹底
B72: =取組ﾁｪｯｸｼｰﾄ改訂版!B72 -> 0 | D72: 有害性のおそれのある化学物質について、その種類、使用量、保管量、使用方法、使用場所、保管場所等を経時的に把握し、記録管理している | E72: ３、１１、１２、１５ | J72: ◎ | R72: ○ | S72: ◎ | V72: ○ | AC72: =IF(B72="○",1,IF(B72="△",0.5,IF(B72="×",0.1,""))) ->  | AD72: =SUM(AC72:AC83) -> 0 | AE72: =COUNTIF(B72,"○")+COUNTIF(B72,"△")+COUNTIF(B72,"×")+COUNTIF(B72,0) -> 1 | AF72: =SUM(AE72:AE83) -> 12 | AG72: =AD72/AF72 -> 0 | AH72: =SUMPRODUCT((H72:X72="○")*($AE72=1))*0.5+SUMPRODUCT((H72:X72="◎")*($AE72=1)) -> 3
B73: =取組ﾁｪｯｸｼｰﾄ改訂版!B73 -> 0 | D73: 有害性のおそれのある化学物質の環境への排出量の計測、推定等を行っている | J73: ◎ | R73: ○ | S73: ◎ | V73: ○ | AE73: 1 | AH73: 3
B74: =取組ﾁｪｯｸｼｰﾄ改訂版!B74 -> 0 | D74: 有害性のおそれのある化学物質の製品への表示を徹底している | J74: ◎ | R74: ○ | S74: ◎ | V74: ○ | AE74: 1 | AH74: 3
B75: =取組ﾁｪｯｸｼｰﾄ改訂版!B75 -> 0 | D75: 作業従事者に対して取り扱う化学物質に関する危害情報(ＧＨＳマークの理解等）を周知させている。 | J75: ◎ | K75: ○ | R75: ○ | S75: ◎ | V75: ○ | AE75: 1 | AH75: 3.5
B76: =取組ﾁｪｯｸｼｰﾄ改訂版!B76 -> 0 | D76: 化学物質の安全性に関する情報伝達のため（Ｍ）ＳＤＳ（化学物質安全性データシート）を使用している | J76: ◎ | K76: ○ | R76: ○ | S76: ◎ | V76: ○ | AE76: 1 | AH76: 3.5
B77: =取組ﾁｪｯｸｼｰﾄ改訂版!B77 -> 0 | D77: 有害性のおそれのある物質のタンク、パイプ類は浸透、漏洩、拡散などを防止できる構造となっている | J77: ◎ | R77: ○ | S77: ◎ | V77: ○ | AE77: 1 | AH77: 3
B78: =取組ﾁｪｯｸｼｰﾄ改訂版!B78 -> 0 | D78: 有害性のおそれのある物質のタンク、パイプ等の保守・点検を定期的に行っている | J78: ◎ | R78: ○ | S78: ◎ | V78: ○ | AE78: 1 | AH78: 3
B79: =取組ﾁｪｯｸｼｰﾄ改訂版!B79 -> 0 | D79: 使用した有害物質を回収するシステムができている | J79: ◎ | R79: ○ | S79: ◎ | V79: ○ | AE79: 1 | AH79: 3
B80: =取組ﾁｪｯｸｼｰﾄ改訂版!B80 -> 0 | D80: 有害性のおそれのある物質の輸送、保管等に当たり、事故等の汚染防止のための準備や訓練を行っている | J80: ◎ | R80: ○ | S80: ◎ | V80: ○ | AE80: 1 | AH80: 3
B81: =取組ﾁｪｯｸｼｰﾄ改訂版!B81 -> 0 | D81: 有害性のおそれのある物質の削減に取り組んでいる | J81: ◎ | R81: ○ | S81: ◎ | V81: ○ | AE81: 1 | AH81: 3
B82: =取組ﾁｪｯｸｼｰﾄ改訂版!B82 -> 0 | D82: 燃料油や溶剤等の揮発の防止に取り組んでいる | J82: ◎ | R82: ○ | S82: ◎ | V82: ○ | AE82: 1 | AH82: 3
B83: =取組ﾁｪｯｸｼｰﾄ改訂版!B83 -> 0 | D83: 施設の消毒、除草や害虫駆除に当たり、薬剤使用の削減、合理化等に取り組んでいる | J83: ◎ | R83: ○ | S83: ◎ | V83: ○ | AE83: 1 | AH83: 3
B84: =取組ﾁｪｯｸｼｰﾄ改訂版!B84 -> 2 温室効果ガス特定フロン（CFC,CHFC等)、代替フロン（ＨＦＣ、ＰＦＣ、ＳＦ６ 等）の排出抑制、削減、適正処理 | H84: =(SUMPRODUCT((H72:H83="○")*($AC72:$AC83=1))*0.5+SUMPRODUCT((H72:H83="○")*($AC72:$AC83=0.5))*0.25+SUMPRODUCT((H72:H83="○")*($AC72:$AC83=0.1))*0.05+SUMPRODUCT((H72:H83="◎")*($AC72:$AC83=1))+SUMPRODUCT((H72:H83="◎")*($AC72:$AC83=0.5)*0.5)+SUMPRODUCT((H72:H83="◎")*($AC72:$AC83=0.1))*0.1) -> 0 | I84: 0 | J84: 0 | K84: 0 | L84: 0 | M84: 0 | N84: 0 | O84: 0 | P84: 0 | Q84: 0 | R84: =(SUMPRODUCT((R72:R83="○")*($AC72:$AC83=1))*0.5+SUMPRODUCT((R72:R83="○")*($AC72:$AC83=0.5))*0.25+SUMPRODUCT((R72:R83="○")*($AC72:$AC83=0.1))*0.05+SUMPRODUCT((R72:R83="◎")*($AC72:$AC83=1))+SUMPRODUCT((R72:R83="◎")*($AC72:$AC83=0.5)*0.5)+SUMPRODUCT((R72:R83="◎")*($AC72:$AC83=0.1))*0.1) -> 0 | S84: =(SUMPRODUCT((S72:S83="○")*($AC72:$AC83=1))*0.5+SUMPRODUCT((S72:S83="○")*($AC72:$AC83=0.5))*0.25+SUMPRODUCT((S72:S83="○")*($AC72:$AC83=0.1))*0.05+SUMPRODUCT((S72:S83="◎")*($AC72:$AC83=1))+SUMPRODUCT((S72:S83="◎")*($AC72:$AC83=0.5)*0.5)+SUMPRODUCT((S72:S83="◎")*($AC72:$AC83=0.1))*0.1) -> 0 | T84: 0 | U84: 0 | V84: 0 | W84: 0 | X84: 0 | AC84: =IF(B84="○",1,IF(B84="△",0.5,IF(B84="×",0.1,""))) ->  | AE84: =SUBTOTAL(9,AE81:AE83) -> 3 | AH84: =SUM(AH72:AH83) -> 37 | AI84: =IF(AE84=0,"",SUM(H84:X84)/AH84) -> 0 | AL84: =IFERROR(H84/((SUMPRODUCT((H72:H83="○")*($AC72:$AC83=1))*0.5+SUMPRODUCT((H72:H83="○")*($AC72:$AC83=0.5))*0.5+SUMPRODUCT((H72:H83="○")*($AC72:$AC83=0.1))*0.5+SUMPRODUCT((H72:H83="◎")*($AC72:$AC83=1))+SUMPRODUCT((H72:H83="◎")*($AC72:$AC83=0.5)*0.5)+SUMPRODUCT((H72:H83="◎")*($AC72:$AC83=0.1))*0.1)),0) -> 0 | AM84: =IFERROR(I84/((SUMPRODUCT((I72:I83="○")*($AC72:$AC83=1))*0.5+SUMPRODUCT((I72:I83="○")*($AC72:$AC83=0.5))*0.5+SUMPRODUCT((I72:I83="○")*($AC72:$AC83=0.1))*0.5+SUMPRODUCT((I72:I83="◎")*($AC72:$AC83=1))+SUMPRODUCT((I72:I83="◎")*($AC72:$AC83=0.5)*0.5)+SUMPRODUCT((I72:I83="◎")*($AC72:$AC83=0.1))*0.1)),0) -> 0 | AN84: 0 | AO84: 0 | AP84: 0 | AQ84: 0 | AR84: 0 | AS84: 0 | AT84: 0 | AU84: 0 | AV84: 0 | AW84: 0 | AX84: 0 | AY84: 0 | AZ84: 0 | BA84: 0 | BB84: 0
B85: =取組ﾁｪｯｸｼｰﾄ改訂版!B85 -> 0 | D85: オゾン層を破壊する特定フロン等の削減、全廃（生産用フロン、冷却設備・空調設備の冷媒用フロン（Ｒ２２使用機器）の削減、ハロン消火設備等の代替）を行っている | E85: １３ | J85: ○ | R85: ○ | T85: ◎ | AD85: =SUM(AC85:AC93) -> 0 | AE85: =COUNTIF(B85,"○")+COUNTIF(B85,"△")+COUNTIF(B85,"×")+COUNTIF(B85,0) -> 1 | AF85: =SUM(AE85:AE93) -> 9 | AG85: =AD85/AF85 -> 0 | AH85: 2
B86: =取組ﾁｪｯｸｼｰﾄ改訂版!B86 -> 0 | D86: フロンの削減、回収・適正処理に取り組んでいる | J86: ○ | T86: ◎ | AE86: 1 | AH86: 1.5
B87: =取組ﾁｪｯｸｼｰﾄ改訂版!B87 -> 0 | D87: 特定フロン、代替フロン類をどれだけ使用し、漏出しているか把握している | J87: ○ | R87: ○ | T87: ◎ | AE87: 1 | AH87: 2
B88: =取組ﾁｪｯｸｼｰﾄ改訂版!B88 -> 0 | D88: 製造工程において、代替フロン類（ＨＦＣ、ＰＦＣ、ＳＦ６ 等）の排出抑制、回収処理に取り組んでいる | J88: ○ | R88: ○ | T88: ◎ | AE88: 1 | AH88: 2
B89: =取組ﾁｪｯｸｼｰﾄ改訂版!B89 -> 0 | D89: 製造工程において、可能な範囲で代替フロン類（ＨＦＣ、ＰＦＣ、ＳＦ６ 等）をその他の物質に代替している | J89: ○ | T89: ◎ | AE89: 1 | AH89: 1.5
B90: =取組ﾁｪｯｸｼｰﾄ改訂版!B90 -> 0 | D90: ＨＦＣ、ＰＦＣ、ＳＦ６ 等を使用しない製造工程に変換している | J90: ○ | T90: ◎ | AE90: 1 | AH90: 1.5
B91: =取組ﾁｪｯｸｼｰﾄ改訂版!B91 -> 0 | D91: 製品購入の際には、できるだけＨＦＣ、ＰＦＣ、ＳＦ６ 等を使用していない製品（例・ＣＯ₂等冷媒）を選ぶように配慮している | J91: ○ | T91: ◎ | AE91: 1 | AH91: 1.5
B92: =取組ﾁｪｯｸｼｰﾄ改訂版!B92 -> 0 | D92: ＨＦＣ、ＰＦＣ、ＳＦ６ 等を使用している製品を廃棄する際の回収に取り組んでいる | J92: ○ | R92: ○ | T92: ◎ | AE92: 1 | AH92: 2
B93: =取組ﾁｪｯｸｼｰﾄ改訂版!B93 -> 0 | D93: フロン使用機器について不調時の修理、漏洩防止、法令に定められた定期点検等がおこなわれ、履歴を記録・保存している | R93: ○ | T93: ◎ | AE93: 1 | AH93: 1.5
C94: チェック欄数：２１ | H94: =(SUMPRODUCT((H85:H93="○")*($AC85:$AC93=1))*0.5+SUMPRODUCT((H85:H93="○")*($AC85:$AC93=0.5))*0.25+SUMPRODUCT((H85:H93="○")*($AC85:$AC93=0.1))*0.05+SUMPRODUCT((H85:H93="◎")*($AC85:$AC93=1))+SUMPRODUCT((H85:H93="◎")*($AC85:$AC93=0.5)*0.5)+SUMPRODUCT((H85:H93="◎")*($AC85:$AC93=0.1))*0.1) -> 0 | I94: 0 | J94: 0 | K94: 0 | L94: 0 | M94: 0 | N94: 0 | O94: 0 | P94: 0 | Q94: 0 | R94: =(SUMPRODUCT((R85:R93="○")*($AC85:$AC93=1))*0.5+SUMPRODUCT((R85:R93="○")*($AC85:$AC93=0.5))*0.25+SUMPRODUCT((R85:R93="○")*($AC85:$AC93=0.1))*0.05+SUMPRODUCT((R85:R93="◎")*($AC85:$AC93=1))+SUMPRODUCT((R85:R93="◎")*($AC85:$AC93=0.5)*0.5)+SUMPRODUCT((R85:R93="◎")*($AC85:$AC93=0.1))*0.1) -> 0 | S94: =(SUMPRODUCT((S85:S93="○")*($AC85:$AC93=1))*0.5+SUMPRODUCT((S85:S93="○")*($AC85:$AC93=0.5))*0.25+SUMPRODUCT((S85:S93="○")*($AC85:$AC93=0.1))*0.05+SUMPRODUCT((S85:S93="◎")*($AC85:$AC93=1))+SUMPRODUCT((S85:S93="◎")*($AC85:$AC93=0.5)*0.5)+SUMPRODUCT((S85:S93="◎")*($AC85:$AC93=0.1))*0.1) -> 0 | T94: 0 | U94: 0 | V94: 0 | W94: 0 | X94: 0 | AD94: =SUM(AD72:AD93) -> 0 | AE94: =SUBTOTAL(9,AE85:AE93) -> 9 | AF94: =SUM(AF72:AF93) -> 21 | AG94: =AD94/AF94 -> 0 | AH94: =SUM(AH85:AH93) -> 15.5 | AI94: =IF(AE94=0,"",SUM(H94:X94)/AH94) -> 0 | AL94: =IFERROR(H94/((SUMPRODUCT((H85:H93="○")*($AC85:$AC93=1))*0.5+SUMPRODUCT((H85:H93="○")*($AC85:$AC93=0.5))*0.5+SUMPRODUCT((H85:H93="○")*($AC85:$AC93=0.1))*0.5+SUMPRODUCT((H85:H93="◎")*($AC85:$AC93=1))+SUMPRODUCT((H85:H93="◎")*($AC85:$AC93=0.5)*0.5)+SUMPRODUCT((H85:H93="◎")*($AC85:$AC93=0.1))*0.1)),0) -> 0 | AM94: =IFERROR(I94/((SUMPRODUCT((I85:I93="○")*($AC85:$AC93=1))*0.5+SUMPRODUCT((I85:I93="○")*($AC85:$AC93=0.5))*0.5+SUMPRODUCT((I85:I93="○")*($AC85:$AC93=0.1))*0.5+SUMPRODUCT((I85:I93="◎")*($AC85:$AC93=1))+SUMPRODUCT((I85:I93="◎")*($AC85:$AC93=0.5)*0.5)+SUMPRODUCT((I85:I93="◎")*($AC85:$AC93=0.1))*0.1)),0) -> 0 | AN94: =IFERROR(J94/((SUMPRODUCT((J85:J93="○")*($AC85:$AC93=1))*0.5+SUMPRODUCT((J85:J93="○")*($AC85:$AC93=0.5))*0.5+SUMPRODUCT((J85:J93="○")*($AC85:$AC93=0.1))*0.5+SUMPRODUCT((J85:J93="◎")*($AC85:$AC93=1))+SUMPRODUCT((J85:J93="◎")*($AC85:$AC93=0.5)*0.5)+SUMPRODUCT((J85:J93="◎")*($AC85:$AC93=0.1))*0.1)),0) -> 0 | AO94: =IFERROR(K94/((SUMPRODUCT((K85:K93="○")*($AC85:$AC93=1))*0.5+SUMPRODUCT((K85:K93="○")*($AC85:$AC93=0.5))*0.5+SUMPRODUCT((K85:K93="○")*($AC85:$AC93=0.1))*0.5+SUMPRODUCT((K85:K93="◎")*($AC85:$AC93=1))+SUMPRODUCT((K85:K93="◎")*($AC85:$AC93=0.5)*0.5)+SUMPRODUCT((K85:K93="◎")*($AC85:$AC93=0.1))*0.1)),0) -> 0 | AP94: =IFERROR(L94/((SUMPRODUCT((L85:L93="○")*($AC85:$AC93=1))*0.5+SUMPRODUCT((L85:L93="○")*($AC85:$AC93=0.5))*0.5+SUMPRODUCT((L85:L93="○")*($AC85:$AC93=0.1))*0.5+SUMPRODUCT((L85:L93="◎")*($AC85:$AC93=1))+SUMPRODUCT((L85:L93="◎")*($AC85:$AC93=0.5)*0.5)+SUMPRODUCT((L85:L93="◎")*($AC85:$AC93=0.1))*0.1)),0) -> 0 | AQ94: =IFERROR(M94/((SUMPRODUCT((M85:M93="○")*($AC85:$AC93=1))*0.5+SUMPRODUCT((M85:M93="○")*($AC85:$AC93=0.5))*0.5+SUMPRODUCT((M85:M93="○")*($AC85:$AC93=0.1))*0.5+SUMPRODUCT((M85:M93="◎")*($AC85:$AC93=1))+SUMPRODUCT((M85:M93="◎")*($AC85:$AC93=0.5)*0.5)+SUMPRODUCT((M85:M93="◎")*($AC85:$AC93=0.1))*0.1)),0) -> 0 | AR94: =IFERROR(N94/((SUMPRODUCT((N85:N93="○")*($AC85:$AC93=1))*0.5+SUMPRODUCT((N85:N93="○")*($AC85:$AC93=0.5))*0.5+SUMPRODUCT((N85:N93="○")*($AC85:$AC93=0.1))*0.5+SUMPRODUCT((N85:N93="◎")*($AC85:$AC93=1))+SUMPRODUCT((N85:N93="◎")*($AC85:$AC93=0.5)*0.5)+SUMPRODUCT((N85:N93="◎")*($AC85:$AC93=0.1))*0.1)),0) -> 0 | AS94: =IFERROR(O94/((SUMPRODUCT((O85:O93="○")*($AC85:$AC93=1))*0.5+SUMPRODUCT((O85:O93="○")*($AC85:$AC93=0.5))*0.5+SUMPRODUCT((O85:O93="○")*($AC85:$AC93=0.1))*0.5+SUMPRODUCT((O85:O93="◎")*($AC85:$AC93=1))+SUMPRODUCT((O85:O93="◎")*($AC85:$AC93=0.5)*0.5)+SUMPRODUCT((O85:O93="◎")*($AC85:$AC93=0.1))*0.1)),0) -> 0 | AT94: =IFERROR(P94/((SUMPRODUCT((P85:P93="○")*($AC85:$AC93=1))*0.5+SUMPRODUCT((P85:P93="○")*($AC85:$AC93=0.5))*0.5+SUMPRODUCT((P85:P93="○")*($AC85:$AC93=0.1))*0.5+SUMPRODUCT((P85:P93="◎")*($AC85:$AC93=1))+SUMPRODUCT((P85:P93="◎")*($AC85:$AC93=0.5)*0.5)+SUMPRODUCT((P85:P93="◎")*($AC85:$AC93=0.1))*0.1)),0) -> 0 | AU94: =IFERROR(Q94/((SUMPRODUCT((Q85:Q93="○")*($AC85:$AC93=1))*0.5+SUMPRODUCT((Q85:Q93="○")*($AC85:$AC93=0.5))*0.5+SUMPRODUCT((Q85:Q93="○")*($AC85:$AC93=0.1))*0.5+SUMPRODUCT((Q85:Q93="◎")*($AC85:$AC93=1))+SUMPRODUCT((Q85:Q93="◎")*($AC85:$AC93=0.5)*0.5)+SUMPRODUCT((Q85:Q93="◎")*($AC85:$AC93=0.1))*0.1)),0) -> 0 | AV94: =IFERROR(R94/((SUMPRODUCT((R85:R93="○")*($AC85:$AC93=1))*0.5+SUMPRODUCT((R85:R93="○")*($AC85:$AC93=0.5))*0.5+SUMPRODUCT((R85:R93="○")*($AC85:$AC93=0.1))*0.5+SUMPRODUCT((R85:R93="◎")*($AC85:$AC93=1))+SUMPRODUCT((R85:R93="◎")*($AC85:$AC93=0.5)*0.5)+SUMPRODUCT((R85:R93="◎")*($AC85:$AC93=0.1))*0.1)),0) -> 0 | AW94: =IFERROR(S94/((SUMPRODUCT((S85:S93="○")*($AC85:$AC93=1))*0.5+SUMPRODUCT((S85:S93="○")*($AC85:$AC93=0.5))*0.5+SUMPRODUCT((S85:S93="○")*($AC85:$AC93=0.1))*0.5+SUMPRODUCT((S85:S93="◎")*($AC85:$AC93=1))+SUMPRODUCT((S85:S93="◎")*($AC85:$AC93=0.5)*0.5)+SUMPRODUCT((S85:S93="◎")*($AC85:$AC93=0.1))*0.1)),0) -> 0 | AX94: =IFERROR(T94/((SUMPRODUCT((T85:T93="○")*($AC85:$AC93=1))*0.5+SUMPRODUCT((T85:T93="○")*($AC85:$AC93=0.5))*0.5+SUMPRODUCT((T85:T93="○")*($AC85:$AC93=0.1))*0.5+SUMPRODUCT((T85:T93="◎")*($AC85:$AC93=1))+SUMPRODUCT((T85:T93="◎")*($AC85:$AC93=0.5)*0.5)+SUMPRODUCT((T85:T93="◎")*($AC85:$AC93=0.1))*0.1)),0) -> 0 | AY94: =IFERROR(U94/((SUMPRODUCT((U85:U93="○")*($AC85:$AC93=1))*0.5+SUMPRODUCT((U85:U93="○")*($AC85:$AC93=0.5))*0.5+SUMPRODUCT((U85:U93="○")*($AC85:$AC93=0.1))*0.5+SUMPRODUCT((U85:U93="◎")*($AC85:$AC93=1))+SUMPRODUCT((U85:U93="◎")*($AC85:$AC93=0.5)*0.5)+SUMPRODUCT((U85:U93="◎")*($AC85:$AC93=0.1))*0.1)),0) -> 0 | AZ94: =IFERROR(V94/((SUMPRODUCT((V85:V93="○")*($AC85:$AC93=1))*0.5+SUMPRODUCT((V85:V93="○")*($AC85:$AC93=0.5))*0.5+SUMPRODUCT((V85:V93="○")*($AC85:$AC93=0.1))*0.5+SUMPRODUCT((V85:V93="◎")*($AC85:$AC93=1))+SUMPRODUCT((V85:V93="◎")*($AC85:$AC93=0.5)*0.5)+SUMPRODUCT((V85:V93="◎")*($AC85:$AC93=0.1))*0.1)),0) -> 0 | BA94: =IFERROR(W94/((SUMPRODUCT((W85:W93="○")*($AC85:$AC93=1))*0.5+SUMPRODUCT((W85:W93="○")*($AC85:$AC93=0.5))*0.5+SUMPRODUCT((W85:W93="○")*($AC85:$AC93=0.1))*0.5+SUMPRODUCT((W85:W93="◎")*($AC85:$AC93=1))+SUMPRODUCT((W85:W93="◎")*($AC85:$AC93=0.5)*0.5)+SUMPRODUCT((W85:W93="◎")*($AC85:$AC93=0.1))*0.1)),0) -> 0 | BB94: =IFERROR(X94/((SUMPRODUCT((X85:X93="○")*($AC85:$AC93=1))*0.5+SUMPRODUCT((X85:X93="○")*($AC85:$AC93=0.5))*0.5+SUMPRODUCT((X85:X93="○")*($AC85:$AC93=0.1))*0.5+SUMPRODUCT((X85:X93="◎")*($AC85:$AC93=1))+SUMPRODUCT((X85:X93="◎")*($AC85:$AC93=0.5)*0.5)+SUMPRODUCT((X85:X93="◎")*($AC85:$AC93=0.1))*0.1)),0) -> 0
D95: =IF((COUNTIF(項目⑤チェック欄,"○")+COUNTIF(項目⑤チェック欄,"△")+COUNTIF(項目⑤チェック欄,"×")+COUNTIF(項目⑤チェック欄,"―"))=0,"達成率 %",IF((COUNTIF(項目⑤チェック欄,"○")+COUNTIF(項目⑤チェック欄,"△")+COUNTIF(項目⑤チェック欄,"×"))=0,"達成率 ― %",(COUNTIF(項目⑤チェック欄,"○")+COUNTIF(項目⑤チェック欄,"△")*0.5+COUNTIF(項目⑤チェック欄,"×")*0.1)/(COUNTIF(項目⑤チェック欄,"○")+COUNTIF(項目⑤チェック欄,"△")+COUNTIF(項目⑤チェック欄,"×")+COUNTIF(項目⑤チェック欄,""))*100)) -> 達成率 %
B96: =取組ﾁｪｯｸｼｰﾄ改訂版!B96 -> <項目④ ： 節水・水の効率利用> | E96: SDGs関連ゴール
B97: =取組ﾁｪｯｸｼｰﾄ改訂版!B97 -> （チェック欄）
B98: =取組ﾁｪｯｸｼｰﾄ改訂版!B98 -> 0 | D98: 雨水の貯留タンクや雨水利用施設の設置等により、雨水利用を行っている | E98: ６ | M98: ◎ | R98: ○ | AD98: =SUM(AC98:AC104) -> 0 | AE98: =COUNTIF(B98,"○")+COUNTIF(B98,"△")+COUNTIF(B98,"×")+COUNTIF(B98,0) -> 1 | AF98: =SUM(AE98:AE104) -> 7 | AG98: =AD98/AF98 -> 0 | AH98: =SUMPRODUCT((H98:X98="○")*($AE98=1))*0.5+SUMPRODUCT((H98:X98="◎")*($AE98=1)) -> 1.5
B99: =取組ﾁｪｯｸｼｰﾄ改訂版!B99 -> 0 | D99: 雨水を地下浸透させる設備（浸透升、透水性舗装等）の導入や工夫等、雨水流出抑制行っている | M99: ◎ | R99: ○ | AE99: 1 | AH99: 1.5
B100: =取組ﾁｪｯｸｼｰﾄ改訂版!B100 -> 0 | D100: 汚排水の再利用（中水利用）を行っている | M100: ◎ | R100: ○ | AE100: 1 | AH100: 1.5
B101: =取組ﾁｪｯｸｼｰﾄ改訂版!B101 -> 0 | D101: 節水型の家電製品、水洗トイレ等を積極的に導入している | M101: ◎ | R101: ○ | AE101: 1 | AH101: 1.5
B102: =取組ﾁｪｯｸｼｰﾄ改訂版!B102 -> 0 | D102: 蛇口に節水こま（適量の水を流す機能を持つこま）を設置している | M102: ◎ | R102: ○ | AE102: 1 | AH102: 1.5
B103: =取組ﾁｪｯｸｼｰﾄ改訂版!B103 -> 0 | D103: 地盤沈下が問題となっている地域にあっては、地下水汲み上げの削減を行っている | M103: ◎ | R103: ○ | AE103: 1 | AH103: 1.5
B104: =取組ﾁｪｯｸｼｰﾄ改訂版!B104 -> 0 | D104: 水道配管からの漏洩を定期的に点検している | M104: ◎ | R104: ○ | AE104: 1 | AH104: 1.5
C105: チェック欄数：７ | H105: =(SUMPRODUCT((H98:H104="○")*($AC98:$AC104=1))*0.5+SUMPRODUCT((H98:H104="○")*($AC98:$AC104=0.5))*0.25+SUMPRODUCT((H98:H104="○")*($AC98:$AC104=0.1))*0.05+SUMPRODUCT((H98:H104="◎")*($AC98:$AC104=1))+SUMPRODUCT((H98:H104="◎")*($AC98:$AC104=0.5)*0.5)+SUMPRODUCT((H98:H104="◎")*($AC98:$AC104=0.1))*0.1) -> 0 | I105: 0 | J105: 0 | K105: 0 | L105: 0 | M105: 0 | N105: 0 | O105: 0 | P105: 0 | Q105: 0 | R105: =(SUMPRODUCT((R98:R104="○")*($AC98:$AC104=1))*0.5+SUMPRODUCT((R98:R104="○")*($AC98:$AC104=0.5))*0.25+SUMPRODUCT((R98:R104="○")*($AC98:$AC104=0.1))*0.05+SUMPRODUCT((R98:R104="◎")*($AC98:$AC104=1))+SUMPRODUCT((R98:R104="◎")*($AC98:$AC104=0.5)*0.5)+SUMPRODUCT((R98:R104="◎")*($AC98:$AC104=0.1))*0.1) -> 0 | S105: =(SUMPRODUCT((S98:S104="○")*($AC98:$AC104=1))*0.5+SUMPRODUCT((S98:S104="○")*($AC98:$AC104=0.5))*0.25+SUMPRODUCT((S98:S104="○")*($AC98:$AC104=0.1))*0.05+SUMPRODUCT((S98:S104="◎")*($AC98:$AC104=1))+SUMPRODUCT((S98:S104="◎")*($AC98:$AC104=0.5)*0.5)+SUMPRODUCT((S98:S104="◎")*($AC98:$AC104=0.1))*0.1) -> 0 | T105: 0 | U105: 0 | V105: 0 | W105: 0 | X105: 0 | AD105: =SUM(AD98:AD104) -> 0 | AE105: =SUBTOTAL(9,AE98:AE104) -> 7 | AF105: =SUM(AF98:AF104) -> 7 | AG105: =AD105/AF105 -> 0 | AH105: =SUM(AH98:AH104) -> 10.5 | AI105: =IF(AE105=0,"",SUM(H105:X105)/AH105) -> 0 | AL105: =IFERROR(H105/((SUMPRODUCT((H98:H104="○")*($AC98:$AC104=1))*0.5+SUMPRODUCT((H98:H104="○")*($AC98:$AC104=0.5))*0.5+SUMPRODUCT((H98:H104="○")*($AC98:$AC104=0.1))*0.5+SUMPRODUCT((H98:H104="◎")*($AC98:$AC104=1))+SUMPRODUCT((H98:H104="◎")*($AC98:$AC104=0.5)*0.5)+SUMPRODUCT((H98:H104="◎")*($AC98:$AC104=0.1))*0.1)),0) -> 0 | AM105: =IFERROR(I105/((SUMPRODUCT((I98:I104="○")*($AC98:$AC104=1))*0.5+SUMPRODUCT((I98:I104="○")*($AC98:$AC104=0.5))*0.5+SUMPRODUCT((I98:I104="○")*($AC98:$AC104=0.1))*0.5+SUMPRODUCT((I98:I104="◎")*($AC98:$AC104=1))+SUMPRODUCT((I98:I104="◎")*($AC98:$AC104=0.5)*0.5)+SUMPRODUCT((I98:I104="◎")*($AC98:$AC104=0.1))*0.1)),0) -> 0 | AN105: =IFERROR(J105/((SUMPRODUCT((J98:J104="○")*($AC98:$AC104=1))*0.5+SUMPRODUCT((J98:J104="○")*($AC98:$AC104=0.5))*0.5+SUMPRODUCT((J98:J104="○")*($AC98:$AC104=0.1))*0.5+SUMPRODUCT((J98:J104="◎")*($AC98:$AC104=1))+SUMPRODUCT((J98:J104="◎")*($AC98:$AC104=0.5)*0.5)+SUMPRODUCT((J98:J104="◎")*($AC98:$AC104=0.1))*0.1)),0) -> 0 | AO105: =IFERROR(K105/((SUMPRODUCT((K98:K104="○")*($AC98:$AC104=1))*0.5+SUMPRODUCT((K98:K104="○")*($AC98:$AC104=0.5))*0.5+SUMPRODUCT((K98:K104="○")*($AC98:$AC104=0.1))*0.5+SUMPRODUCT((K98:K104="◎")*($AC98:$AC104=1))+SUMPRODUCT((K98:K104="◎")*($AC98:$AC104=0.5)*0.5)+SUMPRODUCT((K98:K104="◎")*($AC98:$AC104=0.1))*0.1)),0) -> 0 | AP105: =IFERROR(L105/((SUMPRODUCT((L98:L104="○")*($AC98:$AC104=1))*0.5+SUMPRODUCT((L98:L104="○")*($AC98:$AC104=0.5))*0.5+SUMPRODUCT((L98:L104="○")*($AC98:$AC104=0.1))*0.5+SUMPRODUCT((L98:L104="◎")*($AC98:$AC104=1))+SUMPRODUCT((L98:L104="◎")*($AC98:$AC104=0.5)*0.5)+SUMPRODUCT((L98:L104="◎")*($AC98:$AC104=0.1))*0.1)),0) -> 0 | AQ105: =IFERROR(M105/((SUMPRODUCT((M98:M104="○")*($AC98:$AC104=1))*0.5+SUMPRODUCT((M98:M104="○")*($AC98:$AC104=0.5))*0.5+SUMPRODUCT((M98:M104="○")*($AC98:$AC104=0.1))*0.5+SUMPRODUCT((M98:M104="◎")*($AC98:$AC104=1))+SUMPRODUCT((M98:M104="◎")*($AC98:$AC104=0.5)*0.5)+SUMPRODUCT((M98:M104="◎")*($AC98:$AC104=0.1))*0.1)),0) -> 0 | AR105: =IFERROR(N105/((SUMPRODUCT((N98:N104="○")*($AC98:$AC104=1))*0.5+SUMPRODUCT((N98:N104="○")*($AC98:$AC104=0.5))*0.5+SUMPRODUCT((N98:N104="○")*($AC98:$AC104=0.1))*0.5+SUMPRODUCT((N98:N104="◎")*($AC98:$AC104=1))+SUMPRODUCT((N98:N104="◎")*($AC98:$AC104=0.5)*0.5)+SUMPRODUCT((N98:N104="◎")*($AC98:$AC104=0.1))*0.1)),0) -> 0 | AS105: =IFERROR(O105/((SUMPRODUCT((O98:O104="○")*($AC98:$AC104=1))*0.5+SUMPRODUCT((O98:O104="○")*($AC98:$AC104=0.5))*0.5+SUMPRODUCT((O98:O104="○")*($AC98:$AC104=0.1))*0.5+SUMPRODUCT((O98:O104="◎")*($AC98:$AC104=1))+SUMPRODUCT((O98:O104="◎")*($AC98:$AC104=0.5)*0.5)+SUMPRODUCT((O98:O104="◎")*($AC98:$AC104=0.1))*0.1)),0) -> 0 | AT105: =IFERROR(P105/((SUMPRODUCT((P98:P104="○")*($AC98:$AC104=1))*0.5+SUMPRODUCT((P98:P104="○")*($AC98:$AC104=0.5))*0.5+SUMPRODUCT((P98:P104="○")*($AC98:$AC104=0.1))*0.5+SUMPRODUCT((P98:P104="◎")*($AC98:$AC104=1))+SUMPRODUCT((P98:P104="◎")*($AC98:$AC104=0.5)*0.5)+SUMPRODUCT((P98:P104="◎")*($AC98:$AC104=0.1))*0.1)),0) -> 0 | AU105: =IFERROR(Q105/((SUMPRODUCT((Q98:Q104="○")*($AC98:$AC104=1))*0.5+SUMPRODUCT((Q98:Q104="○")*($AC98:$AC104=0.5))*0.5+SUMPRODUCT((Q98:Q104="○")*($AC98:$AC104=0.1))*0.5+SUMPRODUCT((Q98:Q104="◎")*($AC98:$AC104=1))+SUMPRODUCT((Q98:Q104="◎")*($AC98:$AC104=0.5)*0.5)+SUMPRODUCT((Q98:Q104="◎")*($AC98:$AC104=0.1))*0.1)),0) -> 0 | AV105: =IFERROR(R105/((SUMPRODUCT((R98:R104="○")*($AC98:$AC104=1))*0.5+SUMPRODUCT((R98:R104="○")*($AC98:$AC104=0.5))*0.5+SUMPRODUCT((R98:R104="○")*($AC98:$AC104=0.1))*0.5+SUMPRODUCT((R98:R104="◎")*($AC98:$AC104=1))+SUMPRODUCT((R98:R104="◎")*($AC98:$AC104=0.5)*0.5)+SUMPRODUCT((R98:R104="◎")*($AC98:$AC104=0.1))*0.1)),0) -> 0 | AW105: =IFERROR(S105/((SUMPRODUCT((S98:S104="○")*($AC98:$AC104=1))*0.5+SUMPRODUCT((S98:S104="○")*($AC98:$AC104=0.5))*0.5+SUMPRODUCT((S98:S104="○")*($AC98:$AC104=0.1))*0.5+SUMPRODUCT((S98:S104="◎")*($AC98:$AC104=1))+SUMPRODUCT((S98:S104="◎")*($AC98:$AC104=0.5)*0.5)+SUMPRODUCT((S98:S104="◎")*($AC98:$AC104=0.1))*0.1)),0) -> 0 | AX105: =IFERROR(T105/((SUMPRODUCT((T98:T104="○")*($AC98:$AC104=1))*0.5+SUMPRODUCT((T98:T104="○")*($AC98:$AC104=0.5))*0.5+SUMPRODUCT((T98:T104="○")*($AC98:$AC104=0.1))*0.5+SUMPRODUCT((T98:T104="◎")*($AC98:$AC104=1))+SUMPRODUCT((T98:T104="◎")*($AC98:$AC104=0.5)*0.5)+SUMPRODUCT((T98:T104="◎")*($AC98:$AC104=0.1))*0.1)),0) -> 0 | AY105: =IFERROR(U105/((SUMPRODUCT((U98:U104="○")*($AC98:$AC104=1))*0.5+SUMPRODUCT((U98:U104="○")*($AC98:$AC104=0.5))*0.5+SUMPRODUCT((U98:U104="○")*($AC98:$AC104=0.1))*0.5+SUMPRODUCT((U98:U104="◎")*($AC98:$AC104=1))+SUMPRODUCT((U98:U104="◎")*($AC98:$AC104=0.5)*0.5)+SUMPRODUCT((U98:U104="◎")*($AC98:$AC104=0.1))*0.1)),0) -> 0 | AZ105: =IFERROR(V105/((SUMPRODUCT((V98:V104="○")*($AC98:$AC104=1))*0.5+SUMPRODUCT((V98:V104="○")*($AC98:$AC104=0.5))*0.5+SUMPRODUCT((V98:V104="○")*($AC98:$AC104=0.1))*0.5+SUMPRODUCT((V98:V104="◎")*($AC98:$AC104=1))+SUMPRODUCT((V98:V104="◎")*($AC98:$AC104=0.5)*0.5)+SUMPRODUCT((V98:V104="◎")*($AC98:$AC104=0.1))*0.1)),0) -> 0 | BA105: =IFERROR(W105/((SUMPRODUCT((W98:W104="○")*($AC98:$AC104=1))*0.5+SUMPRODUCT((W98:W104="○")*($AC98:$AC104=0.5))*0.5+SUMPRODUCT((W98:W104="○")*($AC98:$AC104=0.1))*0.5+SUMPRODUCT((W98:W104="◎")*($AC98:$AC104=1))+SUMPRODUCT((W98:W104="◎")*($AC98:$AC104=0.5)*0.5)+SUMPRODUCT((W98:W104="◎")*($AC98:$AC104=0.1))*0.1)),0) -> 0 | BB105: =IFERROR(X105/((SUMPRODUCT((X98:X104="○")*($AC98:$AC104=1))*0.5+SUMPRODUCT((X98:X104="○")*($AC98:$AC104=0.5))*0.5+SUMPRODUCT((X98:X104="○")*($AC98:$AC104=0.1))*0.5+SUMPRODUCT((X98:X104="◎")*($AC98:$AC104=1))+SUMPRODUCT((X98:X104="◎")*($AC98:$AC104=0.5)*0.5)+SUMPRODUCT((X98:X104="◎")*($AC98:$AC104=0.1))*0.1)),0) -> 0
D106: =IF( (COUNTIF(項目⑥チェック欄,"○")+COUNTIF(項目⑥チェック欄,"△")+COUNTIF(項目⑥チェック欄,"×")+COUNTIF(項目⑥チェック欄,"―"))=0,"達成率 %",IF( (COUNTIF(項目⑥チェック欄,"○")+COUNTIF(項目⑥チェック欄,"△")+COUNTIF(項目⑥チェック欄,"×"))=0,"達成率 ― %",(COUNTIF(項目⑥チェック欄,"○")+COUNTIF(項目⑥チェック欄,"△")*0.5+COUNTIF(項目⑥チェック欄,"×")*0.1)/(COUNTIF(項目⑥チェック欄,"○")+COUNTIF(項目⑥チェック欄,"△")+COUNTIF(項目⑥チェック欄,"×")+COUNTIF(項目⑥チェック欄,""))*100)) -> 達成率 %
B107: =取組ﾁｪｯｸｼｰﾄ改訂版!B107 -> <項目⑤ ： 製品の開発・設計等における環境配慮>
B108: =取組ﾁｪｯｸｼｰﾄ改訂版!B108 -> （チェック欄） | E108: SDGs関連ゴール
B109: =取組ﾁｪｯｸｼｰﾄ改訂版!B109 -> 1 製品（プライベートブランド商品を含む）設計に当たっての環境配慮
B110: =取組ﾁｪｯｸｼｰﾄ改訂版!B110 -> 0 | D110: 製品の小型化・軽量化等により、同一機能に対して資源使用量のミニマム化を指向している | E110: ９、１１、１２ | N110: ○ | P110: ◎ | R110: ○ | S110: ○ | AD110: =SUM(AC110:AC117) -> 0 | AE110: =COUNTIF(B110,"○")+COUNTIF(B110,"△")+COUNTIF(B110,"×")+COUNTIF(B110,0) -> 1 | AF110: =SUM(AE110:AE117) -> 8 | AG110: =AD110/AF110 -> 0 | AH110: =SUMPRODUCT((H110:X110="○")*($AE110=1))*0.5+SUMPRODUCT((H110:X110="◎")*($AE110=1)) -> 2.5
B111: =取組ﾁｪｯｸｼｰﾄ改訂版!B111 -> 0 | D111: 製品の長寿命化を指向している | P111: ◎ | R111: ○ | S111: ○ | AE111: 1 | AH111: 2
B112: =取組ﾁｪｯｸｼｰﾄ改訂版!B112 -> 0 | D112: 製品の使用過程でのエネルギー削減を指向している | N112: ◎ | P112: ◎ | R112: ○ | S112: ○ | AE112: 1 | AH112: 3
B113: =取組ﾁｪｯｸｼｰﾄ改訂版!B113 -> 0 | D113: 再生資源の積極的利用に取り組んでいる | P113: ◎ | R113: ○ | S113: ○ | AE113: 1 | AH113: 2
B114: =取組ﾁｪｯｸｼｰﾄ改訂版!B114 -> 0 | D114: 廃棄物の発生抑制のため、モデルチェンジの適正化に取り組んでいる | P114: ◎ | R114: ○ | S114: ○ | AE114: 1 | AH114: 2
B115: =取組ﾁｪｯｸｼｰﾄ改訂版!B115 -> 0 | D115: リサイクルしやすいよう、素材の種類や製品の部品点数の削減や、ネジの数を減らすことなどによる解体しやすい構造を指向している | P115: ◎ | R115: ○ | S115: ○ | AE115: 1 | AH115: 2
B116: =取組ﾁｪｯｸｼｰﾄ改訂版!B116 -> 0 | D116: 製品の包装は可能な限り簡素化している | P116: ◎ | R116: ○ | S116: ○ | AE116: 1 | AH116: 2
B117: =取組ﾁｪｯｸｼｰﾄ改訂版!B117 -> 0 | D117: 自社独自の環境保全型商品等の開発に積極的に取り組んでいる | P117: ◎ | R117: ○ | S117: ○ | AE117: 1 | AH117: 2
B118: =取組ﾁｪｯｸｼｰﾄ改訂版!B118 -> 2 製品の出荷、販売後における環境負荷の削減 | H118: =(SUMPRODUCT((H110:H117="○")*($AC110:$AC117=1))*0.5+SUMPRODUCT((H110:H117="○")*($AC110:$AC117=0.5))*0.25+SUMPRODUCT((H110:H117="○")*($AC110:$AC117=0.1))*0.05+SUMPRODUCT((H110:H117="◎")*($AC110:$AC117=1))+SUMPRODUCT((H110:H117="◎")*($AC110:$AC117=0.5)*0.5)+SUMPRODUCT((H110:H117="◎")*($AC110:$AC117=0.1))*0.1) -> 0 | I118: 0 | J118: 0 | K118: 0 | L118: 0 | M118: 0 | N118: 0 | O118: 0 | P118: 0 | Q118: 0 | R118: =(SUMPRODUCT((R110:R117="○")*($AC110:$AC117=1))*0.5+SUMPRODUCT((R110:R117="○")*($AC110:$AC117=0.5))*0.25+SUMPRODUCT((R110:R117="○")*($AC110:$AC117=0.1))*0.05+SUMPRODUCT((R110:R117="◎")*($AC110:$AC117=1))+SUMPRODUCT((R110:R117="◎")*($AC110:$AC117=0.5)*0.5)+SUMPRODUCT((R110:R117="◎")*($AC110:$AC117=0.1))*0.1) -> 0 | S118: =(SUMPRODUCT((S110:S117="○")*($AC110:$AC117=1))*0.5+SUMPRODUCT((S110:S117="○")*($AC110:$AC117=0.5))*0.25+SUMPRODUCT((S110:S117="○")*($AC110:$AC117=0.1))*0.05+SUMPRODUCT((S110:S117="◎")*($AC110:$AC117=1))+SUMPRODUCT((S110:S117="◎")*($AC110:$AC117=0.5)*0.5)+SUMPRODUCT((S110:S117="◎")*($AC110:$AC117=0.1))*0.1) -> 0 | T118: 0 | U118: 0 | V118: 0 | W118: 0 | X118: 0 | AE118: =SUBTOTAL(9,AE110:AE117) -> 8 | AH118: =SUM(AH110:AH117) -> 17.5 | AI118: =IF(AE118=0,"",SUM(H118:X118)/AH118) -> 0 | AL118: =IFERROR(H118/((SUMPRODUCT((H110:H117="○")*($AC110:$AC117=1))*0.5+SUMPRODUCT((H110:H117="○")*($AC110:$AC117=0.5))*0.5+SUMPRODUCT((H110:H117="○")*($AC110:$AC117=0.1))*0.5+SUMPRODUCT((H110:H117="◎")*($AC110:$AC117=1))+SUMPRODUCT((H110:H117="◎")*($AC110:$AC117=0.5)*0.5)+SUMPRODUCT((H110:H117="◎")*($AC110:$AC117=0.1))*0.1)),0) -> 0 | AM118: =IFERROR(I118/((SUMPRODUCT((I110:I117="○")*($AC110:$AC117=1))*0.5+SUMPRODUCT((I110:I117="○")*($AC110:$AC117=0.5))*0.5+SUMPRODUCT((I110:I117="○")*($AC110:$AC117=0.1))*0.5+SUMPRODUCT((I110:I117="◎")*($AC110:$AC117=1))+SUMPRODUCT((I110:I117="◎")*($AC110:$AC117=0.5)*0.5)+SUMPRODUCT((I110:I117="◎")*($AC110:$AC117=0.1))*0.1)),0) -> 0 | AN118: 0 | AO118: 0 | AP118: 0 | AQ118: 0 | AR118: 0 | AS118: 0 | AT118: 0 | AU118: 0 | AV118: 0 | AW118: 0 | AX118: 0 | AY118: 0 | AZ118: 0 | BA118: 0 | BB118: 0
B119: =取組ﾁｪｯｸｼｰﾄ改訂版!B119 -> 0 | D119: フロン類の回収に取り組んでいる | E119: １２、１３ | T119: ◎ | AD119: =SUM(AC119:AC122) -> 0 | AE119: =COUNTIF(B119,"○")+COUNTIF(B119,"△")+COUNTIF(B119,"×")+COUNTIF(B119,0) -> 1 | AF119: =SUM(AE119:AE122) -> 4 | AG119: =AD119/AF119 -> 0 | AH119: 1
B120: =取組ﾁｪｯｸｼｰﾄ改訂版!B120 -> 0 | D120: フロン類の漏洩防止のための留意点など、製品に関する環境への負荷を低減するための消費者への情報提供を行っている | T120: ◎ | AE120: 1 | AH120: 1
B121: =取組ﾁｪｯｸｼｰﾄ改訂版!B121 -> 0 | D121: 修理部品の長期的な確保に自主的に取り組んでいる | S121: ○ | AE121: 1 | AH121: 0.5
B122: =取組ﾁｪｯｸｼｰﾄ改訂版!B122 -> 0 | D122: 使用後の製品、容器包装等回収、リサイクルに取り組んでいる | R122: ○ | S122: ○ | AE122: 1 | AH122: 1
B123: =取組ﾁｪｯｸｼｰﾄ改訂版!B123 -> 3 製品（プライベートブランド商品を含む）に係る製品アセスメント等 | H123: =(SUMPRODUCT((H119:H122="○")*($AC119:$AC122=1))*0.5+SUMPRODUCT((H119:H122="○")*($AC119:$AC122=0.5))*0.25+SUMPRODUCT((H119:H122="○")*($AC119:$AC122=0.1))*0.05+SUMPRODUCT((H119:H122="◎")*($AC119:$AC122=1))+SUMPRODUCT((H119:H122="◎")*($AC119:$AC122=0.5)*0.5)+SUMPRODUCT((H119:H122="◎")*($AC119:$AC122=0.1))*0.1) -> 0 | I123: 0 | J123: 0 | K123: 0 | L123: 0 | M123: 0 | N123: 0 | O123: 0 | P123: 0 | Q123: 0 | R123: 0 | S123: =(SUMPRODUCT((S119:S122="○")*($AC119:$AC122=1))*0.5+SUMPRODUCT((S119:S122="○")*($AC119:$AC122=0.5))*0.25+SUMPRODUCT((S119:S122="○")*($AC119:$AC122=0.1))*0.05+SUMPRODUCT((S119:S122="◎")*($AC119:$AC122=1))+SUMPRODUCT((S119:S122="◎")*($AC119:$AC122=0.5)*0.5)+SUMPRODUCT((S119:S122="◎")*($AC119:$AC122=0.1))*0.1) -> 0 | T123: =(SUMPRODUCT((T119:T122="○")*($AC119:$AC122=1))*0.5+SUMPRODUCT((T119:T122="○")*($AC119:$AC122=0.5))*0.25+SUMPRODUCT((T119:T122="○")*($AC119:$AC122=0.1))*0.05+SUMPRODUCT((T119:T122="◎")*($AC119:$AC122=1))+SUMPRODUCT((T119:T122="◎")*($AC119:$AC122=0.5)*0.5)+SUMPRODUCT((T119:T122="◎")*($AC119:$AC122=0.1))*0.1) -> 0 | U123: 0 | V123: 0 | W123: 0 | X123: 0 | AE123: =SUBTOTAL(9,AE119:AE122) -> 4 | AH123: =SUM(AH119:AH122) -> 3.5 | AI123: =IF(AE123=0,"",SUM(H123:X123)/AH123) -> 0 | AL123: =IFERROR(H123/((SUMPRODUCT((H119:H122="○")*($AC119:$AC122=1))*0.5+SUMPRODUCT((H119:H122="○")*($AC119:$AC122=0.5))*0.5+SUMPRODUCT((H119:H122="○")*($AC119:$AC122=0.1))*0.5+SUMPRODUCT((H119:H122="◎")*($AC119:$AC122=1))+SUMPRODUCT((H119:H122="◎")*($AC119:$AC122=0.5)*0.5)+SUMPRODUCT((H119:H122="◎")*($AC119:$AC122=0.1))*0.1)),0) -> 0 | AM123: =IFERROR(I123/((SUMPRODUCT((I119:I122="○")*($AC119:$AC122=1))*0.5+SUMPRODUCT((I119:I122="○")*($AC119:$AC122=0.5))*0.5+SUMPRODUCT((I119:I122="○")*($AC119:$AC122=0.1))*0.5+SUMPRODUCT((I119:I122="◎")*($AC119:$AC122=1))+SUMPRODUCT((I119:I122="◎")*($AC119:$AC122=0.5)*0.5)+SUMPRODUCT((I119:I122="◎")*($AC119:$AC122=0.1))*0.1)),0) -> 0 | AN123: 0 | AO123: 0 | AP123: 0 | AQ123: 0 | AR123: 0 | AS123: 0 | AT123: 0 | AU123: 0 | AV123: 0 | AW123: 0 | AX123: 0 | AY123: 0 | AZ123: 0 | BA123: 0 | BB123: 0
B124: =取組ﾁｪｯｸｼｰﾄ改訂版!B124 -> 0 | D124: 自社製品及び社外から購入する部品等について、想定される環境負荷のチェックリストを作成している | E124: １２ | J124: ○ | N124: ○ | R124: ○ | S124: ◎ | AD124: =SUM(AC124:AC128) -> 0 | AE124: =COUNTIF(B124,"○")+COUNTIF(B124,"△")+COUNTIF(B124,"×")+COUNTIF(B124,0) -> 1 | AF124: =SUM(AE124:AE128) -> 5 | AG124: =AD124/AF124 -> 0 | AH124: 2.5
B125: =取組ﾁｪｯｸｼｰﾄ改訂版!B125 -> 0 | D125: 新製品開発、モデルチェンジ等にあたり、環境負荷の測定・記録や製品アセスメント（製品が廃棄物になった場合の適正処理困難性の評価、製品の生産から消費、廃棄に至る各段階での環境負荷の評価（ライフサイクルアセスメント）等を含む）を実施している | J125: ○ | N125: ○ | R125: ○ | S125: ◎ | AE125: 1 | AH125: 2.5
B126: =取組ﾁｪｯｸｼｰﾄ改訂版!B126 -> 0 | D126: 製品の使用時や廃棄時の環境負荷の量をカタログ等に表示している | J126: ○ | N126: ○ | R126: ○ | S126: ◎ | AE126: 1 | AH126: 2.5
B127: =取組ﾁｪｯｸｼｰﾄ改訂版!B127 -> 0 | D127: 既存製品についても、計画的に製品アセスメント等を実施している | J127: ○ | N127: ○ | R127: ○ | S127: ◎ | AE127: 1 | AH127: 2.5
B128: =取組ﾁｪｯｸｼｰﾄ改訂版!B128 -> 0 | D128: 外部から製品の環境負荷に関するデータの提供の依頼があった場合、協力している | J128: ○ | N128: ○ | R128: ○ | S128: ◎ | AE128: 1 | AH128: 2.5
B129: =取組ﾁｪｯｸｼｰﾄ改訂版!B129 -> 4 環境保全型商品等の販売及び消費者に対する情報提供 | H129: =(SUMPRODUCT((H124:H128="○")*($AC124:$AC128=1))*0.5+SUMPRODUCT((H124:H128="○")*($AC124:$AC128=0.5))*0.25+SUMPRODUCT((H124:H128="○")*($AC124:$AC128=0.1))*0.05+SUMPRODUCT((H124:H128="◎")*($AC124:$AC128=1))+SUMPRODUCT((H124:H128="◎")*($AC124:$AC128=0.5)*0.5)+SUMPRODUCT((H124:H128="◎")*($AC124:$AC128=0.1))*0.1) -> 0 | I129: =(SUMPRODUCT((I124:I128="○")*($AC124:$AC128=1))*0.5+SUMPRODUCT((I124:I128="○")*($AC124:$AC128=0.5))*0.25+SUMPRODUCT((I124:I128="○")*($AC124:$AC128=0.1))*0.05+SUMPRODUCT((I124:I128="◎")*($AC124:$AC128=1))+SUMPRODUCT((I124:I128="◎")*($AC124:$AC128=0.5)*0.5)+SUMPRODUCT((I124:I128="◎")*($AC124:$AC128=0.1))*0.1) -> 0 | J129: =(SUMPRODUCT((J124:J128="○")*($AC124:$AC128=1))*0.5+SUMPRODUCT((J124:J128="○")*($AC124:$AC128=0.5))*0.25+SUMPRODUCT((J124:J128="○")*($AC124:$AC128=0.1))*0.05+SUMPRODUCT((J124:J128="◎")*($AC124:$AC128=1))+SUMPRODUCT((J124:J128="◎")*($AC124:$AC128=0.5)*0.5)+SUMPRODUCT((J124:J128="◎")*($AC124:$AC128=0.1))*0.1) -> 0 | K129: =(SUMPRODUCT((K124:K128="○")*($AC124:$AC128=1))*0.5+SUMPRODUCT((K124:K128="○")*($AC124:$AC128=0.5))*0.25+SUMPRODUCT((K124:K128="○")*($AC124:$AC128=0.1))*0.05+SUMPRODUCT((K124:K128="◎")*($AC124:$AC128=1))+SUMPRODUCT((K124:K128="◎")*($AC124:$AC128=0.5)*0.5)+SUMPRODUCT((K124:K128="◎")*($AC124:$AC128=0.1))*0.1) -> 0 | L129: =(SUMPRODUCT((L124:L128="○")*($AC124:$AC128=1))*0.5+SUMPRODUCT((L124:L128="○")*($AC124:$AC128=0.5))*0.25+SUMPRODUCT((L124:L128="○")*($AC124:$AC128=0.1))*0.05+SUMPRODUCT((L124:L128="◎")*($AC124:$AC128=1))+SUMPRODUCT((L124:L128="◎")*($AC124:$AC128=0.5)*0.5)+SUMPRODUCT((L124:L128="◎")*($AC124:$AC128=0.1))*0.1) -> 0 | M129: =(SUMPRODUCT((M124:M128="○")*($AC124:$AC128=1))*0.5+SUMPRODUCT((M124:M128="○")*($AC124:$AC128=0.5))*0.25+SUMPRODUCT((M124:M128="○")*($AC124:$AC128=0.1))*0.05+SUMPRODUCT((M124:M128="◎")*($AC124:$AC128=1))+SUMPRODUCT((M124:M128="◎")*($AC124:$AC128=0.5)*0.5)+SUMPRODUCT((M124:M128="◎")*($AC124:$AC128=0.1))*0.1) -> 0 | N129: =(SUMPRODUCT((N124:N128="○")*($AC124:$AC128=1))*0.5+SUMPRODUCT((N124:N128="○")*($AC124:$AC128=0.5))*0.25+SUMPRODUCT((N124:N128="○")*($AC124:$AC128=0.1))*0.05+SUMPRODUCT((N124:N128="◎")*($AC124:$AC128=1))+SUMPRODUCT((N124:N128="◎")*($AC124:$AC128=0.5)*0.5)+SUMPRODUCT((N124:N128="◎")*($AC124:$AC128=0.1))*0.1) -> 0 | O129: =(SUMPRODUCT((O124:O128="○")*($AC124:$AC128=1))*0.5+SUMPRODUCT((O124:O128="○")*($AC124:$AC128=0.5))*0.25+SUMPRODUCT((O124:O128="○")*($AC124:$AC128=0.1))*0.05+SUMPRODUCT((O124:O128="◎")*($AC124:$AC128=1))+SUMPRODUCT((O124:O128="◎")*($AC124:$AC128=0.5)*0.5)+SUMPRODUCT((O124:O128="◎")*($AC124:$AC128=0.1))*0.1) -> 0 | P129: =(SUMPRODUCT((P124:P128="○")*($AC124:$AC128=1))*0.5+SUMPRODUCT((P124:P128="○")*($AC124:$AC128=0.5))*0.25+SUMPRODUCT((P124:P128="○")*($AC124:$AC128=0.1))*0.05+SUMPRODUCT((P124:P128="◎")*($AC124:$AC128=1))+SUMPRODUCT((P124:P128="◎")*($AC124:$AC128=0.5)*0.5)+SUMPRODUCT((P124:P128="◎")*($AC124:$AC128=0.1))*0.1) -> 0 | Q129: =(SUMPRODUCT((Q124:Q128="○")*($AC124:$AC128=1))*0.5+SUMPRODUCT((Q124:Q128="○")*($AC124:$AC128=0.5))*0.25+SUMPRODUCT((Q124:Q128="○")*($AC124:$AC128=0.1))*0.05+SUMPRODUCT((Q124:Q128="◎")*($AC124:$AC128=1))+SUMPRODUCT((Q124:Q128="◎")*($AC124:$AC128=0.5)*0.5)+SUMPRODUCT((Q124:Q128="◎")*($AC124:$AC128=0.1))*0.1) -> 0 | R129: =(SUMPRODUCT((R124:R128="○")*($AC124:$AC128=1))*0.5+SUMPRODUCT((R124:R128="○")*($AC124:$AC128=0.5))*0.25+SUMPRODUCT((R124:R128="○")*($AC124:$AC128=0.1))*0.05+SUMPRODUCT((R124:R128="◎")*($AC124:$AC128=1))+SUMPRODUCT((R124:R128="◎")*($AC124:$AC128=0.5)*0.5)+SUMPRODUCT((R124:R128="◎")*($AC124:$AC128=0.1))*0.1) -> 0 | S129: =(SUMPRODUCT((S124:S128="○")*($AC124:$AC128=1))*0.5+SUMPRODUCT((S124:S128="○")*($AC124:$AC128=0.5))*0.25+SUMPRODUCT((S124:S128="○")*($AC124:$AC128=0.1))*0.05+SUMPRODUCT((S124:S128="◎")*($AC124:$AC128=1))+SUMPRODUCT((S124:S128="◎")*($AC124:$AC128=0.5)*0.5)+SUMPRODUCT((S124:S128="◎")*($AC124:$AC128=0.1))*0.1) -> 0 | T129: =(SUMPRODUCT((T124:T128="○")*($AC124:$AC128=1))*0.5+SUMPRODUCT((T124:T128="○")*($AC124:$AC128=0.5))*0.25+SUMPRODUCT((T124:T128="○")*($AC124:$AC128=0.1))*0.05+SUMPRODUCT((T124:T128="◎")*($AC124:$AC128=1))+SUMPRODUCT((T124:T128="◎")*($AC124:$AC128=0.5)*0.5)+SUMPRODUCT((T124:T128="◎")*($AC124:$AC128=0.1))*0.1) -> 0 | U129: =(SUMPRODUCT((U124:U128="○")*($AC124:$AC128=1))*0.5+SUMPRODUCT((U124:U128="○")*($AC124:$AC128=0.5))*0.25+SUMPRODUCT((U124:U128="○")*($AC124:$AC128=0.1))*0.05+SUMPRODUCT((U124:U128="◎")*($AC124:$AC128=1))+SUMPRODUCT((U124:U128="◎")*($AC124:$AC128=0.5)*0.5)+SUMPRODUCT((U124:U128="◎")*($AC124:$AC128=0.1))*0.1) -> 0 | V129: =(SUMPRODUCT((V124:V128="○")*($AC124:$AC128=1))*0.5+SUMPRODUCT((V124:V128="○")*($AC124:$AC128=0.5))*0.25+SUMPRODUCT((V124:V128="○")*($AC124:$AC128=0.1))*0.05+SUMPRODUCT((V124:V128="◎")*($AC124:$AC128=1))+SUMPRODUCT((V124:V128="◎")*($AC124:$AC128=0.5)*0.5)+SUMPRODUCT((V124:V128="◎")*($AC124:$AC128=0.1))*0.1) -> 0 | W129: =(SUMPRODUCT((W124:W128="○")*($AC124:$AC128=1))*0.5+SUMPRODUCT((W124:W128="○")*($AC124:$AC128=0.5))*0.25+SUMPRODUCT((W124:W128="○")*($AC124:$AC128=0.1))*0.05+SUMPRODUCT((W124:W128="◎")*($AC124:$AC128=1))+SUMPRODUCT((W124:W128="◎")*($AC124:$AC128=0.5)*0.5)+SUMPRODUCT((W124:W128="◎")*($AC124:$AC128=0.1))*0.1) -> 0 | X129: =(SUMPRODUCT((X124:X128="○")*($AC124:$AC128=1))*0.5+SUMPRODUCT((X124:X128="○")*($AC124:$AC128=0.5))*0.25+SUMPRODUCT((X124:X128="○")*($AC124:$AC128=0.1))*0.05+SUMPRODUCT((X124:X128="◎")*($AC124:$AC128=1))+SUMPRODUCT((X124:X128="◎")*($AC124:$AC128=0.5)*0.5)+SUMPRODUCT((X124:X128="◎")*($AC124:$AC128=0.1))*0.1) -> 0 | AE129: =SUBTOTAL(9,AE124:AE128) -> 5 | AH129: =SUM(AH124:AH128) -> 12.5 | AI129: =IF(AE129=0,"",SUM(H129:X129)/AH129) -> 0 | AL129: =IFERROR(H129/((SUMPRODUCT((H124:H128="○")*($AC124:$AC128=1))*0.5+SUMPRODUCT((H124:H128="○")*($AC124:$AC128=0.5))*0.5+SUMPRODUCT((H124:H128="○")*($AC124:$AC128=0.1))*0.5+SUMPRODUCT((H124:H128="◎")*($AC124:$AC128=1))+SUMPRODUCT((H124:H128="◎")*($AC124:$AC128=0.5)*0.5)+SUMPRODUCT((H124:H128="◎")*($AC124:$AC128=0.1))*0.1)),0) -> 0 | AM129: =IFERROR(I129/((SUMPRODUCT((I124:I128="○")*($AC124:$AC128=1))*0.5+SUMPRODUCT((I124:I128="○")*($AC124:$AC128=0.5))*0.5+SUMPRODUCT((I124:I128="○")*($AC124:$AC128=0.1))*0.5+SUMPRODUCT((I124:I128="◎")*($AC124:$AC128=1))+SUMPRODUCT((I124:I128="◎")*($AC124:$AC128=0.5)*0.5)+SUMPRODUCT((I124:I128="◎")*($AC124:$AC128=0.1))*0.1)),0) -> 0 | AN129: =IFERROR(J129/((SUMPRODUCT((J124:J128="○")*($AC124:$AC128=1))*0.5+SUMPRODUCT((J124:J128="○")*($AC124:$AC128=0.5))*0.5+SUMPRODUCT((J124:J128="○")*($AC124:$AC128=0.1))*0.5+SUMPRODUCT((J124:J128="◎")*($AC124:$AC128=1))+SUMPRODUCT((J124:J128="◎")*($AC124:$AC128=0.5)*0.5)+SUMPRODUCT((J124:J128="◎")*($AC124:$AC128=0.1))*0.1)),0) -> 0 | AO129: =IFERROR(K129/((SUMPRODUCT((K124:K128="○")*($AC124:$AC128=1))*0.5+SUMPRODUCT((K124:K128="○")*($AC124:$AC128=0.5))*0.5+SUMPRODUCT((K124:K128="○")*($AC124:$AC128=0.1))*0.5+SUMPRODUCT((K124:K128="◎")*($AC124:$AC128=1))+SUMPRODUCT((K124:K128="◎")*($AC124:$AC128=0.5)*0.5)+SUMPRODUCT((K124:K128="◎")*($AC124:$AC128=0.1))*0.1)),0) -> 0 | AP129: =IFERROR(L129/((SUMPRODUCT((L124:L128="○")*($AC124:$AC128=1))*0.5+SUMPRODUCT((L124:L128="○")*($AC124:$AC128=0.5))*0.5+SUMPRODUCT((L124:L128="○")*($AC124:$AC128=0.1))*0.5+SUMPRODUCT((L124:L128="◎")*($AC124:$AC128=1))+SUMPRODUCT((L124:L128="◎")*($AC124:$AC128=0.5)*0.5)+SUMPRODUCT((L124:L128="◎")*($AC124:$AC128=0.1))*0.1)),0) -> 0 | AQ129: =IFERROR(M129/((SUMPRODUCT((M124:M128="○")*($AC124:$AC128=1))*0.5+SUMPRODUCT((M124:M128="○")*($AC124:$AC128=0.5))*0.5+SUMPRODUCT((M124:M128="○")*($AC124:$AC128=0.1))*0.5+SUMPRODUCT((M124:M128="◎")*($AC124:$AC128=1))+SUMPRODUCT((M124:M128="◎")*($AC124:$AC128=0.5)*0.5)+SUMPRODUCT((M124:M128="◎")*($AC124:$AC128=0.1))*0.1)),0) -> 0 | AR129: =IFERROR(N129/((SUMPRODUCT((N124:N128="○")*($AC124:$AC128=1))*0.5+SUMPRODUCT((N124:N128="○")*($AC124:$AC128=0.5))*0.5+SUMPRODUCT((N124:N128="○")*($AC124:$AC128=0.1))*0.5+SUMPRODUCT((N124:N128="◎")*($AC124:$AC128=1))+SUMPRODUCT((N124:N128="◎")*($AC124:$AC128=0.5)*0.5)+SUMPRODUCT((N124:N128="◎")*($AC124:$AC128=0.1))*0.1)),0) -> 0 | AS129: =IFERROR(O129/((SUMPRODUCT((O124:O128="○")*($AC124:$AC128=1))*0.5+SUMPRODUCT((O124:O128="○")*($AC124:$AC128=0.5))*0.5+SUMPRODUCT((O124:O128="○")*($AC124:$AC128=0.1))*0.5+SUMPRODUCT((O124:O128="◎")*($AC124:$AC128=1))+SUMPRODUCT((O124:O128="◎")*($AC124:$AC128=0.5)*0.5)+SUMPRODUCT((O124:O128="◎")*($AC124:$AC128=0.1))*0.1)),0) -> 0 | AT129: =IFERROR(P129/((SUMPRODUCT((P124:P128="○")*($AC124:$AC128=1))*0.5+SUMPRODUCT((P124:P128="○")*($AC124:$AC128=0.5))*0.5+SUMPRODUCT((P124:P128="○")*($AC124:$AC128=0.1))*0.5+SUMPRODUCT((P124:P128="◎")*($AC124:$AC128=1))+SUMPRODUCT((P124:P128="◎")*($AC124:$AC128=0.5)*0.5)+SUMPRODUCT((P124:P128="◎")*($AC124:$AC128=0.1))*0.1)),0) -> 0 | AU129: =IFERROR(Q129/((SUMPRODUCT((Q124:Q128="○")*($AC124:$AC128=1))*0.5+SUMPRODUCT((Q124:Q128="○")*($AC124:$AC128=0.5))*0.5+SUMPRODUCT((Q124:Q128="○")*($AC124:$AC128=0.1))*0.5+SUMPRODUCT((Q124:Q128="◎")*($AC124:$AC128=1))+SUMPRODUCT((Q124:Q128="◎")*($AC124:$AC128=0.5)*0.5)+SUMPRODUCT((Q124:Q128="◎")*($AC124:$AC128=0.1))*0.1)),0) -> 0 | AV129: =IFERROR(R129/((SUMPRODUCT((R124:R128="○")*($AC124:$AC128=1))*0.5+SUMPRODUCT((R124:R128="○")*($AC124:$AC128=0.5))*0.5+SUMPRODUCT((R124:R128="○")*($AC124:$AC128=0.1))*0.5+SUMPRODUCT((R124:R128="◎")*($AC124:$AC128=1))+SUMPRODUCT((R124:R128="◎")*($AC124:$AC128=0.5)*0.5)+SUMPRODUCT((R124:R128="◎")*($AC124:$AC128=0.1))*0.1)),0) -> 0 | AW129: =IFERROR(S129/((SUMPRODUCT((S124:S128="○")*($AC124:$AC128=1))*0.5+SUMPRODUCT((S124:S128="○")*($AC124:$AC128=0.5))*0.5+SUMPRODUCT((S124:S128="○")*($AC124:$AC128=0.1))*0.5+SUMPRODUCT((S124:S128="◎")*($AC124:$AC128=1))+SUMPRODUCT((S124:S128="◎")*($AC124:$AC128=0.5)*0.5)+SUMPRODUCT((S124:S128="◎")*($AC124:$AC128=0.1))*0.1)),0) -> 0 | AX129: =IFERROR(T129/((SUMPRODUCT((T124:T128="○")*($AC124:$AC128=1))*0.5+SUMPRODUCT((T124:T128="○")*($AC124:$AC128=0.5))*0.5+SUMPRODUCT((T124:T128="○")*($AC124:$AC128=0.1))*0.5+SUMPRODUCT((T124:T128="◎")*($AC124:$AC128=1))+SUMPRODUCT((T124:T128="◎")*($AC124:$AC128=0.5)*0.5)+SUMPRODUCT((T124:T128="◎")*($AC124:$AC128=0.1))*0.1)),0) -> 0 | AY129: =IFERROR(U129/((SUMPRODUCT((U124:U128="○")*($AC124:$AC128=1))*0.5+SUMPRODUCT((U124:U128="○")*($AC124:$AC128=0.5))*0.5+SUMPRODUCT((U124:U128="○")*($AC124:$AC128=0.1))*0.5+SUMPRODUCT((U124:U128="◎")*($AC124:$AC128=1))+SUMPRODUCT((U124:U128="◎")*($AC124:$AC128=0.5)*0.5)+SUMPRODUCT((U124:U128="◎")*($AC124:$AC128=0.1))*0.1)),0) -> 0 | AZ129: =IFERROR(V129/((SUMPRODUCT((V124:V128="○")*($AC124:$AC128=1))*0.5+SUMPRODUCT((V124:V128="○")*($AC124:$AC128=0.5))*0.5+SUMPRODUCT((V124:V128="○")*($AC124:$AC128=0.1))*0.5+SUMPRODUCT((V124:V128="◎")*($AC124:$AC128=1))+SUMPRODUCT((V124:V128="◎")*($AC124:$AC128=0.5)*0.5)+SUMPRODUCT((V124:V128="◎")*($AC124:$AC128=0.1))*0.1)),0) -> 0 | BA129: =IFERROR(W129/((SUMPRODUCT((W124:W128="○")*($AC124:$AC128=1))*0.5+SUMPRODUCT((W124:W128="○")*($AC124:$AC128=0.5))*0.5+SUMPRODUCT((W124:W128="○")*($AC124:$AC128=0.1))*0.5+SUMPRODUCT((W124:W128="◎")*($AC124:$AC128=1))+SUMPRODUCT((W124:W128="◎")*($AC124:$AC128=0.5)*0.5)+SUMPRODUCT((W124:W128="◎")*($AC124:$AC128=0.1))*0.1)),0) -> 0 | BB129: =IFERROR(X129/((SUMPRODUCT((X124:X128="○")*($AC124:$AC128=1))*0.5+SUMPRODUCT((X124:X128="○")*($AC124:$AC128=0.5))*0.5+SUMPRODUCT((X124:X128="○")*($AC124:$AC128=0.1))*0.5+SUMPRODUCT((X124:X128="◎")*($AC124:$AC128=1))+SUMPRODUCT((X124:X128="◎")*($AC124:$AC128=0.5)*0.5)+SUMPRODUCT((X124:X128="◎")*($AC124:$AC128=0.1))*0.1)),0) -> 0
B130: =取組ﾁｪｯｸｼｰﾄ改訂版!B130 -> 0 | D130: 再生資源を使用した商品、再生可能な商品、繰り返し使える商品、省資源・省エネルギー型の商品、容器包装を簡素化した商品、エコマーク製品等を重点的に販売している | E130: ３ | R130: ○ | S130: ◎ | AD130: =SUM(AC130:AC133) -> 0 | AE130: =COUNTIF(B130,"○")+COUNTIF(B130,"△")+COUNTIF(B130,"×")+COUNTIF(B130,0) -> 1 | AF130: =SUM(AE130:AE133) -> 4 | AG130: =AD130/AF130 -> 0 | AH130: 1.5
B131: =取組ﾁｪｯｸｼｰﾄ改訂版!B131 -> 0 | D131: 上記商品の販売目標を定め、販売促進に積極的に取り組んでいる | R131: ○ | S131: ◎ | AE131: 1 | AH131: 1.5
B132: =取組ﾁｪｯｸｼｰﾄ改訂版!B132 -> 0 | D132: 販売の際に環境保全型製品の表示、製品アセスメントの結果の表示等を行っている | J132: ○ | R132: ○ | S132: ◎ | AE132: 1 | AH132: 2
B133: =取組ﾁｪｯｸｼｰﾄ改訂版!B133 -> 0 | D133: 消費者等に環境保全型商品に関する情報を積極的に提供している | R133: ○ | S133: ◎ | AE133: 1 | AH133: 1.5
C134: チェック欄数：２１ | H134: =(SUMPRODUCT((H130:H133="○")*($AC130:$AC133=1))*0.5+SUMPRODUCT((H130:H133="○")*($AC130:$AC133=0.5))*0.25+SUMPRODUCT((H130:H133="○")*($AC130:$AC133=0.1))*0.05+SUMPRODUCT((H130:H133="◎")*($AC130:$AC133=1))+SUMPRODUCT((H130:H133="◎")*($AC130:$AC133=0.5)*0.5)+SUMPRODUCT((H130:H133="◎")*($AC130:$AC133=0.1))*0.1) -> 0 | I134: =(SUMPRODUCT((I130:I133="○")*($AC130:$AC133=1))*0.5+SUMPRODUCT((I130:I133="○")*($AC130:$AC133=0.5))*0.25+SUMPRODUCT((I130:I133="○")*($AC130:$AC133=0.1))*0.05+SUMPRODUCT((I130:I133="◎")*($AC130:$AC133=1))+SUMPRODUCT((I130:I133="◎")*($AC130:$AC133=0.5)*0.5)+SUMPRODUCT((I130:I133="◎")*($AC130:$AC133=0.1))*0.1) -> 0 | J134: =(SUMPRODUCT((J130:J133="○")*($AC130:$AC133=1))*0.5+SUMPRODUCT((J130:J133="○")*($AC130:$AC133=0.5))*0.25+SUMPRODUCT((J130:J133="○")*($AC130:$AC133=0.1))*0.05+SUMPRODUCT((J130:J133="◎")*($AC130:$AC133=1))+SUMPRODUCT((J130:J133="◎")*($AC130:$AC133=0.5)*0.5)+SUMPRODUCT((J130:J133="◎")*($AC130:$AC133=0.1))*0.1) -> 0 | K134: =(SUMPRODUCT((K130:K133="○")*($AC130:$AC133=1))*0.5+SUMPRODUCT((K130:K133="○")*($AC130:$AC133=0.5))*0.25+SUMPRODUCT((K130:K133="○")*($AC130:$AC133=0.1))*0.05+SUMPRODUCT((K130:K133="◎")*($AC130:$AC133=1))+SUMPRODUCT((K130:K133="◎")*($AC130:$AC133=0.5)*0.5)+SUMPRODUCT((K130:K133="◎")*($AC130:$AC133=0.1))*0.1) -> 0 | L134: =(SUMPRODUCT((L130:L133="○")*($AC130:$AC133=1))*0.5+SUMPRODUCT((L130:L133="○")*($AC130:$AC133=0.5))*0.25+SUMPRODUCT((L130:L133="○")*($AC130:$AC133=0.1))*0.05+SUMPRODUCT((L130:L133="◎")*($AC130:$AC133=1))+SUMPRODUCT((L130:L133="◎")*($AC130:$AC133=0.5)*0.5)+SUMPRODUCT((L130:L133="◎")*($AC130:$AC133=0.1))*0.1) -> 0 | M134: =(SUMPRODUCT((M130:M133="○")*($AC130:$AC133=1))*0.5+SUMPRODUCT((M130:M133="○")*($AC130:$AC133=0.5))*0.25+SUMPRODUCT((M130:M133="○")*($AC130:$AC133=0.1))*0.05+SUMPRODUCT((M130:M133="◎")*($AC130:$AC133=1))+SUMPRODUCT((M130:M133="◎")*($AC130:$AC133=0.5)*0.5)+SUMPRODUCT((M130:M133="◎")*($AC130:$AC133=0.1))*0.1) -> 0 | N134: =(SUMPRODUCT((N130:N133="○")*($AC130:$AC133=1))*0.5+SUMPRODUCT((N130:N133="○")*($AC130:$AC133=0.5))*0.25+SUMPRODUCT((N130:N133="○")*($AC130:$AC133=0.1))*0.05+SUMPRODUCT((N130:N133="◎")*($AC130:$AC133=1))+SUMPRODUCT((N130:N133="◎")*($AC130:$AC133=0.5)*0.5)+SUMPRODUCT((N130:N133="◎")*($AC130:$AC133=0.1))*0.1) -> 0 | O134: =(SUMPRODUCT((O130:O133="○")*($AC130:$AC133=1))*0.5+SUMPRODUCT((O130:O133="○")*($AC130:$AC133=0.5))*0.25+SUMPRODUCT((O130:O133="○")*($AC130:$AC133=0.1))*0.05+SUMPRODUCT((O130:O133="◎")*($AC130:$AC133=1))+SUMPRODUCT((O130:O133="◎")*($AC130:$AC133=0.5)*0.5)+SUMPRODUCT((O130:O133="◎")*($AC130:$AC133=0.1))*0.1) -> 0 | P134: =(SUMPRODUCT((P130:P133="○")*($AC130:$AC133=1))*0.5+SUMPRODUCT((P130:P133="○")*($AC130:$AC133=0.5))*0.25+SUMPRODUCT((P130:P133="○")*($AC130:$AC133=0.1))*0.05+SUMPRODUCT((P130:P133="◎")*($AC130:$AC133=1))+SUMPRODUCT((P130:P133="◎")*($AC130:$AC133=0.5)*0.5)+SUMPRODUCT((P130:P133="◎")*($AC130:$AC133=0.1))*0.1) -> 0 | Q134: =(SUMPRODUCT((Q130:Q133="○")*($AC130:$AC133=1))*0.5+SUMPRODUCT((Q130:Q133="○")*($AC130:$AC133=0.5))*0.25+SUMPRODUCT((Q130:Q133="○")*($AC130:$AC133=0.1))*0.05+SUMPRODUCT((Q130:Q133="◎")*($AC130:$AC133=1))+SUMPRODUCT((Q130:Q133="◎")*($AC130:$AC133=0.5)*0.5)+SUMPRODUCT((Q130:Q133="◎")*($AC130:$AC133=0.1))*0.1) -> 0 | R134: =(SUMPRODUCT((R130:R133="○")*($AC130:$AC133=1))*0.5+SUMPRODUCT((R130:R133="○")*($AC130:$AC133=0.5))*0.25+SUMPRODUCT((R130:R133="○")*($AC130:$AC133=0.1))*0.05+SUMPRODUCT((R130:R133="◎")*($AC130:$AC133=1))+SUMPRODUCT((R130:R133="◎")*($AC130:$AC133=0.5)*0.5)+SUMPRODUCT((R130:R133="◎")*($AC130:$AC133=0.1))*0.1) -> 0 | S134: =(SUMPRODUCT((S130:S133="○")*($AC130:$AC133=1))*0.5+SUMPRODUCT((S130:S133="○")*($AC130:$AC133=0.5))*0.25+SUMPRODUCT((S130:S133="○")*($AC130:$AC133=0.1))*0.05+SUMPRODUCT((S130:S133="◎")*($AC130:$AC133=1))+SUMPRODUCT((S130:S133="◎")*($AC130:$AC133=0.5)*0.5)+SUMPRODUCT((S130:S133="◎")*($AC130:$AC133=0.1))*0.1) -> 0 | T134: =(SUMPRODUCT((T130:T133="○")*($AC130:$AC133=1))*0.5+SUMPRODUCT((T130:T133="○")*($AC130:$AC133=0.5))*0.25+SUMPRODUCT((T130:T133="○")*($AC130:$AC133=0.1))*0.05+SUMPRODUCT((T130:T133="◎")*($AC130:$AC133=1))+SUMPRODUCT((T130:T133="◎")*($AC130:$AC133=0.5)*0.5)+SUMPRODUCT((T130:T133="◎")*($AC130:$AC133=0.1))*0.1) -> 0 | U134: =(SUMPRODUCT((U130:U133="○")*($AC130:$AC133=1))*0.5+SUMPRODUCT((U130:U133="○")*($AC130:$AC133=0.5))*0.25+SUMPRODUCT((U130:U133="○")*($AC130:$AC133=0.1))*0.05+SUMPRODUCT((U130:U133="◎")*($AC130:$AC133=1))+SUMPRODUCT((U130:U133="◎")*($AC130:$AC133=0.5)*0.5)+SUMPRODUCT((U130:U133="◎")*($AC130:$AC133=0.1))*0.1) -> 0 | V134: =(SUMPRODUCT((V130:V133="○")*($AC130:$AC133=1))*0.5+SUMPRODUCT((V130:V133="○")*($AC130:$AC133=0.5))*0.25+SUMPRODUCT((V130:V133="○")*($AC130:$AC133=0.1))*0.05+SUMPRODUCT((V130:V133="◎")*($AC130:$AC133=1))+SUMPRODUCT((V130:V133="◎")*($AC130:$AC133=0.5)*0.5)+SUMPRODUCT((V130:V133="◎")*($AC130:$AC133=0.1))*0.1) -> 0 | W134: =(SUMPRODUCT((W130:W133="○")*($AC130:$AC133=1))*0.5+SUMPRODUCT((W130:W133="○")*($AC130:$AC133=0.5))*0.25+SUMPRODUCT((W130:W133="○")*($AC130:$AC133=0.1))*0.05+SUMPRODUCT((W130:W133="◎")*($AC130:$AC133=1))+SUMPRODUCT((W130:W133="◎")*($AC130:$AC133=0.5)*0.5)+SUMPRODUCT((W130:W133="◎")*($AC130:$AC133=0.1))*0.1) -> 0 | X134: =(SUMPRODUCT((X130:X133="○")*($AC130:$AC133=1))*0.5+SUMPRODUCT((X130:X133="○")*($AC130:$AC133=0.5))*0.25+SUMPRODUCT((X130:X133="○")*($AC130:$AC133=0.1))*0.05+SUMPRODUCT((X130:X133="◎")*($AC130:$AC133=1))+SUMPRODUCT((X130:X133="◎")*($AC130:$AC133=0.5)*0.5)+SUMPRODUCT((X130:X133="◎")*($AC130:$AC133=0.1))*0.1) -> 0 | AD134: =SUM(AD110:AD133) -> 0 | AE134: =SUBTOTAL(9,AE130:AE133) -> 4 | AF134: =SUM(AF110:AF133) -> 21 | AG134: =AD134/AF134 -> 0 | AH134: =SUM(AH130:AH133) -> 6.5 | AI134: =IF(AE134=0,"",SUM(H134:X134)/AH134) -> 0 | AL134: =IFERROR(H134/((SUMPRODUCT((H130:H133="○")*($AC130:$AC133=1))*0.5+SUMPRODUCT((H130:H133="○")*($AC130:$AC133=0.5))*0.5+SUMPRODUCT((H130:H133="○")*($AC130:$AC133=0.1))*0.5+SUMPRODUCT((H130:H133="◎")*($AC130:$AC133=1))+SUMPRODUCT((H130:H133="◎")*($AC130:$AC133=0.5)*0.5)+SUMPRODUCT((H130:H133="◎")*($AC130:$AC133=0.1))*0.1)),0) -> 0 | AM134: =IFERROR(I134/((SUMPRODUCT((I130:I133="○")*($AC130:$AC133=1))*0.5+SUMPRODUCT((I130:I133="○")*($AC130:$AC133=0.5))*0.5+SUMPRODUCT((I130:I133="○")*($AC130:$AC133=0.1))*0.5+SUMPRODUCT((I130:I133="◎")*($AC130:$AC133=1))+SUMPRODUCT((I130:I133="◎")*($AC130:$AC133=0.5)*0.5)+SUMPRODUCT((I130:I133="◎")*($AC130:$AC133=0.1))*0.1)),0) -> 0 | AN134: =IFERROR(J134/((SUMPRODUCT((J130:J133="○")*($AC130:$AC133=1))*0.5+SUMPRODUCT((J130:J133="○")*($AC130:$AC133=0.5))*0.5+SUMPRODUCT((J130:J133="○")*($AC130:$AC133=0.1))*0.5+SUMPRODUCT((J130:J133="◎")*($AC130:$AC133=1))+SUMPRODUCT((J130:J133="◎")*($AC130:$AC133=0.5)*0.5)+SUMPRODUCT((J130:J133="◎")*($AC130:$AC133=0.1))*0.1)),0) -> 0 | AO134: =IFERROR(K134/((SUMPRODUCT((K130:K133="○")*($AC130:$AC133=1))*0.5+SUMPRODUCT((K130:K133="○")*($AC130:$AC133=0.5))*0.5+SUMPRODUCT((K130:K133="○")*($AC130:$AC133=0.1))*0.5+SUMPRODUCT((K130:K133="◎")*($AC130:$AC133=1))+SUMPRODUCT((K130:K133="◎")*($AC130:$AC133=0.5)*0.5)+SUMPRODUCT((K130:K133="◎")*($AC130:$AC133=0.1))*0.1)),0) -> 0 | AP134: =IFERROR(L134/((SUMPRODUCT((L130:L133="○")*($AC130:$AC133=1))*0.5+SUMPRODUCT((L130:L133="○")*($AC130:$AC133=0.5))*0.5+SUMPRODUCT((L130:L133="○")*($AC130:$AC133=0.1))*0.5+SUMPRODUCT((L130:L133="◎")*($AC130:$AC133=1))+SUMPRODUCT((L130:L133="◎")*($AC130:$AC133=0.5)*0.5)+SUMPRODUCT((L130:L133="◎")*($AC130:$AC133=0.1))*0.1)),0) -> 0 | AQ134: =IFERROR(M134/((SUMPRODUCT((M130:M133="○")*($AC130:$AC133=1))*0.5+SUMPRODUCT((M130:M133="○")*($AC130:$AC133=0.5))*0.5+SUMPRODUCT((M130:M133="○")*($AC130:$AC133=0.1))*0.5+SUMPRODUCT((M130:M133="◎")*($AC130:$AC133=1))+SUMPRODUCT((M130:M133="◎")*($AC130:$AC133=0.5)*0.5)+SUMPRODUCT((M130:M133="◎")*($AC130:$AC133=0.1))*0.1)),0) -> 0 | AR134: =IFERROR(N134/((SUMPRODUCT((N130:N133="○")*($AC130:$AC133=1))*0.5+SUMPRODUCT((N130:N133="○")*($AC130:$AC133=0.5))*0.5+SUMPRODUCT((N130:N133="○")*($AC130:$AC133=0.1))*0.5+SUMPRODUCT((N130:N133="◎")*($AC130:$AC133=1))+SUMPRODUCT((N130:N133="◎")*($AC130:$AC133=0.5)*0.5)+SUMPRODUCT((N130:N133="◎")*($AC130:$AC133=0.1))*0.1)),0) -> 0 | AS134: =IFERROR(O134/((SUMPRODUCT((O130:O133="○")*($AC130:$AC133=1))*0.5+SUMPRODUCT((O130:O133="○")*($AC130:$AC133=0.5))*0.5+SUMPRODUCT((O130:O133="○")*($AC130:$AC133=0.1))*0.5+SUMPRODUCT((O130:O133="◎")*($AC130:$AC133=1))+SUMPRODUCT((O130:O133="◎")*($AC130:$AC133=0.5)*0.5)+SUMPRODUCT((O130:O133="◎")*($AC130:$AC133=0.1))*0.1)),0) -> 0 | AT134: =IFERROR(P134/((SUMPRODUCT((P130:P133="○")*($AC130:$AC133=1))*0.5+SUMPRODUCT((P130:P133="○")*($AC130:$AC133=0.5))*0.5+SUMPRODUCT((P130:P133="○")*($AC130:$AC133=0.1))*0.5+SUMPRODUCT((P130:P133="◎")*($AC130:$AC133=1))+SUMPRODUCT((P130:P133="◎")*($AC130:$AC133=0.5)*0.5)+SUMPRODUCT((P130:P133="◎")*($AC130:$AC133=0.1))*0.1)),0) -> 0 | AU134: =IFERROR(Q134/((SUMPRODUCT((Q130:Q133="○")*($AC130:$AC133=1))*0.5+SUMPRODUCT((Q130:Q133="○")*($AC130:$AC133=0.5))*0.5+SUMPRODUCT((Q130:Q133="○")*($AC130:$AC133=0.1))*0.5+SUMPRODUCT((Q130:Q133="◎")*($AC130:$AC133=1))+SUMPRODUCT((Q130:Q133="◎")*($AC130:$AC133=0.5)*0.5)+SUMPRODUCT((Q130:Q133="◎")*($AC130:$AC133=0.1))*0.1)),0) -> 0 | AV134: =IFERROR(R134/((SUMPRODUCT((R130:R133="○")*($AC130:$AC133=1))*0.5+SUMPRODUCT((R130:R133="○")*($AC130:$AC133=0.5))*0.5+SUMPRODUCT((R130:R133="○")*($AC130:$AC133=0.1))*0.5+SUMPRODUCT((R130:R133="◎")*($AC130:$AC133=1))+SUMPRODUCT((R130:R133="◎")*($AC130:$AC133=0.5)*0.5)+SUMPRODUCT((R130:R133="◎")*($AC130:$AC133=0.1))*0.1)),0) -> 0 | AW134: =IFERROR(S134/((SUMPRODUCT((S130:S133="○")*($AC130:$AC133=1))*0.5+SUMPRODUCT((S130:S133="○")*($AC130:$AC133=0.5))*0.5+SUMPRODUCT((S130:S133="○")*($AC130:$AC133=0.1))*0.5+SUMPRODUCT((S130:S133="◎")*($AC130:$AC133=1))+SUMPRODUCT((S130:S133="◎")*($AC130:$AC133=0.5)*0.5)+SUMPRODUCT((S130:S133="◎")*($AC130:$AC133=0.1))*0.1)),0) -> 0 | AX134: =IFERROR(T134/((SUMPRODUCT((T130:T133="○")*($AC130:$AC133=1))*0.5+SUMPRODUCT((T130:T133="○")*($AC130:$AC133=0.5))*0.5+SUMPRODUCT((T130:T133="○")*($AC130:$AC133=0.1))*0.5+SUMPRODUCT((T130:T133="◎")*($AC130:$AC133=1))+SUMPRODUCT((T130:T133="◎")*($AC130:$AC133=0.5)*0.5)+SUMPRODUCT((T130:T133="◎")*($AC130:$AC133=0.1))*0.1)),0) -> 0 | AY134: =IFERROR(U134/((SUMPRODUCT((U130:U133="○")*($AC130:$AC133=1))*0.5+SUMPRODUCT((U130:U133="○")*($AC130:$AC133=0.5))*0.5+SUMPRODUCT((U130:U133="○")*($AC130:$AC133=0.1))*0.5+SUMPRODUCT((U130:U133="◎")*($AC130:$AC133=1))+SUMPRODUCT((U130:U133="◎")*($AC130:$AC133=0.5)*0.5)+SUMPRODUCT((U130:U133="◎")*($AC130:$AC133=0.1))*0.1)),0) -> 0 | AZ134: =IFERROR(V134/((SUMPRODUCT((V130:V133="○")*($AC130:$AC133=1))*0.5+SUMPRODUCT((V130:V133="○")*($AC130:$AC133=0.5))*0.5+SUMPRODUCT((V130:V133="○")*($AC130:$AC133=0.1))*0.5+SUMPRODUCT((V130:V133="◎")*($AC130:$AC133=1))+SUMPRODUCT((V130:V133="◎")*($AC130:$AC133=0.5)*0.5)+SUMPRODUCT((V130:V133="◎")*($AC130:$AC133=0.1))*0.1)),0) -> 0 | BA134: =IFERROR(W134/((SUMPRODUCT((W130:W133="○")*($AC130:$AC133=1))*0.5+SUMPRODUCT((W130:W133="○")*($AC130:$AC133=0.5))*0.5+SUMPRODUCT((W130:W133="○")*($AC130:$AC133=0.1))*0.5+SUMPRODUCT((W130:W133="◎")*($AC130:$AC133=1))+SUMPRODUCT((W130:W133="◎")*($AC130:$AC133=0.5)*0.5)+SUMPRODUCT((W130:W133="◎")*($AC130:$AC133=0.1))*0.1)),0) -> 0 | BB134: =IFERROR(X134/((SUMPRODUCT((X130:X133="○")*($AC130:$AC133=1))*0.5+SUMPRODUCT((X130:X133="○")*($AC130:$AC133=0.5))*0.5+SUMPRODUCT((X130:X133="○")*($AC130:$AC133=0.1))*0.5+SUMPRODUCT((X130:X133="◎")*($AC130:$AC133=1))+SUMPRODUCT((X130:X133="◎")*($AC130:$AC133=0.5)*0.5)+SUMPRODUCT((X130:X133="◎")*($AC130:$AC133=0.1))*0.1)),0) -> 0
D135: =IF( (COUNTIF(項目⑦チェック欄,"○")+COUNTIF(項目⑦チェック欄,"△")+COUNTIF(項目⑦チェック欄,"×")+COUNTIF(項目⑦チェック欄,"―"))=0,"達成率 %",IF( (COUNTIF(項目⑦チェック欄,"○")+COUNTIF(項目⑦チェック欄,"△")+COUNTIF(項目⑦チェック欄,"×"))=0,"達成率 ― %",(COUNTIF(項目⑦チェック欄,"○")+COUNTIF(項目⑦チェック欄,"△")*0.5+COUNTIF(項目⑦チェック欄,"×")*0.1)/(COUNTIF(項目⑦チェック欄,"○")+COUNTIF(項目⑦チェック欄,"△")+COUNTIF(項目⑦チェック欄,"×")+COUNTIF(項目⑦チェック欄,""))*100)) -> 達成率 %
B136: =取組ﾁｪｯｸｼｰﾄ改訂版!B136 -> <項目⑥ ： 建築物の建築・解体、開発事業に当たっての環境配慮>
B137: =取組ﾁｪｯｸｼｰﾄ改訂版!B137 -> （チェック欄） | E137: SDGs関連ゴール
B138: =取組ﾁｪｯｸｼｰﾄ改訂版!B138 -> 1 新規事業を始める際の環境影響評価・環境配慮
B139: =取組ﾁｪｯｸｼｰﾄ改訂版!B139 -> 0 | D139: 新規事業を始める際、企画・計画・設計段階、建設段階、運用段階、改修・解体段階のそれぞれの段階における環境影響を評価し、これに基づいて環境保全のため適切な対策を行っている | E139: １１、１２ | N139: ○ | R139: ◎ | S139: ○ | AC139: =IF(B139="○",1,IF(B139="△",0.5,IF(B139="×",0.1,""))) ->  | AD139: =SUM(AC139:AC141) -> 0 | AE139: =COUNTIF(B139,"○")+COUNTIF(B139,"△")+COUNTIF(B139,"×")+COUNTIF(B139,0) -> 1 | AF139: =SUM(AE139:AE141) -> 3 | AG139: =AD139/AF139 -> 0 | AH139: =SUMPRODUCT((H139:X139="○")*($AE139=1))*0.5+SUMPRODUCT((H139:X139="◎")*($AE139=1)) -> 2
B140: =取組ﾁｪｯｸｼｰﾄ改訂版!B140 -> 0 | D140: 事業実施前に行われた環境影響評価の結果が妥当であったかどうかのフォローアップを、事業中及び事業後に行っている | N140: ○ | R140: ◎ | AE140: 1 | AH140: 1.5
B141: =取組ﾁｪｯｸｼｰﾄ改訂版!B141 -> 0 | D141: 発注者及び設計者に対し、省エネルギー、建設副産物のリサイクル、合板型枠の使用合理化等、環境保全の提案をしている | N141: ◎ | R141: ◎ | AE141: 1 | AH141: 2
B142: =取組ﾁｪｯｸｼｰﾄ改訂版!B142 -> 2 環境整備と周辺の自然環境の保全 | H142: =(SUMPRODUCT((H139:H141="○")*($AC139:$AC141=1))*0.5+SUMPRODUCT((H139:H141="○")*($AC139:$AC141=0.5))*0.25+SUMPRODUCT((H139:H141="○")*($AC139:$AC141=0.1))*0.05+SUMPRODUCT((H139:H141="◎")*($AC139:$AC141=1))+SUMPRODUCT((H139:H141="◎")*($AC139:$AC141=0.5)*0.5)+SUMPRODUCT((H139:H141="◎")*($AC139:$AC141=0.1))*0.1) -> 0 | I142: =(SUMPRODUCT((I139:I141="○")*($AC139:$AC141=1))*0.5+SUMPRODUCT((I139:I141="○")*($AC139:$AC141=0.5))*0.25+SUMPRODUCT((I139:I141="○")*($AC139:$AC141=0.1))*0.05+SUMPRODUCT((I139:I141="◎")*($AC139:$AC141=1))+SUMPRODUCT((I139:I141="◎")*($AC139:$AC141=0.5)*0.5)+SUMPRODUCT((I139:I141="◎")*($AC139:$AC141=0.1))*0.1) -> 0 | J142: =(SUMPRODUCT((J139:J141="○")*($AC139:$AC141=1))*0.5+SUMPRODUCT((J139:J141="○")*($AC139:$AC141=0.5))*0.25+SUMPRODUCT((J139:J141="○")*($AC139:$AC141=0.1))*0.05+SUMPRODUCT((J139:J141="◎")*($AC139:$AC141=1))+SUMPRODUCT((J139:J141="◎")*($AC139:$AC141=0.5)*0.5)+SUMPRODUCT((J139:J141="◎")*($AC139:$AC141=0.1))*0.1) -> 0 | K142: =(SUMPRODUCT((K139:K141="○")*($AC139:$AC141=1))*0.5+SUMPRODUCT((K139:K141="○")*($AC139:$AC141=0.5))*0.25+SUMPRODUCT((K139:K141="○")*($AC139:$AC141=0.1))*0.05+SUMPRODUCT((K139:K141="◎")*($AC139:$AC141=1))+SUMPRODUCT((K139:K141="◎")*($AC139:$AC141=0.5)*0.5)+SUMPRODUCT((K139:K141="◎")*($AC139:$AC141=0.1))*0.1) -> 0 | L142: =(SUMPRODUCT((L139:L141="○")*($AC139:$AC141=1))*0.5+SUMPRODUCT((L139:L141="○")*($AC139:$AC141=0.5))*0.25+SUMPRODUCT((L139:L141="○")*($AC139:$AC141=0.1))*0.05+SUMPRODUCT((L139:L141="◎")*($AC139:$AC141=1))+SUMPRODUCT((L139:L141="◎")*($AC139:$AC141=0.5)*0.5)+SUMPRODUCT((L139:L141="◎")*($AC139:$AC141=0.1))*0.1) -> 0 | M142: =(SUMPRODUCT((M139:M141="○")*($AC139:$AC141=1))*0.5+SUMPRODUCT((M139:M141="○")*($AC139:$AC141=0.5))*0.25+SUMPRODUCT((M139:M141="○")*($AC139:$AC141=0.1))*0.05+SUMPRODUCT((M139:M141="◎")*($AC139:$AC141=1))+SUMPRODUCT((M139:M141="◎")*($AC139:$AC141=0.5)*0.5)+SUMPRODUCT((M139:M141="◎")*($AC139:$AC141=0.1))*0.1) -> 0 | N142: =(SUMPRODUCT((N139:N141="○")*($AC139:$AC141=1))*0.5+SUMPRODUCT((N139:N141="○")*($AC139:$AC141=0.5))*0.25+SUMPRODUCT((N139:N141="○")*($AC139:$AC141=0.1))*0.05+SUMPRODUCT((N139:N141="◎")*($AC139:$AC141=1))+SUMPRODUCT((N139:N141="◎")*($AC139:$AC141=0.5)*0.5)+SUMPRODUCT((N139:N141="◎")*($AC139:$AC141=0.1))*0.1) -> 0 | O142: =(SUMPRODUCT((O139:O141="○")*($AC139:$AC141=1))*0.5+SUMPRODUCT((O139:O141="○")*($AC139:$AC141=0.5))*0.25+SUMPRODUCT((O139:O141="○")*($AC139:$AC141=0.1))*0.05+SUMPRODUCT((O139:O141="◎")*($AC139:$AC141=1))+SUMPRODUCT((O139:O141="◎")*($AC139:$AC141=0.5)*0.5)+SUMPRODUCT((O139:O141="◎")*($AC139:$AC141=0.1))*0.1) -> 0 | P142: =(SUMPRODUCT((P139:P141="○")*($AC139:$AC141=1))*0.5+SUMPRODUCT((P139:P141="○")*($AC139:$AC141=0.5))*0.25+SUMPRODUCT((P139:P141="○")*($AC139:$AC141=0.1))*0.05+SUMPRODUCT((P139:P141="◎")*($AC139:$AC141=1))+SUMPRODUCT((P139:P141="◎")*($AC139:$AC141=0.5)*0.5)+SUMPRODUCT((P139:P141="◎")*($AC139:$AC141=0.1))*0.1) -> 0 | Q142: =(SUMPRODUCT((Q139:Q141="○")*($AC139:$AC141=1))*0.5+SUMPRODUCT((Q139:Q141="○")*($AC139:$AC141=0.5))*0.25+SUMPRODUCT((Q139:Q141="○")*($AC139:$AC141=0.1))*0.05+SUMPRODUCT((Q139:Q141="◎")*($AC139:$AC141=1))+SUMPRODUCT((Q139:Q141="◎")*($AC139:$AC141=0.5)*0.5)+SUMPRODUCT((Q139:Q141="◎")*($AC139:$AC141=0.1))*0.1) -> 0 | R142: =(SUMPRODUCT((R139:R141="○")*($AC139:$AC141=1))*0.5+SUMPRODUCT((R139:R141="○")*($AC139:$AC141=0.5))*0.25+SUMPRODUCT((R139:R141="○")*($AC139:$AC141=0.1))*0.05+SUMPRODUCT((R139:R141="◎")*($AC139:$AC141=1))+SUMPRODUCT((R139:R141="◎")*($AC139:$AC141=0.5)*0.5)+SUMPRODUCT((R139:R141="◎")*($AC139:$AC141=0.1))*0.1) -> 0 | S142: =(SUMPRODUCT((S139:S141="○")*($AC139:$AC141=1))*0.5+SUMPRODUCT((S139:S141="○")*($AC139:$AC141=0.5))*0.25+SUMPRODUCT((S139:S141="○")*($AC139:$AC141=0.1))*0.05+SUMPRODUCT((S139:S141="◎")*($AC139:$AC141=1))+SUMPRODUCT((S139:S141="◎")*($AC139:$AC141=0.5)*0.5)+SUMPRODUCT((S139:S141="◎")*($AC139:$AC141=0.1))*0.1) -> 0 | T142: =(SUMPRODUCT((T139:T141="○")*($AC139:$AC141=1))*0.5+SUMPRODUCT((T139:T141="○")*($AC139:$AC141=0.5))*0.25+SUMPRODUCT((T139:T141="○")*($AC139:$AC141=0.1))*0.05+SUMPRODUCT((T139:T141="◎")*($AC139:$AC141=1))+SUMPRODUCT((T139:T141="◎")*($AC139:$AC141=0.5)*0.5)+SUMPRODUCT((T139:T141="◎")*($AC139:$AC141=0.1))*0.1) -> 0 | U142: =(SUMPRODUCT((U139:U141="○")*($AC139:$AC141=1))*0.5+SUMPRODUCT((U139:U141="○")*($AC139:$AC141=0.5))*0.25+SUMPRODUCT((U139:U141="○")*($AC139:$AC141=0.1))*0.05+SUMPRODUCT((U139:U141="◎")*($AC139:$AC141=1))+SUMPRODUCT((U139:U141="◎")*($AC139:$AC141=0.5)*0.5)+SUMPRODUCT((U139:U141="◎")*($AC139:$AC141=0.1))*0.1) -> 0 | V142: =(SUMPRODUCT((V139:V141="○")*($AC139:$AC141=1))*0.5+SUMPRODUCT((V139:V141="○")*($AC139:$AC141=0.5))*0.25+SUMPRODUCT((V139:V141="○")*($AC139:$AC141=0.1))*0.05+SUMPRODUCT((V139:V141="◎")*($AC139:$AC141=1))+SUMPRODUCT((V139:V141="◎")*($AC139:$AC141=0.5)*0.5)+SUMPRODUCT((V139:V141="◎")*($AC139:$AC141=0.1))*0.1) -> 0 | W142: =(SUMPRODUCT((W139:W141="○")*($AC139:$AC141=1))*0.5+SUMPRODUCT((W139:W141="○")*($AC139:$AC141=0.5))*0.25+SUMPRODUCT((W139:W141="○")*($AC139:$AC141=0.1))*0.05+SUMPRODUCT((W139:W141="◎")*($AC139:$AC141=1))+SUMPRODUCT((W139:W141="◎")*($AC139:$AC141=0.5)*0.5)+SUMPRODUCT((W139:W141="◎")*($AC139:$AC141=0.1))*0.1) -> 0 | X142: =(SUMPRODUCT((X139:X141="○")*($AC139:$AC141=1))*0.5+SUMPRODUCT((X139:X141="○")*($AC139:$AC141=0.5))*0.25+SUMPRODUCT((X139:X141="○")*($AC139:$AC141=0.1))*0.05+SUMPRODUCT((X139:X141="◎")*($AC139:$AC141=1))+SUMPRODUCT((X139:X141="◎")*($AC139:$AC141=0.5)*0.5)+SUMPRODUCT((X139:X141="◎")*($AC139:$AC141=0.1))*0.1) -> 0 | AE142: =SUBTOTAL(9,AE139:AE141) -> 3 | AH142: =SUM(AH139:AH141) -> 5.5 | AI142: =IF(AE142=0,"",SUM(H142:X142)/AH142) -> 0 | AL142: =IFERROR(H142/((SUMPRODUCT((H139:H141="○")*($AC139:$AC141=1))*0.5+SUMPRODUCT((H139:H141="○")*($AC139:$AC141=0.5))*0.5+SUMPRODUCT((H139:H141="○")*($AC139:$AC141=0.1))*0.5+SUMPRODUCT((H139:H141="◎")*($AC139:$AC141=1))+SUMPRODUCT((H139:H141="◎")*($AC139:$AC141=0.5)*0.5)+SUMPRODUCT((H139:H141="◎")*($AC139:$AC141=0.1))*0.1)),0) -> 0 | AM142: =IFERROR(I142/((SUMPRODUCT((I139:I141="○")*($AC139:$AC141=1))*0.5+SUMPRODUCT((I139:I141="○")*($AC139:$AC141=0.5))*0.5+SUMPRODUCT((I139:I141="○")*($AC139:$AC141=0.1))*0.5+SUMPRODUCT((I139:I141="◎")*($AC139:$AC141=1))+SUMPRODUCT((I139:I141="◎")*($AC139:$AC141=0.5)*0.5)+SUMPRODUCT((I139:I141="◎")*($AC139:$AC141=0.1))*0.1)),0) -> 0 | AN142: =IFERROR(J142/((SUMPRODUCT((J139:J141="○")*($AC139:$AC141=1))*0.5+SUMPRODUCT((J139:J141="○")*($AC139:$AC141=0.5))*0.5+SUMPRODUCT((J139:J141="○")*($AC139:$AC141=0.1))*0.5+SUMPRODUCT((J139:J141="◎")*($AC139:$AC141=1))+SUMPRODUCT((J139:J141="◎")*($AC139:$AC141=0.5)*0.5)+SUMPRODUCT((J139:J141="◎")*($AC139:$AC141=0.1))*0.1)),0) -> 0 | AO142: =IFERROR(K142/((SUMPRODUCT((K139:K141="○")*($AC139:$AC141=1))*0.5+SUMPRODUCT((K139:K141="○")*($AC139:$AC141=0.5))*0.5+SUMPRODUCT((K139:K141="○")*($AC139:$AC141=0.1))*0.5+SUMPRODUCT((K139:K141="◎")*($AC139:$AC141=1))+SUMPRODUCT((K139:K141="◎")*($AC139:$AC141=0.5)*0.5)+SUMPRODUCT((K139:K141="◎")*($AC139:$AC141=0.1))*0.1)),0) -> 0 | AP142: =IFERROR(L142/((SUMPRODUCT((L139:L141="○")*($AC139:$AC141=1))*0.5+SUMPRODUCT((L139:L141="○")*($AC139:$AC141=0.5))*0.5+SUMPRODUCT((L139:L141="○")*($AC139:$AC141=0.1))*0.5+SUMPRODUCT((L139:L141="◎")*($AC139:$AC141=1))+SUMPRODUCT((L139:L141="◎")*($AC139:$AC141=0.5)*0.5)+SUMPRODUCT((L139:L141="◎")*($AC139:$AC141=0.1))*0.1)),0) -> 0 | AQ142: =IFERROR(M142/((SUMPRODUCT((M139:M141="○")*($AC139:$AC141=1))*0.5+SUMPRODUCT((M139:M141="○")*($AC139:$AC141=0.5))*0.5+SUMPRODUCT((M139:M141="○")*($AC139:$AC141=0.1))*0.5+SUMPRODUCT((M139:M141="◎")*($AC139:$AC141=1))+SUMPRODUCT((M139:M141="◎")*($AC139:$AC141=0.5)*0.5)+SUMPRODUCT((M139:M141="◎")*($AC139:$AC141=0.1))*0.1)),0) -> 0 | AR142: =IFERROR(N142/((SUMPRODUCT((N139:N141="○")*($AC139:$AC141=1))*0.5+SUMPRODUCT((N139:N141="○")*($AC139:$AC141=0.5))*0.5+SUMPRODUCT((N139:N141="○")*($AC139:$AC141=0.1))*0.5+SUMPRODUCT((N139:N141="◎")*($AC139:$AC141=1))+SUMPRODUCT((N139:N141="◎")*($AC139:$AC141=0.5)*0.5)+SUMPRODUCT((N139:N141="◎")*($AC139:$AC141=0.1))*0.1)),0) -> 0 | AS142: =IFERROR(O142/((SUMPRODUCT((O139:O141="○")*($AC139:$AC141=1))*0.5+SUMPRODUCT((O139:O141="○")*($AC139:$AC141=0.5))*0.5+SUMPRODUCT((O139:O141="○")*($AC139:$AC141=0.1))*0.5+SUMPRODUCT((O139:O141="◎")*($AC139:$AC141=1))+SUMPRODUCT((O139:O141="◎")*($AC139:$AC141=0.5)*0.5)+SUMPRODUCT((O139:O141="◎")*($AC139:$AC141=0.1))*0.1)),0) -> 0 | AT142: =IFERROR(P142/((SUMPRODUCT((P139:P141="○")*($AC139:$AC141=1))*0.5+SUMPRODUCT((P139:P141="○")*($AC139:$AC141=0.5))*0.5+SUMPRODUCT((P139:P141="○")*($AC139:$AC141=0.1))*0.5+SUMPRODUCT((P139:P141="◎")*($AC139:$AC141=1))+SUMPRODUCT((P139:P141="◎")*($AC139:$AC141=0.5)*0.5)+SUMPRODUCT((P139:P141="◎")*($AC139:$AC141=0.1))*0.1)),0) -> 0 | AU142: =IFERROR(Q142/((SUMPRODUCT((Q139:Q141="○")*($AC139:$AC141=1))*0.5+SUMPRODUCT((Q139:Q141="○")*($AC139:$AC141=0.5))*0.5+SUMPRODUCT((Q139:Q141="○")*($AC139:$AC141=0.1))*0.5+SUMPRODUCT((Q139:Q141="◎")*($AC139:$AC141=1))+SUMPRODUCT((Q139:Q141="◎")*($AC139:$AC141=0.5)*0.5)+SUMPRODUCT((Q139:Q141="◎")*($AC139:$AC141=0.1))*0.1)),0) -> 0 | AV142: =IFERROR(R142/((SUMPRODUCT((R139:R141="○")*($AC139:$AC141=1))*0.5+SUMPRODUCT((R139:R141="○")*($AC139:$AC141=0.5))*0.5+SUMPRODUCT((R139:R141="○")*($AC139:$AC141=0.1))*0.5+SUMPRODUCT((R139:R141="◎")*($AC139:$AC141=1))+SUMPRODUCT((R139:R141="◎")*($AC139:$AC141=0.5)*0.5)+SUMPRODUCT((R139:R141="◎")*($AC139:$AC141=0.1))*0.1)),0) -> 0 | AW142: =IFERROR(S142/((SUMPRODUCT((S139:S141="○")*($AC139:$AC141=1))*0.5+SUMPRODUCT((S139:S141="○")*($AC139:$AC141=0.5))*0.5+SUMPRODUCT((S139:S141="○")*($AC139:$AC141=0.1))*0.5+SUMPRODUCT((S139:S141="◎")*($AC139:$AC141=1))+SUMPRODUCT((S139:S141="◎")*($AC139:$AC141=0.5)*0.5)+SUMPRODUCT((S139:S141="◎")*($AC139:$AC141=0.1))*0.1)),0) -> 0 | AX142: =IFERROR(T142/((SUMPRODUCT((T139:T141="○")*($AC139:$AC141=1))*0.5+SUMPRODUCT((T139:T141="○")*($AC139:$AC141=0.5))*0.5+SUMPRODUCT((T139:T141="○")*($AC139:$AC141=0.1))*0.5+SUMPRODUCT((T139:T141="◎")*($AC139:$AC141=1))+SUMPRODUCT((T139:T141="◎")*($AC139:$AC141=0.5)*0.5)+SUMPRODUCT((T139:T141="◎")*($AC139:$AC141=0.1))*0.1)),0) -> 0 | AY142: =IFERROR(U142/((SUMPRODUCT((U139:U141="○")*($AC139:$AC141=1))*0.5+SUMPRODUCT((U139:U141="○")*($AC139:$AC141=0.5))*0.5+SUMPRODUCT((U139:U141="○")*($AC139:$AC141=0.1))*0.5+SUMPRODUCT((U139:U141="◎")*($AC139:$AC141=1))+SUMPRODUCT((U139:U141="◎")*($AC139:$AC141=0.5)*0.5)+SUMPRODUCT((U139:U141="◎")*($AC139:$AC141=0.1))*0.1)),0) -> 0 | AZ142: =IFERROR(V142/((SUMPRODUCT((V139:V141="○")*($AC139:$AC141=1))*0.5+SUMPRODUCT((V139:V141="○")*($AC139:$AC141=0.5))*0.5+SUMPRODUCT((V139:V141="○")*($AC139:$AC141=0.1))*0.5+SUMPRODUCT((V139:V141="◎")*($AC139:$AC141=1))+SUMPRODUCT((V139:V141="◎")*($AC139:$AC141=0.5)*0.5)+SUMPRODUCT((V139:V141="◎")*($AC139:$AC141=0.1))*0.1)),0) -> 0 | BA142: =IFERROR(W142/((SUMPRODUCT((W139:W141="○")*($AC139:$AC141=1))*0.5+SUMPRODUCT((W139:W141="○")*($AC139:$AC141=0.5))*0.5+SUMPRODUCT((W139:W141="○")*($AC139:$AC141=0.1))*0.5+SUMPRODUCT((W139:W141="◎")*($AC139:$AC141=1))+SUMPRODUCT((W139:W141="◎")*($AC139:$AC141=0.5)*0.5)+SUMPRODUCT((W139:W141="◎")*($AC139:$AC141=0.1))*0.1)),0) -> 0 | BB142: =IFERROR(X142/((SUMPRODUCT((X139:X141="○")*($AC139:$AC141=1))*0.5+SUMPRODUCT((X139:X141="○")*($AC139:$AC141=0.5))*0.5+SUMPRODUCT((X139:X141="○")*($AC139:$AC141=0.1))*0.5+SUMPRODUCT((X139:X141="◎")*($AC139:$AC141=1))+SUMPRODUCT((X139:X141="◎")*($AC139:$AC141=0.5)*0.5)+SUMPRODUCT((X139:X141="◎")*($AC139:$AC141=0.1))*0.1)),0) -> 0
B143: =取組ﾁｪｯｸｼｰﾄ改訂版!B143 -> 0 | D143: 敷地内、壁面、屋上等の緑化を行っている（大気浄化、都市気象の緩和にも資する） | E143: １１、１５ | R143: ◎ | V143: ○ | AD143: =SUM(AC143:AC145) -> 0 | AE143: =COUNTIF(B143,"○")+COUNTIF(B143,"△")+COUNTIF(B143,"×")+COUNTIF(B143,0) -> 1 | AF143: =SUM(AE143:AE145) -> 3 | AG143: =AD143/AF143 -> 0 | AH143: =SUMPRODUCT((H143:X143="○")*($AE143=1))*0.5+SUMPRODUCT((H143:X143="◎")*($AE143=1)) -> 1.5
B144: =取組ﾁｪｯｸｼｰﾄ改訂版!B144 -> 0 | D144: 地域の自然環境との調和に配慮し、生態系や景観の保全に取り組んでいる | R144: ◎ | V144: ○ | AE144: 1 | AH144: 1.5
B145: =取組ﾁｪｯｸｼｰﾄ改訂版!B145 -> 0 | D145: 環境を改変する代替措置として環境修復（ミティゲーション）を計画・設計に盛り込んでいる | R145: ◎ | V145: ○ | AE145: 1 | AH145: 1.5
B146: =取組ﾁｪｯｸｼｰﾄ改訂版!B146 -> 3 環境負荷の少ない建築材の使用等 | H146: =(SUMPRODUCT((H143:H145="○")*($AC143:$AC145=1))*0.5+SUMPRODUCT((H143:H145="○")*($AC143:$AC145=0.5))*0.25+SUMPRODUCT((H143:H145="○")*($AC143:$AC145=0.1))*0.05+SUMPRODUCT((H143:H145="◎")*($AC143:$AC145=1))+SUMPRODUCT((H143:H145="◎")*($AC143:$AC145=0.5)*0.5)+SUMPRODUCT((H143:H145="◎")*($AC143:$AC145=0.1))*0.1) -> 0 | I146: =(SUMPRODUCT((I143:I145="○")*($AC143:$AC145=1))*0.5+SUMPRODUCT((I143:I145="○")*($AC143:$AC145=0.5))*0.25+SUMPRODUCT((I143:I145="○")*($AC143:$AC145=0.1))*0.05+SUMPRODUCT((I143:I145="◎")*($AC143:$AC145=1))+SUMPRODUCT((I143:I145="◎")*($AC143:$AC145=0.5)*0.5)+SUMPRODUCT((I143:I145="◎")*($AC143:$AC145=0.1))*0.1) -> 0 | J146: =(SUMPRODUCT((J143:J145="○")*($AC143:$AC145=1))*0.5+SUMPRODUCT((J143:J145="○")*($AC143:$AC145=0.5))*0.25+SUMPRODUCT((J143:J145="○")*($AC143:$AC145=0.1))*0.05+SUMPRODUCT((J143:J145="◎")*($AC143:$AC145=1))+SUMPRODUCT((J143:J145="◎")*($AC143:$AC145=0.5)*0.5)+SUMPRODUCT((J143:J145="◎")*($AC143:$AC145=0.1))*0.1) -> 0 | K146: =(SUMPRODUCT((K143:K145="○")*($AC143:$AC145=1))*0.5+SUMPRODUCT((K143:K145="○")*($AC143:$AC145=0.5))*0.25+SUMPRODUCT((K143:K145="○")*($AC143:$AC145=0.1))*0.05+SUMPRODUCT((K143:K145="◎")*($AC143:$AC145=1))+SUMPRODUCT((K143:K145="◎")*($AC143:$AC145=0.5)*0.5)+SUMPRODUCT((K143:K145="◎")*($AC143:$AC145=0.1))*0.1) -> 0 | L146: =(SUMPRODUCT((L143:L145="○")*($AC143:$AC145=1))*0.5+SUMPRODUCT((L143:L145="○")*($AC143:$AC145=0.5))*0.25+SUMPRODUCT((L143:L145="○")*($AC143:$AC145=0.1))*0.05+SUMPRODUCT((L143:L145="◎")*($AC143:$AC145=1))+SUMPRODUCT((L143:L145="◎")*($AC143:$AC145=0.5)*0.5)+SUMPRODUCT((L143:L145="◎")*($AC143:$AC145=0.1))*0.1) -> 0 | M146: =(SUMPRODUCT((M143:M145="○")*($AC143:$AC145=1))*0.5+SUMPRODUCT((M143:M145="○")*($AC143:$AC145=0.5))*0.25+SUMPRODUCT((M143:M145="○")*($AC143:$AC145=0.1))*0.05+SUMPRODUCT((M143:M145="◎")*($AC143:$AC145=1))+SUMPRODUCT((M143:M145="◎")*($AC143:$AC145=0.5)*0.5)+SUMPRODUCT((M143:M145="◎")*($AC143:$AC145=0.1))*0.1) -> 0 | N146: =(SUMPRODUCT((N143:N145="○")*($AC143:$AC145=1))*0.5+SUMPRODUCT((N143:N145="○")*($AC143:$AC145=0.5))*0.25+SUMPRODUCT((N143:N145="○")*($AC143:$AC145=0.1))*0.05+SUMPRODUCT((N143:N145="◎")*($AC143:$AC145=1))+SUMPRODUCT((N143:N145="◎")*($AC143:$AC145=0.5)*0.5)+SUMPRODUCT((N143:N145="◎")*($AC143:$AC145=0.1))*0.1) -> 0 | O146: =(SUMPRODUCT((O143:O145="○")*($AC143:$AC145=1))*0.5+SUMPRODUCT((O143:O145="○")*($AC143:$AC145=0.5))*0.25+SUMPRODUCT((O143:O145="○")*($AC143:$AC145=0.1))*0.05+SUMPRODUCT((O143:O145="◎")*($AC143:$AC145=1))+SUMPRODUCT((O143:O145="◎")*($AC143:$AC145=0.5)*0.5)+SUMPRODUCT((O143:O145="◎")*($AC143:$AC145=0.1))*0.1) -> 0 | P146: =(SUMPRODUCT((P143:P145="○")*($AC143:$AC145=1))*0.5+SUMPRODUCT((P143:P145="○")*($AC143:$AC145=0.5))*0.25+SUMPRODUCT((P143:P145="○")*($AC143:$AC145=0.1))*0.05+SUMPRODUCT((P143:P145="◎")*($AC143:$AC145=1))+SUMPRODUCT((P143:P145="◎")*($AC143:$AC145=0.5)*0.5)+SUMPRODUCT((P143:P145="◎")*($AC143:$AC145=0.1))*0.1) -> 0 | Q146: =(SUMPRODUCT((Q143:Q145="○")*($AC143:$AC145=1))*0.5+SUMPRODUCT((Q143:Q145="○")*($AC143:$AC145=0.5))*0.25+SUMPRODUCT((Q143:Q145="○")*($AC143:$AC145=0.1))*0.05+SUMPRODUCT((Q143:Q145="◎")*($AC143:$AC145=1))+SUMPRODUCT((Q143:Q145="◎")*($AC143:$AC145=0.5)*0.5)+SUMPRODUCT((Q143:Q145="◎")*($AC143:$AC145=0.1))*0.1) -> 0 | R146: =(SUMPRODUCT((R143:R145="○")*($AC143:$AC145=1))*0.5+SUMPRODUCT((R143:R145="○")*($AC143:$AC145=0.5))*0.25+SUMPRODUCT((R143:R145="○")*($AC143:$AC145=0.1))*0.05+SUMPRODUCT((R143:R145="◎")*($AC143:$AC145=1))+SUMPRODUCT((R143:R145="◎")*($AC143:$AC145=0.5)*0.5)+SUMPRODUCT((R143:R145="◎")*($AC143:$AC145=0.1))*0.1) -> 0 | S146: =(SUMPRODUCT((S143:S145="○")*($AC143:$AC145=1))*0.5+SUMPRODUCT((S143:S145="○")*($AC143:$AC145=0.5))*0.25+SUMPRODUCT((S143:S145="○")*($AC143:$AC145=0.1))*0.05+SUMPRODUCT((S143:S145="◎")*($AC143:$AC145=1))+SUMPRODUCT((S143:S145="◎")*($AC143:$AC145=0.5)*0.5)+SUMPRODUCT((S143:S145="◎")*($AC143:$AC145=0.1))*0.1) -> 0 | T146: =(SUMPRODUCT((T143:T145="○")*($AC143:$AC145=1))*0.5+SUMPRODUCT((T143:T145="○")*($AC143:$AC145=0.5))*0.25+SUMPRODUCT((T143:T145="○")*($AC143:$AC145=0.1))*0.05+SUMPRODUCT((T143:T145="◎")*($AC143:$AC145=1))+SUMPRODUCT((T143:T145="◎")*($AC143:$AC145=0.5)*0.5)+SUMPRODUCT((T143:T145="◎")*($AC143:$AC145=0.1))*0.1) -> 0 | U146: =(SUMPRODUCT((U143:U145="○")*($AC143:$AC145=1))*0.5+SUMPRODUCT((U143:U145="○")*($AC143:$AC145=0.5))*0.25+SUMPRODUCT((U143:U145="○")*($AC143:$AC145=0.1))*0.05+SUMPRODUCT((U143:U145="◎")*($AC143:$AC145=1))+SUMPRODUCT((U143:U145="◎")*($AC143:$AC145=0.5)*0.5)+SUMPRODUCT((U143:U145="◎")*($AC143:$AC145=0.1))*0.1) -> 0 | V146: =(SUMPRODUCT((V143:V145="○")*($AC143:$AC145=1))*0.5+SUMPRODUCT((V143:V145="○")*($AC143:$AC145=0.5))*0.25+SUMPRODUCT((V143:V145="○")*($AC143:$AC145=0.1))*0.05+SUMPRODUCT((V143:V145="◎")*($AC143:$AC145=1))+SUMPRODUCT((V143:V145="◎")*($AC143:$AC145=0.5)*0.5)+SUMPRODUCT((V143:V145="◎")*($AC143:$AC145=0.1))*0.1) -> 0 | W146: =(SUMPRODUCT((W143:W145="○")*($AC143:$AC145=1))*0.5+SUMPRODUCT((W143:W145="○")*($AC143:$AC145=0.5))*0.25+SUMPRODUCT((W143:W145="○")*($AC143:$AC145=0.1))*0.05+SUMPRODUCT((W143:W145="◎")*($AC143:$AC145=1))+SUMPRODUCT((W143:W145="◎")*($AC143:$AC145=0.5)*0.5)+SUMPRODUCT((W143:W145="◎")*($AC143:$AC145=0.1))*0.1) -> 0 | X146: =(SUMPRODUCT((X143:X145="○")*($AC143:$AC145=1))*0.5+SUMPRODUCT((X143:X145="○")*($AC143:$AC145=0.5))*0.25+SUMPRODUCT((X143:X145="○")*($AC143:$AC145=0.1))*0.05+SUMPRODUCT((X143:X145="◎")*($AC143:$AC145=1))+SUMPRODUCT((X143:X145="◎")*($AC143:$AC145=0.5)*0.5)+SUMPRODUCT((X143:X145="◎")*($AC143:$AC145=0.1))*0.1) -> 0 | AE146: =SUBTOTAL(9,AE143:AE145) -> 3 | AH146: =SUM(AH143:AH145) -> 4.5 | AI146: =IF(AE146=0,"",SUM(H146:X146)/AH146) -> 0 | AL146: =IFERROR(H146/((SUMPRODUCT((H143:H145="○")*($AC143:$AC145=1))*0.5+SUMPRODUCT((H143:H145="○")*($AC143:$AC145=0.5))*0.5+SUMPRODUCT((H143:H145="○")*($AC143:$AC145=0.1))*0.5+SUMPRODUCT((H143:H145="◎")*($AC143:$AC145=1))+SUMPRODUCT((H143:H145="◎")*($AC143:$AC145=0.5)*0.5)+SUMPRODUCT((H143:H145="◎")*($AC143:$AC145=0.1))*0.1)),0) -> 0 | AM146: =IFERROR(I146/((SUMPRODUCT((I143:I145="○")*($AC143:$AC145=1))*0.5+SUMPRODUCT((I143:I145="○")*($AC143:$AC145=0.5))*0.5+SUMPRODUCT((I143:I145="○")*($AC143:$AC145=0.1))*0.5+SUMPRODUCT((I143:I145="◎")*($AC143:$AC145=1))+SUMPRODUCT((I143:I145="◎")*($AC143:$AC145=0.5)*0.5)+SUMPRODUCT((I143:I145="◎")*($AC143:$AC145=0.1))*0.1)),0) -> 0 | AN146: =IFERROR(J146/((SUMPRODUCT((J143:J145="○")*($AC143:$AC145=1))*0.5+SUMPRODUCT((J143:J145="○")*($AC143:$AC145=0.5))*0.5+SUMPRODUCT((J143:J145="○")*($AC143:$AC145=0.1))*0.5+SUMPRODUCT((J143:J145="◎")*($AC143:$AC145=1))+SUMPRODUCT((J143:J145="◎")*($AC143:$AC145=0.5)*0.5)+SUMPRODUCT((J143:J145="◎")*($AC143:$AC145=0.1))*0.1)),0) -> 0 | AO146: =IFERROR(K146/((SUMPRODUCT((K143:K145="○")*($AC143:$AC145=1))*0.5+SUMPRODUCT((K143:K145="○")*($AC143:$AC145=0.5))*0.5+SUMPRODUCT((K143:K145="○")*($AC143:$AC145=0.1))*0.5+SUMPRODUCT((K143:K145="◎")*($AC143:$AC145=1))+SUMPRODUCT((K143:K145="◎")*($AC143:$AC145=0.5)*0.5)+SUMPRODUCT((K143:K145="◎")*($AC143:$AC145=0.1))*0.1)),0) -> 0 | AP146: =IFERROR(L146/((SUMPRODUCT((L143:L145="○")*($AC143:$AC145=1))*0.5+SUMPRODUCT((L143:L145="○")*($AC143:$AC145=0.5))*0.5+SUMPRODUCT((L143:L145="○")*($AC143:$AC145=0.1))*0.5+SUMPRODUCT((L143:L145="◎")*($AC143:$AC145=1))+SUMPRODUCT((L143:L145="◎")*($AC143:$AC145=0.5)*0.5)+SUMPRODUCT((L143:L145="◎")*($AC143:$AC145=0.1))*0.1)),0) -> 0 | AQ146: =IFERROR(M146/((SUMPRODUCT((M143:M145="○")*($AC143:$AC145=1))*0.5+SUMPRODUCT((M143:M145="○")*($AC143:$AC145=0.5))*0.5+SUMPRODUCT((M143:M145="○")*($AC143:$AC145=0.1))*0.5+SUMPRODUCT((M143:M145="◎")*($AC143:$AC145=1))+SUMPRODUCT((M143:M145="◎")*($AC143:$AC145=0.5)*0.5)+SUMPRODUCT((M143:M145="◎")*($AC143:$AC145=0.1))*0.1)),0) -> 0 | AR146: =IFERROR(N146/((SUMPRODUCT((N143:N145="○")*($AC143:$AC145=1))*0.5+SUMPRODUCT((N143:N145="○")*($AC143:$AC145=0.5))*0.5+SUMPRODUCT((N143:N145="○")*($AC143:$AC145=0.1))*0.5+SUMPRODUCT((N143:N145="◎")*($AC143:$AC145=1))+SUMPRODUCT((N143:N145="◎")*($AC143:$AC145=0.5)*0.5)+SUMPRODUCT((N143:N145="◎")*($AC143:$AC145=0.1))*0.1)),0) -> 0 | AS146: =IFERROR(O146/((SUMPRODUCT((O143:O145="○")*($AC143:$AC145=1))*0.5+SUMPRODUCT((O143:O145="○")*($AC143:$AC145=0.5))*0.5+SUMPRODUCT((O143:O145="○")*($AC143:$AC145=0.1))*0.5+SUMPRODUCT((O143:O145="◎")*($AC143:$AC145=1))+SUMPRODUCT((O143:O145="◎")*($AC143:$AC145=0.5)*0.5)+SUMPRODUCT((O143:O145="◎")*($AC143:$AC145=0.1))*0.1)),0) -> 0 | AT146: =IFERROR(P146/((SUMPRODUCT((P143:P145="○")*($AC143:$AC145=1))*0.5+SUMPRODUCT((P143:P145="○")*($AC143:$AC145=0.5))*0.5+SUMPRODUCT((P143:P145="○")*($AC143:$AC145=0.1))*0.5+SUMPRODUCT((P143:P145="◎")*($AC143:$AC145=1))+SUMPRODUCT((P143:P145="◎")*($AC143:$AC145=0.5)*0.5)+SUMPRODUCT((P143:P145="◎")*($AC143:$AC145=0.1))*0.1)),0) -> 0 | AU146: =IFERROR(Q146/((SUMPRODUCT((Q143:Q145="○")*($AC143:$AC145=1))*0.5+SUMPRODUCT((Q143:Q145="○")*($AC143:$AC145=0.5))*0.5+SUMPRODUCT((Q143:Q145="○")*($AC143:$AC145=0.1))*0.5+SUMPRODUCT((Q143:Q145="◎")*($AC143:$AC145=1))+SUMPRODUCT((Q143:Q145="◎")*($AC143:$AC145=0.5)*0.5)+SUMPRODUCT((Q143:Q145="◎")*($AC143:$AC145=0.1))*0.1)),0) -> 0 | AV146: =IFERROR(R146/((SUMPRODUCT((R143:R145="○")*($AC143:$AC145=1))*0.5+SUMPRODUCT((R143:R145="○")*($AC143:$AC145=0.5))*0.5+SUMPRODUCT((R143:R145="○")*($AC143:$AC145=0.1))*0.5+SUMPRODUCT((R143:R145="◎")*($AC143:$AC145=1))+SUMPRODUCT((R143:R145="◎")*($AC143:$AC145=0.5)*0.5)+SUMPRODUCT((R143:R145="◎")*($AC143:$AC145=0.1))*0.1)),0) -> 0 | AW146: =IFERROR(S146/((SUMPRODUCT((S143:S145="○")*($AC143:$AC145=1))*0.5+SUMPRODUCT((S143:S145="○")*($AC143:$AC145=0.5))*0.5+SUMPRODUCT((S143:S145="○")*($AC143:$AC145=0.1))*0.5+SUMPRODUCT((S143:S145="◎")*($AC143:$AC145=1))+SUMPRODUCT((S143:S145="◎")*($AC143:$AC145=0.5)*0.5)+SUMPRODUCT((S143:S145="◎")*($AC143:$AC145=0.1))*0.1)),0) -> 0 | AX146: =IFERROR(T146/((SUMPRODUCT((T143:T145="○")*($AC143:$AC145=1))*0.5+SUMPRODUCT((T143:T145="○")*($AC143:$AC145=0.5))*0.5+SUMPRODUCT((T143:T145="○")*($AC143:$AC145=0.1))*0.5+SUMPRODUCT((T143:T145="◎")*($AC143:$AC145=1))+SUMPRODUCT((T143:T145="◎")*($AC143:$AC145=0.5)*0.5)+SUMPRODUCT((T143:T145="◎")*($AC143:$AC145=0.1))*0.1)),0) -> 0 | AY146: =IFERROR(U146/((SUMPRODUCT((U143:U145="○")*($AC143:$AC145=1))*0.5+SUMPRODUCT((U143:U145="○")*($AC143:$AC145=0.5))*0.5+SUMPRODUCT((U143:U145="○")*($AC143:$AC145=0.1))*0.5+SUMPRODUCT((U143:U145="◎")*($AC143:$AC145=1))+SUMPRODUCT((U143:U145="◎")*($AC143:$AC145=0.5)*0.5)+SUMPRODUCT((U143:U145="◎")*($AC143:$AC145=0.1))*0.1)),0) -> 0 | AZ146: =IFERROR(V146/((SUMPRODUCT((V143:V145="○")*($AC143:$AC145=1))*0.5+SUMPRODUCT((V143:V145="○")*($AC143:$AC145=0.5))*0.5+SUMPRODUCT((V143:V145="○")*($AC143:$AC145=0.1))*0.5+SUMPRODUCT((V143:V145="◎")*($AC143:$AC145=1))+SUMPRODUCT((V143:V145="◎")*($AC143:$AC145=0.5)*0.5)+SUMPRODUCT((V143:V145="◎")*($AC143:$AC145=0.1))*0.1)),0) -> 0 | BA146: =IFERROR(W146/((SUMPRODUCT((W143:W145="○")*($AC143:$AC145=1))*0.5+SUMPRODUCT((W143:W145="○")*($AC143:$AC145=0.5))*0.5+SUMPRODUCT((W143:W145="○")*($AC143:$AC145=0.1))*0.5+SUMPRODUCT((W143:W145="◎")*($AC143:$AC145=1))+SUMPRODUCT((W143:W145="◎")*($AC143:$AC145=0.5)*0.5)+SUMPRODUCT((W143:W145="◎")*($AC143:$AC145=0.1))*0.1)),0) -> 0 | BB146: =IFERROR(X146/((SUMPRODUCT((X143:X145="○")*($AC143:$AC145=1))*0.5+SUMPRODUCT((X143:X145="○")*($AC143:$AC145=0.5))*0.5+SUMPRODUCT((X143:X145="○")*($AC143:$AC145=0.1))*0.5+SUMPRODUCT((X143:X145="◎")*($AC143:$AC145=1))+SUMPRODUCT((X143:X145="◎")*($AC143:$AC145=0.5)*0.5)+SUMPRODUCT((X143:X145="◎")*($AC143:$AC145=0.1))*0.1)),0) -> 0
B147: =取組ﾁｪｯｸｼｰﾄ改訂版!B147 -> 0 | D147: 建築物の建築・改築に当たり、環境負荷の少ない建築材の使用、建築材の使用合理化に取り組んでいる（合板型等の木材の使用合理化、高炉セメント、再生素材の積極的使用等） | E147: １１、１２ | R147: ◎ | S147: ○ | AD147: =SUM(AC147:AC147) -> 0 | AE147: =COUNTIF(B147,"○")+COUNTIF(B147,"△")+COUNTIF(B147,"×")+COUNTIF(B147,0) -> 1 | AF147: =SUM(AE147:AE147) -> 1 | AG147: =AD147/AF147 -> 0 | AH147: =SUMPRODUCT((H147:X147="○")*($AE147=1))*0.5+SUMPRODUCT((H147:X147="◎")*($AE147=1)) -> 1.5
B148: =取組ﾁｪｯｸｼｰﾄ改訂版!B148 -> 4 環境に配慮した工法 | H148: =(SUMPRODUCT((H147:H147="○")*($AC147:$AC147=1))*0.5+SUMPRODUCT((H147:H147="○")*($AC147:$AC147=0.5))*0.25+SUMPRODUCT((H147:H147="○")*($AC147:$AC147=0.1))*0.05+SUMPRODUCT((H147:H147="◎")*($AC147:$AC147=1))+SUMPRODUCT((H147:H147="◎")*($AC147:$AC147=0.5)*0.5)+SUMPRODUCT((H147:H147="◎")*($AC147:$AC147=0.1))*0.1) -> 0 | I148: =(SUMPRODUCT((I147:I147="○")*($AC147:$AC147=1))*0.5+SUMPRODUCT((I147:I147="○")*($AC147:$AC147=0.5))*0.25+SUMPRODUCT((I147:I147="○")*($AC147:$AC147=0.1))*0.05+SUMPRODUCT((I147:I147="◎")*($AC147:$AC147=1))+SUMPRODUCT((I147:I147="◎")*($AC147:$AC147=0.5)*0.5)+SUMPRODUCT((I147:I147="◎")*($AC147:$AC147=0.1))*0.1) -> 0 | J148: =(SUMPRODUCT((J147:J147="○")*($AC147:$AC147=1))*0.5+SUMPRODUCT((J147:J147="○")*($AC147:$AC147=0.5))*0.25+SUMPRODUCT((J147:J147="○")*($AC147:$AC147=0.1))*0.05+SUMPRODUCT((J147:J147="◎")*($AC147:$AC147=1))+SUMPRODUCT((J147:J147="◎")*($AC147:$AC147=0.5)*0.5)+SUMPRODUCT((J147:J147="◎")*($AC147:$AC147=0.1))*0.1) -> 0 | K148: =(SUMPRODUCT((K147:K147="○")*($AC147:$AC147=1))*0.5+SUMPRODUCT((K147:K147="○")*($AC147:$AC147=0.5))*0.25+SUMPRODUCT((K147:K147="○")*($AC147:$AC147=0.1))*0.05+SUMPRODUCT((K147:K147="◎")*($AC147:$AC147=1))+SUMPRODUCT((K147:K147="◎")*($AC147:$AC147=0.5)*0.5)+SUMPRODUCT((K147:K147="◎")*($AC147:$AC147=0.1))*0.1) -> 0 | L148: =(SUMPRODUCT((L147:L147="○")*($AC147:$AC147=1))*0.5+SUMPRODUCT((L147:L147="○")*($AC147:$AC147=0.5))*0.25+SUMPRODUCT((L147:L147="○")*($AC147:$AC147=0.1))*0.05+SUMPRODUCT((L147:L147="◎")*($AC147:$AC147=1))+SUMPRODUCT((L147:L147="◎")*($AC147:$AC147=0.5)*0.5)+SUMPRODUCT((L147:L147="◎")*($AC147:$AC147=0.1))*0.1) -> 0 | M148: =(SUMPRODUCT((M147:M147="○")*($AC147:$AC147=1))*0.5+SUMPRODUCT((M147:M147="○")*($AC147:$AC147=0.5))*0.25+SUMPRODUCT((M147:M147="○")*($AC147:$AC147=0.1))*0.05+SUMPRODUCT((M147:M147="◎")*($AC147:$AC147=1))+SUMPRODUCT((M147:M147="◎")*($AC147:$AC147=0.5)*0.5)+SUMPRODUCT((M147:M147="◎")*($AC147:$AC147=0.1))*0.1) -> 0 | N148: =(SUMPRODUCT((N147:N147="○")*($AC147:$AC147=1))*0.5+SUMPRODUCT((N147:N147="○")*($AC147:$AC147=0.5))*0.25+SUMPRODUCT((N147:N147="○")*($AC147:$AC147=0.1))*0.05+SUMPRODUCT((N147:N147="◎")*($AC147:$AC147=1))+SUMPRODUCT((N147:N147="◎")*($AC147:$AC147=0.5)*0.5)+SUMPRODUCT((N147:N147="◎")*($AC147:$AC147=0.1))*0.1) -> 0 | O148: =(SUMPRODUCT((O147:O147="○")*($AC147:$AC147=1))*0.5+SUMPRODUCT((O147:O147="○")*($AC147:$AC147=0.5))*0.25+SUMPRODUCT((O147:O147="○")*($AC147:$AC147=0.1))*0.05+SUMPRODUCT((O147:O147="◎")*($AC147:$AC147=1))+SUMPRODUCT((O147:O147="◎")*($AC147:$AC147=0.5)*0.5)+SUMPRODUCT((O147:O147="◎")*($AC147:$AC147=0.1))*0.1) -> 0 | P148: =(SUMPRODUCT((P147:P147="○")*($AC147:$AC147=1))*0.5+SUMPRODUCT((P147:P147="○")*($AC147:$AC147=0.5))*0.25+SUMPRODUCT((P147:P147="○")*($AC147:$AC147=0.1))*0.05+SUMPRODUCT((P147:P147="◎")*($AC147:$AC147=1))+SUMPRODUCT((P147:P147="◎")*($AC147:$AC147=0.5)*0.5)+SUMPRODUCT((P147:P147="◎")*($AC147:$AC147=0.1))*0.1) -> 0 | Q148: =(SUMPRODUCT((Q147:Q147="○")*($AC147:$AC147=1))*0.5+SUMPRODUCT((Q147:Q147="○")*($AC147:$AC147=0.5))*0.25+SUMPRODUCT((Q147:Q147="○")*($AC147:$AC147=0.1))*0.05+SUMPRODUCT((Q147:Q147="◎")*($AC147:$AC147=1))+SUMPRODUCT((Q147:Q147="◎")*($AC147:$AC147=0.5)*0.5)+SUMPRODUCT((Q147:Q147="◎")*($AC147:$AC147=0.1))*0.1) -> 0 | R148: =(SUMPRODUCT((R147:R147="○")*($AC147:$AC147=1))*0.5+SUMPRODUCT((R147:R147="○")*($AC147:$AC147=0.5))*0.25+SUMPRODUCT((R147:R147="○")*($AC147:$AC147=0.1))*0.05+SUMPRODUCT((R147:R147="◎")*($AC147:$AC147=1))+SUMPRODUCT((R147:R147="◎")*($AC147:$AC147=0.5)*0.5)+SUMPRODUCT((R147:R147="◎")*($AC147:$AC147=0.1))*0.1) -> 0 | S148: =(SUMPRODUCT((S147:S147="○")*($AC147:$AC147=1))*0.5+SUMPRODUCT((S147:S147="○")*($AC147:$AC147=0.5))*0.25+SUMPRODUCT((S147:S147="○")*($AC147:$AC147=0.1))*0.05+SUMPRODUCT((S147:S147="◎")*($AC147:$AC147=1))+SUMPRODUCT((S147:S147="◎")*($AC147:$AC147=0.5)*0.5)+SUMPRODUCT((S147:S147="◎")*($AC147:$AC147=0.1))*0.1) -> 0 | T148: =(SUMPRODUCT((T147:T147="○")*($AC147:$AC147=1))*0.5+SUMPRODUCT((T147:T147="○")*($AC147:$AC147=0.5))*0.25+SUMPRODUCT((T147:T147="○")*($AC147:$AC147=0.1))*0.05+SUMPRODUCT((T147:T147="◎")*($AC147:$AC147=1))+SUMPRODUCT((T147:T147="◎")*($AC147:$AC147=0.5)*0.5)+SUMPRODUCT((T147:T147="◎")*($AC147:$AC147=0.1))*0.1) -> 0 | U148: =(SUMPRODUCT((U147:U147="○")*($AC147:$AC147=1))*0.5+SUMPRODUCT((U147:U147="○")*($AC147:$AC147=0.5))*0.25+SUMPRODUCT((U147:U147="○")*($AC147:$AC147=0.1))*0.05+SUMPRODUCT((U147:U147="◎")*($AC147:$AC147=1))+SUMPRODUCT((U147:U147="◎")*($AC147:$AC147=0.5)*0.5)+SUMPRODUCT((U147:U147="◎")*($AC147:$AC147=0.1))*0.1) -> 0 | V148: =(SUMPRODUCT((V147:V147="○")*($AC147:$AC147=1))*0.5+SUMPRODUCT((V147:V147="○")*($AC147:$AC147=0.5))*0.25+SUMPRODUCT((V147:V147="○")*($AC147:$AC147=0.1))*0.05+SUMPRODUCT((V147:V147="◎")*($AC147:$AC147=1))+SUMPRODUCT((V147:V147="◎")*($AC147:$AC147=0.5)*0.5)+SUMPRODUCT((V147:V147="◎")*($AC147:$AC147=0.1))*0.1) -> 0 | W148: =(SUMPRODUCT((W147:W147="○")*($AC147:$AC147=1))*0.5+SUMPRODUCT((W147:W147="○")*($AC147:$AC147=0.5))*0.25+SUMPRODUCT((W147:W147="○")*($AC147:$AC147=0.1))*0.05+SUMPRODUCT((W147:W147="◎")*($AC147:$AC147=1))+SUMPRODUCT((W147:W147="◎")*($AC147:$AC147=0.5)*0.5)+SUMPRODUCT((W147:W147="◎")*($AC147:$AC147=0.1))*0.1) -> 0 | X148: =(SUMPRODUCT((X147:X147="○")*($AC147:$AC147=1))*0.5+SUMPRODUCT((X147:X147="○")*($AC147:$AC147=0.5))*0.25+SUMPRODUCT((X147:X147="○")*($AC147:$AC147=0.1))*0.05+SUMPRODUCT((X147:X147="◎")*($AC147:$AC147=1))+SUMPRODUCT((X147:X147="◎")*($AC147:$AC147=0.5)*0.5)+SUMPRODUCT((X147:X147="◎")*($AC147:$AC147=0.1))*0.1) -> 0 | AE148: =SUBTOTAL(9,AE147:AE147) -> 1 | AH148: =SUM(AH147:AH147) -> 1.5 | AI148: =IF(AE148=0,"",SUM(H148:X148)/AH148) -> 0 | AL148: =IFERROR(H148/((SUMPRODUCT((H147:H147="○")*($AC147:$AC147=1))*0.5+SUMPRODUCT((H147:H147="○")*($AC147:$AC147=0.5))*0.5+SUMPRODUCT((H147:H147="○")*($AC147:$AC147=0.1))*0.5+SUMPRODUCT((H147:H147="◎")*($AC147:$AC147=1))+SUMPRODUCT((H147:H147="◎")*($AC147:$AC147=0.5)*0.5)+SUMPRODUCT((H147:H147="◎")*($AC147:$AC147=0.1))*0.1)),0) -> 0 | AM148: =IFERROR(I148/((SUMPRODUCT((I147:I147="○")*($AC147:$AC147=1))*0.5+SUMPRODUCT((I147:I147="○")*($AC147:$AC147=0.5))*0.5+SUMPRODUCT((I147:I147="○")*($AC147:$AC147=0.1))*0.5+SUMPRODUCT((I147:I147="◎")*($AC147:$AC147=1))+SUMPRODUCT((I147:I147="◎")*($AC147:$AC147=0.5)*0.5)+SUMPRODUCT((I147:I147="◎")*($AC147:$AC147=0.1))*0.1)),0) -> 0 | AN148: =IFERROR(J148/((SUMPRODUCT((J147:J147="○")*($AC147:$AC147=1))*0.5+SUMPRODUCT((J147:J147="○")*($AC147:$AC147=0.5))*0.5+SUMPRODUCT((J147:J147="○")*($AC147:$AC147=0.1))*0.5+SUMPRODUCT((J147:J147="◎")*($AC147:$AC147=1))+SUMPRODUCT((J147:J147="◎")*($AC147:$AC147=0.5)*0.5)+SUMPRODUCT((J147:J147="◎")*($AC147:$AC147=0.1))*0.1)),0) -> 0 | AO148: =IFERROR(K148/((SUMPRODUCT((K147:K147="○")*($AC147:$AC147=1))*0.5+SUMPRODUCT((K147:K147="○")*($AC147:$AC147=0.5))*0.5+SUMPRODUCT((K147:K147="○")*($AC147:$AC147=0.1))*0.5+SUMPRODUCT((K147:K147="◎")*($AC147:$AC147=1))+SUMPRODUCT((K147:K147="◎")*($AC147:$AC147=0.5)*0.5)+SUMPRODUCT((K147:K147="◎")*($AC147:$AC147=0.1))*0.1)),0) -> 0 | AP148: =IFERROR(L148/((SUMPRODUCT((L147:L147="○")*($AC147:$AC147=1))*0.5+SUMPRODUCT((L147:L147="○")*($AC147:$AC147=0.5))*0.5+SUMPRODUCT((L147:L147="○")*($AC147:$AC147=0.1))*0.5+SUMPRODUCT((L147:L147="◎")*($AC147:$AC147=1))+SUMPRODUCT((L147:L147="◎")*($AC147:$AC147=0.5)*0.5)+SUMPRODUCT((L147:L147="◎")*($AC147:$AC147=0.1))*0.1)),0) -> 0 | AQ148: =IFERROR(M148/((SUMPRODUCT((M147:M147="○")*($AC147:$AC147=1))*0.5+SUMPRODUCT((M147:M147="○")*($AC147:$AC147=0.5))*0.5+SUMPRODUCT((M147:M147="○")*($AC147:$AC147=0.1))*0.5+SUMPRODUCT((M147:M147="◎")*($AC147:$AC147=1))+SUMPRODUCT((M147:M147="◎")*($AC147:$AC147=0.5)*0.5)+SUMPRODUCT((M147:M147="◎")*($AC147:$AC147=0.1))*0.1)),0) -> 0 | AR148: =IFERROR(N148/((SUMPRODUCT((N147:N147="○")*($AC147:$AC147=1))*0.5+SUMPRODUCT((N147:N147="○")*($AC147:$AC147=0.5))*0.5+SUMPRODUCT((N147:N147="○")*($AC147:$AC147=0.1))*0.5+SUMPRODUCT((N147:N147="◎")*($AC147:$AC147=1))+SUMPRODUCT((N147:N147="◎")*($AC147:$AC147=0.5)*0.5)+SUMPRODUCT((N147:N147="◎")*($AC147:$AC147=0.1))*0.1)),0) -> 0 | AS148: =IFERROR(O148/((SUMPRODUCT((O147:O147="○")*($AC147:$AC147=1))*0.5+SUMPRODUCT((O147:O147="○")*($AC147:$AC147=0.5))*0.5+SUMPRODUCT((O147:O147="○")*($AC147:$AC147=0.1))*0.5+SUMPRODUCT((O147:O147="◎")*($AC147:$AC147=1))+SUMPRODUCT((O147:O147="◎")*($AC147:$AC147=0.5)*0.5)+SUMPRODUCT((O147:O147="◎")*($AC147:$AC147=0.1))*0.1)),0) -> 0 | AT148: =IFERROR(P148/((SUMPRODUCT((P147:P147="○")*($AC147:$AC147=1))*0.5+SUMPRODUCT((P147:P147="○")*($AC147:$AC147=0.5))*0.5+SUMPRODUCT((P147:P147="○")*($AC147:$AC147=0.1))*0.5+SUMPRODUCT((P147:P147="◎")*($AC147:$AC147=1))+SUMPRODUCT((P147:P147="◎")*($AC147:$AC147=0.5)*0.5)+SUMPRODUCT((P147:P147="◎")*($AC147:$AC147=0.1))*0.1)),0) -> 0 | AU148: =IFERROR(Q148/((SUMPRODUCT((Q147:Q147="○")*($AC147:$AC147=1))*0.5+SUMPRODUCT((Q147:Q147="○")*($AC147:$AC147=0.5))*0.5+SUMPRODUCT((Q147:Q147="○")*($AC147:$AC147=0.1))*0.5+SUMPRODUCT((Q147:Q147="◎")*($AC147:$AC147=1))+SUMPRODUCT((Q147:Q147="◎")*($AC147:$AC147=0.5)*0.5)+SUMPRODUCT((Q147:Q147="◎")*($AC147:$AC147=0.1))*0.1)),0) -> 0 | AV148: =IFERROR(R148/((SUMPRODUCT((R147:R147="○")*($AC147:$AC147=1))*0.5+SUMPRODUCT((R147:R147="○")*($AC147:$AC147=0.5))*0.5+SUMPRODUCT((R147:R147="○")*($AC147:$AC147=0.1))*0.5+SUMPRODUCT((R147:R147="◎")*($AC147:$AC147=1))+SUMPRODUCT((R147:R147="◎")*($AC147:$AC147=0.5)*0.5)+SUMPRODUCT((R147:R147="◎")*($AC147:$AC147=0.1))*0.1)),0) -> 0 | AW148: =IFERROR(S148/((SUMPRODUCT((S147:S147="○")*($AC147:$AC147=1))*0.5+SUMPRODUCT((S147:S147="○")*($AC147:$AC147=0.5))*0.5+SUMPRODUCT((S147:S147="○")*($AC147:$AC147=0.1))*0.5+SUMPRODUCT((S147:S147="◎")*($AC147:$AC147=1))+SUMPRODUCT((S147:S147="◎")*($AC147:$AC147=0.5)*0.5)+SUMPRODUCT((S147:S147="◎")*($AC147:$AC147=0.1))*0.1)),0) -> 0 | AX148: =IFERROR(T148/((SUMPRODUCT((T147:T147="○")*($AC147:$AC147=1))*0.5+SUMPRODUCT((T147:T147="○")*($AC147:$AC147=0.5))*0.5+SUMPRODUCT((T147:T147="○")*($AC147:$AC147=0.1))*0.5+SUMPRODUCT((T147:T147="◎")*($AC147:$AC147=1))+SUMPRODUCT((T147:T147="◎")*($AC147:$AC147=0.5)*0.5)+SUMPRODUCT((T147:T147="◎")*($AC147:$AC147=0.1))*0.1)),0) -> 0 | AY148: =IFERROR(U148/((SUMPRODUCT((U147:U147="○")*($AC147:$AC147=1))*0.5+SUMPRODUCT((U147:U147="○")*($AC147:$AC147=0.5))*0.5+SUMPRODUCT((U147:U147="○")*($AC147:$AC147=0.1))*0.5+SUMPRODUCT((U147:U147="◎")*($AC147:$AC147=1))+SUMPRODUCT((U147:U147="◎")*($AC147:$AC147=0.5)*0.5)+SUMPRODUCT((U147:U147="◎")*($AC147:$AC147=0.1))*0.1)),0) -> 0 | AZ148: =IFERROR(V148/((SUMPRODUCT((V147:V147="○")*($AC147:$AC147=1))*0.5+SUMPRODUCT((V147:V147="○")*($AC147:$AC147=0.5))*0.5+SUMPRODUCT((V147:V147="○")*($AC147:$AC147=0.1))*0.5+SUMPRODUCT((V147:V147="◎")*($AC147:$AC147=1))+SUMPRODUCT((V147:V147="◎")*($AC147:$AC147=0.5)*0.5)+SUMPRODUCT((V147:V147="◎")*($AC147:$AC147=0.1))*0.1)),0) -> 0 | BA148: =IFERROR(W148/((SUMPRODUCT((W147:W147="○")*($AC147:$AC147=1))*0.5+SUMPRODUCT((W147:W147="○")*($AC147:$AC147=0.5))*0.5+SUMPRODUCT((W147:W147="○")*($AC147:$AC147=0.1))*0.5+SUMPRODUCT((W147:W147="◎")*($AC147:$AC147=1))+SUMPRODUCT((W147:W147="◎")*($AC147:$AC147=0.5)*0.5)+SUMPRODUCT((W147:W147="◎")*($AC147:$AC147=0.1))*0.1)),0) -> 0 | BB148: =IFERROR(X148/((SUMPRODUCT((X147:X147="○")*($AC147:$AC147=1))*0.5+SUMPRODUCT((X147:X147="○")*($AC147:$AC147=0.5))*0.5+SUMPRODUCT((X147:X147="○")*($AC147:$AC147=0.1))*0.5+SUMPRODUCT((X147:X147="◎")*($AC147:$AC147=1))+SUMPRODUCT((X147:X147="◎")*($AC147:$AC147=0.5)*0.5)+SUMPRODUCT((X147:X147="◎")*($AC147:$AC147=0.1))*0.1)),0) -> 0
B149: =取組ﾁｪｯｸｼｰﾄ改訂版!B149 -> 0 | D149: 低騒音型の建築機械の使用等により工事騒音・振動の防止に取り組んでいる | E149: ３、１１、１５ | R149: ◎ | AD149: =SUM(AC149:AC156) -> 0 | AE149: =COUNTIF(B149,"○")+COUNTIF(B149,"△")+COUNTIF(B149,"×")+COUNTIF(B149,0) -> 1 | AF149: =SUM(AE149:AE156) -> 8 | AG149: =AD149/AF149 -> 0 | AH149: =SUMPRODUCT((H149:X149="○")*($AE149=1))*0.5+SUMPRODUCT((H149:X149="◎")*($AE149=1)) -> 1
B150: =取組ﾁｪｯｸｼｰﾄ改訂版!B150 -> 0 | D150: アスベストや粉じんの飛散防止等に取り組んでいる | J150: ◎ | R150: ◎ | S150: ◎ | AE150: 1 | AH150: 3
B151: =取組ﾁｪｯｸｼｰﾄ改訂版!B151 -> 0 | D151: 工事濁水による水質汚濁の防止等に取り組んでいる | M151: ○ | R151: ◎ | AE151: 1 | AH151: 1.5
B152: =取組ﾁｪｯｸｼｰﾄ改訂版!B152 -> 0 | D152: 出入り車輌の排ガス・騒音・振動の防止に取り組んでいる | R152: ◎ | AE152: 1 | AH152: 1
B153: =取組ﾁｪｯｸｼｰﾄ改訂版!B153 -> 0 | D153: 掘削工事、盛土工事における地盤の変化の防止に取り組んでいる | R153: ◎ | AE153: 1 | AH153: 1
B154: =取組ﾁｪｯｸｼｰﾄ改訂版!B154 -> 0 | D154: 工事中の樹木の保護を行っている | R154: ◎ | V154: ○ | AE154: 1 | AH154: 1.5
B155: =取組ﾁｪｯｸｼｰﾄ改訂版!B155 -> 0 | D155: 木材、コンクリート塊、汚泥、残土等の建設副産物の削減、再利用、分別、リサイクルに取り組んでいる | R155: ◎ | S155: ◎ | AE155: 1 | AH155: 2
B156: =取組ﾁｪｯｸｼｰﾄ改訂版!B156 -> 0 | D156: フロン、アスベストその他の有害物質の適正処理、代替材の使用等を行っている | J156: ◎ | R156: ◎ | S156: ◎ | AE156: 1 | AH156: 3
B157: =取組ﾁｪｯｸｼｰﾄ改訂版!B157 -> 5 建築物、構築物の環境への影響を予防するための方策 | H157: =(SUMPRODUCT((H148:H156="○")*($AC148:$AC156=1))*0.5+SUMPRODUCT((H148:H156="○")*($AC148:$AC156=0.5))*0.25+SUMPRODUCT((H148:H156="○")*($AC148:$AC156=0.1))*0.05+SUMPRODUCT((H148:H156="◎")*($AC148:$AC156=1))+SUMPRODUCT((H148:H156="◎")*($AC148:$AC156=0.5)*0.5)+SUMPRODUCT((H148:H156="◎")*($AC148:$AC156=0.1))*0.1) -> 0 | I157: 0 | J157: 0 | K157: 0 | L157: 0 | M157: 0 | N157: 0 | O157: 0 | P157: 0 | Q157: 0 | R157: =(SUMPRODUCT((R148:R156="○")*($AC148:$AC156=1))*0.5+SUMPRODUCT((R148:R156="○")*($AC148:$AC156=0.5))*0.25+SUMPRODUCT((R148:R156="○")*($AC148:$AC156=0.1))*0.05+SUMPRODUCT((R148:R156="◎")*($AC148:$AC156=1))+SUMPRODUCT((R148:R156="◎")*($AC148:$AC156=0.5)*0.5)+SUMPRODUCT((R148:R156="◎")*($AC148:$AC156=0.1))*0.1) -> 0 | S157: =(SUMPRODUCT((S148:S156="○")*($AC148:$AC156=1))*0.5+SUMPRODUCT((S148:S156="○")*($AC148:$AC156=0.5))*0.25+SUMPRODUCT((S148:S156="○")*($AC148:$AC156=0.1))*0.05+SUMPRODUCT((S148:S156="◎")*($AC148:$AC156=1))+SUMPRODUCT((S148:S156="◎")*($AC148:$AC156=0.5)*0.5)+SUMPRODUCT((S148:S156="◎")*($AC148:$AC156=0.1))*0.1) -> 0 | T157: 0 | U157: 0 | V157: 0 | W157: 0 | X157: 0 | AE157: =SUBTOTAL(9,AE149:AE156) -> 8 | AH157: =SUM(AH148:AH156) -> 15.5 | AI157: =IF(AE157=0,"",SUM(H157:X157)/AH157) -> 0 | AL157: =IFERROR(H157/((SUMPRODUCT((H149:H156="○")*($AC149:$AC156=1))*0.5+SUMPRODUCT((H149:H156="○")*($AC149:$AC156=0.5))*0.5+SUMPRODUCT((H149:H156="○")*($AC149:$AC156=0.1))*0.5+SUMPRODUCT((H149:H156="◎")*($AC149:$AC156=1))+SUMPRODUCT((H149:H156="◎")*($AC149:$AC156=0.5)*0.5)+SUMPRODUCT((H149:H156="◎")*($AC149:$AC156=0.1))*0.1)),0) -> 0 | AM157: =IFERROR(I157/((SUMPRODUCT((I149:I156="○")*($AC149:$AC156=1))*0.5+SUMPRODUCT((I149:I156="○")*($AC149:$AC156=0.5))*0.5+SUMPRODUCT((I149:I156="○")*($AC149:$AC156=0.1))*0.5+SUMPRODUCT((I149:I156="◎")*($AC149:$AC156=1))+SUMPRODUCT((I149:I156="◎")*($AC149:$AC156=0.5)*0.5)+SUMPRODUCT((I149:I156="◎")*($AC149:$AC156=0.1))*0.1)),0) -> 0 | AN157: =IFERROR(J157/((SUMPRODUCT((J149:J156="○")*($AC149:$AC156=1))*0.5+SUMPRODUCT((J149:J156="○")*($AC149:$AC156=0.5))*0.5+SUMPRODUCT((J149:J156="○")*($AC149:$AC156=0.1))*0.5+SUMPRODUCT((J149:J156="◎")*($AC149:$AC156=1))+SUMPRODUCT((J149:J156="◎")*($AC149:$AC156=0.5)*0.5)+SUMPRODUCT((J149:J156="◎")*($AC149:$AC156=0.1))*0.1)),0) -> 0 | AO157: =IFERROR(K157/((SUMPRODUCT((K149:K156="○")*($AC149:$AC156=1))*0.5+SUMPRODUCT((K149:K156="○")*($AC149:$AC156=0.5))*0.5+SUMPRODUCT((K149:K156="○")*($AC149:$AC156=0.1))*0.5+SUMPRODUCT((K149:K156="◎")*($AC149:$AC156=1))+SUMPRODUCT((K149:K156="◎")*($AC149:$AC156=0.5)*0.5)+SUMPRODUCT((K149:K156="◎")*($AC149:$AC156=0.1))*0.1)),0) -> 0 | AP157: =IFERROR(L157/((SUMPRODUCT((L149:L156="○")*($AC149:$AC156=1))*0.5+SUMPRODUCT((L149:L156="○")*($AC149:$AC156=0.5))*0.5+SUMPRODUCT((L149:L156="○")*($AC149:$AC156=0.1))*0.5+SUMPRODUCT((L149:L156="◎")*($AC149:$AC156=1))+SUMPRODUCT((L149:L156="◎")*($AC149:$AC156=0.5)*0.5)+SUMPRODUCT((L149:L156="◎")*($AC149:$AC156=0.1))*0.1)),0) -> 0 | AQ157: =IFERROR(M157/((SUMPRODUCT((M149:M156="○")*($AC149:$AC156=1))*0.5+SUMPRODUCT((M149:M156="○")*($AC149:$AC156=0.5))*0.5+SUMPRODUCT((M149:M156="○")*($AC149:$AC156=0.1))*0.5+SUMPRODUCT((M149:M156="◎")*($AC149:$AC156=1))+SUMPRODUCT((M149:M156="◎")*($AC149:$AC156=0.5)*0.5)+SUMPRODUCT((M149:M156="◎")*($AC149:$AC156=0.1))*0.1)),0) -> 0 | AR157: =IFERROR(N157/((SUMPRODUCT((N149:N156="○")*($AC149:$AC156=1))*0.5+SUMPRODUCT((N149:N156="○")*($AC149:$AC156=0.5))*0.5+SUMPRODUCT((N149:N156="○")*($AC149:$AC156=0.1))*0.5+SUMPRODUCT((N149:N156="◎")*($AC149:$AC156=1))+SUMPRODUCT((N149:N156="◎")*($AC149:$AC156=0.5)*0.5)+SUMPRODUCT((N149:N156="◎")*($AC149:$AC156=0.1))*0.1)),0) -> 0 | AS157: =IFERROR(O157/((SUMPRODUCT((O149:O156="○")*($AC149:$AC156=1))*0.5+SUMPRODUCT((O149:O156="○")*($AC149:$AC156=0.5))*0.5+SUMPRODUCT((O149:O156="○")*($AC149:$AC156=0.1))*0.5+SUMPRODUCT((O149:O156="◎")*($AC149:$AC156=1))+SUMPRODUCT((O149:O156="◎")*($AC149:$AC156=0.5)*0.5)+SUMPRODUCT((O149:O156="◎")*($AC149:$AC156=0.1))*0.1)),0) -> 0 | AT157: =IFERROR(P157/((SUMPRODUCT((P149:P156="○")*($AC149:$AC156=1))*0.5+SUMPRODUCT((P149:P156="○")*($AC149:$AC156=0.5))*0.5+SUMPRODUCT((P149:P156="○")*($AC149:$AC156=0.1))*0.5+SUMPRODUCT((P149:P156="◎")*($AC149:$AC156=1))+SUMPRODUCT((P149:P156="◎")*($AC149:$AC156=0.5)*0.5)+SUMPRODUCT((P149:P156="◎")*($AC149:$AC156=0.1))*0.1)),0) -> 0 | AU157: =IFERROR(Q157/((SUMPRODUCT((Q149:Q156="○")*($AC149:$AC156=1))*0.5+SUMPRODUCT((Q149:Q156="○")*($AC149:$AC156=0.5))*0.5+SUMPRODUCT((Q149:Q156="○")*($AC149:$AC156=0.1))*0.5+SUMPRODUCT((Q149:Q156="◎")*($AC149:$AC156=1))+SUMPRODUCT((Q149:Q156="◎")*($AC149:$AC156=0.5)*0.5)+SUMPRODUCT((Q149:Q156="◎")*($AC149:$AC156=0.1))*0.1)),0) -> 0 | AV157: =IFERROR(R157/((SUMPRODUCT((R149:R156="○")*($AC149:$AC156=1))*0.5+SUMPRODUCT((R149:R156="○")*($AC149:$AC156=0.5))*0.5+SUMPRODUCT((R149:R156="○")*($AC149:$AC156=0.1))*0.5+SUMPRODUCT((R149:R156="◎")*($AC149:$AC156=1))+SUMPRODUCT((R149:R156="◎")*($AC149:$AC156=0.5)*0.5)+SUMPRODUCT((R149:R156="◎")*($AC149:$AC156=0.1))*0.1)),0) -> 0 | AW157: =IFERROR(S157/((SUMPRODUCT((S149:S156="○")*($AC149:$AC156=1))*0.5+SUMPRODUCT((S149:S156="○")*($AC149:$AC156=0.5))*0.5+SUMPRODUCT((S149:S156="○")*($AC149:$AC156=0.1))*0.5+SUMPRODUCT((S149:S156="◎")*($AC149:$AC156=1))+SUMPRODUCT((S149:S156="◎")*($AC149:$AC156=0.5)*0.5)+SUMPRODUCT((S149:S156="◎")*($AC149:$AC156=0.1))*0.1)),0) -> 0 | AX157: =IFERROR(T157/((SUMPRODUCT((T149:T156="○")*($AC149:$AC156=1))*0.5+SUMPRODUCT((T149:T156="○")*($AC149:$AC156=0.5))*0.5+SUMPRODUCT((T149:T156="○")*($AC149:$AC156=0.1))*0.5+SUMPRODUCT((T149:T156="◎")*($AC149:$AC156=1))+SUMPRODUCT((T149:T156="◎")*($AC149:$AC156=0.5)*0.5)+SUMPRODUCT((T149:T156="◎")*($AC149:$AC156=0.1))*0.1)),0) -> 0 | AY157: =IFERROR(U157/((SUMPRODUCT((U149:U156="○")*($AC149:$AC156=1))*0.5+SUMPRODUCT((U149:U156="○")*($AC149:$AC156=0.5))*0.5+SUMPRODUCT((U149:U156="○")*($AC149:$AC156=0.1))*0.5+SUMPRODUCT((U149:U156="◎")*($AC149:$AC156=1))+SUMPRODUCT((U149:U156="◎")*($AC149:$AC156=0.5)*0.5)+SUMPRODUCT((U149:U156="◎")*($AC149:$AC156=0.1))*0.1)),0) -> 0 | AZ157: =IFERROR(V157/((SUMPRODUCT((V149:V156="○")*($AC149:$AC156=1))*0.5+SUMPRODUCT((V149:V156="○")*($AC149:$AC156=0.5))*0.5+SUMPRODUCT((V149:V156="○")*($AC149:$AC156=0.1))*0.5+SUMPRODUCT((V149:V156="◎")*($AC149:$AC156=1))+SUMPRODUCT((V149:V156="◎")*($AC149:$AC156=0.5)*0.5)+SUMPRODUCT((V149:V156="◎")*($AC149:$AC156=0.1))*0.1)),0) -> 0 | BA157: =IFERROR(W157/((SUMPRODUCT((W149:W156="○")*($AC149:$AC156=1))*0.5+SUMPRODUCT((W149:W156="○")*($AC149:$AC156=0.5))*0.5+SUMPRODUCT((W149:W156="○")*($AC149:$AC156=0.1))*0.5+SUMPRODUCT((W149:W156="◎")*($AC149:$AC156=1))+SUMPRODUCT((W149:W156="◎")*($AC149:$AC156=0.5)*0.5)+SUMPRODUCT((W149:W156="◎")*($AC149:$AC156=0.1))*0.1)),0) -> 0 | BB157: =IFERROR(X157/((SUMPRODUCT((X149:X156="○")*($AC149:$AC156=1))*0.5+SUMPRODUCT((X149:X156="○")*($AC149:$AC156=0.5))*0.5+SUMPRODUCT((X149:X156="○")*($AC149:$AC156=0.1))*0.5+SUMPRODUCT((X149:X156="◎")*($AC149:$AC156=1))+SUMPRODUCT((X149:X156="◎")*($AC149:$AC156=0.5)*0.5)+SUMPRODUCT((X149:X156="◎")*($AC149:$AC156=0.1))*0.1)),0) -> 0
B158: =取組ﾁｪｯｸｼｰﾄ改訂版!B158 -> 0 | D158: 竣工建築の環境面に配慮した管理、メンテナンス等を行っている | E158: ９、１１ | N158: ○ | R158: ◎ | S158: ○ | AD158: =SUM(AC158:AC160) -> 0 | AE158: =COUNTIF(B158,"○")+COUNTIF(B158,"△")+COUNTIF(B158,"×")+COUNTIF(B158,0) -> 1 | AF158: =SUM(AE158:AE160) -> 3 | AG158: =AD158/AF158 -> 0 | AH158: 2
B159: =取組ﾁｪｯｸｼｰﾄ改訂版!B159 -> 0 | D159: 建造物の老朽化や運用の診断を行い、改善や環境保全設備の見直し等の提案を行っている | N159: ○ | R159: ◎ | AE159: 1 | AH159: 1.5
B160: =取組ﾁｪｯｸｼｰﾄ改訂版!B160 -> 0 | D160: 建築物の耐久性の向上に取り組んでいる | R160: ◎ | S160: ○ | AE160: 1 | AH160: 1.5
B161: =取組ﾁｪｯｸｼｰﾄ改訂版!B161 -> 6 施設閉鎖、建築物の解体等の際の環境配慮 | H161: =(SUMPRODUCT((H158:H160="○")*($AC158:$AC160=1))*0.5+SUMPRODUCT((H158:H160="○")*($AC158:$AC160=0.5))*0.25+SUMPRODUCT((H158:H160="○")*($AC158:$AC160=0.1))*0.05+SUMPRODUCT((H158:H160="◎")*($AC158:$AC160=1))+SUMPRODUCT((H158:H160="◎")*($AC158:$AC160=0.5)*0.5)+SUMPRODUCT((H158:H160="◎")*($AC158:$AC160=0.1))*0.1) -> 0 | I161: =(SUMPRODUCT((I158:I160="○")*($AC158:$AC160=1))*0.5+SUMPRODUCT((I158:I160="○")*($AC158:$AC160=0.5))*0.25+SUMPRODUCT((I158:I160="○")*($AC158:$AC160=0.1))*0.05+SUMPRODUCT((I158:I160="◎")*($AC158:$AC160=1))+SUMPRODUCT((I158:I160="◎")*($AC158:$AC160=0.5)*0.5)+SUMPRODUCT((I158:I160="◎")*($AC158:$AC160=0.1))*0.1) -> 0 | J161: =(SUMPRODUCT((J158:J160="○")*($AC158:$AC160=1))*0.5+SUMPRODUCT((J158:J160="○")*($AC158:$AC160=0.5))*0.25+SUMPRODUCT((J158:J160="○")*($AC158:$AC160=0.1))*0.05+SUMPRODUCT((J158:J160="◎")*($AC158:$AC160=1))+SUMPRODUCT((J158:J160="◎")*($AC158:$AC160=0.5)*0.5)+SUMPRODUCT((J158:J160="◎")*($AC158:$AC160=0.1))*0.1) -> 0 | K161: =(SUMPRODUCT((K158:K160="○")*($AC158:$AC160=1))*0.5+SUMPRODUCT((K158:K160="○")*($AC158:$AC160=0.5))*0.25+SUMPRODUCT((K158:K160="○")*($AC158:$AC160=0.1))*0.05+SUMPRODUCT((K158:K160="◎")*($AC158:$AC160=1))+SUMPRODUCT((K158:K160="◎")*($AC158:$AC160=0.5)*0.5)+SUMPRODUCT((K158:K160="◎")*($AC158:$AC160=0.1))*0.1) -> 0 | L161: =(SUMPRODUCT((L158:L160="○")*($AC158:$AC160=1))*0.5+SUMPRODUCT((L158:L160="○")*($AC158:$AC160=0.5))*0.25+SUMPRODUCT((L158:L160="○")*($AC158:$AC160=0.1))*0.05+SUMPRODUCT((L158:L160="◎")*($AC158:$AC160=1))+SUMPRODUCT((L158:L160="◎")*($AC158:$AC160=0.5)*0.5)+SUMPRODUCT((L158:L160="◎")*($AC158:$AC160=0.1))*0.1) -> 0 | M161: =(SUMPRODUCT((M158:M160="○")*($AC158:$AC160=1))*0.5+SUMPRODUCT((M158:M160="○")*($AC158:$AC160=0.5))*0.25+SUMPRODUCT((M158:M160="○")*($AC158:$AC160=0.1))*0.05+SUMPRODUCT((M158:M160="◎")*($AC158:$AC160=1))+SUMPRODUCT((M158:M160="◎")*($AC158:$AC160=0.5)*0.5)+SUMPRODUCT((M158:M160="◎")*($AC158:$AC160=0.1))*0.1) -> 0 | N161: =(SUMPRODUCT((N158:N160="○")*($AC158:$AC160=1))*0.5+SUMPRODUCT((N158:N160="○")*($AC158:$AC160=0.5))*0.25+SUMPRODUCT((N158:N160="○")*($AC158:$AC160=0.1))*0.05+SUMPRODUCT((N158:N160="◎")*($AC158:$AC160=1))+SUMPRODUCT((N158:N160="◎")*($AC158:$AC160=0.5)*0.5)+SUMPRODUCT((N158:N160="◎")*($AC158:$AC160=0.1))*0.1) -> 0 | O161: =(SUMPRODUCT((O158:O160="○")*($AC158:$AC160=1))*0.5+SUMPRODUCT((O158:O160="○")*($AC158:$AC160=0.5))*0.25+SUMPRODUCT((O158:O160="○")*($AC158:$AC160=0.1))*0.05+SUMPRODUCT((O158:O160="◎")*($AC158:$AC160=1))+SUMPRODUCT((O158:O160="◎")*($AC158:$AC160=0.5)*0.5)+SUMPRODUCT((O158:O160="◎")*($AC158:$AC160=0.1))*0.1) -> 0 | P161: =(SUMPRODUCT((P158:P160="○")*($AC158:$AC160=1))*0.5+SUMPRODUCT((P158:P160="○")*($AC158:$AC160=0.5))*0.25+SUMPRODUCT((P158:P160="○")*($AC158:$AC160=0.1))*0.05+SUMPRODUCT((P158:P160="◎")*($AC158:$AC160=1))+SUMPRODUCT((P158:P160="◎")*($AC158:$AC160=0.5)*0.5)+SUMPRODUCT((P158:P160="◎")*($AC158:$AC160=0.1))*0.1) -> 0 | Q161: =(SUMPRODUCT((Q158:Q160="○")*($AC158:$AC160=1))*0.5+SUMPRODUCT((Q158:Q160="○")*($AC158:$AC160=0.5))*0.25+SUMPRODUCT((Q158:Q160="○")*($AC158:$AC160=0.1))*0.05+SUMPRODUCT((Q158:Q160="◎")*($AC158:$AC160=1))+SUMPRODUCT((Q158:Q160="◎")*($AC158:$AC160=0.5)*0.5)+SUMPRODUCT((Q158:Q160="◎")*($AC158:$AC160=0.1))*0.1) -> 0 | R161: =(SUMPRODUCT((R158:R160="○")*($AC158:$AC160=1))*0.5+SUMPRODUCT((R158:R160="○")*($AC158:$AC160=0.5))*0.25+SUMPRODUCT((R158:R160="○")*($AC158:$AC160=0.1))*0.05+SUMPRODUCT((R158:R160="◎")*($AC158:$AC160=1))+SUMPRODUCT((R158:R160="◎")*($AC158:$AC160=0.5)*0.5)+SUMPRODUCT((R158:R160="◎")*($AC158:$AC160=0.1))*0.1) -> 0 | S161: =(SUMPRODUCT((S158:S160="○")*($AC158:$AC160=1))*0.5+SUMPRODUCT((S158:S160="○")*($AC158:$AC160=0.5))*0.25+SUMPRODUCT((S158:S160="○")*($AC158:$AC160=0.1))*0.05+SUMPRODUCT((S158:S160="◎")*($AC158:$AC160=1))+SUMPRODUCT((S158:S160="◎")*($AC158:$AC160=0.5)*0.5)+SUMPRODUCT((S158:S160="◎")*($AC158:$AC160=0.1))*0.1) -> 0 | T161: =(SUMPRODUCT((T158:T160="○")*($AC158:$AC160=1))*0.5+SUMPRODUCT((T158:T160="○")*($AC158:$AC160=0.5))*0.25+SUMPRODUCT((T158:T160="○")*($AC158:$AC160=0.1))*0.05+SUMPRODUCT((T158:T160="◎")*($AC158:$AC160=1))+SUMPRODUCT((T158:T160="◎")*($AC158:$AC160=0.5)*0.5)+SUMPRODUCT((T158:T160="◎")*($AC158:$AC160=0.1))*0.1) -> 0 | U161: =(SUMPRODUCT((U158:U160="○")*($AC158:$AC160=1))*0.5+SUMPRODUCT((U158:U160="○")*($AC158:$AC160=0.5))*0.25+SUMPRODUCT((U158:U160="○")*($AC158:$AC160=0.1))*0.05+SUMPRODUCT((U158:U160="◎")*($AC158:$AC160=1))+SUMPRODUCT((U158:U160="◎")*($AC158:$AC160=0.5)*0.5)+SUMPRODUCT((U158:U160="◎")*($AC158:$AC160=0.1))*0.1) -> 0 | V161: =(SUMPRODUCT((V158:V160="○")*($AC158:$AC160=1))*0.5+SUMPRODUCT((V158:V160="○")*($AC158:$AC160=0.5))*0.25+SUMPRODUCT((V158:V160="○")*($AC158:$AC160=0.1))*0.05+SUMPRODUCT((V158:V160="◎")*($AC158:$AC160=1))+SUMPRODUCT((V158:V160="◎")*($AC158:$AC160=0.5)*0.5)+SUMPRODUCT((V158:V160="◎")*($AC158:$AC160=0.1))*0.1) -> 0 | W161: =(SUMPRODUCT((W158:W160="○")*($AC158:$AC160=1))*0.5+SUMPRODUCT((W158:W160="○")*($AC158:$AC160=0.5))*0.25+SUMPRODUCT((W158:W160="○")*($AC158:$AC160=0.1))*0.05+SUMPRODUCT((W158:W160="◎")*($AC158:$AC160=1))+SUMPRODUCT((W158:W160="◎")*($AC158:$AC160=0.5)*0.5)+SUMPRODUCT((W158:W160="◎")*($AC158:$AC160=0.1))*0.1) -> 0 | X161: =(SUMPRODUCT((X158:X160="○")*($AC158:$AC160=1))*0.5+SUMPRODUCT((X158:X160="○")*($AC158:$AC160=0.5))*0.25+SUMPRODUCT((X158:X160="○")*($AC158:$AC160=0.1))*0.05+SUMPRODUCT((X158:X160="◎")*($AC158:$AC160=1))+SUMPRODUCT((X158:X160="◎")*($AC158:$AC160=0.5)*0.5)+SUMPRODUCT((X158:X160="◎")*($AC158:$AC160=0.1))*0.1) -> 0 | AC161: =IF(B161="○",1,IF(B161="△",0.5,IF(B161="×",0.1,""))) ->  | AE161: =SUBTOTAL(9,AE158:AE160) -> 3 | AH161: =SUM(AH158:AH160) -> 5 | AI161: =IF(AE161=0,"",SUM(H161:X161)/AH161) -> 0 | AL161: =IFERROR(H161/((SUMPRODUCT((H158:H160="○")*($AC158:$AC160=1))*0.5+SUMPRODUCT((H158:H160="○")*($AC158:$AC160=0.5))*0.5+SUMPRODUCT((H158:H160="○")*($AC158:$AC160=0.1))*0.5+SUMPRODUCT((H158:H160="◎")*($AC158:$AC160=1))+SUMPRODUCT((H158:H160="◎")*($AC158:$AC160=0.5)*0.5)+SUMPRODUCT((H158:H160="◎")*($AC158:$AC160=0.1))*0.1)),0) -> 0 | AM161: =IFERROR(I161/((SUMPRODUCT((I158:I160="○")*($AC158:$AC160=1))*0.5+SUMPRODUCT((I158:I160="○")*($AC158:$AC160=0.5))*0.5+SUMPRODUCT((I158:I160="○")*($AC158:$AC160=0.1))*0.5+SUMPRODUCT((I158:I160="◎")*($AC158:$AC160=1))+SUMPRODUCT((I158:I160="◎")*($AC158:$AC160=0.5)*0.5)+SUMPRODUCT((I158:I160="◎")*($AC158:$AC160=0.1))*0.1)),0) -> 0 | AN161: =IFERROR(J161/((SUMPRODUCT((J158:J160="○")*($AC158:$AC160=1))*0.5+SUMPRODUCT((J158:J160="○")*($AC158:$AC160=0.5))*0.5+SUMPRODUCT((J158:J160="○")*($AC158:$AC160=0.1))*0.5+SUMPRODUCT((J158:J160="◎")*($AC158:$AC160=1))+SUMPRODUCT((J158:J160="◎")*($AC158:$AC160=0.5)*0.5)+SUMPRODUCT((J158:J160="◎")*($AC158:$AC160=0.1))*0.1)),0) -> 0 | AO161: =IFERROR(K161/((SUMPRODUCT((K158:K160="○")*($AC158:$AC160=1))*0.5+SUMPRODUCT((K158:K160="○")*($AC158:$AC160=0.5))*0.5+SUMPRODUCT((K158:K160="○")*($AC158:$AC160=0.1))*0.5+SUMPRODUCT((K158:K160="◎")*($AC158:$AC160=1))+SUMPRODUCT((K158:K160="◎")*($AC158:$AC160=0.5)*0.5)+SUMPRODUCT((K158:K160="◎")*($AC158:$AC160=0.1))*0.1)),0) -> 0 | AP161: =IFERROR(L161/((SUMPRODUCT((L158:L160="○")*($AC158:$AC160=1))*0.5+SUMPRODUCT((L158:L160="○")*($AC158:$AC160=0.5))*0.5+SUMPRODUCT((L158:L160="○")*($AC158:$AC160=0.1))*0.5+SUMPRODUCT((L158:L160="◎")*($AC158:$AC160=1))+SUMPRODUCT((L158:L160="◎")*($AC158:$AC160=0.5)*0.5)+SUMPRODUCT((L158:L160="◎")*($AC158:$AC160=0.1))*0.1)),0) -> 0 | AQ161: =IFERROR(M161/((SUMPRODUCT((M158:M160="○")*($AC158:$AC160=1))*0.5+SUMPRODUCT((M158:M160="○")*($AC158:$AC160=0.5))*0.5+SUMPRODUCT((M158:M160="○")*($AC158:$AC160=0.1))*0.5+SUMPRODUCT((M158:M160="◎")*($AC158:$AC160=1))+SUMPRODUCT((M158:M160="◎")*($AC158:$AC160=0.5)*0.5)+SUMPRODUCT((M158:M160="◎")*($AC158:$AC160=0.1))*0.1)),0) -> 0 | AR161: =IFERROR(N161/((SUMPRODUCT((N158:N160="○")*($AC158:$AC160=1))*0.5+SUMPRODUCT((N158:N160="○")*($AC158:$AC160=0.5))*0.5+SUMPRODUCT((N158:N160="○")*($AC158:$AC160=0.1))*0.5+SUMPRODUCT((N158:N160="◎")*($AC158:$AC160=1))+SUMPRODUCT((N158:N160="◎")*($AC158:$AC160=0.5)*0.5)+SUMPRODUCT((N158:N160="◎")*($AC158:$AC160=0.1))*0.1)),0) -> 0 | AS161: =IFERROR(O161/((SUMPRODUCT((O158:O160="○")*($AC158:$AC160=1))*0.5+SUMPRODUCT((O158:O160="○")*($AC158:$AC160=0.5))*0.5+SUMPRODUCT((O158:O160="○")*($AC158:$AC160=0.1))*0.5+SUMPRODUCT((O158:O160="◎")*($AC158:$AC160=1))+SUMPRODUCT((O158:O160="◎")*($AC158:$AC160=0.5)*0.5)+SUMPRODUCT((O158:O160="◎")*($AC158:$AC160=0.1))*0.1)),0) -> 0 | AT161: =IFERROR(P161/((SUMPRODUCT((P158:P160="○")*($AC158:$AC160=1))*0.5+SUMPRODUCT((P158:P160="○")*($AC158:$AC160=0.5))*0.5+SUMPRODUCT((P158:P160="○")*($AC158:$AC160=0.1))*0.5+SUMPRODUCT((P158:P160="◎")*($AC158:$AC160=1))+SUMPRODUCT((P158:P160="◎")*($AC158:$AC160=0.5)*0.5)+SUMPRODUCT((P158:P160="◎")*($AC158:$AC160=0.1))*0.1)),0) -> 0 | AU161: =IFERROR(Q161/((SUMPRODUCT((Q158:Q160="○")*($AC158:$AC160=1))*0.5+SUMPRODUCT((Q158:Q160="○")*($AC158:$AC160=0.5))*0.5+SUMPRODUCT((Q158:Q160="○")*($AC158:$AC160=0.1))*0.5+SUMPRODUCT((Q158:Q160="◎")*($AC158:$AC160=1))+SUMPRODUCT((Q158:Q160="◎")*($AC158:$AC160=0.5)*0.5)+SUMPRODUCT((Q158:Q160="◎")*($AC158:$AC160=0.1))*0.1)),0) -> 0 | AV161: =IFERROR(R161/((SUMPRODUCT((R158:R160="○")*($AC158:$AC160=1))*0.5+SUMPRODUCT((R158:R160="○")*($AC158:$AC160=0.5))*0.5+SUMPRODUCT((R158:R160="○")*($AC158:$AC160=0.1))*0.5+SUMPRODUCT((R158:R160="◎")*($AC158:$AC160=1))+SUMPRODUCT((R158:R160="◎")*($AC158:$AC160=0.5)*0.5)+SUMPRODUCT((R158:R160="◎")*($AC158:$AC160=0.1))*0.1)),0) -> 0 | AW161: =IFERROR(S161/((SUMPRODUCT((S158:S160="○")*($AC158:$AC160=1))*0.5+SUMPRODUCT((S158:S160="○")*($AC158:$AC160=0.5))*0.5+SUMPRODUCT((S158:S160="○")*($AC158:$AC160=0.1))*0.5+SUMPRODUCT((S158:S160="◎")*($AC158:$AC160=1))+SUMPRODUCT((S158:S160="◎")*($AC158:$AC160=0.5)*0.5)+SUMPRODUCT((S158:S160="◎")*($AC158:$AC160=0.1))*0.1)),0) -> 0 | AX161: =IFERROR(T161/((SUMPRODUCT((T158:T160="○")*($AC158:$AC160=1))*0.5+SUMPRODUCT((T158:T160="○")*($AC158:$AC160=0.5))*0.5+SUMPRODUCT((T158:T160="○")*($AC158:$AC160=0.1))*0.5+SUMPRODUCT((T158:T160="◎")*($AC158:$AC160=1))+SUMPRODUCT((T158:T160="◎")*($AC158:$AC160=0.5)*0.5)+SUMPRODUCT((T158:T160="◎")*($AC158:$AC160=0.1))*0.1)),0) -> 0 | AY161: =IFERROR(U161/((SUMPRODUCT((U158:U160="○")*($AC158:$AC160=1))*0.5+SUMPRODUCT((U158:U160="○")*($AC158:$AC160=0.5))*0.5+SUMPRODUCT((U158:U160="○")*($AC158:$AC160=0.1))*0.5+SUMPRODUCT((U158:U160="◎")*($AC158:$AC160=1))+SUMPRODUCT((U158:U160="◎")*($AC158:$AC160=0.5)*0.5)+SUMPRODUCT((U158:U160="◎")*($AC158:$AC160=0.1))*0.1)),0) -> 0 | AZ161: =IFERROR(V161/((SUMPRODUCT((V158:V160="○")*($AC158:$AC160=1))*0.5+SUMPRODUCT((V158:V160="○")*($AC158:$AC160=0.5))*0.5+SUMPRODUCT((V158:V160="○")*($AC158:$AC160=0.1))*0.5+SUMPRODUCT((V158:V160="◎")*($AC158:$AC160=1))+SUMPRODUCT((V158:V160="◎")*($AC158:$AC160=0.5)*0.5)+SUMPRODUCT((V158:V160="◎")*($AC158:$AC160=0.1))*0.1)),0) -> 0 | BA161: =IFERROR(W161/((SUMPRODUCT((W158:W160="○")*($AC158:$AC160=1))*0.5+SUMPRODUCT((W158:W160="○")*($AC158:$AC160=0.5))*0.5+SUMPRODUCT((W158:W160="○")*($AC158:$AC160=0.1))*0.5+SUMPRODUCT((W158:W160="◎")*($AC158:$AC160=1))+SUMPRODUCT((W158:W160="◎")*($AC158:$AC160=0.5)*0.5)+SUMPRODUCT((W158:W160="◎")*($AC158:$AC160=0.1))*0.1)),0) -> 0 | BB161: =IFERROR(X161/((SUMPRODUCT((X158:X160="○")*($AC158:$AC160=1))*0.5+SUMPRODUCT((X158:X160="○")*($AC158:$AC160=0.5))*0.5+SUMPRODUCT((X158:X160="○")*($AC158:$AC160=0.1))*0.5+SUMPRODUCT((X158:X160="◎")*($AC158:$AC160=1))+SUMPRODUCT((X158:X160="◎")*($AC158:$AC160=0.5)*0.5)+SUMPRODUCT((X158:X160="◎")*($AC158:$AC160=0.1))*0.1)),0) -> 0
B162: =取組ﾁｪｯｸｼｰﾄ改訂版!B162 -> 0 | D162: 施設の閉鎖時に、環境影響評価を行っている | E162: １１ | J162: ○ | N162: ○ | R162: ◎ | S162: ○ | AD162: =SUM(AC162:AC164) -> 0 | AE162: =COUNTIF(B162,"○")+COUNTIF(B162,"△")+COUNTIF(B162,"×")+COUNTIF(B162,0) -> 1 | AF162: =SUM(AE162:AE164) -> 3 | AG162: =AD162/AF162 -> 0 | AH162: 2.5
B163: =取組ﾁｪｯｸｼｰﾄ改訂版!B163 -> 0 | D163: 建築物の解体に当たっては、吹きつけアスベストを事前に除去している | J163: ◎ | R163: ◎ | S163: ○ | AE163: 1 | AH163: 2.5
B164: =取組ﾁｪｯｸｼｰﾄ改訂版!B164 -> 0 | D164: 現状から用途転換をする等の計画プロジェクトの前に環境影響評価を行っている | J164: ○ | N164: ○ | R164: ◎ | S164: ○ | AE164: 1 | AH164: 2.5
C165: チェック欄数：２１ | H165: =(SUMPRODUCT((H162:H164="○")*($AC162:$AC164=1))*0.5+SUMPRODUCT((H162:H164="○")*($AC162:$AC164=0.5))*0.25+SUMPRODUCT((H162:H164="○")*($AC162:$AC164=0.1))*0.05+SUMPRODUCT((H162:H164="◎")*($AC162:$AC164=1))+SUMPRODUCT((H162:H164="◎")*($AC162:$AC164=0.5)*0.5)+SUMPRODUCT((H162:H164="◎")*($AC162:$AC164=0.1))*0.1) -> 0 | I165: =(SUMPRODUCT((I162:I164="○")*($AC162:$AC164=1))*0.5+SUMPRODUCT((I162:I164="○")*($AC162:$AC164=0.5))*0.25+SUMPRODUCT((I162:I164="○")*($AC162:$AC164=0.1))*0.05+SUMPRODUCT((I162:I164="◎")*($AC162:$AC164=1))+SUMPRODUCT((I162:I164="◎")*($AC162:$AC164=0.5)*0.5)+SUMPRODUCT((I162:I164="◎")*($AC162:$AC164=0.1))*0.1) -> 0 | J165: =(SUMPRODUCT((J162:J164="○")*($AC162:$AC164=1))*0.5+SUMPRODUCT((J162:J164="○")*($AC162:$AC164=0.5))*0.25+SUMPRODUCT((J162:J164="○")*($AC162:$AC164=0.1))*0.05+SUMPRODUCT((J162:J164="◎")*($AC162:$AC164=1))+SUMPRODUCT((J162:J164="◎")*($AC162:$AC164=0.5)*0.5)+SUMPRODUCT((J162:J164="◎")*($AC162:$AC164=0.1))*0.1) -> 0 | K165: =(SUMPRODUCT((K162:K164="○")*($AC162:$AC164=1))*0.5+SUMPRODUCT((K162:K164="○")*($AC162:$AC164=0.5))*0.25+SUMPRODUCT((K162:K164="○")*($AC162:$AC164=0.1))*0.05+SUMPRODUCT((K162:K164="◎")*($AC162:$AC164=1))+SUMPRODUCT((K162:K164="◎")*($AC162:$AC164=0.5)*0.5)+SUMPRODUCT((K162:K164="◎")*($AC162:$AC164=0.1))*0.1) -> 0 | L165: =(SUMPRODUCT((L162:L164="○")*($AC162:$AC164=1))*0.5+SUMPRODUCT((L162:L164="○")*($AC162:$AC164=0.5))*0.25+SUMPRODUCT((L162:L164="○")*($AC162:$AC164=0.1))*0.05+SUMPRODUCT((L162:L164="◎")*($AC162:$AC164=1))+SUMPRODUCT((L162:L164="◎")*($AC162:$AC164=0.5)*0.5)+SUMPRODUCT((L162:L164="◎")*($AC162:$AC164=0.1))*0.1) -> 0 | M165: =(SUMPRODUCT((M162:M164="○")*($AC162:$AC164=1))*0.5+SUMPRODUCT((M162:M164="○")*($AC162:$AC164=0.5))*0.25+SUMPRODUCT((M162:M164="○")*($AC162:$AC164=0.1))*0.05+SUMPRODUCT((M162:M164="◎")*($AC162:$AC164=1))+SUMPRODUCT((M162:M164="◎")*($AC162:$AC164=0.5)*0.5)+SUMPRODUCT((M162:M164="◎")*($AC162:$AC164=0.1))*0.1) -> 0 | N165: =(SUMPRODUCT((N162:N164="○")*($AC162:$AC164=1))*0.5+SUMPRODUCT((N162:N164="○")*($AC162:$AC164=0.5))*0.25+SUMPRODUCT((N162:N164="○")*($AC162:$AC164=0.1))*0.05+SUMPRODUCT((N162:N164="◎")*($AC162:$AC164=1))+SUMPRODUCT((N162:N164="◎")*($AC162:$AC164=0.5)*0.5)+SUMPRODUCT((N162:N164="◎")*($AC162:$AC164=0.1))*0.1) -> 0 | O165: =(SUMPRODUCT((O162:O164="○")*($AC162:$AC164=1))*0.5+SUMPRODUCT((O162:O164="○")*($AC162:$AC164=0.5))*0.25+SUMPRODUCT((O162:O164="○")*($AC162:$AC164=0.1))*0.05+SUMPRODUCT((O162:O164="◎")*($AC162:$AC164=1))+SUMPRODUCT((O162:O164="◎")*($AC162:$AC164=0.5)*0.5)+SUMPRODUCT((O162:O164="◎")*($AC162:$AC164=0.1))*0.1) -> 0 | P165: =(SUMPRODUCT((P162:P164="○")*($AC162:$AC164=1))*0.5+SUMPRODUCT((P162:P164="○")*($AC162:$AC164=0.5))*0.25+SUMPRODUCT((P162:P164="○")*($AC162:$AC164=0.1))*0.05+SUMPRODUCT((P162:P164="◎")*($AC162:$AC164=1))+SUMPRODUCT((P162:P164="◎")*($AC162:$AC164=0.5)*0.5)+SUMPRODUCT((P162:P164="◎")*($AC162:$AC164=0.1))*0.1) -> 0 | Q165: =(SUMPRODUCT((Q162:Q164="○")*($AC162:$AC164=1))*0.5+SUMPRODUCT((Q162:Q164="○")*($AC162:$AC164=0.5))*0.25+SUMPRODUCT((Q162:Q164="○")*($AC162:$AC164=0.1))*0.05+SUMPRODUCT((Q162:Q164="◎")*($AC162:$AC164=1))+SUMPRODUCT((Q162:Q164="◎")*($AC162:$AC164=0.5)*0.5)+SUMPRODUCT((Q162:Q164="◎")*($AC162:$AC164=0.1))*0.1) -> 0 | R165: =(SUMPRODUCT((R162:R164="○")*($AC162:$AC164=1))*0.5+SUMPRODUCT((R162:R164="○")*($AC162:$AC164=0.5))*0.25+SUMPRODUCT((R162:R164="○")*($AC162:$AC164=0.1))*0.05+SUMPRODUCT((R162:R164="◎")*($AC162:$AC164=1))+SUMPRODUCT((R162:R164="◎")*($AC162:$AC164=0.5)*0.5)+SUMPRODUCT((R162:R164="◎")*($AC162:$AC164=0.1))*0.1) -> 0 | S165: =(SUMPRODUCT((S162:S164="○")*($AC162:$AC164=1))*0.5+SUMPRODUCT((S162:S164="○")*($AC162:$AC164=0.5))*0.25+SUMPRODUCT((S162:S164="○")*($AC162:$AC164=0.1))*0.05+SUMPRODUCT((S162:S164="◎")*($AC162:$AC164=1))+SUMPRODUCT((S162:S164="◎")*($AC162:$AC164=0.5)*0.5)+SUMPRODUCT((S162:S164="◎")*($AC162:$AC164=0.1))*0.1) -> 0 | T165: =(SUMPRODUCT((T162:T164="○")*($AC162:$AC164=1))*0.5+SUMPRODUCT((T162:T164="○")*($AC162:$AC164=0.5))*0.25+SUMPRODUCT((T162:T164="○")*($AC162:$AC164=0.1))*0.05+SUMPRODUCT((T162:T164="◎")*($AC162:$AC164=1))+SUMPRODUCT((T162:T164="◎")*($AC162:$AC164=0.5)*0.5)+SUMPRODUCT((T162:T164="◎")*($AC162:$AC164=0.1))*0.1) -> 0 | U165: =(SUMPRODUCT((U162:U164="○")*($AC162:$AC164=1))*0.5+SUMPRODUCT((U162:U164="○")*($AC162:$AC164=0.5))*0.25+SUMPRODUCT((U162:U164="○")*($AC162:$AC164=0.1))*0.05+SUMPRODUCT((U162:U164="◎")*($AC162:$AC164=1))+SUMPRODUCT((U162:U164="◎")*($AC162:$AC164=0.5)*0.5)+SUMPRODUCT((U162:U164="◎")*($AC162:$AC164=0.1))*0.1) -> 0 | V165: =(SUMPRODUCT((V162:V164="○")*($AC162:$AC164=1))*0.5+SUMPRODUCT((V162:V164="○")*($AC162:$AC164=0.5))*0.25+SUMPRODUCT((V162:V164="○")*($AC162:$AC164=0.1))*0.05+SUMPRODUCT((V162:V164="◎")*($AC162:$AC164=1))+SUMPRODUCT((V162:V164="◎")*($AC162:$AC164=0.5)*0.5)+SUMPRODUCT((V162:V164="◎")*($AC162:$AC164=0.1))*0.1) -> 0 | W165: =(SUMPRODUCT((W162:W164="○")*($AC162:$AC164=1))*0.5+SUMPRODUCT((W162:W164="○")*($AC162:$AC164=0.5))*0.25+SUMPRODUCT((W162:W164="○")*($AC162:$AC164=0.1))*0.05+SUMPRODUCT((W162:W164="◎")*($AC162:$AC164=1))+SUMPRODUCT((W162:W164="◎")*($AC162:$AC164=0.5)*0.5)+SUMPRODUCT((W162:W164="◎")*($AC162:$AC164=0.1))*0.1) -> 0 | X165: =(SUMPRODUCT((X162:X164="○")*($AC162:$AC164=1))*0.5+SUMPRODUCT((X162:X164="○")*($AC162:$AC164=0.5))*0.25+SUMPRODUCT((X162:X164="○")*($AC162:$AC164=0.1))*0.05+SUMPRODUCT((X162:X164="◎")*($AC162:$AC164=1))+SUMPRODUCT((X162:X164="◎")*($AC162:$AC164=0.5)*0.5)+SUMPRODUCT((X162:X164="◎")*($AC162:$AC164=0.1))*0.1) -> 0 | AD165: =SUM(AD139:AD164) -> 0 | AE165: =SUBTOTAL(9,AE162:AE164) -> 3 | AF165: =SUM(AF139:AF164) -> 21 | AG165: =AD165/AF165 -> 0 | AH165: =SUM(AH162:AH164) -> 7.5 | AI165: =IF(AE165=0,"",SUM(H165:X165)/AH165) -> 0 | AL165: =IFERROR(H165/((SUMPRODUCT((H162:H164="○")*($AC162:$AC164=1))*0.5+SUMPRODUCT((H162:H164="○")*($AC162:$AC164=0.5))*0.5+SUMPRODUCT((H162:H164="○")*($AC162:$AC164=0.1))*0.5+SUMPRODUCT((H162:H164="◎")*($AC162:$AC164=1))+SUMPRODUCT((H162:H164="◎")*($AC162:$AC164=0.5)*0.5)+SUMPRODUCT((H162:H164="◎")*($AC162:$AC164=0.1))*0.1)),0) -> 0 | AM165: =IFERROR(I165/((SUMPRODUCT((I162:I164="○")*($AC162:$AC164=1))*0.5+SUMPRODUCT((I162:I164="○")*($AC162:$AC164=0.5))*0.5+SUMPRODUCT((I162:I164="○")*($AC162:$AC164=0.1))*0.5+SUMPRODUCT((I162:I164="◎")*($AC162:$AC164=1))+SUMPRODUCT((I162:I164="◎")*($AC162:$AC164=0.5)*0.5)+SUMPRODUCT((I162:I164="◎")*($AC162:$AC164=0.1))*0.1)),0) -> 0 | AN165: =IFERROR(J165/((SUMPRODUCT((J162:J164="○")*($AC162:$AC164=1))*0.5+SUMPRODUCT((J162:J164="○")*($AC162:$AC164=0.5))*0.5+SUMPRODUCT((J162:J164="○")*($AC162:$AC164=0.1))*0.5+SUMPRODUCT((J162:J164="◎")*($AC162:$AC164=1))+SUMPRODUCT((J162:J164="◎")*($AC162:$AC164=0.5)*0.5)+SUMPRODUCT((J162:J164="◎")*($AC162:$AC164=0.1))*0.1)),0) -> 0 | AO165: =IFERROR(K165/((SUMPRODUCT((K162:K164="○")*($AC162:$AC164=1))*0.5+SUMPRODUCT((K162:K164="○")*($AC162:$AC164=0.5))*0.5+SUMPRODUCT((K162:K164="○")*($AC162:$AC164=0.1))*0.5+SUMPRODUCT((K162:K164="◎")*($AC162:$AC164=1))+SUMPRODUCT((K162:K164="◎")*($AC162:$AC164=0.5)*0.5)+SUMPRODUCT((K162:K164="◎")*($AC162:$AC164=0.1))*0.1)),0) -> 0 | AP165: =IFERROR(L165/((SUMPRODUCT((L162:L164="○")*($AC162:$AC164=1))*0.5+SUMPRODUCT((L162:L164="○")*($AC162:$AC164=0.5))*0.5+SUMPRODUCT((L162:L164="○")*($AC162:$AC164=0.1))*0.5+SUMPRODUCT((L162:L164="◎")*($AC162:$AC164=1))+SUMPRODUCT((L162:L164="◎")*($AC162:$AC164=0.5)*0.5)+SUMPRODUCT((L162:L164="◎")*($AC162:$AC164=0.1))*0.1)),0) -> 0 | AQ165: =IFERROR(M165/((SUMPRODUCT((M162:M164="○")*($AC162:$AC164=1))*0.5+SUMPRODUCT((M162:M164="○")*($AC162:$AC164=0.5))*0.5+SUMPRODUCT((M162:M164="○")*($AC162:$AC164=0.1))*0.5+SUMPRODUCT((M162:M164="◎")*($AC162:$AC164=1))+SUMPRODUCT((M162:M164="◎")*($AC162:$AC164=0.5)*0.5)+SUMPRODUCT((M162:M164="◎")*($AC162:$AC164=0.1))*0.1)),0) -> 0 | AR165: =IFERROR(N165/((SUMPRODUCT((N162:N164="○")*($AC162:$AC164=1))*0.5+SUMPRODUCT((N162:N164="○")*($AC162:$AC164=0.5))*0.5+SUMPRODUCT((N162:N164="○")*($AC162:$AC164=0.1))*0.5+SUMPRODUCT((N162:N164="◎")*($AC162:$AC164=1))+SUMPRODUCT((N162:N164="◎")*($AC162:$AC164=0.5)*0.5)+SUMPRODUCT((N162:N164="◎")*($AC162:$AC164=0.1))*0.1)),0) -> 0 | AS165: =IFERROR(O165/((SUMPRODUCT((O162:O164="○")*($AC162:$AC164=1))*0.5+SUMPRODUCT((O162:O164="○")*($AC162:$AC164=0.5))*0.5+SUMPRODUCT((O162:O164="○")*($AC162:$AC164=0.1))*0.5+SUMPRODUCT((O162:O164="◎")*($AC162:$AC164=1))+SUMPRODUCT((O162:O164="◎")*($AC162:$AC164=0.5)*0.5)+SUMPRODUCT((O162:O164="◎")*($AC162:$AC164=0.1))*0.1)),0) -> 0 | AT165: =IFERROR(P165/((SUMPRODUCT((P162:P164="○")*($AC162:$AC164=1))*0.5+SUMPRODUCT((P162:P164="○")*($AC162:$AC164=0.5))*0.5+SUMPRODUCT((P162:P164="○")*($AC162:$AC164=0.1))*0.5+SUMPRODUCT((P162:P164="◎")*($AC162:$AC164=1))+SUMPRODUCT((P162:P164="◎")*($AC162:$AC164=0.5)*0.5)+SUMPRODUCT((P162:P164="◎")*($AC162:$AC164=0.1))*0.1)),0) -> 0 | AU165: =IFERROR(Q165/((SUMPRODUCT((Q162:Q164="○")*($AC162:$AC164=1))*0.5+SUMPRODUCT((Q162:Q164="○")*($AC162:$AC164=0.5))*0.5+SUMPRODUCT((Q162:Q164="○")*($AC162:$AC164=0.1))*0.5+SUMPRODUCT((Q162:Q164="◎")*($AC162:$AC164=1))+SUMPRODUCT((Q162:Q164="◎")*($AC162:$AC164=0.5)*0.5)+SUMPRODUCT((Q162:Q164="◎")*($AC162:$AC164=0.1))*0.1)),0) -> 0 | AV165: =IFERROR(R165/((SUMPRODUCT((R162:R164="○")*($AC162:$AC164=1))*0.5+SUMPRODUCT((R162:R164="○")*($AC162:$AC164=0.5))*0.5+SUMPRODUCT((R162:R164="○")*($AC162:$AC164=0.1))*0.5+SUMPRODUCT((R162:R164="◎")*($AC162:$AC164=1))+SUMPRODUCT((R162:R164="◎")*($AC162:$AC164=0.5)*0.5)+SUMPRODUCT((R162:R164="◎")*($AC162:$AC164=0.1))*0.1)),0) -> 0 | AW165: =IFERROR(S165/((SUMPRODUCT((S162:S164="○")*($AC162:$AC164=1))*0.5+SUMPRODUCT((S162:S164="○")*($AC162:$AC164=0.5))*0.5+SUMPRODUCT((S162:S164="○")*($AC162:$AC164=0.1))*0.5+SUMPRODUCT((S162:S164="◎")*($AC162:$AC164=1))+SUMPRODUCT((S162:S164="◎")*($AC162:$AC164=0.5)*0.5)+SUMPRODUCT((S162:S164="◎")*($AC162:$AC164=0.1))*0.1)),0) -> 0 | AX165: =IFERROR(T165/((SUMPRODUCT((T162:T164="○")*($AC162:$AC164=1))*0.5+SUMPRODUCT((T162:T164="○")*($AC162:$AC164=0.5))*0.5+SUMPRODUCT((T162:T164="○")*($AC162:$AC164=0.1))*0.5+SUMPRODUCT((T162:T164="◎")*($AC162:$AC164=1))+SUMPRODUCT((T162:T164="◎")*($AC162:$AC164=0.5)*0.5)+SUMPRODUCT((T162:T164="◎")*($AC162:$AC164=0.1))*0.1)),0) -> 0 | AY165: =IFERROR(U165/((SUMPRODUCT((U162:U164="○")*($AC162:$AC164=1))*0.5+SUMPRODUCT((U162:U164="○")*($AC162:$AC164=0.5))*0.5+SUMPRODUCT((U162:U164="○")*($AC162:$AC164=0.1))*0.5+SUMPRODUCT((U162:U164="◎")*($AC162:$AC164=1))+SUMPRODUCT((U162:U164="◎")*($AC162:$AC164=0.5)*0.5)+SUMPRODUCT((U162:U164="◎")*($AC162:$AC164=0.1))*0.1)),0) -> 0 | AZ165: =IFERROR(V165/((SUMPRODUCT((V162:V164="○")*($AC162:$AC164=1))*0.5+SUMPRODUCT((V162:V164="○")*($AC162:$AC164=0.5))*0.5+SUMPRODUCT((V162:V164="○")*($AC162:$AC164=0.1))*0.5+SUMPRODUCT((V162:V164="◎")*($AC162:$AC164=1))+SUMPRODUCT((V162:V164="◎")*($AC162:$AC164=0.5)*0.5)+SUMPRODUCT((V162:V164="◎")*($AC162:$AC164=0.1))*0.1)),0) -> 0 | BA165: =IFERROR(W165/((SUMPRODUCT((W162:W164="○")*($AC162:$AC164=1))*0.5+SUMPRODUCT((W162:W164="○")*($AC162:$AC164=0.5))*0.5+SUMPRODUCT((W162:W164="○")*($AC162:$AC164=0.1))*0.5+SUMPRODUCT((W162:W164="◎")*($AC162:$AC164=1))+SUMPRODUCT((W162:W164="◎")*($AC162:$AC164=0.5)*0.5)+SUMPRODUCT((W162:W164="◎")*($AC162:$AC164=0.1))*0.1)),0) -> 0 | BB165: =IFERROR(X165/((SUMPRODUCT((X162:X164="○")*($AC162:$AC164=1))*0.5+SUMPRODUCT((X162:X164="○")*($AC162:$AC164=0.5))*0.5+SUMPRODUCT((X162:X164="○")*($AC162:$AC164=0.1))*0.5+SUMPRODUCT((X162:X164="◎")*($AC162:$AC164=1))+SUMPRODUCT((X162:X164="◎")*($AC162:$AC164=0.5)*0.5)+SUMPRODUCT((X162:X164="◎")*($AC162:$AC164=0.1))*0.1)),0) -> 0
D166: =IF( (COUNTIF(項目⑧チェック欄,"○")+COUNTIF(項目⑧チェック欄,"△")+COUNTIF(項目⑧チェック欄,"×")+COUNTIF(項目⑧チェック欄,"―"))=0,"達成率 %",IF( (COUNTIF(項目⑧チェック欄,"○")+COUNTIF(項目⑧チェック欄,"△")+COUNTIF(項目⑧チェック欄,"×"))=0,"達成率 ― %",(COUNTIF(項目⑧チェック欄,"○")+COUNTIF(項目⑧チェック欄,"△")*0.5+COUNTIF(項目⑧チェック欄,"×")*0.1)/(COUNTIF(項目⑧チェック欄,"○")+COUNTIF(項目⑧チェック欄,"△")+COUNTIF(項目⑧チェック欄,"×")+COUNTIF(項目⑧チェック欄,""))*100)) -> 達成率 %
B168: =取組ﾁｪｯｸｼｰﾄ改訂版!B168 -> <項目⑦ ： グリーン購入>
B169: =取組ﾁｪｯｸｼｰﾄ改訂版!B169 -> （チェック欄） | E169: SDGs関連ゴール
B170: =取組ﾁｪｯｸｼｰﾄ改訂版!B170 -> 1 再生紙の使用
B171: =取組ﾁｪｯｸｼｰﾄ改訂版!B171 -> 0 | D171: コピー用紙、コンピューター用紙、伝票・事務用箋等、印刷物・パンフレット等、トイレットペーパー、名刺、その他の紙について、再生紙又は未利用繊維への転換を進めている | E171: １２ | S171: ◎ | AD171: =SUM(AC171:AC173) -> 0 | AE171: =COUNTIF(B171,"○")+COUNTIF(B171,"△")+COUNTIF(B171,"×")+COUNTIF(B171,0) -> 1 | AF171: =SUM(AE171:AE173) -> 3 | AG171: =AD171/AF171 -> 0 | AH171: =SUMPRODUCT((H171:X171="○")*($AE171=1))*0.5+SUMPRODUCT((H171:X171="◎")*($AE171=1)) -> 1
B172: =取組ﾁｪｯｸｼｰﾄ改訂版!B172 -> 0 | D172: 再生パルプの使用率や白色度を考慮した再生紙利用の目標・基準を立て、使用状況を把握しながら取り組んでいる | S172: ◎ | AE172: 1 | AH172: 1
B173: =取組ﾁｪｯｸｼｰﾄ改訂版!B173 -> 0 | D173: 再生パルプ使用率が印刷物等に明記されている | S173: ◎ | AE173: 1 | AH173: 1
B174: =取組ﾁｪｯｸｼｰﾄ改訂版!B174 -> 2 その他環境に配慮した物品等の購入、使用 | H174: =(SUMPRODUCT((H171:H173="○")*($AC171:$AC173=1))*0.5+SUMPRODUCT((H171:H173="○")*($AC171:$AC173=0.5))*0.25+SUMPRODUCT((H171:H173="○")*($AC171:$AC173=0.1))*0.05+SUMPRODUCT((H171:H173="◎")*($AC171:$AC173=1))+SUMPRODUCT((H171:H173="◎")*($AC171:$AC173=0.5)*0.5)+SUMPRODUCT((H171:H173="◎")*($AC171:$AC173=0.1))*0.1) -> 0 | I174: =(SUMPRODUCT((I171:I173="○")*($AC171:$AC173=1))*0.5+SUMPRODUCT((I171:I173="○")*($AC171:$AC173=0.5))*0.25+SUMPRODUCT((I171:I173="○")*($AC171:$AC173=0.1))*0.05+SUMPRODUCT((I171:I173="◎")*($AC171:$AC173=1))+SUMPRODUCT((I171:I173="◎")*($AC171:$AC173=0.5)*0.5)+SUMPRODUCT((I171:I173="◎")*($AC171:$AC173=0.1))*0.1) -> 0 | J174: =(SUMPRODUCT((J171:J173="○")*($AC171:$AC173=1))*0.5+SUMPRODUCT((J171:J173="○")*($AC171:$AC173=0.5))*0.25+SUMPRODUCT((J171:J173="○")*($AC171:$AC173=0.1))*0.05+SUMPRODUCT((J171:J173="◎")*($AC171:$AC173=1))+SUMPRODUCT((J171:J173="◎")*($AC171:$AC173=0.5)*0.5)+SUMPRODUCT((J171:J173="◎")*($AC171:$AC173=0.1))*0.1) -> 0 | K174: =(SUMPRODUCT((K171:K173="○")*($AC171:$AC173=1))*0.5+SUMPRODUCT((K171:K173="○")*($AC171:$AC173=0.5))*0.25+SUMPRODUCT((K171:K173="○")*($AC171:$AC173=0.1))*0.05+SUMPRODUCT((K171:K173="◎")*($AC171:$AC173=1))+SUMPRODUCT((K171:K173="◎")*($AC171:$AC173=0.5)*0.5)+SUMPRODUCT((K171:K173="◎")*($AC171:$AC173=0.1))*0.1) -> 0 | L174: =(SUMPRODUCT((L171:L173="○")*($AC171:$AC173=1))*0.5+SUMPRODUCT((L171:L173="○")*($AC171:$AC173=0.5))*0.25+SUMPRODUCT((L171:L173="○")*($AC171:$AC173=0.1))*0.05+SUMPRODUCT((L171:L173="◎")*($AC171:$AC173=1))+SUMPRODUCT((L171:L173="◎")*($AC171:$AC173=0.5)*0.5)+SUMPRODUCT((L171:L173="◎")*($AC171:$AC173=0.1))*0.1) -> 0 | M174: =(SUMPRODUCT((M171:M173="○")*($AC171:$AC173=1))*0.5+SUMPRODUCT((M171:M173="○")*($AC171:$AC173=0.5))*0.25+SUMPRODUCT((M171:M173="○")*($AC171:$AC173=0.1))*0.05+SUMPRODUCT((M171:M173="◎")*($AC171:$AC173=1))+SUMPRODUCT((M171:M173="◎")*($AC171:$AC173=0.5)*0.5)+SUMPRODUCT((M171:M173="◎")*($AC171:$AC173=0.1))*0.1) -> 0 | N174: =(SUMPRODUCT((N171:N173="○")*($AC171:$AC173=1))*0.5+SUMPRODUCT((N171:N173="○")*($AC171:$AC173=0.5))*0.25+SUMPRODUCT((N171:N173="○")*($AC171:$AC173=0.1))*0.05+SUMPRODUCT((N171:N173="◎")*($AC171:$AC173=1))+SUMPRODUCT((N171:N173="◎")*($AC171:$AC173=0.5)*0.5)+SUMPRODUCT((N171:N173="◎")*($AC171:$AC173=0.1))*0.1) -> 0 | O174: =(SUMPRODUCT((O171:O173="○")*($AC171:$AC173=1))*0.5+SUMPRODUCT((O171:O173="○")*($AC171:$AC173=0.5))*0.25+SUMPRODUCT((O171:O173="○")*($AC171:$AC173=0.1))*0.05+SUMPRODUCT((O171:O173="◎")*($AC171:$AC173=1))+SUMPRODUCT((O171:O173="◎")*($AC171:$AC173=0.5)*0.5)+SUMPRODUCT((O171:O173="◎")*($AC171:$AC173=0.1))*0.1) -> 0 | P174: =(SUMPRODUCT((P171:P173="○")*($AC171:$AC173=1))*0.5+SUMPRODUCT((P171:P173="○")*($AC171:$AC173=0.5))*0.25+SUMPRODUCT((P171:P173="○")*($AC171:$AC173=0.1))*0.05+SUMPRODUCT((P171:P173="◎")*($AC171:$AC173=1))+SUMPRODUCT((P171:P173="◎")*($AC171:$AC173=0.5)*0.5)+SUMPRODUCT((P171:P173="◎")*($AC171:$AC173=0.1))*0.1) -> 0 | Q174: =(SUMPRODUCT((Q171:Q173="○")*($AC171:$AC173=1))*0.5+SUMPRODUCT((Q171:Q173="○")*($AC171:$AC173=0.5))*0.25+SUMPRODUCT((Q171:Q173="○")*($AC171:$AC173=0.1))*0.05+SUMPRODUCT((Q171:Q173="◎")*($AC171:$AC173=1))+SUMPRODUCT((Q171:Q173="◎")*($AC171:$AC173=0.5)*0.5)+SUMPRODUCT((Q171:Q173="◎")*($AC171:$AC173=0.1))*0.1) -> 0 | R174: =(SUMPRODUCT((R171:R173="○")*($AC171:$AC173=1))*0.5+SUMPRODUCT((R171:R173="○")*($AC171:$AC173=0.5))*0.25+SUMPRODUCT((R171:R173="○")*($AC171:$AC173=0.1))*0.05+SUMPRODUCT((R171:R173="◎")*($AC171:$AC173=1))+SUMPRODUCT((R171:R173="◎")*($AC171:$AC173=0.5)*0.5)+SUMPRODUCT((R171:R173="◎")*($AC171:$AC173=0.1))*0.1) -> 0 | S174: =(SUMPRODUCT((S171:S173="○")*($AC171:$AC173=1))*0.5+SUMPRODUCT((S171:S173="○")*($AC171:$AC173=0.5))*0.25+SUMPRODUCT((S171:S173="○")*($AC171:$AC173=0.1))*0.05+SUMPRODUCT((S171:S173="◎")*($AC171:$AC173=1))+SUMPRODUCT((S171:S173="◎")*($AC171:$AC173=0.5)*0.5)+SUMPRODUCT((S171:S173="◎")*($AC171:$AC173=0.1))*0.1) -> 0 | T174: =(SUMPRODUCT((T171:T173="○")*($AC171:$AC173=1))*0.5+SUMPRODUCT((T171:T173="○")*($AC171:$AC173=0.5))*0.25+SUMPRODUCT((T171:T173="○")*($AC171:$AC173=0.1))*0.05+SUMPRODUCT((T171:T173="◎")*($AC171:$AC173=1))+SUMPRODUCT((T171:T173="◎")*($AC171:$AC173=0.5)*0.5)+SUMPRODUCT((T171:T173="◎")*($AC171:$AC173=0.1))*0.1) -> 0 | U174: =(SUMPRODUCT((U171:U173="○")*($AC171:$AC173=1))*0.5+SUMPRODUCT((U171:U173="○")*($AC171:$AC173=0.5))*0.25+SUMPRODUCT((U171:U173="○")*($AC171:$AC173=0.1))*0.05+SUMPRODUCT((U171:U173="◎")*($AC171:$AC173=1))+SUMPRODUCT((U171:U173="◎")*($AC171:$AC173=0.5)*0.5)+SUMPRODUCT((U171:U173="◎")*($AC171:$AC173=0.1))*0.1) -> 0 | V174: =(SUMPRODUCT((V171:V173="○")*($AC171:$AC173=1))*0.5+SUMPRODUCT((V171:V173="○")*($AC171:$AC173=0.5))*0.25+SUMPRODUCT((V171:V173="○")*($AC171:$AC173=0.1))*0.05+SUMPRODUCT((V171:V173="◎")*($AC171:$AC173=1))+SUMPRODUCT((V171:V173="◎")*($AC171:$AC173=0.5)*0.5)+SUMPRODUCT((V171:V173="◎")*($AC171:$AC173=0.1))*0.1) -> 0 | W174: =(SUMPRODUCT((W171:W173="○")*($AC171:$AC173=1))*0.5+SUMPRODUCT((W171:W173="○")*($AC171:$AC173=0.5))*0.25+SUMPRODUCT((W171:W173="○")*($AC171:$AC173=0.1))*0.05+SUMPRODUCT((W171:W173="◎")*($AC171:$AC173=1))+SUMPRODUCT((W171:W173="◎")*($AC171:$AC173=0.5)*0.5)+SUMPRODUCT((W171:W173="◎")*($AC171:$AC173=0.1))*0.1) -> 0 | X174: =(SUMPRODUCT((X171:X173="○")*($AC171:$AC173=1))*0.5+SUMPRODUCT((X171:X173="○")*($AC171:$AC173=0.5))*0.25+SUMPRODUCT((X171:X173="○")*($AC171:$AC173=0.1))*0.05+SUMPRODUCT((X171:X173="◎")*($AC171:$AC173=1))+SUMPRODUCT((X171:X173="◎")*($AC171:$AC173=0.5)*0.5)+SUMPRODUCT((X171:X173="◎")*($AC171:$AC173=0.1))*0.1) -> 0 | AE174: =SUBTOTAL(9,AE171:AE173) -> 3 | AH174: =SUM(AH171:AH173) -> 3 | AI174: =IF(AE174=0,"",SUM(H174:X174)/AH174) -> 0 | AL174: =IFERROR(H174/((SUMPRODUCT((H171:H173="○")*($AC171:$AC173=1))*0.5+SUMPRODUCT((H171:H173="○")*($AC171:$AC173=0.5))*0.5+SUMPRODUCT((H171:H173="○")*($AC171:$AC173=0.1))*0.5+SUMPRODUCT((H171:H173="◎")*($AC171:$AC173=1))+SUMPRODUCT((H171:H173="◎")*($AC171:$AC173=0.5)*0.5)+SUMPRODUCT((H171:H173="◎")*($AC171:$AC173=0.1))*0.1)),0) -> 0 | AM174: =IFERROR(I174/((SUMPRODUCT((I171:I173="○")*($AC171:$AC173=1))*0.5+SUMPRODUCT((I171:I173="○")*($AC171:$AC173=0.5))*0.5+SUMPRODUCT((I171:I173="○")*($AC171:$AC173=0.1))*0.5+SUMPRODUCT((I171:I173="◎")*($AC171:$AC173=1))+SUMPRODUCT((I171:I173="◎")*($AC171:$AC173=0.5)*0.5)+SUMPRODUCT((I171:I173="◎")*($AC171:$AC173=0.1))*0.1)),0) -> 0 | AN174: =IFERROR(J174/((SUMPRODUCT((J171:J173="○")*($AC171:$AC173=1))*0.5+SUMPRODUCT((J171:J173="○")*($AC171:$AC173=0.5))*0.5+SUMPRODUCT((J171:J173="○")*($AC171:$AC173=0.1))*0.5+SUMPRODUCT((J171:J173="◎")*($AC171:$AC173=1))+SUMPRODUCT((J171:J173="◎")*($AC171:$AC173=0.5)*0.5)+SUMPRODUCT((J171:J173="◎")*($AC171:$AC173=0.1))*0.1)),0) -> 0 | AO174: =IFERROR(K174/((SUMPRODUCT((K171:K173="○")*($AC171:$AC173=1))*0.5+SUMPRODUCT((K171:K173="○")*($AC171:$AC173=0.5))*0.5+SUMPRODUCT((K171:K173="○")*($AC171:$AC173=0.1))*0.5+SUMPRODUCT((K171:K173="◎")*($AC171:$AC173=1))+SUMPRODUCT((K171:K173="◎")*($AC171:$AC173=0.5)*0.5)+SUMPRODUCT((K171:K173="◎")*($AC171:$AC173=0.1))*0.1)),0) -> 0 | AP174: =IFERROR(L174/((SUMPRODUCT((L171:L173="○")*($AC171:$AC173=1))*0.5+SUMPRODUCT((L171:L173="○")*($AC171:$AC173=0.5))*0.5+SUMPRODUCT((L171:L173="○")*($AC171:$AC173=0.1))*0.5+SUMPRODUCT((L171:L173="◎")*($AC171:$AC173=1))+SUMPRODUCT((L171:L173="◎")*($AC171:$AC173=0.5)*0.5)+SUMPRODUCT((L171:L173="◎")*($AC171:$AC173=0.1))*0.1)),0) -> 0 | AQ174: =IFERROR(M174/((SUMPRODUCT((M171:M173="○")*($AC171:$AC173=1))*0.5+SUMPRODUCT((M171:M173="○")*($AC171:$AC173=0.5))*0.5+SUMPRODUCT((M171:M173="○")*($AC171:$AC173=0.1))*0.5+SUMPRODUCT((M171:M173="◎")*($AC171:$AC173=1))+SUMPRODUCT((M171:M173="◎")*($AC171:$AC173=0.5)*0.5)+SUMPRODUCT((M171:M173="◎")*($AC171:$AC173=0.1))*0.1)),0) -> 0 | AR174: =IFERROR(N174/((SUMPRODUCT((N171:N173="○")*($AC171:$AC173=1))*0.5+SUMPRODUCT((N171:N173="○")*($AC171:$AC173=0.5))*0.5+SUMPRODUCT((N171:N173="○")*($AC171:$AC173=0.1))*0.5+SUMPRODUCT((N171:N173="◎")*($AC171:$AC173=1))+SUMPRODUCT((N171:N173="◎")*($AC171:$AC173=0.5)*0.5)+SUMPRODUCT((N171:N173="◎")*($AC171:$AC173=0.1))*0.1)),0) -> 0 | AS174: =IFERROR(O174/((SUMPRODUCT((O171:O173="○")*($AC171:$AC173=1))*0.5+SUMPRODUCT((O171:O173="○")*($AC171:$AC173=0.5))*0.5+SUMPRODUCT((O171:O173="○")*($AC171:$AC173=0.1))*0.5+SUMPRODUCT((O171:O173="◎")*($AC171:$AC173=1))+SUMPRODUCT((O171:O173="◎")*($AC171:$AC173=0.5)*0.5)+SUMPRODUCT((O171:O173="◎")*($AC171:$AC173=0.1))*0.1)),0) -> 0 | AT174: =IFERROR(P174/((SUMPRODUCT((P171:P173="○")*($AC171:$AC173=1))*0.5+SUMPRODUCT((P171:P173="○")*($AC171:$AC173=0.5))*0.5+SUMPRODUCT((P171:P173="○")*($AC171:$AC173=0.1))*0.5+SUMPRODUCT((P171:P173="◎")*($AC171:$AC173=1))+SUMPRODUCT((P171:P173="◎")*($AC171:$AC173=0.5)*0.5)+SUMPRODUCT((P171:P173="◎")*($AC171:$AC173=0.1))*0.1)),0) -> 0 | AU174: =IFERROR(Q174/((SUMPRODUCT((Q171:Q173="○")*($AC171:$AC173=1))*0.5+SUMPRODUCT((Q171:Q173="○")*($AC171:$AC173=0.5))*0.5+SUMPRODUCT((Q171:Q173="○")*($AC171:$AC173=0.1))*0.5+SUMPRODUCT((Q171:Q173="◎")*($AC171:$AC173=1))+SUMPRODUCT((Q171:Q173="◎")*($AC171:$AC173=0.5)*0.5)+SUMPRODUCT((Q171:Q173="◎")*($AC171:$AC173=0.1))*0.1)),0) -> 0 | AV174: =IFERROR(R174/((SUMPRODUCT((R171:R173="○")*($AC171:$AC173=1))*0.5+SUMPRODUCT((R171:R173="○")*($AC171:$AC173=0.5))*0.5+SUMPRODUCT((R171:R173="○")*($AC171:$AC173=0.1))*0.5+SUMPRODUCT((R171:R173="◎")*($AC171:$AC173=1))+SUMPRODUCT((R171:R173="◎")*($AC171:$AC173=0.5)*0.5)+SUMPRODUCT((R171:R173="◎")*($AC171:$AC173=0.1))*0.1)),0) -> 0 | AW174: =IFERROR(S174/((SUMPRODUCT((S171:S173="○")*($AC171:$AC173=1))*0.5+SUMPRODUCT((S171:S173="○")*($AC171:$AC173=0.5))*0.5+SUMPRODUCT((S171:S173="○")*($AC171:$AC173=0.1))*0.5+SUMPRODUCT((S171:S173="◎")*($AC171:$AC173=1))+SUMPRODUCT((S171:S173="◎")*($AC171:$AC173=0.5)*0.5)+SUMPRODUCT((S171:S173="◎")*($AC171:$AC173=0.1))*0.1)),0) -> 0 | AX174: =IFERROR(T174/((SUMPRODUCT((T171:T173="○")*($AC171:$AC173=1))*0.5+SUMPRODUCT((T171:T173="○")*($AC171:$AC173=0.5))*0.5+SUMPRODUCT((T171:T173="○")*($AC171:$AC173=0.1))*0.5+SUMPRODUCT((T171:T173="◎")*($AC171:$AC173=1))+SUMPRODUCT((T171:T173="◎")*($AC171:$AC173=0.5)*0.5)+SUMPRODUCT((T171:T173="◎")*($AC171:$AC173=0.1))*0.1)),0) -> 0 | AY174: =IFERROR(U174/((SUMPRODUCT((U171:U173="○")*($AC171:$AC173=1))*0.5+SUMPRODUCT((U171:U173="○")*($AC171:$AC173=0.5))*0.5+SUMPRODUCT((U171:U173="○")*($AC171:$AC173=0.1))*0.5+SUMPRODUCT((U171:U173="◎")*($AC171:$AC173=1))+SUMPRODUCT((U171:U173="◎")*($AC171:$AC173=0.5)*0.5)+SUMPRODUCT((U171:U173="◎")*($AC171:$AC173=0.1))*0.1)),0) -> 0 | AZ174: =IFERROR(V174/((SUMPRODUCT((V171:V173="○")*($AC171:$AC173=1))*0.5+SUMPRODUCT((V171:V173="○")*($AC171:$AC173=0.5))*0.5+SUMPRODUCT((V171:V173="○")*($AC171:$AC173=0.1))*0.5+SUMPRODUCT((V171:V173="◎")*($AC171:$AC173=1))+SUMPRODUCT((V171:V173="◎")*($AC171:$AC173=0.5)*0.5)+SUMPRODUCT((V171:V173="◎")*($AC171:$AC173=0.1))*0.1)),0) -> 0 | BA174: =IFERROR(W174/((SUMPRODUCT((W171:W173="○")*($AC171:$AC173=1))*0.5+SUMPRODUCT((W171:W173="○")*($AC171:$AC173=0.5))*0.5+SUMPRODUCT((W171:W173="○")*($AC171:$AC173=0.1))*0.5+SUMPRODUCT((W171:W173="◎")*($AC171:$AC173=1))+SUMPRODUCT((W171:W173="◎")*($AC171:$AC173=0.5)*0.5)+SUMPRODUCT((W171:W173="◎")*($AC171:$AC173=0.1))*0.1)),0) -> 0 | BB174: =IFERROR(X174/((SUMPRODUCT((X171:X173="○")*($AC171:$AC173=1))*0.5+SUMPRODUCT((X171:X173="○")*($AC171:$AC173=0.5))*0.5+SUMPRODUCT((X171:X173="○")*($AC171:$AC173=0.1))*0.5+SUMPRODUCT((X171:X173="◎")*($AC171:$AC173=1))+SUMPRODUCT((X171:X173="◎")*($AC171:$AC173=0.5)*0.5)+SUMPRODUCT((X171:X173="◎")*($AC171:$AC173=0.1))*0.1)),0) -> 0
B175: =取組ﾁｪｯｸｼｰﾄ改訂版!B175 -> 0 | D175: エコマーク商品を優先的に購入している | E175: １２ | S175: ◎ | AD175: =SUM(AC175:AC179) -> 0 | AE175: =COUNTIF(B175,"○")+COUNTIF(B175,"△")+COUNTIF(B175,"×")+COUNTIF(B175,0) -> 1 | AF175: =SUM(AE175:AE179) -> 5 | AG175: =AD175/AF175 -> 0 | AH175: =SUMPRODUCT((H175:X175="○")*($AE175=1))*0.5+SUMPRODUCT((H175:X175="◎")*($AE175=1)) -> 1
B176: =取組ﾁｪｯｸｼｰﾄ改訂版!B176 -> 0 | D176: 再生材料から作られた製品を優先的に、あるいは再生パルプ使用率を確認し購入、使用している | S176: ◎ | AE176: 1 | AH176: 1
B177: =取組ﾁｪｯｸｼｰﾄ改訂版!B177 -> 0 | D177: 間伐材、未利用資源等を利用した製品を積極的に購入、使用している | S177: ◎ | V177: ◎ | AE177: 1 | AH177: 2
B178: =取組ﾁｪｯｸｼｰﾄ改訂版!B178 -> 0 | D178: 木材の調達に当たり、跡地の緑化・植林・環境修復が適切に行われていることに配慮し、又は跡地緑化等に協力している | S178: ◎ | T178: ○ | V178: ◎ | X178: ○ | AE178: 1 | AH178: 3
B179: =取組ﾁｪｯｸｼｰﾄ改訂版!B179 -> 0 | D179: その他、無漂白製品（衣料品等）、水性塗料等の環境への負荷の少ない製品を優先的に購入、使用している | S179: ◎ | AE179: 1 | AH179: 1
B180: =取組ﾁｪｯｸｼｰﾄ改訂版!B180 -> 3 環境に配慮した物品等の調達に係る基準等 | H180: =(SUMPRODUCT((H175:H179="○")*($AC175:$AC179=1))*0.5+SUMPRODUCT((H175:H179="○")*($AC175:$AC179=0.5))*0.25+SUMPRODUCT((H175:H179="○")*($AC175:$AC179=0.1))*0.05+SUMPRODUCT((H175:H179="◎")*($AC175:$AC179=1))+SUMPRODUCT((H175:H179="◎")*($AC175:$AC179=0.5)*0.5)+SUMPRODUCT((H175:H179="◎")*($AC175:$AC179=0.1))*0.1) -> 0 | I180: =(SUMPRODUCT((I175:I179="○")*($AC175:$AC179=1))*0.5+SUMPRODUCT((I175:I179="○")*($AC175:$AC179=0.5))*0.25+SUMPRODUCT((I175:I179="○")*($AC175:$AC179=0.1))*0.05+SUMPRODUCT((I175:I179="◎")*($AC175:$AC179=1))+SUMPRODUCT((I175:I179="◎")*($AC175:$AC179=0.5)*0.5)+SUMPRODUCT((I175:I179="◎")*($AC175:$AC179=0.1))*0.1) -> 0 | J180: =(SUMPRODUCT((J175:J179="○")*($AC175:$AC179=1))*0.5+SUMPRODUCT((J175:J179="○")*($AC175:$AC179=0.5))*0.25+SUMPRODUCT((J175:J179="○")*($AC175:$AC179=0.1))*0.05+SUMPRODUCT((J175:J179="◎")*($AC175:$AC179=1))+SUMPRODUCT((J175:J179="◎")*($AC175:$AC179=0.5)*0.5)+SUMPRODUCT((J175:J179="◎")*($AC175:$AC179=0.1))*0.1) -> 0 | K180: =(SUMPRODUCT((K175:K179="○")*($AC175:$AC179=1))*0.5+SUMPRODUCT((K175:K179="○")*($AC175:$AC179=0.5))*0.25+SUMPRODUCT((K175:K179="○")*($AC175:$AC179=0.1))*0.05+SUMPRODUCT((K175:K179="◎")*($AC175:$AC179=1))+SUMPRODUCT((K175:K179="◎")*($AC175:$AC179=0.5)*0.5)+SUMPRODUCT((K175:K179="◎")*($AC175:$AC179=0.1))*0.1) -> 0 | L180: =(SUMPRODUCT((L175:L179="○")*($AC175:$AC179=1))*0.5+SUMPRODUCT((L175:L179="○")*($AC175:$AC179=0.5))*0.25+SUMPRODUCT((L175:L179="○")*($AC175:$AC179=0.1))*0.05+SUMPRODUCT((L175:L179="◎")*($AC175:$AC179=1))+SUMPRODUCT((L175:L179="◎")*($AC175:$AC179=0.5)*0.5)+SUMPRODUCT((L175:L179="◎")*($AC175:$AC179=0.1))*0.1) -> 0 | M180: =(SUMPRODUCT((M175:M179="○")*($AC175:$AC179=1))*0.5+SUMPRODUCT((M175:M179="○")*($AC175:$AC179=0.5))*0.25+SUMPRODUCT((M175:M179="○")*($AC175:$AC179=0.1))*0.05+SUMPRODUCT((M175:M179="◎")*($AC175:$AC179=1))+SUMPRODUCT((M175:M179="◎")*($AC175:$AC179=0.5)*0.5)+SUMPRODUCT((M175:M179="◎")*($AC175:$AC179=0.1))*0.1) -> 0 | N180: =(SUMPRODUCT((N175:N179="○")*($AC175:$AC179=1))*0.5+SUMPRODUCT((N175:N179="○")*($AC175:$AC179=0.5))*0.25+SUMPRODUCT((N175:N179="○")*($AC175:$AC179=0.1))*0.05+SUMPRODUCT((N175:N179="◎")*($AC175:$AC179=1))+SUMPRODUCT((N175:N179="◎")*($AC175:$AC179=0.5)*0.5)+SUMPRODUCT((N175:N179="◎")*($AC175:$AC179=0.1))*0.1) -> 0 | O180: =(SUMPRODUCT((O175:O179="○")*($AC175:$AC179=1))*0.5+SUMPRODUCT((O175:O179="○")*($AC175:$AC179=0.5))*0.25+SUMPRODUCT((O175:O179="○")*($AC175:$AC179=0.1))*0.05+SUMPRODUCT((O175:O179="◎")*($AC175:$AC179=1))+SUMPRODUCT((O175:O179="◎")*($AC175:$AC179=0.5)*0.5)+SUMPRODUCT((O175:O179="◎")*($AC175:$AC179=0.1))*0.1) -> 0 | P180: =(SUMPRODUCT((P175:P179="○")*($AC175:$AC179=1))*0.5+SUMPRODUCT((P175:P179="○")*($AC175:$AC179=0.5))*0.25+SUMPRODUCT((P175:P179="○")*($AC175:$AC179=0.1))*0.05+SUMPRODUCT((P175:P179="◎")*($AC175:$AC179=1))+SUMPRODUCT((P175:P179="◎")*($AC175:$AC179=0.5)*0.5)+SUMPRODUCT((P175:P179="◎")*($AC175:$AC179=0.1))*0.1) -> 0 | Q180: =(SUMPRODUCT((Q175:Q179="○")*($AC175:$AC179=1))*0.5+SUMPRODUCT((Q175:Q179="○")*($AC175:$AC179=0.5))*0.25+SUMPRODUCT((Q175:Q179="○")*($AC175:$AC179=0.1))*0.05+SUMPRODUCT((Q175:Q179="◎")*($AC175:$AC179=1))+SUMPRODUCT((Q175:Q179="◎")*($AC175:$AC179=0.5)*0.5)+SUMPRODUCT((Q175:Q179="◎")*($AC175:$AC179=0.1))*0.1) -> 0 | R180: =(SUMPRODUCT((R175:R179="○")*($AC175:$AC179=1))*0.5+SUMPRODUCT((R175:R179="○")*($AC175:$AC179=0.5))*0.25+SUMPRODUCT((R175:R179="○")*($AC175:$AC179=0.1))*0.05+SUMPRODUCT((R175:R179="◎")*($AC175:$AC179=1))+SUMPRODUCT((R175:R179="◎")*($AC175:$AC179=0.5)*0.5)+SUMPRODUCT((R175:R179="◎")*($AC175:$AC179=0.1))*0.1) -> 0 | S180: =(SUMPRODUCT((S175:S179="○")*($AC175:$AC179=1))*0.5+SUMPRODUCT((S175:S179="○")*($AC175:$AC179=0.5))*0.25+SUMPRODUCT((S175:S179="○")*($AC175:$AC179=0.1))*0.05+SUMPRODUCT((S175:S179="◎")*($AC175:$AC179=1))+SUMPRODUCT((S175:S179="◎")*($AC175:$AC179=0.5)*0.5)+SUMPRODUCT((S175:S179="◎")*($AC175:$AC179=0.1))*0.1) -> 0 | T180: =(SUMPRODUCT((T175:T179="○")*($AC175:$AC179=1))*0.5+SUMPRODUCT((T175:T179="○")*($AC175:$AC179=0.5))*0.25+SUMPRODUCT((T175:T179="○")*($AC175:$AC179=0.1))*0.05+SUMPRODUCT((T175:T179="◎")*($AC175:$AC179=1))+SUMPRODUCT((T175:T179="◎")*($AC175:$AC179=0.5)*0.5)+SUMPRODUCT((T175:T179="◎")*($AC175:$AC179=0.1))*0.1) -> 0 | U180: =(SUMPRODUCT((U175:U179="○")*($AC175:$AC179=1))*0.5+SUMPRODUCT((U175:U179="○")*($AC175:$AC179=0.5))*0.25+SUMPRODUCT((U175:U179="○")*($AC175:$AC179=0.1))*0.05+SUMPRODUCT((U175:U179="◎")*($AC175:$AC179=1))+SUMPRODUCT((U175:U179="◎")*($AC175:$AC179=0.5)*0.5)+SUMPRODUCT((U175:U179="◎")*($AC175:$AC179=0.1))*0.1) -> 0 | V180: =(SUMPRODUCT((V175:V179="○")*($AC175:$AC179=1))*0.5+SUMPRODUCT((V175:V179="○")*($AC175:$AC179=0.5))*0.25+SUMPRODUCT((V175:V179="○")*($AC175:$AC179=0.1))*0.05+SUMPRODUCT((V175:V179="◎")*($AC175:$AC179=1))+SUMPRODUCT((V175:V179="◎")*($AC175:$AC179=0.5)*0.5)+SUMPRODUCT((V175:V179="◎")*($AC175:$AC179=0.1))*0.1) -> 0 | W180: =(SUMPRODUCT((W175:W179="○")*($AC175:$AC179=1))*0.5+SUMPRODUCT((W175:W179="○")*($AC175:$AC179=0.5))*0.25+SUMPRODUCT((W175:W179="○")*($AC175:$AC179=0.1))*0.05+SUMPRODUCT((W175:W179="◎")*($AC175:$AC179=1))+SUMPRODUCT((W175:W179="◎")*($AC175:$AC179=0.5)*0.5)+SUMPRODUCT((W175:W179="◎")*($AC175:$AC179=0.1))*0.1) -> 0 | X180: =(SUMPRODUCT((X175:X179="○")*($AC175:$AC179=1))*0.5+SUMPRODUCT((X175:X179="○")*($AC175:$AC179=0.5))*0.25+SUMPRODUCT((X175:X179="○")*($AC175:$AC179=0.1))*0.05+SUMPRODUCT((X175:X179="◎")*($AC175:$AC179=1))+SUMPRODUCT((X175:X179="◎")*($AC175:$AC179=0.5)*0.5)+SUMPRODUCT((X175:X179="◎")*($AC175:$AC179=0.1))*0.1) -> 0 | AE180: =SUBTOTAL(9,AE175:AE179) -> 5 | AH180: =SUM(AH175:AH179) -> 8 | AI180: =IF(AE180=0,"",SUM(H180:X180)/AH180) -> 0 | AL180: =IFERROR(H180/((SUMPRODUCT((H175:H179="○")*($AC175:$AC179=1))*0.5+SUMPRODUCT((H175:H179="○")*($AC175:$AC179=0.5))*0.5+SUMPRODUCT((H175:H179="○")*($AC175:$AC179=0.1))*0.5+SUMPRODUCT((H175:H179="◎")*($AC175:$AC179=1))+SUMPRODUCT((H175:H179="◎")*($AC175:$AC179=0.5)*0.5)+SUMPRODUCT((H175:H179="◎")*($AC175:$AC179=0.1))*0.1)),0) -> 0 | AM180: =IFERROR(I180/((SUMPRODUCT((I175:I179="○")*($AC175:$AC179=1))*0.5+SUMPRODUCT((I175:I179="○")*($AC175:$AC179=0.5))*0.5+SUMPRODUCT((I175:I179="○")*($AC175:$AC179=0.1))*0.5+SUMPRODUCT((I175:I179="◎")*($AC175:$AC179=1))+SUMPRODUCT((I175:I179="◎")*($AC175:$AC179=0.5)*0.5)+SUMPRODUCT((I175:I179="◎")*($AC175:$AC179=0.1))*0.1)),0) -> 0 | AN180: =IFERROR(J180/((SUMPRODUCT((J175:J179="○")*($AC175:$AC179=1))*0.5+SUMPRODUCT((J175:J179="○")*($AC175:$AC179=0.5))*0.5+SUMPRODUCT((J175:J179="○")*($AC175:$AC179=0.1))*0.5+SUMPRODUCT((J175:J179="◎")*($AC175:$AC179=1))+SUMPRODUCT((J175:J179="◎")*($AC175:$AC179=0.5)*0.5)+SUMPRODUCT((J175:J179="◎")*($AC175:$AC179=0.1))*0.1)),0) -> 0 | AO180: =IFERROR(K180/((SUMPRODUCT((K175:K179="○")*($AC175:$AC179=1))*0.5+SUMPRODUCT((K175:K179="○")*($AC175:$AC179=0.5))*0.5+SUMPRODUCT((K175:K179="○")*($AC175:$AC179=0.1))*0.5+SUMPRODUCT((K175:K179="◎")*($AC175:$AC179=1))+SUMPRODUCT((K175:K179="◎")*($AC175:$AC179=0.5)*0.5)+SUMPRODUCT((K175:K179="◎")*($AC175:$AC179=0.1))*0.1)),0) -> 0 | AP180: =IFERROR(L180/((SUMPRODUCT((L175:L179="○")*($AC175:$AC179=1))*0.5+SUMPRODUCT((L175:L179="○")*($AC175:$AC179=0.5))*0.5+SUMPRODUCT((L175:L179="○")*($AC175:$AC179=0.1))*0.5+SUMPRODUCT((L175:L179="◎")*($AC175:$AC179=1))+SUMPRODUCT((L175:L179="◎")*($AC175:$AC179=0.5)*0.5)+SUMPRODUCT((L175:L179="◎")*($AC175:$AC179=0.1))*0.1)),0) -> 0 | AQ180: =IFERROR(M180/((SUMPRODUCT((M175:M179="○")*($AC175:$AC179=1))*0.5+SUMPRODUCT((M175:M179="○")*($AC175:$AC179=0.5))*0.5+SUMPRODUCT((M175:M179="○")*($AC175:$AC179=0.1))*0.5+SUMPRODUCT((M175:M179="◎")*($AC175:$AC179=1))+SUMPRODUCT((M175:M179="◎")*($AC175:$AC179=0.5)*0.5)+SUMPRODUCT((M175:M179="◎")*($AC175:$AC179=0.1))*0.1)),0) -> 0 | AR180: =IFERROR(N180/((SUMPRODUCT((N175:N179="○")*($AC175:$AC179=1))*0.5+SUMPRODUCT((N175:N179="○")*($AC175:$AC179=0.5))*0.5+SUMPRODUCT((N175:N179="○")*($AC175:$AC179=0.1))*0.5+SUMPRODUCT((N175:N179="◎")*($AC175:$AC179=1))+SUMPRODUCT((N175:N179="◎")*($AC175:$AC179=0.5)*0.5)+SUMPRODUCT((N175:N179="◎")*($AC175:$AC179=0.1))*0.1)),0) -> 0 | AS180: =IFERROR(O180/((SUMPRODUCT((O175:O179="○")*($AC175:$AC179=1))*0.5+SUMPRODUCT((O175:O179="○")*($AC175:$AC179=0.5))*0.5+SUMPRODUCT((O175:O179="○")*($AC175:$AC179=0.1))*0.5+SUMPRODUCT((O175:O179="◎")*($AC175:$AC179=1))+SUMPRODUCT((O175:O179="◎")*($AC175:$AC179=0.5)*0.5)+SUMPRODUCT((O175:O179="◎")*($AC175:$AC179=0.1))*0.1)),0) -> 0 | AT180: =IFERROR(P180/((SUMPRODUCT((P175:P179="○")*($AC175:$AC179=1))*0.5+SUMPRODUCT((P175:P179="○")*($AC175:$AC179=0.5))*0.5+SUMPRODUCT((P175:P179="○")*($AC175:$AC179=0.1))*0.5+SUMPRODUCT((P175:P179="◎")*($AC175:$AC179=1))+SUMPRODUCT((P175:P179="◎")*($AC175:$AC179=0.5)*0.5)+SUMPRODUCT((P175:P179="◎")*($AC175:$AC179=0.1))*0.1)),0) -> 0 | AU180: =IFERROR(Q180/((SUMPRODUCT((Q175:Q179="○")*($AC175:$AC179=1))*0.5+SUMPRODUCT((Q175:Q179="○")*($AC175:$AC179=0.5))*0.5+SUMPRODUCT((Q175:Q179="○")*($AC175:$AC179=0.1))*0.5+SUMPRODUCT((Q175:Q179="◎")*($AC175:$AC179=1))+SUMPRODUCT((Q175:Q179="◎")*($AC175:$AC179=0.5)*0.5)+SUMPRODUCT((Q175:Q179="◎")*($AC175:$AC179=0.1))*0.1)),0) -> 0 | AV180: =IFERROR(R180/((SUMPRODUCT((R175:R179="○")*($AC175:$AC179=1))*0.5+SUMPRODUCT((R175:R179="○")*($AC175:$AC179=0.5))*0.5+SUMPRODUCT((R175:R179="○")*($AC175:$AC179=0.1))*0.5+SUMPRODUCT((R175:R179="◎")*($AC175:$AC179=1))+SUMPRODUCT((R175:R179="◎")*($AC175:$AC179=0.5)*0.5)+SUMPRODUCT((R175:R179="◎")*($AC175:$AC179=0.1))*0.1)),0) -> 0 | AW180: =IFERROR(S180/((SUMPRODUCT((S175:S179="○")*($AC175:$AC179=1))*0.5+SUMPRODUCT((S175:S179="○")*($AC175:$AC179=0.5))*0.5+SUMPRODUCT((S175:S179="○")*($AC175:$AC179=0.1))*0.5+SUMPRODUCT((S175:S179="◎")*($AC175:$AC179=1))+SUMPRODUCT((S175:S179="◎")*($AC175:$AC179=0.5)*0.5)+SUMPRODUCT((S175:S179="◎")*($AC175:$AC179=0.1))*0.1)),0) -> 0 | AX180: =IFERROR(T180/((SUMPRODUCT((T175:T179="○")*($AC175:$AC179=1))*0.5+SUMPRODUCT((T175:T179="○")*($AC175:$AC179=0.5))*0.5+SUMPRODUCT((T175:T179="○")*($AC175:$AC179=0.1))*0.5+SUMPRODUCT((T175:T179="◎")*($AC175:$AC179=1))+SUMPRODUCT((T175:T179="◎")*($AC175:$AC179=0.5)*0.5)+SUMPRODUCT((T175:T179="◎")*($AC175:$AC179=0.1))*0.1)),0) -> 0 | AY180: =IFERROR(U180/((SUMPRODUCT((U175:U179="○")*($AC175:$AC179=1))*0.5+SUMPRODUCT((U175:U179="○")*($AC175:$AC179=0.5))*0.5+SUMPRODUCT((U175:U179="○")*($AC175:$AC179=0.1))*0.5+SUMPRODUCT((U175:U179="◎")*($AC175:$AC179=1))+SUMPRODUCT((U175:U179="◎")*($AC175:$AC179=0.5)*0.5)+SUMPRODUCT((U175:U179="◎")*($AC175:$AC179=0.1))*0.1)),0) -> 0 | AZ180: =IFERROR(V180/((SUMPRODUCT((V175:V179="○")*($AC175:$AC179=1))*0.5+SUMPRODUCT((V175:V179="○")*($AC175:$AC179=0.5))*0.5+SUMPRODUCT((V175:V179="○")*($AC175:$AC179=0.1))*0.5+SUMPRODUCT((V175:V179="◎")*($AC175:$AC179=1))+SUMPRODUCT((V175:V179="◎")*($AC175:$AC179=0.5)*0.5)+SUMPRODUCT((V175:V179="◎")*($AC175:$AC179=0.1))*0.1)),0) -> 0 | BA180: =IFERROR(W180/((SUMPRODUCT((W175:W179="○")*($AC175:$AC179=1))*0.5+SUMPRODUCT((W175:W179="○")*($AC175:$AC179=0.5))*0.5+SUMPRODUCT((W175:W179="○")*($AC175:$AC179=0.1))*0.5+SUMPRODUCT((W175:W179="◎")*($AC175:$AC179=1))+SUMPRODUCT((W175:W179="◎")*($AC175:$AC179=0.5)*0.5)+SUMPRODUCT((W175:W179="◎")*($AC175:$AC179=0.1))*0.1)),0) -> 0 | BB180: =IFERROR(X180/((SUMPRODUCT((X175:X179="○")*($AC175:$AC179=1))*0.5+SUMPRODUCT((X175:X179="○")*($AC175:$AC179=0.5))*0.5+SUMPRODUCT((X175:X179="○")*($AC175:$AC179=0.1))*0.5+SUMPRODUCT((X175:X179="◎")*($AC175:$AC179=1))+SUMPRODUCT((X175:X179="◎")*($AC175:$AC179=0.5)*0.5)+SUMPRODUCT((X175:X179="◎")*($AC175:$AC179=0.1))*0.1)),0) -> 0
B181: =取組ﾁｪｯｸｼｰﾄ改訂版!B181 -> 0 | D181: 環境に配慮した物品等の調達に係る基準、リストを作成し、現状に合わせて、見直しを行っている | E181: １２ | S181: ◎ | AD181: =SUM(AC181:AC183) -> 0 | AE181: =COUNTIF(B181,"○")+COUNTIF(B181,"△")+COUNTIF(B181,"×")+COUNTIF(B181,0) -> 1 | AF181: =SUM(AE181:AE183) -> 3 | AG181: =AD181/AF181 -> 0 | AH181: =SUMPRODUCT((H181:X181="○")*($AE181=1))*0.5+SUMPRODUCT((H181:X181="◎")*($AE181=1)) -> 1
B182: =取組ﾁｪｯｸｼｰﾄ改訂版!B182 -> 0 | D182: 基準、リストに基づく調達状況を把握している | S182: ◎ | AE182: 1 | AH182: 1
B183: =取組ﾁｪｯｸｼｰﾄ改訂版!B183 -> 0 | D183: 原料・中間材の購入に当たって環境配慮のチェックを行っている | S183: ◎ | X183: ○ | AE183: 1 | AH183: 1.5
C184: チェック欄数：１１ | H184: =(SUMPRODUCT((H181:H183="○")*($AC181:$AC183=1))*0.5+SUMPRODUCT((H181:H183="○")*($AC181:$AC183=0.5))*0.25+SUMPRODUCT((H181:H183="○")*($AC181:$AC183=0.1))*0.05+SUMPRODUCT((H181:H183="◎")*($AC181:$AC183=1))+SUMPRODUCT((H181:H183="◎")*($AC181:$AC183=0.5)*0.5)+SUMPRODUCT((H181:H183="◎")*($AC181:$AC183=0.1))*0.1) -> 0 | I184: =(SUMPRODUCT((I181:I183="○")*($AC181:$AC183=1))*0.5+SUMPRODUCT((I181:I183="○")*($AC181:$AC183=0.5))*0.25+SUMPRODUCT((I181:I183="○")*($AC181:$AC183=0.1))*0.05+SUMPRODUCT((I181:I183="◎")*($AC181:$AC183=1))+SUMPRODUCT((I181:I183="◎")*($AC181:$AC183=0.5)*0.5)+SUMPRODUCT((I181:I183="◎")*($AC181:$AC183=0.1))*0.1) -> 0 | J184: =(SUMPRODUCT((J181:J183="○")*($AC181:$AC183=1))*0.5+SUMPRODUCT((J181:J183="○")*($AC181:$AC183=0.5))*0.25+SUMPRODUCT((J181:J183="○")*($AC181:$AC183=0.1))*0.05+SUMPRODUCT((J181:J183="◎")*($AC181:$AC183=1))+SUMPRODUCT((J181:J183="◎")*($AC181:$AC183=0.5)*0.5)+SUMPRODUCT((J181:J183="◎")*($AC181:$AC183=0.1))*0.1) -> 0 | K184: =(SUMPRODUCT((K181:K183="○")*($AC181:$AC183=1))*0.5+SUMPRODUCT((K181:K183="○")*($AC181:$AC183=0.5))*0.25+SUMPRODUCT((K181:K183="○")*($AC181:$AC183=0.1))*0.05+SUMPRODUCT((K181:K183="◎")*($AC181:$AC183=1))+SUMPRODUCT((K181:K183="◎")*($AC181:$AC183=0.5)*0.5)+SUMPRODUCT((K181:K183="◎")*($AC181:$AC183=0.1))*0.1) -> 0 | L184: =(SUMPRODUCT((L181:L183="○")*($AC181:$AC183=1))*0.5+SUMPRODUCT((L181:L183="○")*($AC181:$AC183=0.5))*0.25+SUMPRODUCT((L181:L183="○")*($AC181:$AC183=0.1))*0.05+SUMPRODUCT((L181:L183="◎")*($AC181:$AC183=1))+SUMPRODUCT((L181:L183="◎")*($AC181:$AC183=0.5)*0.5)+SUMPRODUCT((L181:L183="◎")*($AC181:$AC183=0.1))*0.1) -> 0 | M184: =(SUMPRODUCT((M181:M183="○")*($AC181:$AC183=1))*0.5+SUMPRODUCT((M181:M183="○")*($AC181:$AC183=0.5))*0.25+SUMPRODUCT((M181:M183="○")*($AC181:$AC183=0.1))*0.05+SUMPRODUCT((M181:M183="◎")*($AC181:$AC183=1))+SUMPRODUCT((M181:M183="◎")*($AC181:$AC183=0.5)*0.5)+SUMPRODUCT((M181:M183="◎")*($AC181:$AC183=0.1))*0.1) -> 0 | N184: =(SUMPRODUCT((N181:N183="○")*($AC181:$AC183=1))*0.5+SUMPRODUCT((N181:N183="○")*($AC181:$AC183=0.5))*0.25+SUMPRODUCT((N181:N183="○")*($AC181:$AC183=0.1))*0.05+SUMPRODUCT((N181:N183="◎")*($AC181:$AC183=1))+SUMPRODUCT((N181:N183="◎")*($AC181:$AC183=0.5)*0.5)+SUMPRODUCT((N181:N183="◎")*($AC181:$AC183=0.1))*0.1) -> 0 | O184: =(SUMPRODUCT((O181:O183="○")*($AC181:$AC183=1))*0.5+SUMPRODUCT((O181:O183="○")*($AC181:$AC183=0.5))*0.25+SUMPRODUCT((O181:O183="○")*($AC181:$AC183=0.1))*0.05+SUMPRODUCT((O181:O183="◎")*($AC181:$AC183=1))+SUMPRODUCT((O181:O183="◎")*($AC181:$AC183=0.5)*0.5)+SUMPRODUCT((O181:O183="◎")*($AC181:$AC183=0.1))*0.1) -> 0 | P184: =(SUMPRODUCT((P181:P183="○")*($AC181:$AC183=1))*0.5+SUMPRODUCT((P181:P183="○")*($AC181:$AC183=0.5))*0.25+SUMPRODUCT((P181:P183="○")*($AC181:$AC183=0.1))*0.05+SUMPRODUCT((P181:P183="◎")*($AC181:$AC183=1))+SUMPRODUCT((P181:P183="◎")*($AC181:$AC183=0.5)*0.5)+SUMPRODUCT((P181:P183="◎")*($AC181:$AC183=0.1))*0.1) -> 0 | Q184: =(SUMPRODUCT((Q181:Q183="○")*($AC181:$AC183=1))*0.5+SUMPRODUCT((Q181:Q183="○")*($AC181:$AC183=0.5))*0.25+SUMPRODUCT((Q181:Q183="○")*($AC181:$AC183=0.1))*0.05+SUMPRODUCT((Q181:Q183="◎")*($AC181:$AC183=1))+SUMPRODUCT((Q181:Q183="◎")*($AC181:$AC183=0.5)*0.5)+SUMPRODUCT((Q181:Q183="◎")*($AC181:$AC183=0.1))*0.1) -> 0 | R184: =(SUMPRODUCT((R181:R183="○")*($AC181:$AC183=1))*0.5+SUMPRODUCT((R181:R183="○")*($AC181:$AC183=0.5))*0.25+SUMPRODUCT((R181:R183="○")*($AC181:$AC183=0.1))*0.05+SUMPRODUCT((R181:R183="◎")*($AC181:$AC183=1))+SUMPRODUCT((R181:R183="◎")*($AC181:$AC183=0.5)*0.5)+SUMPRODUCT((R181:R183="◎")*($AC181:$AC183=0.1))*0.1) -> 0 | S184: =(SUMPRODUCT((S181:S183="○")*($AC181:$AC183=1))*0.5+SUMPRODUCT((S181:S183="○")*($AC181:$AC183=0.5))*0.25+SUMPRODUCT((S181:S183="○")*($AC181:$AC183=0.1))*0.05+SUMPRODUCT((S181:S183="◎")*($AC181:$AC183=1))+SUMPRODUCT((S181:S183="◎")*($AC181:$AC183=0.5)*0.5)+SUMPRODUCT((S181:S183="◎")*($AC181:$AC183=0.1))*0.1) -> 0 | T184: =(SUMPRODUCT((T181:T183="○")*($AC181:$AC183=1))*0.5+SUMPRODUCT((T181:T183="○")*($AC181:$AC183=0.5))*0.25+SUMPRODUCT((T181:T183="○")*($AC181:$AC183=0.1))*0.05+SUMPRODUCT((T181:T183="◎")*($AC181:$AC183=1))+SUMPRODUCT((T181:T183="◎")*($AC181:$AC183=0.5)*0.5)+SUMPRODUCT((T181:T183="◎")*($AC181:$AC183=0.1))*0.1) -> 0 | U184: =(SUMPRODUCT((U181:U183="○")*($AC181:$AC183=1))*0.5+SUMPRODUCT((U181:U183="○")*($AC181:$AC183=0.5))*0.25+SUMPRODUCT((U181:U183="○")*($AC181:$AC183=0.1))*0.05+SUMPRODUCT((U181:U183="◎")*($AC181:$AC183=1))+SUMPRODUCT((U181:U183="◎")*($AC181:$AC183=0.5)*0.5)+SUMPRODUCT((U181:U183="◎")*($AC181:$AC183=0.1))*0.1) -> 0 | V184: =(SUMPRODUCT((V181:V183="○")*($AC181:$AC183=1))*0.5+SUMPRODUCT((V181:V183="○")*($AC181:$AC183=0.5))*0.25+SUMPRODUCT((V181:V183="○")*($AC181:$AC183=0.1))*0.05+SUMPRODUCT((V181:V183="◎")*($AC181:$AC183=1))+SUMPRODUCT((V181:V183="◎")*($AC181:$AC183=0.5)*0.5)+SUMPRODUCT((V181:V183="◎")*($AC181:$AC183=0.1))*0.1) -> 0 | W184: =(SUMPRODUCT((W181:W183="○")*($AC181:$AC183=1))*0.5+SUMPRODUCT((W181:W183="○")*($AC181:$AC183=0.5))*0.25+SUMPRODUCT((W181:W183="○")*($AC181:$AC183=0.1))*0.05+SUMPRODUCT((W181:W183="◎")*($AC181:$AC183=1))+SUMPRODUCT((W181:W183="◎")*($AC181:$AC183=0.5)*0.5)+SUMPRODUCT((W181:W183="◎")*($AC181:$AC183=0.1))*0.1) -> 0 | X184: =(SUMPRODUCT((X181:X183="○")*($AC181:$AC183=1))*0.5+SUMPRODUCT((X181:X183="○")*($AC181:$AC183=0.5))*0.25+SUMPRODUCT((X181:X183="○")*($AC181:$AC183=0.1))*0.05+SUMPRODUCT((X181:X183="◎")*($AC181:$AC183=1))+SUMPRODUCT((X181:X183="◎")*($AC181:$AC183=0.5)*0.5)+SUMPRODUCT((X181:X183="◎")*($AC181:$AC183=0.1))*0.1) -> 0 | AD184: =SUM(AD171:AD183) -> 0 | AE184: =SUBTOTAL(9,AE181:AE183) -> 3 | AF184: =SUM(AF171:AF183) -> 11 | AG184: =AD184/AF184 -> 0 | AH184: =SUM(AH181:AH183) -> 3.5 | AI184: =IF(AE184=0,"",SUM(H184:X184)/AH184) -> 0 | AL184: =IFERROR(H184/((SUMPRODUCT((H181:H183="○")*($AC181:$AC183=1))*0.5+SUMPRODUCT((H181:H183="○")*($AC181:$AC183=0.5))*0.5+SUMPRODUCT((H181:H183="○")*($AC181:$AC183=0.1))*0.5+SUMPRODUCT((H181:H183="◎")*($AC181:$AC183=1))+SUMPRODUCT((H181:H183="◎")*($AC181:$AC183=0.5)*0.5)+SUMPRODUCT((H181:H183="◎")*($AC181:$AC183=0.1))*0.1)),0) -> 0 | AM184: =IFERROR(I184/((SUMPRODUCT((I181:I183="○")*($AC181:$AC183=1))*0.5+SUMPRODUCT((I181:I183="○")*($AC181:$AC183=0.5))*0.5+SUMPRODUCT((I181:I183="○")*($AC181:$AC183=0.1))*0.5+SUMPRODUCT((I181:I183="◎")*($AC181:$AC183=1))+SUMPRODUCT((I181:I183="◎")*($AC181:$AC183=0.5)*0.5)+SUMPRODUCT((I181:I183="◎")*($AC181:$AC183=0.1))*0.1)),0) -> 0 | AN184: =IFERROR(J184/((SUMPRODUCT((J181:J183="○")*($AC181:$AC183=1))*0.5+SUMPRODUCT((J181:J183="○")*($AC181:$AC183=0.5))*0.5+SUMPRODUCT((J181:J183="○")*($AC181:$AC183=0.1))*0.5+SUMPRODUCT((J181:J183="◎")*($AC181:$AC183=1))+SUMPRODUCT((J181:J183="◎")*($AC181:$AC183=0.5)*0.5)+SUMPRODUCT((J181:J183="◎")*($AC181:$AC183=0.1))*0.1)),0) -> 0 | AO184: =IFERROR(K184/((SUMPRODUCT((K181:K183="○")*($AC181:$AC183=1))*0.5+SUMPRODUCT((K181:K183="○")*($AC181:$AC183=0.5))*0.5+SUMPRODUCT((K181:K183="○")*($AC181:$AC183=0.1))*0.5+SUMPRODUCT((K181:K183="◎")*($AC181:$AC183=1))+SUMPRODUCT((K181:K183="◎")*($AC181:$AC183=0.5)*0.5)+SUMPRODUCT((K181:K183="◎")*($AC181:$AC183=0.1))*0.1)),0) -> 0 | AP184: =IFERROR(L184/((SUMPRODUCT((L181:L183="○")*($AC181:$AC183=1))*0.5+SUMPRODUCT((L181:L183="○")*($AC181:$AC183=0.5))*0.5+SUMPRODUCT((L181:L183="○")*($AC181:$AC183=0.1))*0.5+SUMPRODUCT((L181:L183="◎")*($AC181:$AC183=1))+SUMPRODUCT((L181:L183="◎")*($AC181:$AC183=0.5)*0.5)+SUMPRODUCT((L181:L183="◎")*($AC181:$AC183=0.1))*0.1)),0) -> 0 | AQ184: =IFERROR(M184/((SUMPRODUCT((M181:M183="○")*($AC181:$AC183=1))*0.5+SUMPRODUCT((M181:M183="○")*($AC181:$AC183=0.5))*0.5+SUMPRODUCT((M181:M183="○")*($AC181:$AC183=0.1))*0.5+SUMPRODUCT((M181:M183="◎")*($AC181:$AC183=1))+SUMPRODUCT((M181:M183="◎")*($AC181:$AC183=0.5)*0.5)+SUMPRODUCT((M181:M183="◎")*($AC181:$AC183=0.1))*0.1)),0) -> 0 | AR184: =IFERROR(N184/((SUMPRODUCT((N181:N183="○")*($AC181:$AC183=1))*0.5+SUMPRODUCT((N181:N183="○")*($AC181:$AC183=0.5))*0.5+SUMPRODUCT((N181:N183="○")*($AC181:$AC183=0.1))*0.5+SUMPRODUCT((N181:N183="◎")*($AC181:$AC183=1))+SUMPRODUCT((N181:N183="◎")*($AC181:$AC183=0.5)*0.5)+SUMPRODUCT((N181:N183="◎")*($AC181:$AC183=0.1))*0.1)),0) -> 0 | AS184: =IFERROR(O184/((SUMPRODUCT((O181:O183="○")*($AC181:$AC183=1))*0.5+SUMPRODUCT((O181:O183="○")*($AC181:$AC183=0.5))*0.5+SUMPRODUCT((O181:O183="○")*($AC181:$AC183=0.1))*0.5+SUMPRODUCT((O181:O183="◎")*($AC181:$AC183=1))+SUMPRODUCT((O181:O183="◎")*($AC181:$AC183=0.5)*0.5)+SUMPRODUCT((O181:O183="◎")*($AC181:$AC183=0.1))*0.1)),0) -> 0 | AT184: =IFERROR(P184/((SUMPRODUCT((P181:P183="○")*($AC181:$AC183=1))*0.5+SUMPRODUCT((P181:P183="○")*($AC181:$AC183=0.5))*0.5+SUMPRODUCT((P181:P183="○")*($AC181:$AC183=0.1))*0.5+SUMPRODUCT((P181:P183="◎")*($AC181:$AC183=1))+SUMPRODUCT((P181:P183="◎")*($AC181:$AC183=0.5)*0.5)+SUMPRODUCT((P181:P183="◎")*($AC181:$AC183=0.1))*0.1)),0) -> 0 | AU184: =IFERROR(Q184/((SUMPRODUCT((Q181:Q183="○")*($AC181:$AC183=1))*0.5+SUMPRODUCT((Q181:Q183="○")*($AC181:$AC183=0.5))*0.5+SUMPRODUCT((Q181:Q183="○")*($AC181:$AC183=0.1))*0.5+SUMPRODUCT((Q181:Q183="◎")*($AC181:$AC183=1))+SUMPRODUCT((Q181:Q183="◎")*($AC181:$AC183=0.5)*0.5)+SUMPRODUCT((Q181:Q183="◎")*($AC181:$AC183=0.1))*0.1)),0) -> 0 | AV184: =IFERROR(R184/((SUMPRODUCT((R181:R183="○")*($AC181:$AC183=1))*0.5+SUMPRODUCT((R181:R183="○")*($AC181:$AC183=0.5))*0.5+SUMPRODUCT((R181:R183="○")*($AC181:$AC183=0.1))*0.5+SUMPRODUCT((R181:R183="◎")*($AC181:$AC183=1))+SUMPRODUCT((R181:R183="◎")*($AC181:$AC183=0.5)*0.5)+SUMPRODUCT((R181:R183="◎")*($AC181:$AC183=0.1))*0.1)),0) -> 0 | AW184: =IFERROR(S184/((SUMPRODUCT((S181:S183="○")*($AC181:$AC183=1))*0.5+SUMPRODUCT((S181:S183="○")*($AC181:$AC183=0.5))*0.5+SUMPRODUCT((S181:S183="○")*($AC181:$AC183=0.1))*0.5+SUMPRODUCT((S181:S183="◎")*($AC181:$AC183=1))+SUMPRODUCT((S181:S183="◎")*($AC181:$AC183=0.5)*0.5)+SUMPRODUCT((S181:S183="◎")*($AC181:$AC183=0.1))*0.1)),0) -> 0 | AX184: =IFERROR(T184/((SUMPRODUCT((T181:T183="○")*($AC181:$AC183=1))*0.5+SUMPRODUCT((T181:T183="○")*($AC181:$AC183=0.5))*0.5+SUMPRODUCT((T181:T183="○")*($AC181:$AC183=0.1))*0.5+SUMPRODUCT((T181:T183="◎")*($AC181:$AC183=1))+SUMPRODUCT((T181:T183="◎")*($AC181:$AC183=0.5)*0.5)+SUMPRODUCT((T181:T183="◎")*($AC181:$AC183=0.1))*0.1)),0) -> 0 | AY184: =IFERROR(U184/((SUMPRODUCT((U181:U183="○")*($AC181:$AC183=1))*0.5+SUMPRODUCT((U181:U183="○")*($AC181:$AC183=0.5))*0.5+SUMPRODUCT((U181:U183="○")*($AC181:$AC183=0.1))*0.5+SUMPRODUCT((U181:U183="◎")*($AC181:$AC183=1))+SUMPRODUCT((U181:U183="◎")*($AC181:$AC183=0.5)*0.5)+SUMPRODUCT((U181:U183="◎")*($AC181:$AC183=0.1))*0.1)),0) -> 0 | AZ184: =IFERROR(V184/((SUMPRODUCT((V181:V183="○")*($AC181:$AC183=1))*0.5+SUMPRODUCT((V181:V183="○")*($AC181:$AC183=0.5))*0.5+SUMPRODUCT((V181:V183="○")*($AC181:$AC183=0.1))*0.5+SUMPRODUCT((V181:V183="◎")*($AC181:$AC183=1))+SUMPRODUCT((V181:V183="◎")*($AC181:$AC183=0.5)*0.5)+SUMPRODUCT((V181:V183="◎")*($AC181:$AC183=0.1))*0.1)),0) -> 0 | BA184: =IFERROR(W184/((SUMPRODUCT((W181:W183="○")*($AC181:$AC183=1))*0.5+SUMPRODUCT((W181:W183="○")*($AC181:$AC183=0.5))*0.5+SUMPRODUCT((W181:W183="○")*($AC181:$AC183=0.1))*0.5+SUMPRODUCT((W181:W183="◎")*($AC181:$AC183=1))+SUMPRODUCT((W181:W183="◎")*($AC181:$AC183=0.5)*0.5)+SUMPRODUCT((W181:W183="◎")*($AC181:$AC183=0.1))*0.1)),0) -> 0 | BB184: =IFERROR(X184/((SUMPRODUCT((X181:X183="○")*($AC181:$AC183=1))*0.5+SUMPRODUCT((X181:X183="○")*($AC181:$AC183=0.5))*0.5+SUMPRODUCT((X181:X183="○")*($AC181:$AC183=0.1))*0.5+SUMPRODUCT((X181:X183="◎")*($AC181:$AC183=1))+SUMPRODUCT((X181:X183="◎")*($AC181:$AC183=0.5)*0.5)+SUMPRODUCT((X181:X183="◎")*($AC181:$AC183=0.1))*0.1)),0) -> 0
D185: =IF( (COUNTIF(項目⑨チェック欄,"○")+COUNTIF(項目⑨チェック欄,"△")+COUNTIF(項目⑨チェック欄,"×")+COUNTIF(項目⑨チェック欄,"―"))=0,"達成率 %",IF( (COUNTIF(項目⑨チェック欄,"○")+COUNTIF(項目⑨チェック欄,"△")+COUNTIF(項目⑨チェック欄,"×"))=0,"達成率 ― %",(COUNTIF(項目⑨チェック欄,"○")+COUNTIF(項目⑨チェック欄,"△")*0.5+COUNTIF(項目⑨チェック欄,"×")*0.1)/(COUNTIF(項目⑨チェック欄,"○")+COUNTIF(項目⑨チェック欄,"△")+COUNTIF(項目⑨チェック欄,"×")+COUNTIF(項目⑨チェック欄,""))*100)) -> 達成率 %
B186: =取組ﾁｪｯｸｼｰﾄ改訂版!B186 -> <項目⑧ ： 環境教育、環境保全のための仕組みの整備>
B187: =取組ﾁｪｯｸｼｰﾄ改訂版!B187 -> （チェック欄） | E187: SDGs関連ゴール
B188: =取組ﾁｪｯｸｼｰﾄ改訂版!B188 -> 1 環境保全に関する職員等への教育、意識の向上
B189: =取組ﾁｪｯｸｼｰﾄ改訂版!B189 -> 0 | D189: 職員等に環境意識の向上や、環境保全活動に必要な教育を行う計画を定めている | E189: ４、１１ | K189: ◎ | O189: ○ | R189: ○ | AD189: =SUM(AC189:AC193) -> 0 | AE189: =COUNTIF(B189,"○")+COUNTIF(B189,"△")+COUNTIF(B189,"×")+COUNTIF(B189,0) -> 1 | AF189: =SUM(AE189:AE193) -> 5 | AG189: =AD189/AF189 -> 0 | AH189: =SUMPRODUCT((H189:X189="○")*($AE189=1))*0.5+SUMPRODUCT((H189:X189="◎")*($AE189=1)) -> 2
B190: =取組ﾁｪｯｸｼｰﾄ改訂版!B190 -> 0 | D190: 職員等に環境教育を実施している | K190: ◎ | O190: ○ | R190: ○ | AE190: 1 | AH190: 2
B191: =取組ﾁｪｯｸｼｰﾄ改訂版!B191 -> 0 | D191: 環境教育の有効性を確認する効果測定等をおこなっている。 | K191: ◎ | O191: ○ | R191: ○ | AE191: 1 | AH191: 2
B192: =取組ﾁｪｯｸｼｰﾄ改訂版!B192 -> 0 | D192: 職員等の力量評価や環境保全上必要な資格、能力等を保有できるように養成している | K192: ◎ | O192: ○ | R192: ○ | AE192: 1 | AH192: 2
B193: =取組ﾁｪｯｸｼｰﾄ改訂版!B193 -> 0 | D193: 委託・協力会社などの職員等についても、必要な知識、能力等を保有するよう、対応をとっている | K193: ◎ | O193: ○ | R193: ○ | AE193: 1 | AH193: 2
B194: =取組ﾁｪｯｸｼｰﾄ改訂版!B194 -> 2 職員等の自主的なボランティア活動に対する支援 | H194: =(SUMPRODUCT((H189:H193="○")*($AC189:$AC193=1))*0.5+SUMPRODUCT((H189:H193="○")*($AC189:$AC193=0.5))*0.25+SUMPRODUCT((H189:H193="○")*($AC189:$AC193=0.1))*0.05+SUMPRODUCT((H189:H193="◎")*($AC189:$AC193=1))+SUMPRODUCT((H189:H193="◎")*($AC189:$AC193=0.5)*0.5)+SUMPRODUCT((H189:H193="◎")*($AC189:$AC193=0.1))*0.1) -> 0 | I194: =(SUMPRODUCT((I189:I193="○")*($AC189:$AC193=1))*0.5+SUMPRODUCT((I189:I193="○")*($AC189:$AC193=0.5))*0.25+SUMPRODUCT((I189:I193="○")*($AC189:$AC193=0.1))*0.05+SUMPRODUCT((I189:I193="◎")*($AC189:$AC193=1))+SUMPRODUCT((I189:I193="◎")*($AC189:$AC193=0.5)*0.5)+SUMPRODUCT((I189:I193="◎")*($AC189:$AC193=0.1))*0.1) -> 0 | J194: =(SUMPRODUCT((J189:J193="○")*($AC189:$AC193=1))*0.5+SUMPRODUCT((J189:J193="○")*($AC189:$AC193=0.5))*0.25+SUMPRODUCT((J189:J193="○")*($AC189:$AC193=0.1))*0.05+SUMPRODUCT((J189:J193="◎")*($AC189:$AC193=1))+SUMPRODUCT((J189:J193="◎")*($AC189:$AC193=0.5)*0.5)+SUMPRODUCT((J189:J193="◎")*($AC189:$AC193=0.1))*0.1) -> 0 | K194: =(SUMPRODUCT((K189:K193="○")*($AC189:$AC193=1))*0.5+SUMPRODUCT((K189:K193="○")*($AC189:$AC193=0.5))*0.25+SUMPRODUCT((K189:K193="○")*($AC189:$AC193=0.1))*0.05+SUMPRODUCT((K189:K193="◎")*($AC189:$AC193=1))+SUMPRODUCT((K189:K193="◎")*($AC189:$AC193=0.5)*0.5)+SUMPRODUCT((K189:K193="◎")*($AC189:$AC193=0.1))*0.1) -> 0 | L194: =(SUMPRODUCT((L189:L193="○")*($AC189:$AC193=1))*0.5+SUMPRODUCT((L189:L193="○")*($AC189:$AC193=0.5))*0.25+SUMPRODUCT((L189:L193="○")*($AC189:$AC193=0.1))*0.05+SUMPRODUCT((L189:L193="◎")*($AC189:$AC193=1))+SUMPRODUCT((L189:L193="◎")*($AC189:$AC193=0.5)*0.5)+SUMPRODUCT((L189:L193="◎")*($AC189:$AC193=0.1))*0.1) -> 0 | M194: =(SUMPRODUCT((M189:M193="○")*($AC189:$AC193=1))*0.5+SUMPRODUCT((M189:M193="○")*($AC189:$AC193=0.5))*0.25+SUMPRODUCT((M189:M193="○")*($AC189:$AC193=0.1))*0.05+SUMPRODUCT((M189:M193="◎")*($AC189:$AC193=1))+SUMPRODUCT((M189:M193="◎")*($AC189:$AC193=0.5)*0.5)+SUMPRODUCT((M189:M193="◎")*($AC189:$AC193=0.1))*0.1) -> 0 | N194: =(SUMPRODUCT((N189:N193="○")*($AC189:$AC193=1))*0.5+SUMPRODUCT((N189:N193="○")*($AC189:$AC193=0.5))*0.25+SUMPRODUCT((N189:N193="○")*($AC189:$AC193=0.1))*0.05+SUMPRODUCT((N189:N193="◎")*($AC189:$AC193=1))+SUMPRODUCT((N189:N193="◎")*($AC189:$AC193=0.5)*0.5)+SUMPRODUCT((N189:N193="◎")*($AC189:$AC193=0.1))*0.1) -> 0 | O194: =(SUMPRODUCT((O189:O193="○")*($AC189:$AC193=1))*0.5+SUMPRODUCT((O189:O193="○")*($AC189:$AC193=0.5))*0.25+SUMPRODUCT((O189:O193="○")*($AC189:$AC193=0.1))*0.05+SUMPRODUCT((O189:O193="◎")*($AC189:$AC193=1))+SUMPRODUCT((O189:O193="◎")*($AC189:$AC193=0.5)*0.5)+SUMPRODUCT((O189:O193="◎")*($AC189:$AC193=0.1))*0.1) -> 0 | P194: =(SUMPRODUCT((P189:P193="○")*($AC189:$AC193=1))*0.5+SUMPRODUCT((P189:P193="○")*($AC189:$AC193=0.5))*0.25+SUMPRODUCT((P189:P193="○")*($AC189:$AC193=0.1))*0.05+SUMPRODUCT((P189:P193="◎")*($AC189:$AC193=1))+SUMPRODUCT((P189:P193="◎")*($AC189:$AC193=0.5)*0.5)+SUMPRODUCT((P189:P193="◎")*($AC189:$AC193=0.1))*0.1) -> 0 | Q194: =(SUMPRODUCT((Q189:Q193="○")*($AC189:$AC193=1))*0.5+SUMPRODUCT((Q189:Q193="○")*($AC189:$AC193=0.5))*0.25+SUMPRODUCT((Q189:Q193="○")*($AC189:$AC193=0.1))*0.05+SUMPRODUCT((Q189:Q193="◎")*($AC189:$AC193=1))+SUMPRODUCT((Q189:Q193="◎")*($AC189:$AC193=0.5)*0.5)+SUMPRODUCT((Q189:Q193="◎")*($AC189:$AC193=0.1))*0.1) -> 0 | R194: =(SUMPRODUCT((R189:R193="○")*($AC189:$AC193=1))*0.5+SUMPRODUCT((R189:R193="○")*($AC189:$AC193=0.5))*0.25+SUMPRODUCT((R189:R193="○")*($AC189:$AC193=0.1))*0.05+SUMPRODUCT((R189:R193="◎")*($AC189:$AC193=1))+SUMPRODUCT((R189:R193="◎")*($AC189:$AC193=0.5)*0.5)+SUMPRODUCT((R189:R193="◎")*($AC189:$AC193=0.1))*0.1) -> 0 | S194: =(SUMPRODUCT((S189:S193="○")*($AC189:$AC193=1))*0.5+SUMPRODUCT((S189:S193="○")*($AC189:$AC193=0.5))*0.25+SUMPRODUCT((S189:S193="○")*($AC189:$AC193=0.1))*0.05+SUMPRODUCT((S189:S193="◎")*($AC189:$AC193=1))+SUMPRODUCT((S189:S193="◎")*($AC189:$AC193=0.5)*0.5)+SUMPRODUCT((S189:S193="◎")*($AC189:$AC193=0.1))*0.1) -> 0 | T194: =(SUMPRODUCT((T189:T193="○")*($AC189:$AC193=1))*0.5+SUMPRODUCT((T189:T193="○")*($AC189:$AC193=0.5))*0.25+SUMPRODUCT((T189:T193="○")*($AC189:$AC193=0.1))*0.05+SUMPRODUCT((T189:T193="◎")*($AC189:$AC193=1))+SUMPRODUCT((T189:T193="◎")*($AC189:$AC193=0.5)*0.5)+SUMPRODUCT((T189:T193="◎")*($AC189:$AC193=0.1))*0.1) -> 0 | U194: =(SUMPRODUCT((U189:U193="○")*($AC189:$AC193=1))*0.5+SUMPRODUCT((U189:U193="○")*($AC189:$AC193=0.5))*0.25+SUMPRODUCT((U189:U193="○")*($AC189:$AC193=0.1))*0.05+SUMPRODUCT((U189:U193="◎")*($AC189:$AC193=1))+SUMPRODUCT((U189:U193="◎")*($AC189:$AC193=0.5)*0.5)+SUMPRODUCT((U189:U193="◎")*($AC189:$AC193=0.1))*0.1) -> 0 | V194: =(SUMPRODUCT((V189:V193="○")*($AC189:$AC193=1))*0.5+SUMPRODUCT((V189:V193="○")*($AC189:$AC193=0.5))*0.25+SUMPRODUCT((V189:V193="○")*($AC189:$AC193=0.1))*0.05+SUMPRODUCT((V189:V193="◎")*($AC189:$AC193=1))+SUMPRODUCT((V189:V193="◎")*($AC189:$AC193=0.5)*0.5)+SUMPRODUCT((V189:V193="◎")*($AC189:$AC193=0.1))*0.1) -> 0 | W194: =(SUMPRODUCT((W189:W193="○")*($AC189:$AC193=1))*0.5+SUMPRODUCT((W189:W193="○")*($AC189:$AC193=0.5))*0.25+SUMPRODUCT((W189:W193="○")*($AC189:$AC193=0.1))*0.05+SUMPRODUCT((W189:W193="◎")*($AC189:$AC193=1))+SUMPRODUCT((W189:W193="◎")*($AC189:$AC193=0.5)*0.5)+SUMPRODUCT((W189:W193="◎")*($AC189:$AC193=0.1))*0.1) -> 0 | X194: =(SUMPRODUCT((X189:X193="○")*($AC189:$AC193=1))*0.5+SUMPRODUCT((X189:X193="○")*($AC189:$AC193=0.5))*0.25+SUMPRODUCT((X189:X193="○")*($AC189:$AC193=0.1))*0.05+SUMPRODUCT((X189:X193="◎")*($AC189:$AC193=1))+SUMPRODUCT((X189:X193="◎")*($AC189:$AC193=0.5)*0.5)+SUMPRODUCT((X189:X193="◎")*($AC189:$AC193=0.1))*0.1) -> 0 | AC194: =IF(B194="○",1,IF(B194="△",0.5,IF(B194="×",0.1,""))) ->  | AE194: =SUBTOTAL(9,AE189:AE193) -> 5 | AH194: =SUM(AH189:AH193) -> 10 | AI194: =IF(AE194=0,"",SUM(H194:X194)/AH194) -> 0 | AL194: =IFERROR(H194/((SUMPRODUCT((H189:H193="○")*($AC189:$AC193=1))*0.5+SUMPRODUCT((H189:H193="○")*($AC189:$AC193=0.5))*0.5+SUMPRODUCT((H189:H193="○")*($AC189:$AC193=0.1))*0.5+SUMPRODUCT((H189:H193="◎")*($AC189:$AC193=1))+SUMPRODUCT((H189:H193="◎")*($AC189:$AC193=0.5)*0.5)+SUMPRODUCT((H189:H193="◎")*($AC189:$AC193=0.1))*0.1)),0) -> 0 | AM194: =IFERROR(I194/((SUMPRODUCT((I189:I193="○")*($AC189:$AC193=1))*0.5+SUMPRODUCT((I189:I193="○")*($AC189:$AC193=0.5))*0.5+SUMPRODUCT((I189:I193="○")*($AC189:$AC193=0.1))*0.5+SUMPRODUCT((I189:I193="◎")*($AC189:$AC193=1))+SUMPRODUCT((I189:I193="◎")*($AC189:$AC193=0.5)*0.5)+SUMPRODUCT((I189:I193="◎")*($AC189:$AC193=0.1))*0.1)),0) -> 0 | AN194: =IFERROR(J194/((SUMPRODUCT((J189:J193="○")*($AC189:$AC193=1))*0.5+SUMPRODUCT((J189:J193="○")*($AC189:$AC193=0.5))*0.5+SUMPRODUCT((J189:J193="○")*($AC189:$AC193=0.1))*0.5+SUMPRODUCT((J189:J193="◎")*($AC189:$AC193=1))+SUMPRODUCT((J189:J193="◎")*($AC189:$AC193=0.5)*0.5)+SUMPRODUCT((J189:J193="◎")*($AC189:$AC193=0.1))*0.1)),0) -> 0 | AO194: =IFERROR(K194/((SUMPRODUCT((K189:K193="○")*($AC189:$AC193=1))*0.5+SUMPRODUCT((K189:K193="○")*($AC189:$AC193=0.5))*0.5+SUMPRODUCT((K189:K193="○")*($AC189:$AC193=0.1))*0.5+SUMPRODUCT((K189:K193="◎")*($AC189:$AC193=1))+SUMPRODUCT((K189:K193="◎")*($AC189:$AC193=0.5)*0.5)+SUMPRODUCT((K189:K193="◎")*($AC189:$AC193=0.1))*0.1)),0) -> 0 | AP194: =IFERROR(L194/((SUMPRODUCT((L189:L193="○")*($AC189:$AC193=1))*0.5+SUMPRODUCT((L189:L193="○")*($AC189:$AC193=0.5))*0.5+SUMPRODUCT((L189:L193="○")*($AC189:$AC193=0.1))*0.5+SUMPRODUCT((L189:L193="◎")*($AC189:$AC193=1))+SUMPRODUCT((L189:L193="◎")*($AC189:$AC193=0.5)*0.5)+SUMPRODUCT((L189:L193="◎")*($AC189:$AC193=0.1))*0.1)),0) -> 0 | AQ194: =IFERROR(M194/((SUMPRODUCT((M189:M193="○")*($AC189:$AC193=1))*0.5+SUMPRODUCT((M189:M193="○")*($AC189:$AC193=0.5))*0.5+SUMPRODUCT((M189:M193="○")*($AC189:$AC193=0.1))*0.5+SUMPRODUCT((M189:M193="◎")*($AC189:$AC193=1))+SUMPRODUCT((M189:M193="◎")*($AC189:$AC193=0.5)*0.5)+SUMPRODUCT((M189:M193="◎")*($AC189:$AC193=0.1))*0.1)),0) -> 0 | AR194: =IFERROR(N194/((SUMPRODUCT((N189:N193="○")*($AC189:$AC193=1))*0.5+SUMPRODUCT((N189:N193="○")*($AC189:$AC193=0.5))*0.5+SUMPRODUCT((N189:N193="○")*($AC189:$AC193=0.1))*0.5+SUMPRODUCT((N189:N193="◎")*($AC189:$AC193=1))+SUMPRODUCT((N189:N193="◎")*($AC189:$AC193=0.5)*0.5)+SUMPRODUCT((N189:N193="◎")*($AC189:$AC193=0.1))*0.1)),0) -> 0 | AS194: =IFERROR(O194/((SUMPRODUCT((O189:O193="○")*($AC189:$AC193=1))*0.5+SUMPRODUCT((O189:O193="○")*($AC189:$AC193=0.5))*0.5+SUMPRODUCT((O189:O193="○")*($AC189:$AC193=0.1))*0.5+SUMPRODUCT((O189:O193="◎")*($AC189:$AC193=1))+SUMPRODUCT((O189:O193="◎")*($AC189:$AC193=0.5)*0.5)+SUMPRODUCT((O189:O193="◎")*($AC189:$AC193=0.1))*0.1)),0) -> 0 | AT194: =IFERROR(P194/((SUMPRODUCT((P189:P193="○")*($AC189:$AC193=1))*0.5+SUMPRODUCT((P189:P193="○")*($AC189:$AC193=0.5))*0.5+SUMPRODUCT((P189:P193="○")*($AC189:$AC193=0.1))*0.5+SUMPRODUCT((P189:P193="◎")*($AC189:$AC193=1))+SUMPRODUCT((P189:P193="◎")*($AC189:$AC193=0.5)*0.5)+SUMPRODUCT((P189:P193="◎")*($AC189:$AC193=0.1))*0.1)),0) -> 0 | AU194: =IFERROR(Q194/((SUMPRODUCT((Q189:Q193="○")*($AC189:$AC193=1))*0.5+SUMPRODUCT((Q189:Q193="○")*($AC189:$AC193=0.5))*0.5+SUMPRODUCT((Q189:Q193="○")*($AC189:$AC193=0.1))*0.5+SUMPRODUCT((Q189:Q193="◎")*($AC189:$AC193=1))+SUMPRODUCT((Q189:Q193="◎")*($AC189:$AC193=0.5)*0.5)+SUMPRODUCT((Q189:Q193="◎")*($AC189:$AC193=0.1))*0.1)),0) -> 0 | AV194: =IFERROR(R194/((SUMPRODUCT((R189:R193="○")*($AC189:$AC193=1))*0.5+SUMPRODUCT((R189:R193="○")*($AC189:$AC193=0.5))*0.5+SUMPRODUCT((R189:R193="○")*($AC189:$AC193=0.1))*0.5+SUMPRODUCT((R189:R193="◎")*($AC189:$AC193=1))+SUMPRODUCT((R189:R193="◎")*($AC189:$AC193=0.5)*0.5)+SUMPRODUCT((R189:R193="◎")*($AC189:$AC193=0.1))*0.1)),0) -> 0 | AW194: =IFERROR(S194/((SUMPRODUCT((S189:S193="○")*($AC189:$AC193=1))*0.5+SUMPRODUCT((S189:S193="○")*($AC189:$AC193=0.5))*0.5+SUMPRODUCT((S189:S193="○")*($AC189:$AC193=0.1))*0.5+SUMPRODUCT((S189:S193="◎")*($AC189:$AC193=1))+SUMPRODUCT((S189:S193="◎")*($AC189:$AC193=0.5)*0.5)+SUMPRODUCT((S189:S193="◎")*($AC189:$AC193=0.1))*0.1)),0) -> 0 | AX194: =IFERROR(T194/((SUMPRODUCT((T189:T193="○")*($AC189:$AC193=1))*0.5+SUMPRODUCT((T189:T193="○")*($AC189:$AC193=0.5))*0.5+SUMPRODUCT((T189:T193="○")*($AC189:$AC193=0.1))*0.5+SUMPRODUCT((T189:T193="◎")*($AC189:$AC193=1))+SUMPRODUCT((T189:T193="◎")*($AC189:$AC193=0.5)*0.5)+SUMPRODUCT((T189:T193="◎")*($AC189:$AC193=0.1))*0.1)),0) -> 0 | AY194: =IFERROR(U194/((SUMPRODUCT((U189:U193="○")*($AC189:$AC193=1))*0.5+SUMPRODUCT((U189:U193="○")*($AC189:$AC193=0.5))*0.5+SUMPRODUCT((U189:U193="○")*($AC189:$AC193=0.1))*0.5+SUMPRODUCT((U189:U193="◎")*($AC189:$AC193=1))+SUMPRODUCT((U189:U193="◎")*($AC189:$AC193=0.5)*0.5)+SUMPRODUCT((U189:U193="◎")*($AC189:$AC193=0.1))*0.1)),0) -> 0 | AZ194: =IFERROR(V194/((SUMPRODUCT((V189:V193="○")*($AC189:$AC193=1))*0.5+SUMPRODUCT((V189:V193="○")*($AC189:$AC193=0.5))*0.5+SUMPRODUCT((V189:V193="○")*($AC189:$AC193=0.1))*0.5+SUMPRODUCT((V189:V193="◎")*($AC189:$AC193=1))+SUMPRODUCT((V189:V193="◎")*($AC189:$AC193=0.5)*0.5)+SUMPRODUCT((V189:V193="◎")*($AC189:$AC193=0.1))*0.1)),0) -> 0 | BA194: =IFERROR(W194/((SUMPRODUCT((W189:W193="○")*($AC189:$AC193=1))*0.5+SUMPRODUCT((W189:W193="○")*($AC189:$AC193=0.5))*0.5+SUMPRODUCT((W189:W193="○")*($AC189:$AC193=0.1))*0.5+SUMPRODUCT((W189:W193="◎")*($AC189:$AC193=1))+SUMPRODUCT((W189:W193="◎")*($AC189:$AC193=0.5)*0.5)+SUMPRODUCT((W189:W193="◎")*($AC189:$AC193=0.1))*0.1)),0) -> 0 | BB194: =IFERROR(X194/((SUMPRODUCT((X189:X193="○")*($AC189:$AC193=1))*0.5+SUMPRODUCT((X189:X193="○")*($AC189:$AC193=0.5))*0.5+SUMPRODUCT((X189:X193="○")*($AC189:$AC193=0.1))*0.5+SUMPRODUCT((X189:X193="◎")*($AC189:$AC193=1))+SUMPRODUCT((X189:X193="◎")*($AC189:$AC193=0.5)*0.5)+SUMPRODUCT((X189:X193="◎")*($AC189:$AC193=0.1))*0.1)),0) -> 0
B195: =取組ﾁｪｯｸｼｰﾄ改訂版!B195 -> 0 | D195: ボランティア休暇など、組織の制度として支援システムがある | E195: ４、８ | O195: ◎ | AD195: =SUM(AC195:AC196) -> 0 | AE195: =COUNTIF(B195,"○")+COUNTIF(B195,"△")+COUNTIF(B195,"×")+COUNTIF(B195,0) -> 1 | AF195: =SUM(AE195:AE196) -> 2 | AG195: =AD195/AF195 -> 0 | AH195: =SUMPRODUCT((H195:X195="○")*($AE195=1))*0.5+SUMPRODUCT((H195:X195="◎")*($AE195=1)) -> 1
B196: =取組ﾁｪｯｸｼｰﾄ改訂版!B196 -> 0 | D196: 環境に関する研究や活動を行っているサークル等に対する支援を行っている | K196: ○ | O196: ◎ | AE196: 1 | AH196: 1.5
B197: =取組ﾁｪｯｸｼｰﾄ改訂版!B197 -> 3 通勤に係る環境への負荷の低減 | H197: =(SUMPRODUCT((H195:H196="○")*($AC195:$AC196=1))*0.5+SUMPRODUCT((H195:H196="○")*($AC195:$AC196=0.5))*0.25+SUMPRODUCT((H195:H196="○")*($AC195:$AC196=0.1))*0.05+SUMPRODUCT((H195:H196="◎")*($AC195:$AC196=1))+SUMPRODUCT((H195:H196="◎")*($AC195:$AC196=0.5)*0.5)+SUMPRODUCT((H195:H196="◎")*($AC195:$AC196=0.1))*0.1) -> 0 | I197: 0 | J197: 0 | K197: 0 | L197: 0 | M197: 0 | N197: 0 | O197: 0 | P197: 0 | Q197: 0 | R197: =(SUMPRODUCT((R195:R196="○")*($AC195:$AC196=1))*0.5+SUMPRODUCT((R195:R196="○")*($AC195:$AC196=0.5))*0.25+SUMPRODUCT((R195:R196="○")*($AC195:$AC196=0.1))*0.05+SUMPRODUCT((R195:R196="◎")*($AC195:$AC196=1))+SUMPRODUCT((R195:R196="◎")*($AC195:$AC196=0.5)*0.5)+SUMPRODUCT((R195:R196="◎")*($AC195:$AC196=0.1))*0.1) -> 0 | S197: =(SUMPRODUCT((S195:S196="○")*($AC195:$AC196=1))*0.5+SUMPRODUCT((S195:S196="○")*($AC195:$AC196=0.5))*0.25+SUMPRODUCT((S195:S196="○")*($AC195:$AC196=0.1))*0.05+SUMPRODUCT((S195:S196="◎")*($AC195:$AC196=1))+SUMPRODUCT((S195:S196="◎")*($AC195:$AC196=0.5)*0.5)+SUMPRODUCT((S195:S196="◎")*($AC195:$AC196=0.1))*0.1) -> 0 | T197: 0 | U197: 0 | V197: 0 | W197: 0 | X197: 0 | AE197: =SUBTOTAL(9,AE195:AE196) -> 2 | AH197: =SUM(AH195:AH196) -> 2.5 | AI197: =IF(AE197=0,"",SUM(H197:X197)/AH197) -> 0 | AL197: =IFERROR(H197/((SUMPRODUCT((H195:H196="○")*($AC195:$AC196=1))*0.5+SUMPRODUCT((H195:H196="○")*($AC195:$AC196=0.5))*0.5+SUMPRODUCT((H195:H196="○")*($AC195:$AC196=0.1))*0.5+SUMPRODUCT((H195:H196="◎")*($AC195:$AC196=1))+SUMPRODUCT((H195:H196="◎")*($AC195:$AC196=0.5)*0.5)+SUMPRODUCT((H195:H196="◎")*($AC195:$AC196=0.1))*0.1)),0) -> 0 | AM197: =IFERROR(I197/((SUMPRODUCT((I195:I196="○")*($AC195:$AC196=1))*0.5+SUMPRODUCT((I195:I196="○")*($AC195:$AC196=0.5))*0.5+SUMPRODUCT((I195:I196="○")*($AC195:$AC196=0.1))*0.5+SUMPRODUCT((I195:I196="◎")*($AC195:$AC196=1))+SUMPRODUCT((I195:I196="◎")*($AC195:$AC196=0.5)*0.5)+SUMPRODUCT((I195:I196="◎")*($AC195:$AC196=0.1))*0.1)),0) -> 0 | AN197: 0 | AO197: 0 | AP197: 0 | AQ197: 0 | AR197: 0 | AS197: 0 | AT197: 0 | AU197: 0 | AV197: 0 | AW197: 0 | AX197: 0 | AY197: 0 | AZ197: 0 | BA197: 0 | BB197: 0
B198: =取組ﾁｪｯｸｼｰﾄ改訂版!B198 -> 0 | D198: 通勤等に公共交通機関を利用するよう指導している | E198: １２ | N198: ◎ | R198: ◎ | AD198: =SUM(AC198:AC198) -> 0 | AE198: =COUNTIF(B198,"○")+COUNTIF(B198,"△")+COUNTIF(B198,"×")+COUNTIF(B198,0) -> 1 | AF198: =SUM(AE198:AE198) -> 1 | AG198: =AD198/AF198 -> 0 | AH198: =SUMPRODUCT((H198:X198="○")*($AE198=1))*0.5+SUMPRODUCT((H198:X198="◎")*($AE198=1)) -> 2
B199: =取組ﾁｪｯｸｼｰﾄ改訂版!B199 -> 4 法規制等への対応 | H199: =(SUMPRODUCT((H198:H198="○")*($AC198:$AC198=1))*0.5+SUMPRODUCT((H198:H198="○")*($AC198:$AC198=0.5))*0.25+SUMPRODUCT((H198:H198="○")*($AC198:$AC198=0.1))*0.05+SUMPRODUCT((H198:H198="◎")*($AC198:$AC198=1))+SUMPRODUCT((H198:H198="◎")*($AC198:$AC198=0.5)*0.5)+SUMPRODUCT((H198:H198="◎")*($AC198:$AC198=0.1))*0.1) -> 0 | I199: =(SUMPRODUCT((I198:I198="○")*($AC198:$AC198=1))*0.5+SUMPRODUCT((I198:I198="○")*($AC198:$AC198=0.5))*0.25+SUMPRODUCT((I198:I198="○")*($AC198:$AC198=0.1))*0.05+SUMPRODUCT((I198:I198="◎")*($AC198:$AC198=1))+SUMPRODUCT((I198:I198="◎")*($AC198:$AC198=0.5)*0.5)+SUMPRODUCT((I198:I198="◎")*($AC198:$AC198=0.1))*0.1) -> 0 | J199: =(SUMPRODUCT((J198:J198="○")*($AC198:$AC198=1))*0.5+SUMPRODUCT((J198:J198="○")*($AC198:$AC198=0.5))*0.25+SUMPRODUCT((J198:J198="○")*($AC198:$AC198=0.1))*0.05+SUMPRODUCT((J198:J198="◎")*($AC198:$AC198=1))+SUMPRODUCT((J198:J198="◎")*($AC198:$AC198=0.5)*0.5)+SUMPRODUCT((J198:J198="◎")*($AC198:$AC198=0.1))*0.1) -> 0 | K199: =(SUMPRODUCT((K198:K198="○")*($AC198:$AC198=1))*0.5+SUMPRODUCT((K198:K198="○")*($AC198:$AC198=0.5))*0.25+SUMPRODUCT((K198:K198="○")*($AC198:$AC198=0.1))*0.05+SUMPRODUCT((K198:K198="◎")*($AC198:$AC198=1))+SUMPRODUCT((K198:K198="◎")*($AC198:$AC198=0.5)*0.5)+SUMPRODUCT((K198:K198="◎")*($AC198:$AC198=0.1))*0.1) -> 0 | L199: =(SUMPRODUCT((L198:L198="○")*($AC198:$AC198=1))*0.5+SUMPRODUCT((L198:L198="○")*($AC198:$AC198=0.5))*0.25+SUMPRODUCT((L198:L198="○")*($AC198:$AC198=0.1))*0.05+SUMPRODUCT((L198:L198="◎")*($AC198:$AC198=1))+SUMPRODUCT((L198:L198="◎")*($AC198:$AC198=0.5)*0.5)+SUMPRODUCT((L198:L198="◎")*($AC198:$AC198=0.1))*0.1) -> 0 | M199: =(SUMPRODUCT((M198:M198="○")*($AC198:$AC198=1))*0.5+SUMPRODUCT((M198:M198="○")*($AC198:$AC198=0.5))*0.25+SUMPRODUCT((M198:M198="○")*($AC198:$AC198=0.1))*0.05+SUMPRODUCT((M198:M198="◎")*($AC198:$AC198=1))+SUMPRODUCT((M198:M198="◎")*($AC198:$AC198=0.5)*0.5)+SUMPRODUCT((M198:M198="◎")*($AC198:$AC198=0.1))*0.1) -> 0 | N199: =(SUMPRODUCT((N198:N198="○")*($AC198:$AC198=1))*0.5+SUMPRODUCT((N198:N198="○")*($AC198:$AC198=0.5))*0.25+SUMPRODUCT((N198:N198="○")*($AC198:$AC198=0.1))*0.05+SUMPRODUCT((N198:N198="◎")*($AC198:$AC198=1))+SUMPRODUCT((N198:N198="◎")*($AC198:$AC198=0.5)*0.5)+SUMPRODUCT((N198:N198="◎")*($AC198:$AC198=0.1))*0.1) -> 0 | O199: =(SUMPRODUCT((O198:O198="○")*($AC198:$AC198=1))*0.5+SUMPRODUCT((O198:O198="○")*($AC198:$AC198=0.5))*0.25+SUMPRODUCT((O198:O198="○")*($AC198:$AC198=0.1))*0.05+SUMPRODUCT((O198:O198="◎")*($AC198:$AC198=1))+SUMPRODUCT((O198:O198="◎")*($AC198:$AC198=0.5)*0.5)+SUMPRODUCT((O198:O198="◎")*($AC198:$AC198=0.1))*0.1) -> 0 | P199: =(SUMPRODUCT((P198:P198="○")*($AC198:$AC198=1))*0.5+SUMPRODUCT((P198:P198="○")*($AC198:$AC198=0.5))*0.25+SUMPRODUCT((P198:P198="○")*($AC198:$AC198=0.1))*0.05+SUMPRODUCT((P198:P198="◎")*($AC198:$AC198=1))+SUMPRODUCT((P198:P198="◎")*($AC198:$AC198=0.5)*0.5)+SUMPRODUCT((P198:P198="◎")*($AC198:$AC198=0.1))*0.1) -> 0 | Q199: =(SUMPRODUCT((Q198:Q198="○")*($AC198:$AC198=1))*0.5+SUMPRODUCT((Q198:Q198="○")*($AC198:$AC198=0.5))*0.25+SUMPRODUCT((Q198:Q198="○")*($AC198:$AC198=0.1))*0.05+SUMPRODUCT((Q198:Q198="◎")*($AC198:$AC198=1))+SUMPRODUCT((Q198:Q198="◎")*($AC198:$AC198=0.5)*0.5)+SUMPRODUCT((Q198:Q198="◎")*($AC198:$AC198=0.1))*0.1) -> 0 | R199: =(SUMPRODUCT((R198:R198="○")*($AC198:$AC198=1))*0.5+SUMPRODUCT((R198:R198="○")*($AC198:$AC198=0.5))*0.25+SUMPRODUCT((R198:R198="○")*($AC198:$AC198=0.1))*0.05+SUMPRODUCT((R198:R198="◎")*($AC198:$AC198=1))+SUMPRODUCT((R198:R198="◎")*($AC198:$AC198=0.5)*0.5)+SUMPRODUCT((R198:R198="◎")*($AC198:$AC198=0.1))*0.1) -> 0 | S199: =(SUMPRODUCT((S198:S198="○")*($AC198:$AC198=1))*0.5+SUMPRODUCT((S198:S198="○")*($AC198:$AC198=0.5))*0.25+SUMPRODUCT((S198:S198="○")*($AC198:$AC198=0.1))*0.05+SUMPRODUCT((S198:S198="◎")*($AC198:$AC198=1))+SUMPRODUCT((S198:S198="◎")*($AC198:$AC198=0.5)*0.5)+SUMPRODUCT((S198:S198="◎")*($AC198:$AC198=0.1))*0.1) -> 0 | T199: =(SUMPRODUCT((T198:T198="○")*($AC198:$AC198=1))*0.5+SUMPRODUCT((T198:T198="○")*($AC198:$AC198=0.5))*0.25+SUMPRODUCT((T198:T198="○")*($AC198:$AC198=0.1))*0.05+SUMPRODUCT((T198:T198="◎")*($AC198:$AC198=1))+SUMPRODUCT((T198:T198="◎")*($AC198:$AC198=0.5)*0.5)+SUMPRODUCT((T198:T198="◎")*($AC198:$AC198=0.1))*0.1) -> 0 | U199: =(SUMPRODUCT((U198:U198="○")*($AC198:$AC198=1))*0.5+SUMPRODUCT((U198:U198="○")*($AC198:$AC198=0.5))*0.25+SUMPRODUCT((U198:U198="○")*($AC198:$AC198=0.1))*0.05+SUMPRODUCT((U198:U198="◎")*($AC198:$AC198=1))+SUMPRODUCT((U198:U198="◎")*($AC198:$AC198=0.5)*0.5)+SUMPRODUCT((U198:U198="◎")*($AC198:$AC198=0.1))*0.1) -> 0 | V199: =(SUMPRODUCT((V198:V198="○")*($AC198:$AC198=1))*0.5+SUMPRODUCT((V198:V198="○")*($AC198:$AC198=0.5))*0.25+SUMPRODUCT((V198:V198="○")*($AC198:$AC198=0.1))*0.05+SUMPRODUCT((V198:V198="◎")*($AC198:$AC198=1))+SUMPRODUCT((V198:V198="◎")*($AC198:$AC198=0.5)*0.5)+SUMPRODUCT((V198:V198="◎")*($AC198:$AC198=0.1))*0.1) -> 0 | W199: =(SUMPRODUCT((W198:W198="○")*($AC198:$AC198=1))*0.5+SUMPRODUCT((W198:W198="○")*($AC198:$AC198=0.5))*0.25+SUMPRODUCT((W198:W198="○")*($AC198:$AC198=0.1))*0.05+SUMPRODUCT((W198:W198="◎")*($AC198:$AC198=1))+SUMPRODUCT((W198:W198="◎")*($AC198:$AC198=0.5)*0.5)+SUMPRODUCT((W198:W198="◎")*($AC198:$AC198=0.1))*0.1) -> 0 | X199: =(SUMPRODUCT((X198:X198="○")*($AC198:$AC198=1))*0.5+SUMPRODUCT((X198:X198="○")*($AC198:$AC198=0.5))*0.25+SUMPRODUCT((X198:X198="○")*($AC198:$AC198=0.1))*0.05+SUMPRODUCT((X198:X198="◎")*($AC198:$AC198=1))+SUMPRODUCT((X198:X198="◎")*($AC198:$AC198=0.5)*0.5)+SUMPRODUCT((X198:X198="◎")*($AC198:$AC198=0.1))*0.1) -> 0 | AC199: =IF(B199="○",1,IF(B199="△",0.5,IF(B199="×",0.1,""))) ->  | AE199: =SUBTOTAL(9,AE198:AE198) -> 1 | AH199: =SUM(AH198:AH198) -> 2 | AI199: =IF(AE199=0,"",SUM(H199:X199)/AH199) -> 0 | AL199: =IFERROR(H199/((SUMPRODUCT((H198:H198="○")*($AC198:$AC198=1))*0.5+SUMPRODUCT((H198:H198="○")*($AC198:$AC198=0.5))*0.5+SUMPRODUCT((H198:H198="○")*($AC198:$AC198=0.1))*0.5+SUMPRODUCT((H198:H198="◎")*($AC198:$AC198=1))+SUMPRODUCT((H198:H198="◎")*($AC198:$AC198=0.5)*0.5)+SUMPRODUCT((H198:H198="◎")*($AC198:$AC198=0.1))*0.1)),0) -> 0 | AM199: =IFERROR(I199/((SUMPRODUCT((I198:I198="○")*($AC198:$AC198=1))*0.5+SUMPRODUCT((I198:I198="○")*($AC198:$AC198=0.5))*0.5+SUMPRODUCT((I198:I198="○")*($AC198:$AC198=0.1))*0.5+SUMPRODUCT((I198:I198="◎")*($AC198:$AC198=1))+SUMPRODUCT((I198:I198="◎")*($AC198:$AC198=0.5)*0.5)+SUMPRODUCT((I198:I198="◎")*($AC198:$AC198=0.1))*0.1)),0) -> 0 | AN199: =IFERROR(J199/((SUMPRODUCT((J198:J198="○")*($AC198:$AC198=1))*0.5+SUMPRODUCT((J198:J198="○")*($AC198:$AC198=0.5))*0.5+SUMPRODUCT((J198:J198="○")*($AC198:$AC198=0.1))*0.5+SUMPRODUCT((J198:J198="◎")*($AC198:$AC198=1))+SUMPRODUCT((J198:J198="◎")*($AC198:$AC198=0.5)*0.5)+SUMPRODUCT((J198:J198="◎")*($AC198:$AC198=0.1))*0.1)),0) -> 0 | AO199: =IFERROR(K199/((SUMPRODUCT((K198:K198="○")*($AC198:$AC198=1))*0.5+SUMPRODUCT((K198:K198="○")*($AC198:$AC198=0.5))*0.5+SUMPRODUCT((K198:K198="○")*($AC198:$AC198=0.1))*0.5+SUMPRODUCT((K198:K198="◎")*($AC198:$AC198=1))+SUMPRODUCT((K198:K198="◎")*($AC198:$AC198=0.5)*0.5)+SUMPRODUCT((K198:K198="◎")*($AC198:$AC198=0.1))*0.1)),0) -> 0 | AP199: =IFERROR(L199/((SUMPRODUCT((L198:L198="○")*($AC198:$AC198=1))*0.5+SUMPRODUCT((L198:L198="○")*($AC198:$AC198=0.5))*0.5+SUMPRODUCT((L198:L198="○")*($AC198:$AC198=0.1))*0.5+SUMPRODUCT((L198:L198="◎")*($AC198:$AC198=1))+SUMPRODUCT((L198:L198="◎")*($AC198:$AC198=0.5)*0.5)+SUMPRODUCT((L198:L198="◎")*($AC198:$AC198=0.1))*0.1)),0) -> 0 | AQ199: =IFERROR(M199/((SUMPRODUCT((M198:M198="○")*($AC198:$AC198=1))*0.5+SUMPRODUCT((M198:M198="○")*($AC198:$AC198=0.5))*0.5+SUMPRODUCT((M198:M198="○")*($AC198:$AC198=0.1))*0.5+SUMPRODUCT((M198:M198="◎")*($AC198:$AC198=1))+SUMPRODUCT((M198:M198="◎")*($AC198:$AC198=0.5)*0.5)+SUMPRODUCT((M198:M198="◎")*($AC198:$AC198=0.1))*0.1)),0) -> 0 | AR199: =IFERROR(N199/((SUMPRODUCT((N198:N198="○")*($AC198:$AC198=1))*0.5+SUMPRODUCT((N198:N198="○")*($AC198:$AC198=0.5))*0.5+SUMPRODUCT((N198:N198="○")*($AC198:$AC198=0.1))*0.5+SUMPRODUCT((N198:N198="◎")*($AC198:$AC198=1))+SUMPRODUCT((N198:N198="◎")*($AC198:$AC198=0.5)*0.5)+SUMPRODUCT((N198:N198="◎")*($AC198:$AC198=0.1))*0.1)),0) -> 0 | AS199: =IFERROR(O199/((SUMPRODUCT((O198:O198="○")*($AC198:$AC198=1))*0.5+SUMPRODUCT((O198:O198="○")*($AC198:$AC198=0.5))*0.5+SUMPRODUCT((O198:O198="○")*($AC198:$AC198=0.1))*0.5+SUMPRODUCT((O198:O198="◎")*($AC198:$AC198=1))+SUMPRODUCT((O198:O198="◎")*($AC198:$AC198=0.5)*0.5)+SUMPRODUCT((O198:O198="◎")*($AC198:$AC198=0.1))*0.1)),0) -> 0 | AT199: =IFERROR(P199/((SUMPRODUCT((P198:P198="○")*($AC198:$AC198=1))*0.5+SUMPRODUCT((P198:P198="○")*($AC198:$AC198=0.5))*0.5+SUMPRODUCT((P198:P198="○")*($AC198:$AC198=0.1))*0.5+SUMPRODUCT((P198:P198="◎")*($AC198:$AC198=1))+SUMPRODUCT((P198:P198="◎")*($AC198:$AC198=0.5)*0.5)+SUMPRODUCT((P198:P198="◎")*($AC198:$AC198=0.1))*0.1)),0) -> 0 | AU199: =IFERROR(Q199/((SUMPRODUCT((Q198:Q198="○")*($AC198:$AC198=1))*0.5+SUMPRODUCT((Q198:Q198="○")*($AC198:$AC198=0.5))*0.5+SUMPRODUCT((Q198:Q198="○")*($AC198:$AC198=0.1))*0.5+SUMPRODUCT((Q198:Q198="◎")*($AC198:$AC198=1))+SUMPRODUCT((Q198:Q198="◎")*($AC198:$AC198=0.5)*0.5)+SUMPRODUCT((Q198:Q198="◎")*($AC198:$AC198=0.1))*0.1)),0) -> 0 | AV199: =IFERROR(R199/((SUMPRODUCT((R198:R198="○")*($AC198:$AC198=1))*0.5+SUMPRODUCT((R198:R198="○")*($AC198:$AC198=0.5))*0.5+SUMPRODUCT((R198:R198="○")*($AC198:$AC198=0.1))*0.5+SUMPRODUCT((R198:R198="◎")*($AC198:$AC198=1))+SUMPRODUCT((R198:R198="◎")*($AC198:$AC198=0.5)*0.5)+SUMPRODUCT((R198:R198="◎")*($AC198:$AC198=0.1))*0.1)),0) -> 0 | AW199: =IFERROR(S199/((SUMPRODUCT((S198:S198="○")*($AC198:$AC198=1))*0.5+SUMPRODUCT((S198:S198="○")*($AC198:$AC198=0.5))*0.5+SUMPRODUCT((S198:S198="○")*($AC198:$AC198=0.1))*0.5+SUMPRODUCT((S198:S198="◎")*($AC198:$AC198=1))+SUMPRODUCT((S198:S198="◎")*($AC198:$AC198=0.5)*0.5)+SUMPRODUCT((S198:S198="◎")*($AC198:$AC198=0.1))*0.1)),0) -> 0 | AX199: =IFERROR(T199/((SUMPRODUCT((T198:T198="○")*($AC198:$AC198=1))*0.5+SUMPRODUCT((T198:T198="○")*($AC198:$AC198=0.5))*0.5+SUMPRODUCT((T198:T198="○")*($AC198:$AC198=0.1))*0.5+SUMPRODUCT((T198:T198="◎")*($AC198:$AC198=1))+SUMPRODUCT((T198:T198="◎")*($AC198:$AC198=0.5)*0.5)+SUMPRODUCT((T198:T198="◎")*($AC198:$AC198=0.1))*0.1)),0) -> 0 | AY199: =IFERROR(U199/((SUMPRODUCT((U198:U198="○")*($AC198:$AC198=1))*0.5+SUMPRODUCT((U198:U198="○")*($AC198:$AC198=0.5))*0.5+SUMPRODUCT((U198:U198="○")*($AC198:$AC198=0.1))*0.5+SUMPRODUCT((U198:U198="◎")*($AC198:$AC198=1))+SUMPRODUCT((U198:U198="◎")*($AC198:$AC198=0.5)*0.5)+SUMPRODUCT((U198:U198="◎")*($AC198:$AC198=0.1))*0.1)),0) -> 0 | AZ199: =IFERROR(V199/((SUMPRODUCT((V198:V198="○")*($AC198:$AC198=1))*0.5+SUMPRODUCT((V198:V198="○")*($AC198:$AC198=0.5))*0.5+SUMPRODUCT((V198:V198="○")*($AC198:$AC198=0.1))*0.5+SUMPRODUCT((V198:V198="◎")*($AC198:$AC198=1))+SUMPRODUCT((V198:V198="◎")*($AC198:$AC198=0.5)*0.5)+SUMPRODUCT((V198:V198="◎")*($AC198:$AC198=0.1))*0.1)),0) -> 0 | BA199: =IFERROR(W199/((SUMPRODUCT((W198:W198="○")*($AC198:$AC198=1))*0.5+SUMPRODUCT((W198:W198="○")*($AC198:$AC198=0.5))*0.5+SUMPRODUCT((W198:W198="○")*($AC198:$AC198=0.1))*0.5+SUMPRODUCT((W198:W198="◎")*($AC198:$AC198=1))+SUMPRODUCT((W198:W198="◎")*($AC198:$AC198=0.5)*0.5)+SUMPRODUCT((W198:W198="◎")*($AC198:$AC198=0.1))*0.1)),0) -> 0 | BB199: =IFERROR(X199/((SUMPRODUCT((X198:X198="○")*($AC198:$AC198=1))*0.5+SUMPRODUCT((X198:X198="○")*($AC198:$AC198=0.5))*0.5+SUMPRODUCT((X198:X198="○")*($AC198:$AC198=0.1))*0.5+SUMPRODUCT((X198:X198="◎")*($AC198:$AC198=1))+SUMPRODUCT((X198:X198="◎")*($AC198:$AC198=0.5)*0.5)+SUMPRODUCT((X198:X198="◎")*($AC198:$AC198=0.1))*0.1)),0) -> 0
B200: =取組ﾁｪｯｸｼｰﾄ改訂版!B200 -> 0 | D200: 法規制等の最新情報を常に入手している | E200: ３、１１～１５ | J200: ○ | R200: ◎ | S200: ○ | T200: ○ | U200: ○ | V200: ○ | AD200: =SUM(AC200:AC203) -> 0 | AE200: =COUNTIF(B200,"○")+COUNTIF(B200,"△")+COUNTIF(B200,"×")+COUNTIF(B200,0) -> 1 | AF200: =SUM(AE200:AE203) -> 4 | AG200: =AD200/AF200 -> 0 | AH200: =SUMPRODUCT((H200:X200="○")*($AE200=1))*0.5+SUMPRODUCT((H200:X200="◎")*($AE200=1)) -> 3.5
B201: =取組ﾁｪｯｸｼｰﾄ改訂版!B201 -> 0 | D201: 業務プロセスについて法規制に対しての遵守評価がおこなわれている | J201: ○ | R201: ◎ | S201: ○ | T201: ○ | U201: ○ | V201: ○ | AE201: 1 | AH201: 3.5
... 55 more rows

Sheet SDGsグラフ
A1: ◆エコアップ環境保全取組内容とSDGｓ相関での取組度評価 | C1: 事 業 所 名 | BG1: 作 成 日 | BH1: 2024-04-03
A2: 対 象 項 目 | B2: 取 組 内 容 | C2: 自社の主要取り組み(任意記入） | D2: 1．貧困をなくそう | E2: 2．飢餓をゼロ | F2: 3．すべての人に健康と福祉を | G2: 4．質の高い教育をみんなに | H2: 5．ジェンダー平等を実現しよう | I2: 6．安全な水とトイレを世界中に | J2: 7．エネルギーをみんなに そしてクリーンに | K2: 8．働きがいも経済成長も | L2: 9．産業と技術革新の基盤をつくろう | M2: 10．人や国の不平等をなくそう | N2: 11．住み続けられるまちづくりを | O2: 12．つくる責任 つかう責任 | P2: 13．気候変動に具体的な対策を | Q2: 14．海の豊かさを守ろう | R2: 15．陸の豊かさも守ろう | S2: 16．平和と公正をすべての人に | T2: 17．パートナーシップで目標を達成しよう | W2: 取 組 度
W3: 0.02 | X3: =W3+0.02 -> 0.04 | Y3: =X3+0.02 -> 0.06 | Z3: 0.08 | AA3: 0.1 | AB3: 0.12 | AC3: 0.14 | AD3: 0.16 | AE3: 0.18 | AF3: 0.2 | AG3: 0.22 | AH3: 0.24 | AI3: 0.26 | AJ3: 0.28 | AK3: 0.3 | AL3: 0.32 | AM3: 0.34 | AN3: 0.36 | AO3: 0.38 | AP3: 0.4 | AQ3: 0.42 | AR3: 0.44 | AS3: 0.46 | AT3: 0.48 | AU3: 0.5 | AV3: 0.52 | AW3: 0.54 | AX3: 0.56 | AY3: 0.58 | AZ3: 0.6 | BA3: 0.62 | BB3: 0.64 | BC3: 0.66 | BD3: 0.68 | BE3: 0.7 | BF3: 0.72 | BG3: 0.74 | BH3: 0.76 | BI3: 0.78 | BJ3: 0.8 | BK3: 0.82 | BL3: 0.84 | BM3: 0.86 | BN3: 0.88 | BO3: 0.9 | BP3: 0.92 | BQ3: 0.94 | BR3: 0.96 | BS3: 0.98 | BT3: 1
AA4: 0.1 | AF4: 0.2 | AK4: 0.3 | AP4: 0.4 | AU4: 0.5 | AZ4: 0.6 | BE4: 0.7 | BJ4: 0.8 | BO4: 0.9 | BT4: 100%
A5: ① 廃棄物の排出抑制、リサイクル、適正処理 | B5: 1 紙の使用抑制（再生紙については「グリーン購入」） | D5: =SDGｓマトリクス!AL10 -> 0 | E5: =SDGｓマトリクス!AM10 -> 0 | F5: =SDGｓマトリクス!AN10 -> 0 | G5: =SDGｓマトリクス!AO10 -> 0 | H5: =SDGｓマトリクス!AP10 -> 0 | I5: =SDGｓマトリクス!AQ10 -> 0 | J5: =SDGｓマトリクス!AR10 -> 0 | K5: =SDGｓマトリクス!AS10 -> 0 | L5: =SDGｓマトリクス!AT10 -> 0 | M5: =SDGｓマトリクス!AU10 -> 0 | N5: =SDGｓマトリクス!AV10 -> 0 | O5: =SDGｓマトリクス!AW10 -> 0 | P5: =SDGｓマトリクス!AX10 -> 0 | Q5: =SDGｓマトリクス!AY10 -> 0 | R5: =SDGｓマトリクス!AZ10 -> 0 | S5: =SDGｓマトリクス!BA10 -> 0 | T5: =SDGｓマトリクス!BB10 -> 0 | U5: =SDGｓマトリクス!AI10 -> 0
C6: 会議用資料や事務手続書類の簡素化に取り組んでいる
C7: 両面印刷、両面コピーを徹底している
C8: 使用済み用紙の裏面の利用をしている
C9: 使用済み封筒の再利用をしている
C10: Ａ４判化等による文書のスリム化に取り組んでいる
C11: 電子メディア、プロジェクタ利用等によるペーパーレス化に取り組んでいる
B12: 2 廃棄物の発生そのものを抑える取組 | D12: =SDGｓマトリクス!AL17 -> 0 | E12: =SDGｓマトリクス!AM17 -> 0 | F12: =SDGｓマトリクス!AN17 -> 0 | G12: =SDGｓマトリクス!AO17 -> 0 | H12: =SDGｓマトリクス!AP17 -> 0 | I12: =SDGｓマトリクス!AQ17 -> 0 | J12: =SDGｓマトリクス!AR17 -> 0 | K12: =SDGｓマトリクス!AS17 -> 0 | L12: =SDGｓマトリクス!AT17 -> 0 | M12: =SDGｓマトリクス!AU17 -> 0 | N12: =SDGｓマトリクス!AV17 -> 0 | O12: =SDGｓマトリクス!AW17 -> 0 | P12: =SDGｓマトリクス!AX17 -> 0 | Q12: =SDGｓマトリクス!AY17 -> 0 | R12: =SDGｓマトリクス!AZ17 -> 0 | S12: =SDGｓマトリクス!BA17 -> 0 | T12: =SDGｓマトリクス!BB17 -> 0 | U12: =SDGｓマトリクス!AI18 -> 0
C13: 使い捨て製品（紙コップ、紙皿、使い捨て容器入りの弁当等）の使用や購入を抑制している
C14: リターナブル容器（ビール瓶、一升瓶等）に入った製品を優先的に購入、使用している
C15: 再使用又はリサイクルしやすい製品を優先的に購入、使用している
C16: コピー機、パソコン、プリンタ等について、リサイクルしやすい素材を使用しているものを採用している
C17: 詰め替え可能な製品の利用や備品の修理などにより、製品等の長期使用を進めている
C18: 包装・梱包（段ボール、魚箱等）の削減、再使用に取り組んでいる
C19: 業務プロセスにおいて廃棄物及び不良材等の発生抑制に取り組んでいる
B20: 3 オフィス等におけるリサイクルの促進 | D20: =SDGｓマトリクス!AL25 -> 0 | E20: =SDGｓマトリクス!AM25 -> 0 | F20: =SDGｓマトリクス!AN25 -> 0 | G20: =SDGｓマトリクス!AO25 -> 0 | H20: =SDGｓマトリクス!AP25 -> 0 | I20: =SDGｓマトリクス!AQ25 -> 0 | J20: =SDGｓマトリクス!AR25 -> 0 | K20: =SDGｓマトリクス!AS25 -> 0 | L20: =SDGｓマトリクス!AT25 -> 0 | M20: =SDGｓマトリクス!AU25 -> 0 | N20: =SDGｓマトリクス!AV25 -> 0 | O20: =SDGｓマトリクス!AW25 -> 0 | P20: =SDGｓマトリクス!AX25 -> 0 | Q20: =SDGｓマトリクス!AY25 -> 0 | R20: =SDGｓマトリクス!AZ25 -> 0 | S20: =SDGｓマトリクス!BA25 -> 0 | T20: =SDGｓマトリクス!BB25 -> 0 | U20: =SDGｓマトリクス!AI26 -> 0
C21: 紙、金属缶、ガラスびん、プラスチック、電池等について、分別回収ボックスの適正配置などにより、ごみの分別を徹底している
C22: 回収した資源ごみがリサイクルされるよう確認している
C23: 秘密文書においても溶解処理等原料リサイクルに配慮している。
C24: コピー機、プリンターのトナーカートリッジの回収とリサイクルを進めている
C25: 食べ残し、食品残滓等の有機物質については可能な限りコンポスト化（堆肥化）し、土壌に還元、利用している
C26: 廃食用油のせっけん等への再利用を行っている
C27: 包装、梱包等のリサイクルに取り組んでいる
B28: 4 出荷・販売等に際しての梱包等に関する配慮 | D28: =SDGｓマトリクス!AL33 -> 0 | E28: =SDGｓマトリクス!AM33 -> 0 | F28: =SDGｓマトリクス!AN33 -> 0 | G28: =SDGｓマトリクス!AO33 -> 0 | H28: =SDGｓマトリクス!AP33 -> 0 | I28: =SDGｓマトリクス!AQ33 -> 0 | J28: =SDGｓマトリクス!AR33 -> 0 | K28: =SDGｓマトリクス!AS33 -> 0 | L28: =SDGｓマトリクス!AT33 -> 0 | M28: =SDGｓマトリクス!AU33 -> 0 | N28: =SDGｓマトリクス!AV33 -> 0 | O28: =SDGｓマトリクス!AW33 -> 0 | P28: =SDGｓマトリクス!AX33 -> 0 | Q28: =SDGｓマトリクス!AY33 -> 0 | R28: =SDGｓマトリクス!AZ33 -> 0 | S28: =SDGｓマトリクス!BA33 -> 0 | T28: =SDGｓマトリクス!BB33 -> 0 | U28: =SDGｓマトリクス!AI34 -> 0
C29: 簡易包装の推進、多重包装の見直し、量り売り、ばら売りの推進等により、包装紙、容器、買い物袋、食品トレイ、ラップ等の削減に取り組んでいる
C30: 環境負荷の少ない梱包材への代替に取り組んでいる
C31: 詰め替え式の容器・製品の販売促進に取り組んでいる
C32: リターナブル容器入りの製品の販売促進に取り組んでいる
C33: 紙パック、食品トレイ、アルミ缶、スチール缶、ペットボトル等の店頭回収・リサイクルに取り組んでいる
B34: 5 生産工程における取組 | D34: =SDGｓマトリクス!AL39 -> 0 | E34: =SDGｓマトリクス!AM39 -> 0 | F34: =SDGｓマトリクス!AN39 -> 0 | G34: =SDGｓマトリクス!AO39 -> 0 | H34: =SDGｓマトリクス!AP39 -> 0 | I34: =SDGｓマトリクス!AQ39 -> 0 | J34: =SDGｓマトリクス!AR39 -> 0 | K34: =SDGｓマトリクス!AS39 -> 0 | L34: =SDGｓマトリクス!AT39 -> 0 | M34: =SDGｓマトリクス!AU39 -> 0 | N34: =SDGｓマトリクス!AV39 -> 0 | O34: =SDGｓマトリクス!AW39 -> 0 | P34: =SDGｓマトリクス!AX39 -> 0 | Q34: =SDGｓマトリクス!AY39 -> 0 | R34: =SDGｓマトリクス!AZ39 -> 0 | S34: =SDGｓマトリクス!BA39 -> 0 | T34: =SDGｓマトリクス!BB39 -> 0 | U34: =SDGｓマトリクス!AI34 -> 0
C35: 工程から発生する金属くず、紙くず、廃液などの回収・再利用のための設備を設置し、活用している
B36: 6 産業廃棄物等の適正処理 | D36: =SDGｓマトリクス!AL41 -> 0 | E36: =SDGｓマトリクス!AM41 -> 0 | F36: =SDGｓマトリクス!AN41 -> 0 | G36: =SDGｓマトリクス!AO41 -> 0 | H36: =SDGｓマトリクス!AP41 -> 0 | I36: =SDGｓマトリクス!AQ41 -> 0 | J36: =SDGｓマトリクス!AR41 -> 0 | K36: =SDGｓマトリクス!AS41 -> 0 | L36: =SDGｓマトリクス!AT41 -> 0 | M36: =SDGｓマトリクス!AU41 -> 0 | N36: =SDGｓマトリクス!AV41 -> 0 | O36: =SDGｓマトリクス!AW41 -> 0 | P36: =SDGｓマトリクス!AX41 -> 0 | Q36: =SDGｓマトリクス!AY41 -> 0 | R36: =SDGｓマトリクス!AZ41 -> 0 | S36: =SDGｓマトリクス!BA41 -> 0 | T36: =SDGｓマトリクス!BB41 -> 0 | U36: =SDGｓマトリクス!AI41 -> 0
C37: 産業廃棄物管理票（マニフェスト）をもとに廃棄物の適正な処理を確認している
C38: 廃棄物の最終処分先を定期的に、直接、チェックしている
C39: 廃棄物焼却の際、焼却に適さないものが混入しないよう徹底するとともに、ばい煙の処理、近隣環境への配慮等を行っている
C40: メタン発生防止のため、生ごみ等の分別・リサイクルや適正な焼却処分を極力行うことにより、有機物の埋立処分を抑制している
C41: 有害廃棄物、医療廃棄物の管理（リストの作成、マニフェスト、適正処理のチェック）を徹底している
C42: 廃棄物が適切に処分できるよう、廃棄物の性状に関する情報（WDS等を利用）を処分業者に伝えている。
A47: ② 大気汚染、水質汚濁等防止 | B47: 1 大気汚染物質排出量の削減 | D47: =SDGｓマトリクス!AL53 -> 0 | E47: =SDGｓマトリクス!AM53 -> 0 | F47: =SDGｓマトリクス!AN53 -> 0 | G47: =SDGｓマトリクス!AO53 -> 0 | H47: =SDGｓマトリクス!AP53 -> 0 | I47: =SDGｓマトリクス!AQ53 -> 0 | J47: =SDGｓマトリクス!AR53 -> 0 | K47: =SDGｓマトリクス!AS53 -> 0 | L47: =SDGｓマトリクス!AT53 -> 0 | M47: =SDGｓマトリクス!AU53 -> 0 | N47: =SDGｓマトリクス!AV53 -> 0 | O47: =SDGｓマトリクス!AW53 -> 0 | P47: =SDGｓマトリクス!AX53 -> 0 | Q47: =SDGｓマトリクス!AY53 -> 0 | R47: =SDGｓマトリクス!AZ53 -> 0 | S47: =SDGｓマトリクス!BA53 -> 0 | T47: =SDGｓマトリクス!BB53 -> 0 | U47: =SDGｓマトリクス!AI53 -> 0
C48: 大気汚染の少ないプロセス・機器（低ＮＯｘ燃焼・粉塵発生機器など）を採用している | D48: =SDGｓマトリクス!AL53 -> 0 | E48: =SDGｓマトリクス!AM53 -> 0 | F48: =SDGｓマトリクス!AN53 -> 0 | G48: =SDGｓマトリクス!AO53 -> 0 | H48: =SDGｓマトリクス!AP53 -> 0 | I48: =SDGｓマトリクス!AQ53 -> 0 | J48: =SDGｓマトリクス!AR53 -> 0 | K48: =SDGｓマトリクス!AS53 -> 0 | L48: =SDGｓマトリクス!AT53 -> 0 | M48: =SDGｓマトリクス!AU53 -> 0 | N48: =SDGｓマトリクス!AV53 -> 0 | O48: =SDGｓマトリクス!AW53 -> 0 | P48: =SDGｓマトリクス!AX53 -> 0 | Q48: =SDGｓマトリクス!AY53 -> 0 | R48: =SDGｓマトリクス!AZ53 -> 0 | S48: =SDGｓマトリクス!BA53 -> 0 | T48: =SDGｓマトリクス!BB53 -> 0
C49: 日常の管理における大気汚染防止への配慮（燃焼管理等）を行っている | D49: =SDGｓマトリクス!AL54 -> 0 | E49: =SDGｓマトリクス!AM54 -> 0 | F49: =SDGｓマトリクス!AN54 -> 0 | G49: =SDGｓマトリクス!AO54 -> 0 | H49: =SDGｓマトリクス!AP54 -> 0 | I49: =SDGｓマトリクス!AQ54 -> 0 | J49: =SDGｓマトリクス!AR54 -> 0 | K49: =SDGｓマトリクス!AS54 -> 0 | L49: =SDGｓマトリクス!AT54 -> 0 | M49: =SDGｓマトリクス!AU54 -> 0 | N49: =SDGｓマトリクス!AV54 -> 0 | O49: =SDGｓマトリクス!AW54 -> 0 | P49: =SDGｓマトリクス!AX54 -> 0 | Q49: =SDGｓマトリクス!AY54 -> 0 | R49: =SDGｓマトリクス!AZ54 -> 0 | S49: =SDGｓマトリクス!BA54 -> 0 | T49: =SDGｓマトリクス!BB54 -> 0
C50: 大気汚染について、法令による基準より厳しい自主管理基準を設定し、その達成に努めている | D50: =SDGｓマトリクス!AL55 -> 0 | E50: =SDGｓマトリクス!AM55 -> 0 | F50: =SDGｓマトリクス!AN55 -> 0 | G50: =SDGｓマトリクス!AO55 -> 0 | H50: =SDGｓマトリクス!AP55 -> 0 | I50: =SDGｓマトリクス!AQ55 -> 0 | J50: =SDGｓマトリクス!AR55 -> 0 | K50: =SDGｓマトリクス!AS55 -> 0 | L50: =SDGｓマトリクス!AT55 -> 0 | M50: =SDGｓマトリクス!AU55 -> 0 | N50: =SDGｓマトリクス!AV55 -> 0 | O50: =SDGｓマトリクス!AW55 -> 0 | P50: =SDGｓマトリクス!AX55 -> 0 | Q50: =SDGｓマトリクス!AY55 -> 0 | R50: =SDGｓマトリクス!AZ55 -> 0 | S50: =SDGｓマトリクス!BA55 -> 0 | T50: =SDGｓマトリクス!BB55 -> 0
C51: ばい煙等の測定・監視やばい煙処理設備の点検を定期的に行っている | D51: =SDGｓマトリクス!AL56 -> 0 | E51: =SDGｓマトリクス!AM56 -> 0 | F51: =SDGｓマトリクス!AN56 -> 0 | G51: =SDGｓマトリクス!AO56 -> 0 | H51: =SDGｓマトリクス!AP56 -> 0 | I51: =SDGｓマトリクス!AQ56 -> 0 | J51: =SDGｓマトリクス!AR56 -> 0 | K51: =SDGｓマトリクス!AS56 -> 0 | L51: =SDGｓマトリクス!AT56 -> 0 | M51: =SDGｓマトリクス!AU56 -> 0 | N51: =SDGｓマトリクス!AV56 -> 0 | O51: =SDGｓマトリクス!AW56 -> 0 | P51: =SDGｓマトリクス!AX56 -> 0 | Q51: =SDGｓマトリクス!AY56 -> 0 | R51: =SDGｓマトリクス!AZ56 -> 0 | S51: =SDGｓマトリクス!BA56 -> 0 | T51: =SDGｓマトリクス!BB56 -> 0
C52: 事故や災害の際の汚染防止対策のための準備や訓練を行っている | D52: =SDGｓマトリクス!AL57 -> 0 | E52: =SDGｓマトリクス!AM57 -> 0 | F52: =SDGｓマトリクス!AN57 -> 0 | G52: =SDGｓマトリクス!AO57 -> 0 | H52: =SDGｓマトリクス!AP57 -> 0 | I52: =SDGｓマトリクス!AQ57 -> 0 | J52: =SDGｓマトリクス!AR57 -> 0 | K52: =SDGｓマトリクス!AS57 -> 0 | L52: =SDGｓマトリクス!AT57 -> 0 | M52: =SDGｓマトリクス!AU57 -> 0 | N52: =SDGｓマトリクス!AV57 -> 0 | O52: =SDGｓマトリクス!AW57 -> 0 | P52: =SDGｓマトリクス!AX57 -> 0 | Q52: =SDGｓマトリクス!AY57 -> 0 | R52: =SDGｓマトリクス!AZ57 -> 0 | S52: =SDGｓマトリクス!BA57 -> 0 | T52: =SDGｓマトリクス!BB57 -> 0
C53: アイドリングストップ等運転方法の配慮（急発進・急加速や空ぶかしの排除、駐停車中のエンジンの停止等）を行っている | D53: =SDGｓマトリクス!AL58 -> 0 | E53: =SDGｓマトリクス!AM58 -> 0 | F53: =SDGｓマトリクス!AN58 -> 0 | G53: =SDGｓマトリクス!AO58 -> 0 | H53: =SDGｓマトリクス!AP58 -> 0 | I53: =SDGｓマトリクス!AQ58 -> 0 | J53: =SDGｓマトリクス!AR58 -> 0 | K53: =SDGｓマトリクス!AS58 -> 0 | L53: =SDGｓマトリクス!AT58 -> 0 | M53: =SDGｓマトリクス!AU58 -> 0 | N53: =SDGｓマトリクス!AV58 -> 0 | O53: =SDGｓマトリクス!AW58 -> 0 | P53: =SDGｓマトリクス!AX58 -> 0 | Q53: =SDGｓマトリクス!AY58 -> 0 | R53: =SDGｓマトリクス!AZ58 -> 0 | S53: =SDGｓマトリクス!BA58 -> 0 | T53: =SDGｓマトリクス!BB58 -> 0
C54: ハイブリッド車や低燃費車、低排出ガス認定車、電気自動車、圧縮天然ガス自動車等の低公害車の利用に取り組んでいる | D54: =SDGｓマトリクス!AL59 -> 0 | E54: =SDGｓマトリクス!AM59 -> 0 | F54: =SDGｓマトリクス!AN59 -> 0 | G54: =SDGｓマトリクス!AO59 -> 0 | H54: =SDGｓマトリクス!AP59 -> 0 | I54: =SDGｓマトリクス!AQ59 -> 0 | J54: =SDGｓマトリクス!AR59 -> 0 | K54: =SDGｓマトリクス!AS59 -> 0 | L54: =SDGｓマトリクス!AT59 -> 0 | M54: =SDGｓマトリクス!AU59 -> 0 | N54: =SDGｓマトリクス!AV59 -> 0 | O54: =SDGｓマトリクス!AW59 -> 0 | P54: =SDGｓマトリクス!AX59 -> 0 | Q54: =SDGｓマトリクス!AY59 -> 0 | R54: =SDGｓマトリクス!AZ59 -> 0 | S54: =SDGｓマトリクス!BA59 -> 0 | T54: =SDGｓマトリクス!BB59 -> 0
B55: 2 水質汚濁物質排出量の削減 | D55: =SDGｓマトリクス!AL63 -> 0 | E55: =SDGｓマトリクス!AM63 -> 0 | F55: =SDGｓマトリクス!AN63 -> 0 | G55: =SDGｓマトリクス!AO63 -> 0 | H55: =SDGｓマトリクス!AP63 -> 0 | I55: =SDGｓマトリクス!AQ63 -> 0 | J55: =SDGｓマトリクス!AR63 -> 0 | K55: =SDGｓマトリクス!AS63 -> 0 | L55: =SDGｓマトリクス!AT63 -> 0 | M55: =SDGｓマトリクス!AU63 -> 0 | N55: =SDGｓマトリクス!AV63 -> 0 | O55: =SDGｓマトリクス!AW63 -> 0 | P55: =SDGｓマトリクス!AX63 -> 0 | Q55: =SDGｓマトリクス!AY63 -> 0 | R55: =SDGｓマトリクス!AZ63 -> 0 | S55: =SDGｓマトリクス!BA63 -> 0 | T55: =SDGｓマトリクス!BB63 -> 0 | U55: =SDGｓマトリクス!AI63 -> 0
C56: 水質汚濁の少ない工事・プロセス・機器（廃液の回収・再利用など）を採用している | D56: =SDGｓマトリクス!AL62 -> 0 | E56: =SDGｓマトリクス!AM62 -> 0 | F56: =SDGｓマトリクス!AN62 -> 0 | G56: =SDGｓマトリクス!AO62 -> 0 | H56: =SDGｓマトリクス!AP62 -> 0 | I56: =SDGｓマトリクス!AQ62 -> 0 | J56: =SDGｓマトリクス!AR62 -> 0 | K56: =SDGｓマトリクス!AS62 -> 0 | L56: =SDGｓマトリクス!AT62 -> 0 | M56: =SDGｓマトリクス!AU62 -> 0 | N56: =SDGｓマトリクス!AV62 -> 0 | O56: =SDGｓマトリクス!AW62 -> 0 | P56: =SDGｓマトリクス!AX62 -> 0 | Q56: =SDGｓマトリクス!AY62 -> 0 | R56: =SDGｓマトリクス!AZ62 -> 0 | S56: =SDGｓマトリクス!BA62 -> 0 | T56: =SDGｓマトリクス!BB62 -> 0
C57: 排水処理装置を適切に設置している | D57: =SDGｓマトリクス!AL63 -> 0 | E57: =SDGｓマトリクス!AM63 -> 0 | F57: =SDGｓマトリクス!AN63 -> 0 | G57: =SDGｓマトリクス!AO63 -> 0 | H57: =SDGｓマトリクス!AP63 -> 0 | I57: =SDGｓマトリクス!AQ63 -> 0 | J57: =SDGｓマトリクス!AR63 -> 0 | K57: =SDGｓマトリクス!AS63 -> 0 | L57: =SDGｓマトリクス!AT63 -> 0 | M57: =SDGｓマトリクス!AU63 -> 0 | N57: =SDGｓマトリクス!AV63 -> 0 | O57: =SDGｓマトリクス!AW63 -> 0 | P57: =SDGｓマトリクス!AX63 -> 0 | Q57: =SDGｓマトリクス!AY63 -> 0 | R57: =SDGｓマトリクス!AZ63 -> 0 | S57: =SDGｓマトリクス!BA63 -> 0 | T57: =SDGｓマトリクス!BB63 -> 0
C58: 排水が閉鎖性水域（湖、内湾など）に流入する場合は、窒素・燐の除去対策を講じている | D58: =SDGｓマトリクス!AL64 -> 0 | E58: =SDGｓマトリクス!AM64 -> 0 | F58: =SDGｓマトリクス!AN64 -> 0 | G58: =SDGｓマトリクス!AO64 -> 0 | H58: =SDGｓマトリクス!AP64 -> 0 | I58: =SDGｓマトリクス!AQ64 -> 0 | J58: =SDGｓマトリクス!AR64 -> 0 | K58: =SDGｓマトリクス!AS64 -> 0 | L58: =SDGｓマトリクス!AT64 -> 0 | M58: =SDGｓマトリクス!AU64 -> 0 | N58: =SDGｓマトリクス!AV64 -> 0 | O58: =SDGｓマトリクス!AW64 -> 0 | P58: =SDGｓマトリクス!AX64 -> 0 | Q58: =SDGｓマトリクス!AY64 -> 0 | R58: =SDGｓマトリクス!AZ64 -> 0 | S58: =SDGｓマトリクス!BA64 -> 0 | T58: =SDGｓマトリクス!BB64 -> 0
C59: 排水処理にクローズド・システムを採用している | D59: =SDGｓマトリクス!AL65 -> 0 | E59: =SDGｓマトリクス!AM65 -> 0 | F59: =SDGｓマトリクス!AN65 -> 0 | G59: =SDGｓマトリクス!AO65 -> 0 | H59: =SDGｓマトリクス!AP65 -> 0 | I59: =SDGｓマトリクス!AQ65 -> 0 | J59: =SDGｓマトリクス!AR65 -> 0 | K59: =SDGｓマトリクス!AS65 -> 0 | L59: =SDGｓマトリクス!AT65 -> 0 | M59: =SDGｓマトリクス!AU65 -> 0 | N59: =SDGｓマトリクス!AV65 -> 0 | O59: =SDGｓマトリクス!AW65 -> 0 | P59: =SDGｓマトリクス!AX65 -> 0 | Q59: =SDGｓマトリクス!AY65 -> 0 | R59: =SDGｓマトリクス!AZ65 -> 0 | S59: =SDGｓマトリクス!BA65 -> 0 | T59: =SDGｓマトリクス!BB65 -> 0
C60: 排水に有害物質や有機汚濁物質（生ごみ等）が混入しないようにしている | D60: =SDGｓマトリクス!AL66 -> 0 | E60: =SDGｓマトリクス!AM66 -> 0 | F60: =SDGｓマトリクス!AN66 -> 0 | G60: =SDGｓマトリクス!AO66 -> 0 | H60: =SDGｓマトリクス!AP66 -> 0 | I60: =SDGｓマトリクス!AQ66 -> 0 | J60: =SDGｓマトリクス!AR66 -> 0 | K60: =SDGｓマトリクス!AS66 -> 0 | L60: =SDGｓマトリクス!AT66 -> 0 | M60: =SDGｓマトリクス!AU66 -> 0 | N60: =SDGｓマトリクス!AV66 -> 0 | O60: =SDGｓマトリクス!AW66 -> 0 | P60: =SDGｓマトリクス!AX66 -> 0 | Q60: =SDGｓマトリクス!AY66 -> 0 | R60: =SDGｓマトリクス!AZ66 -> 0 | S60: =SDGｓマトリクス!BA66 -> 0 | T60: =SDGｓマトリクス!BB66 -> 0
C61: 排水に含まれる有害物質が地下浸透しないよう配慮している | D61: =SDGｓマトリクス!AL67 -> 0 | E61: =SDGｓマトリクス!AM67 -> 0 | F61: =SDGｓマトリクス!AN67 -> 0 | G61: =SDGｓマトリクス!AO67 -> 0 | H61: =SDGｓマトリクス!AP67 -> 0 | I61: =SDGｓマトリクス!AQ67 -> 0 | J61: =SDGｓマトリクス!AR67 -> 0 | K61: =SDGｓマトリクス!AS67 -> 0 | L61: =SDGｓマトリクス!AT67 -> 0 | M61: =SDGｓマトリクス!AU67 -> 0 | N61: =SDGｓマトリクス!AV67 -> 0 | O61: =SDGｓマトリクス!AW67 -> 0 | P61: =SDGｓマトリクス!AX67 -> 0 | Q61: =SDGｓマトリクス!AY67 -> 0 | R61: =SDGｓマトリクス!AZ67 -> 0 | S61: =SDGｓマトリクス!BA67 -> 0 | T61: =SDGｓマトリクス!BB67 -> 0
C62: 水質汚濁等について、法令による基準より厳しい自主管理基準を設定し、その達成に努めている | D62: =SDGｓマトリクス!AL68 -> 0 | E62: =SDGｓマトリクス!AM68 -> 0 | F62: =SDGｓマトリクス!AN68 -> 0 | G62: =SDGｓマトリクス!AO68 -> 0 | H62: =SDGｓマトリクス!AP68 -> 0 | I62: =SDGｓマトリクス!AQ68 -> 0 | J62: =SDGｓマトリクス!AR68 -> 0 | K62: =SDGｓマトリクス!AS68 -> 0 | L62: =SDGｓマトリクス!AT68 -> 0 | M62: =SDGｓマトリクス!AU68 -> 0 | N62: =SDGｓマトリクス!AV68 -> 0 | O62: =SDGｓマトリクス!AW68 -> 0 | P62: =SDGｓマトリクス!AX68 -> 0 | Q62: =SDGｓマトリクス!AY68 -> 0 | R62: =SDGｓマトリクス!AZ68 -> 0 | S62: =SDGｓマトリクス!BA68 -> 0 | T62: =SDGｓマトリクス!BB68 -> 0
C63: 排水等の測定・監視や排水処理設備の点検を定期的に行っている | D63: =SDGｓマトリクス!AL69 -> 0 | E63: =SDGｓマトリクス!AM69 -> 0 | F63: =SDGｓマトリクス!AN69 -> 0 | G63: =SDGｓマトリクス!AO69 -> 0 | H63: =SDGｓマトリクス!AP69 -> 0 | I63: =SDGｓマトリクス!AQ69 -> 0 | J63: =SDGｓマトリクス!AR69 -> 0 | K63: =SDGｓマトリクス!AS69 -> 0 | L63: =SDGｓマトリクス!AT69 -> 0 | M63: =SDGｓマトリクス!AU69 -> 0 | N63: =SDGｓマトリクス!AV69 -> 0 | O63: =SDGｓマトリクス!AW69 -> 0 | P63: =SDGｓマトリクス!AX69 -> 0 | Q63: =SDGｓマトリクス!AY69 -> 0 | R63: =SDGｓマトリクス!AZ69 -> 0 | S63: =SDGｓマトリクス!BA69 -> 0 | T63: =SDGｓマトリクス!BB69 -> 0
C64: 事故や災害の際の汚染防止対策のための準備や訓練を行っている | D64: =SDGｓマトリクス!AL70 -> 0 | E64: =SDGｓマトリクス!AM70 -> 0 | F64: =SDGｓマトリクス!AN70 -> 0 | G64: =SDGｓマトリクス!AO70 -> 0 | H64: =SDGｓマトリクス!AP70 -> 0 | I64: =SDGｓマトリクス!AQ70 -> 0 | J64: =SDGｓマトリクス!AR70 -> 0 | K64: =SDGｓマトリクス!AS70 -> 0 | L64: =SDGｓマトリクス!AT70 -> 0 | M64: =SDGｓマトリクス!AU70 -> 0 | N64: =SDGｓマトリクス!AV70 -> 0 | O64: =SDGｓマトリクス!AW70 -> 0 | P64: =SDGｓマトリクス!AX70 -> 0 | Q64: =SDGｓマトリクス!AY70 -> 0 | R64: =SDGｓマトリクス!AZ70 -> 0 | S64: =SDGｓマトリクス!BA70 -> 0 | T64: =SDGｓマトリクス!BB70 -> 0
B65: 3 悪臭、騒音、振動等の防止 | D65: =SDGｓマトリクス!AL67 -> 0 | E65: =SDGｓマトリクス!AM67 -> 0 | F65: =SDGｓマトリクス!AN67 -> 0 | G65: =SDGｓマトリクス!AO67 -> 0 | H65: =SDGｓマトリクス!AP67 -> 0 | I65: =SDGｓマトリクス!AQ67 -> 0 | J65: =SDGｓマトリクス!AR67 -> 0 | K65: =SDGｓマトリクス!AS67 -> 0 | L65: =SDGｓマトリクス!AT67 -> 0 | M65: =SDGｓマトリクス!AU67 -> 0 | N65: =SDGｓマトリクス!AV67 -> 0 | O65: =SDGｓマトリクス!AW67 -> 0 | P65: =SDGｓマトリクス!AX67 -> 0 | Q65: =SDGｓマトリクス!AY67 -> 0 | R65: =SDGｓマトリクス!AZ67 -> 0 | S65: =SDGｓマトリクス!BA67 -> 0 | T65: =SDGｓマトリクス!BB67 -> 0 | U65: =SDGｓマトリクス!AI67 -> 0
C66: 悪臭防止のため排出口の位置等の配慮を行っている | D66: =SDGｓマトリクス!AL74 -> 0 | E66: =SDGｓマトリクス!AM74 -> 0 | F66: =SDGｓマトリクス!AN74 -> 0 | G66: =SDGｓマトリクス!AO74 -> 0 | H66: =SDGｓマトリクス!AP74 -> 0 | I66: =SDGｓマトリクス!AQ74 -> 0 | J66: =SDGｓマトリクス!AR74 -> 0 | K66: =SDGｓマトリクス!AS74 -> 0 | L66: =SDGｓマトリクス!AT74 -> 0 | M66: =SDGｓマトリクス!AU74 -> 0 | N66: =SDGｓマトリクス!AV74 -> 0 | O66: =SDGｓマトリクス!AW74 -> 0 | P66: =SDGｓマトリクス!AX74 -> 0 | Q66: =SDGｓマトリクス!AY74 -> 0 | R66: =SDGｓマトリクス!AZ74 -> 0 | S66: =SDGｓマトリクス!BA74 -> 0 | T66: =SDGｓマトリクス!BB74 -> 0
C67: 低騒音型機器の使用、防音・防振設備の設置・管理等により騒音・振動を防止するとともに、日常的な測定・監視を実施している | D67: =SDGｓマトリクス!AL75 -> 0 | E67: =SDGｓマトリクス!AM75 -> 0 | F67: =SDGｓマトリクス!AN75 -> 0 | G67: =SDGｓマトリクス!AO75 -> 0 | H67: =SDGｓマトリクス!AP75 -> 0 | I67: =SDGｓマトリクス!AQ75 -> 0 | J67: =SDGｓマトリクス!AR75 -> 0 | K67: =SDGｓマトリクス!AS75 -> 0 | L67: =SDGｓマトリクス!AT75 -> 0 | M67: =SDGｓマトリクス!AU75 -> 0 | N67: =SDGｓマトリクス!AV75 -> 0 | O67: =SDGｓマトリクス!AW75 -> 0 | P67: =SDGｓマトリクス!AX75 -> 0 | Q67: =SDGｓマトリクス!AY75 -> 0 | R67: =SDGｓマトリクス!AZ75 -> 0 | S67: =SDGｓマトリクス!BA75 -> 0 | T67: =SDGｓマトリクス!BB75 -> 0
C68: 夜間照明による光害を防止するための措置を講じている | D68: =SDGｓマトリクス!AL76 -> 0 | E68: =SDGｓマトリクス!AM76 -> 0 | F68: =SDGｓマトリクス!AN76 -> 0 | G68: =SDGｓマトリクス!AO76 -> 0 | H68: =SDGｓマトリクス!AP76 -> 0 | I68: =SDGｓマトリクス!AQ76 -> 0 | J68: =SDGｓマトリクス!AR76 -> 0 | K68: =SDGｓマトリクス!AS76 -> 0 | L68: =SDGｓマトリクス!AT76 -> 0 | M68: =SDGｓマトリクス!AU76 -> 0 | N68: =SDGｓマトリクス!AV76 -> 0 | O68: =SDGｓマトリクス!AW76 -> 0 | P68: =SDGｓマトリクス!AX76 -> 0 | Q68: =SDGｓマトリクス!AY76 -> 0 | R68: =SDGｓマトリクス!AZ76 -> 0 | S68: =SDGｓマトリクス!BA76 -> 0 | T68: =SDGｓマトリクス!BB76 -> 0
D69: =SDGｓマトリクス!AL77 -> 0 | E69: =SDGｓマトリクス!AM77 -> 0 | F69: =SDGｓマトリクス!AN77 -> 0 | G69: =SDGｓマトリクス!AO77 -> 0 | H69: =SDGｓマトリクス!AP77 -> 0 | I69: =SDGｓマトリクス!AQ77 -> 0 | J69: =SDGｓマトリクス!AR77 -> 0 | K69: =SDGｓマトリクス!AS77 -> 0 | L69: =SDGｓマトリクス!AT77 -> 0 | M69: =SDGｓマトリクス!AU77 -> 0 | N69: =SDGｓマトリクス!AV77 -> 0 | O69: =SDGｓマトリクス!AW77 -> 0 | P69: =SDGｓマトリクス!AX77 -> 0 | Q69: =SDGｓマトリクス!AY77 -> 0 | R69: =SDGｓマトリクス!AZ77 -> 0 | S69: =SDGｓマトリクス!BA77 -> 0 | T69: =SDGｓマトリクス!BB77 -> 0
D70: =SDGｓマトリクス!AL78 -> 0 | E70: =SDGｓマトリクス!AM78 -> 0 | F70: =SDGｓマトリクス!AN78 -> 0 | G70: =SDGｓマトリクス!AO78 -> 0 | H70: =SDGｓマトリクス!AP78 -> 0 | I70: =SDGｓマトリクス!AQ78 -> 0 | J70: =SDGｓマトリクス!AR78 -> 0 | K70: =SDGｓマトリクス!AS78 -> 0 | L70: =SDGｓマトリクス!AT78 -> 0 | M70: =SDGｓマトリクス!AU78 -> 0 | N70: =SDGｓマトリクス!AV78 -> 0 | O70: =SDGｓマトリクス!AW78 -> 0 | P70: =SDGｓマトリクス!AX78 -> 0 | Q70: =SDGｓマトリクス!AY78 -> 0 | R70: =SDGｓマトリクス!AZ78 -> 0 | S70: =SDGｓマトリクス!BA78 -> 0 | T70: =SDGｓマトリクス!BB78 -> 0
D71: =SDGｓマトリクス!AL79 -> 0 | E71: =SDGｓマトリクス!AM79 -> 0 | F71: =SDGｓマトリクス!AN79 -> 0 | G71: =SDGｓマトリクス!AO79 -> 0 | H71: =SDGｓマトリクス!AP79 -> 0 | I71: =SDGｓマトリクス!AQ79 -> 0 | J71: =SDGｓマトリクス!AR79 -> 0 | K71: =SDGｓマトリクス!AS79 -> 0 | L71: =SDGｓマトリクス!AT79 -> 0 | M71: =SDGｓマトリクス!AU79 -> 0 | N71: =SDGｓマトリクス!AV79 -> 0 | O71: =SDGｓマトリクス!AW79 -> 0 | P71: =SDGｓマトリクス!AX79 -> 0 | Q71: =SDGｓマトリクス!AY79 -> 0 | R71: =SDGｓマトリクス!AZ79 -> 0 | S71: =SDGｓマトリクス!BA79 -> 0 | T71: =SDGｓマトリクス!BB79 -> 0
D72: =SDGｓマトリクス!AL80 -> 0 | E72: =SDGｓマトリクス!AM80 -> 0 | F72: =SDGｓマトリクス!AN80 -> 0 | G72: =SDGｓマトリクス!AO80 -> 0 | H72: =SDGｓマトリクス!AP80 -> 0 | I72: =SDGｓマトリクス!AQ80 -> 0 | J72: =SDGｓマトリクス!AR80 -> 0 | K72: =SDGｓマトリクス!AS80 -> 0 | L72: =SDGｓマトリクス!AT80 -> 0 | M72: =SDGｓマトリクス!AU80 -> 0 | N72: =SDGｓマトリクス!AV80 -> 0 | O72: =SDGｓマトリクス!AW80 -> 0 | P72: =SDGｓマトリクス!AX80 -> 0 | Q72: =SDGｓマトリクス!AY80 -> 0 | R72: =SDGｓマトリクス!AZ80 -> 0 | S72: =SDGｓマトリクス!BA80 -> 0 | T72: =SDGｓマトリクス!BB80 -> 0
A73: ③ 化学物質対策> | B73: 1 化学物質の管理の徹底 | D73: =SDGｓマトリクス!AL84 -> 0 | E73: =SDGｓマトリクス!AM84 -> 0 | F73: =SDGｓマトリクス!AN84 -> 0 | G73: =SDGｓマトリクス!AO84 -> 0 | H73: =SDGｓマトリクス!AP84 -> 0 | I73: =SDGｓマトリクス!AQ84 -> 0 | J73: =SDGｓマトリクス!AR84 -> 0 | K73: =SDGｓマトリクス!AS84 -> 0 | L73: =SDGｓマトリクス!AT84 -> 0 | M73: =SDGｓマトリクス!AU84 -> 0 | N73: =SDGｓマトリクス!AV84 -> 0 | O73: =SDGｓマトリクス!AW84 -> 0 | P73: =SDGｓマトリクス!AX84 -> 0 | Q73: =SDGｓマトリクス!AY84 -> 0 | R73: =SDGｓマトリクス!AZ84 -> 0 | S73: =SDGｓマトリクス!BA84 -> 0 | T73: =SDGｓマトリクス!BB84 -> 0 | U73: =SDGｓマトリクス!AI84 -> 0
C74: 有害性のおそれのある化学物質について、その種類、使用量、保管量、使用方法、使用場所、保管場所等を経時的に把握し、記録管理している | D74: =SDGｓマトリクス!AL82 -> 0 | E74: =SDGｓマトリクス!AM82 -> 0 | F74: =SDGｓマトリクス!AN82 -> 0 | G74: =SDGｓマトリクス!AO82 -> 0 | H74: =SDGｓマトリクス!AP82 -> 0 | I74: =SDGｓマトリクス!AQ82 -> 0 | J74: =SDGｓマトリクス!AR82 -> 0 | K74: =SDGｓマトリクス!AS82 -> 0 | L74: =SDGｓマトリクス!AT82 -> 0 | M74: =SDGｓマトリクス!AU82 -> 0 | N74: =SDGｓマトリクス!AV82 -> 0 | O74: =SDGｓマトリクス!AW82 -> 0 | P74: =SDGｓマトリクス!AX82 -> 0 | Q74: =SDGｓマトリクス!AY82 -> 0 | R74: =SDGｓマトリクス!AZ82 -> 0 | S74: =SDGｓマトリクス!BA82 -> 0 | T74: =SDGｓマトリクス!BB82 -> 0
C75: 有害性のおそれのある化学物質の環境への排出量の計測、推定等を行っている | D75: =SDGｓマトリクス!AL83 -> 0 | E75: =SDGｓマトリクス!AM83 -> 0 | F75: =SDGｓマトリクス!AN83 -> 0 | G75: =SDGｓマトリクス!AO83 -> 0 | H75: =SDGｓマトリクス!AP83 -> 0 | I75: =SDGｓマトリクス!AQ83 -> 0 | J75: =SDGｓマトリクス!AR83 -> 0 | K75: =SDGｓマトリクス!AS83 -> 0 | L75: =SDGｓマトリクス!AT83 -> 0 | M75: =SDGｓマトリクス!AU83 -> 0 | N75: =SDGｓマトリクス!AV83 -> 0 | O75: =SDGｓマトリクス!AW83 -> 0 | P75: =SDGｓマトリクス!AX83 -> 0 | Q75: =SDGｓマトリクス!AY83 -> 0 | R75: =SDGｓマトリクス!AZ83 -> 0 | S75: =SDGｓマトリクス!BA83 -> 0 | T75: =SDGｓマトリクス!BB83 -> 0
C76: 有害性のおそれのある化学物質の製品への表示を徹底している | D76: =SDGｓマトリクス!AL84 -> 0 | E76: =SDGｓマトリクス!AM84 -> 0 | F76: =SDGｓマトリクス!AN84 -> 0 | G76: =SDGｓマトリクス!AO84 -> 0 | H76: =SDGｓマトリクス!AP84 -> 0 | I76: =SDGｓマトリクス!AQ84 -> 0 | J76: =SDGｓマトリクス!AR84 -> 0 | K76: =SDGｓマトリクス!AS84 -> 0 | L76: =SDGｓマトリクス!AT84 -> 0 | M76: =SDGｓマトリクス!AU84 -> 0 | N76: =SDGｓマトリクス!AV84 -> 0 | O76: =SDGｓマトリクス!AW84 -> 0 | P76: =SDGｓマトリクス!AX84 -> 0 | Q76: =SDGｓマトリクス!AY84 -> 0 | R76: =SDGｓマトリクス!AZ84 -> 0 | S76: =SDGｓマトリクス!BA84 -> 0 | T76: =SDGｓマトリクス!BB84 -> 0
C77: 作業従事者に対して取り扱う化学物質に関する危害情報(ＧＨＳマークの理解等）を周知させている。 | D77: =SDGｓマトリクス!AL85 -> 0 | E77: =SDGｓマトリクス!AM85 -> 0 | F77: =SDGｓマトリクス!AN85 -> 0 | G77: =SDGｓマトリクス!AO85 -> 0 | H77: =SDGｓマトリクス!AP85 -> 0 | I77: =SDGｓマトリクス!AQ85 -> 0 | J77: =SDGｓマトリクス!AR85 -> 0 | K77: =SDGｓマトリクス!AS85 -> 0 | L77: =SDGｓマトリクス!AT85 -> 0 | M77: =SDGｓマトリクス!AU85 -> 0 | N77: =SDGｓマトリクス!AV85 -> 0 | O77: =SDGｓマトリクス!AW85 -> 0 | P77: =SDGｓマトリクス!AX85 -> 0 | Q77: =SDGｓマトリクス!AY85 -> 0 | R77: =SDGｓマトリクス!AZ85 -> 0 | S77: =SDGｓマトリクス!BA85 -> 0 | T77: =SDGｓマトリクス!BB85 -> 0
C78: 化学物質の安全性に関する情報伝達のため（Ｍ）ＳＤＳ（化学物質安全性データシート）を使用している | D78: =SDGｓマトリクス!AL86 -> 0 | E78: =SDGｓマトリクス!AM86 -> 0 | F78: =SDGｓマトリクス!AN86 -> 0 | G78: =SDGｓマトリクス!AO86 -> 0 | H78: =SDGｓマトリクス!AP86 -> 0 | I78: =SDGｓマトリクス!AQ86 -> 0 | J78: =SDGｓマトリクス!AR86 -> 0 | K78: =SDGｓマトリクス!AS86 -> 0 | L78: =SDGｓマトリクス!AT86 -> 0 | M78: =SDGｓマトリクス!AU86 -> 0 | N78: =SDGｓマトリクス!AV86 -> 0 | O78: =SDGｓマトリクス!AW86 -> 0 | P78: =SDGｓマトリクス!AX86 -> 0 | Q78: =SDGｓマトリクス!AY86 -> 0 | R78: =SDGｓマトリクス!AZ86 -> 0 | S78: =SDGｓマトリクス!BA86 -> 0 | T78: =SDGｓマトリクス!BB86 -> 0
C79: 有害性のおそれのある物質のタンク、パイプ類は浸透、漏洩、拡散などを防止できる構造となっている | D79: =SDGｓマトリクス!AL87 -> 0 | E79: =SDGｓマトリクス!AM87 -> 0 | F79: =SDGｓマトリクス!AN87 -> 0 | G79: =SDGｓマトリクス!AO87 -> 0 | H79: =SDGｓマトリクス!AP87 -> 0 | I79: =SDGｓマトリクス!AQ87 -> 0 | J79: =SDGｓマトリクス!AR87 -> 0 | K79: =SDGｓマトリクス!AS87 -> 0 | L79: =SDGｓマトリクス!AT87 -> 0 | M79: =SDGｓマトリクス!AU87 -> 0 | N79: =SDGｓマトリクス!AV87 -> 0 | O79: =SDGｓマトリクス!AW87 -> 0 | P79: =SDGｓマトリクス!AX87 -> 0 | Q79: =SDGｓマトリクス!AY87 -> 0 | R79: =SDGｓマトリクス!AZ87 -> 0 | S79: =SDGｓマトリクス!BA87 -> 0 | T79: =SDGｓマトリクス!BB87 -> 0
C80: 有害性のおそれのある物質のタンク、パイプ等の保守・点検を定期的に行っている | D80: =SDGｓマトリクス!AL88 -> 0 | E80: =SDGｓマトリクス!AM88 -> 0 | F80: =SDGｓマトリクス!AN88 -> 0 | G80: =SDGｓマトリクス!AO88 -> 0 | H80: =SDGｓマトリクス!AP88 -> 0 | I80: =SDGｓマトリクス!AQ88 -> 0 | J80: =SDGｓマトリクス!AR88 -> 0 | K80: =SDGｓマトリクス!AS88 -> 0 | L80: =SDGｓマトリクス!AT88 -> 0 | M80: =SDGｓマトリクス!AU88 -> 0 | N80: =SDGｓマトリクス!AV88 -> 0 | O80: =SDGｓマトリクス!AW88 -> 0 | P80: =SDGｓマトリクス!AX88 -> 0 | Q80: =SDGｓマトリクス!AY88 -> 0 | R80: =SDGｓマトリクス!AZ88 -> 0 | S80: =SDGｓマトリクス!BA88 -> 0 | T80: =SDGｓマトリクス!BB88 -> 0
C81: 使用した有害物質を回収するシステムができている | D81: =SDGｓマトリクス!AL89 -> 0 | E81: =SDGｓマトリクス!AM89 -> 0 | F81: =SDGｓマトリクス!AN89 -> 0 | G81: =SDGｓマトリクス!AO89 -> 0 | H81: =SDGｓマトリクス!AP89 -> 0 | I81: =SDGｓマトリクス!AQ89 -> 0 | J81: =SDGｓマトリクス!AR89 -> 0 | K81: =SDGｓマトリクス!AS89 -> 0 | L81: =SDGｓマトリクス!AT89 -> 0 | M81: =SDGｓマトリクス!AU89 -> 0 | N81: =SDGｓマトリクス!AV89 -> 0 | O81: =SDGｓマトリクス!AW89 -> 0 | P81: =SDGｓマトリクス!AX89 -> 0 | Q81: =SDGｓマトリクス!AY89 -> 0 | R81: =SDGｓマトリクス!AZ89 -> 0 | S81: =SDGｓマトリクス!BA89 -> 0 | T81: =SDGｓマトリクス!BB89 -> 0
C82: 有害性のおそれのある物質の輸送、保管等に当たり、事故等の汚染防止のための準備や訓練を行っている | D82: =SDGｓマトリクス!AL90 -> 0 | E82: =SDGｓマトリクス!AM90 -> 0 | F82: =SDGｓマトリクス!AN90 -> 0 | G82: =SDGｓマトリクス!AO90 -> 0 | H82: =SDGｓマトリクス!AP90 -> 0 | I82: =SDGｓマトリクス!AQ90 -> 0 | J82: =SDGｓマトリクス!AR90 -> 0 | K82: =SDGｓマトリクス!AS90 -> 0 | L82: =SDGｓマトリクス!AT90 -> 0 | M82: =SDGｓマトリクス!AU90 -> 0 | N82: =SDGｓマトリクス!AV90 -> 0 | O82: =SDGｓマトリクス!AW90 -> 0 | P82: =SDGｓマトリクス!AX90 -> 0 | Q82: =SDGｓマトリクス!AY90 -> 0 | R82: =SDGｓマトリクス!AZ90 -> 0 | S82: =SDGｓマトリクス!BA90 -> 0 | T82: =SDGｓマトリクス!BB90 -> 0
C83: 有害性のおそれのある物質の削減に取り組んでいる | D83: =SDGｓマトリクス!AL91 -> 0 | E83: =SDGｓマトリクス!AM91 -> 0 | F83: =SDGｓマトリクス!AN91 -> 0 | G83: =SDGｓマトリクス!AO91 -> 0 | H83: =SDGｓマトリクス!AP91 -> 0 | I83: =SDGｓマトリクス!AQ91 -> 0 | J83: =SDGｓマトリクス!AR91 -> 0 | K83: =SDGｓマトリクス!AS91 -> 0 | L83: =SDGｓマトリクス!AT91 -> 0 | M83: =SDGｓマトリクス!AU91 -> 0 | N83: =SDGｓマトリクス!AV91 -> 0 | O83: =SDGｓマトリクス!AW91 -> 0 | P83: =SDGｓマトリクス!AX91 -> 0 | Q83: =SDGｓマトリクス!AY91 -> 0 | R83: =SDGｓマトリクス!AZ91 -> 0 | S83: =SDGｓマトリクス!BA91 -> 0 | T83: =SDGｓマトリクス!BB91 -> 0
C84: 燃料油や溶剤等の揮発の防止に取り組んでいる | D84: =SDGｓマトリクス!AL92 -> 0 | E84: =SDGｓマトリクス!AM92 -> 0 | F84: =SDGｓマトリクス!AN92 -> 0 | G84: =SDGｓマトリクス!AO92 -> 0 | H84: =SDGｓマトリクス!AP92 -> 0 | I84: =SDGｓマトリクス!AQ92 -> 0 | J84: =SDGｓマトリクス!AR92 -> 0 | K84: =SDGｓマトリクス!AS92 -> 0 | L84: =SDGｓマトリクス!AT92 -> 0 | M84: =SDGｓマトリクス!AU92 -> 0 | N84: =SDGｓマトリクス!AV92 -> 0 | O84: =SDGｓマトリクス!AW92 -> 0 | P84: =SDGｓマトリクス!AX92 -> 0 | Q84: =SDGｓマトリクス!AY92 -> 0 | R84: =SDGｓマトリクス!AZ92 -> 0 | S84: =SDGｓマトリクス!BA92 -> 0 | T84: =SDGｓマトリクス!BB92 -> 0
C85: 施設の消毒、除草や害虫駆除に当たり、薬剤使用の削減、合理化等に取り組んでいる | D85: =SDGｓマトリクス!AL93 -> 0 | E85: =SDGｓマトリクス!AM93 -> 0 | F85: =SDGｓマトリクス!AN93 -> 0 | G85: =SDGｓマトリクス!AO93 -> 0 | H85: =SDGｓマトリクス!AP93 -> 0 | I85: =SDGｓマトリクス!AQ93 -> 0 | J85: =SDGｓマトリクス!AR93 -> 0 | K85: =SDGｓマトリクス!AS93 -> 0 | L85: =SDGｓマトリクス!AT93 -> 0 | M85: =SDGｓマトリクス!AU93 -> 0 | N85: =SDGｓマトリクス!AV93 -> 0 | O85: =SDGｓマトリクス!AW93 -> 0 | P85: =SDGｓマトリクス!AX93 -> 0 | Q85: =SDGｓマトリクス!AY93 -> 0 | R85: =SDGｓマトリクス!AZ93 -> 0 | S85: =SDGｓマトリクス!BA93 -> 0 | T85: =SDGｓマトリクス!BB93 -> 0
B86: 2 温室効果ガス特定フロン、代替フロンの排出抑制、削減、適正処理 | D86: =SDGｓマトリクス!AL94 -> 0 | E86: =SDGｓマトリクス!AM94 -> 0 | F86: =SDGｓマトリクス!AN94 -> 0 | G86: =SDGｓマトリクス!AO94 -> 0 | H86: =SDGｓマトリクス!AP94 -> 0 | I86: =SDGｓマトリクス!AQ94 -> 0 | J86: =SDGｓマトリクス!AR94 -> 0 | K86: =SDGｓマトリクス!AS94 -> 0 | L86: =SDGｓマトリクス!AT94 -> 0 | M86: =SDGｓマトリクス!AU94 -> 0 | N86: =SDGｓマトリクス!AV94 -> 0 | O86: =SDGｓマトリクス!AW94 -> 0 | P86: =SDGｓマトリクス!AX94 -> 0 | Q86: =SDGｓマトリクス!AY94 -> 0 | R86: =SDGｓマトリクス!AZ94 -> 0 | S86: =SDGｓマトリクス!BA94 -> 0 | T86: =SDGｓマトリクス!BB94 -> 0 | U86: =SDGｓマトリクス!AI94 -> 0
C87: オゾン層を破壊する特定フロン等の削減、全廃（生産用フロン、冷却設備・空調設備の冷媒用フロン（Ｒ２２使用機器）の削減、ハロン消火設備等の代替）を行っている | D87: =SDGｓマトリクス!AL95 -> 0 | E87: =SDGｓマトリクス!AM95 -> 0 | F87: =SDGｓマトリクス!AN95 -> 0 | G87: =SDGｓマトリクス!AO95 -> 0 | H87: =SDGｓマトリクス!AP95 -> 0 | I87: =SDGｓマトリクス!AQ95 -> 0 | J87: =SDGｓマトリクス!AR95 -> 0 | K87: =SDGｓマトリクス!AS95 -> 0 | L87: =SDGｓマトリクス!AT95 -> 0 | M87: =SDGｓマトリクス!AU95 -> 0 | N87: =SDGｓマトリクス!AV95 -> 0 | O87: =SDGｓマトリクス!AW95 -> 0 | P87: =SDGｓマトリクス!AX95 -> 0 | Q87: =SDGｓマトリクス!AY95 -> 0 | R87: =SDGｓマトリクス!AZ95 -> 0 | S87: =SDGｓマトリクス!BA95 -> 0 | T87: =SDGｓマトリクス!BB95 -> 0
C88: フロンの削減、回収・適正処理に取り組んでいる | D88: =SDGｓマトリクス!AL96 -> 0 | E88: =SDGｓマトリクス!AM96 -> 0 | F88: =SDGｓマトリクス!AN96 -> 0 | G88: =SDGｓマトリクス!AO96 -> 0 | H88: =SDGｓマトリクス!AP96 -> 0 | I88: =SDGｓマトリクス!AQ96 -> 0 | J88: =SDGｓマトリクス!AR96 -> 0 | K88: =SDGｓマトリクス!AS96 -> 0 | L88: =SDGｓマトリクス!AT96 -> 0 | M88: =SDGｓマトリクス!AU96 -> 0 | N88: =SDGｓマトリクス!AV96 -> 0 | O88: =SDGｓマトリクス!AW96 -> 0 | P88: =SDGｓマトリクス!AX96 -> 0 | Q88: =SDGｓマトリクス!AY96 -> 0 | R88: =SDGｓマトリクス!AZ96 -> 0 | S88: =SDGｓマトリクス!BA96 -> 0 | T88: =SDGｓマトリクス!BB96 -> 0
C89: 特定フロン、代替フロン類をどれだけ使用し、漏出しているか把握している | D89: =SDGｓマトリクス!AL97 -> 0 | E89: =SDGｓマトリクス!AM97 -> 0 | F89: =SDGｓマトリクス!AN97 -> 0 | G89: =SDGｓマトリクス!AO97 -> 0 | H89: =SDGｓマトリクス!AP97 -> 0 | I89: =SDGｓマトリクス!AQ97 -> 0 | J89: =SDGｓマトリクス!AR97 -> 0 | K89: =SDGｓマトリクス!AS97 -> 0 | L89: =SDGｓマトリクス!AT97 -> 0 | M89: =SDGｓマトリクス!AU97 -> 0 | N89: =SDGｓマトリクス!AV97 -> 0 | O89: =SDGｓマトリクス!AW97 -> 0 | P89: =SDGｓマトリクス!AX97 -> 0 | Q89: =SDGｓマトリクス!AY97 -> 0 | R89: =SDGｓマトリクス!AZ97 -> 0 | S89: =SDGｓマトリクス!BA97 -> 0 | T89: =SDGｓマトリクス!BB97 -> 0
C90: 製造工程において、代替フロン類（ＨＦＣ、ＰＦＣ、ＳＦ６ 等）の排出抑制、回収処理に取り組んでいる | D90: =SDGｓマトリクス!AL98 -> 0 | E90: =SDGｓマトリクス!AM98 -> 0 | F90: =SDGｓマトリクス!AN98 -> 0 | G90: =SDGｓマトリクス!AO98 -> 0 | H90: =SDGｓマトリクス!AP98 -> 0 | I90: =SDGｓマトリクス!AQ98 -> 0 | J90: =SDGｓマトリクス!AR98 -> 0 | K90: =SDGｓマトリクス!AS98 -> 0 | L90: =SDGｓマトリクス!AT98 -> 0 | M90: =SDGｓマトリクス!AU98 -> 0 | N90: =SDGｓマトリクス!AV98 -> 0 | O90: =SDGｓマトリクス!AW98 -> 0 | P90: =SDGｓマトリクス!AX98 -> 0 | Q90: =SDGｓマトリクス!AY98 -> 0 | R90: =SDGｓマトリクス!AZ98 -> 0 | S90: =SDGｓマトリクス!BA98 -> 0 | T90: =SDGｓマトリクス!BB98 -> 0
C91: 製造工程において、可能な範囲で代替フロン類（ＨＦＣ、ＰＦＣ、ＳＦ６ 等）をその他の物質に代替している | D91: =SDGｓマトリクス!AL99 -> 0 | E91: =SDGｓマトリクス!AM99 -> 0 | F91: =SDGｓマトリクス!AN99 -> 0 | G91: =SDGｓマトリクス!AO99 -> 0 | H91: =SDGｓマトリクス!AP99 -> 0 | I91: =SDGｓマトリクス!AQ99 -> 0 | J91: =SDGｓマトリクス!AR99 -> 0 | K91: =SDGｓマトリクス!AS99 -> 0 | L91: =SDGｓマトリクス!AT99 -> 0 | M91: =SDGｓマトリクス!AU99 -> 0 | N91: =SDGｓマトリクス!AV99 -> 0 | O91: =SDGｓマトリクス!AW99 -> 0 | P91: =SDGｓマトリクス!AX99 -> 0 | Q91: =SDGｓマトリクス!AY99 -> 0 | R91: =SDGｓマトリクス!AZ99 -> 0 | S91: =SDGｓマトリクス!BA99 -> 0 | T91: =SDGｓマトリクス!BB99 -> 0
C92: ＨＦＣ、ＰＦＣ、ＳＦ６ 等を使用しない製造工程に変換している | D92: =SDGｓマトリクス!AL100 -> 0 | E92: =SDGｓマトリクス!AM100 -> 0 | F92: =SDGｓマトリクス!AN100 -> 0 | G92: =SDGｓマトリクス!AO100 -> 0 | H92: =SDGｓマトリクス!AP100 -> 0 | I92: =SDGｓマトリクス!AQ100 -> 0 | J92: =SDGｓマトリクス!AR100 -> 0 | K92: =SDGｓマトリクス!AS100 -> 0 | L92: =SDGｓマトリクス!AT100 -> 0 | M92: =SDGｓマトリクス!AU100 -> 0 | N92: =SDGｓマトリクス!AV100 -> 0 | O92: =SDGｓマトリクス!AW100 -> 0 | P92: =SDGｓマトリクス!AX100 -> 0 | Q92: =SDGｓマトリクス!AY100 -> 0 | R92: =SDGｓマトリクス!AZ100 -> 0 | S92: =SDGｓマトリクス!BA100 -> 0 | T92: =SDGｓマトリクス!BB100 -> 0
C93: 製品購入の際には、できるだけＨＦＣ、ＰＦＣ、ＳＦ６ 等を使用していない製品（例・ＣＯ₂等冷媒）を選ぶように配慮している | D93: =SDGｓマトリクス!AL101 -> 0 | E93: =SDGｓマトリクス!AM101 -> 0 | F93: =SDGｓマトリクス!AN101 -> 0 | G93: =SDGｓマトリクス!AO101 -> 0 | H93: =SDGｓマトリクス!AP101 -> 0 | I93: =SDGｓマトリクス!AQ101 -> 0 | J93: =SDGｓマトリクス!AR101 -> 0 | K93: =SDGｓマトリクス!AS101 -> 0 | L93: =SDGｓマトリクス!AT101 -> 0 | M93: =SDGｓマトリクス!AU101 -> 0 | N93: =SDGｓマトリクス!AV101 -> 0 | O93: =SDGｓマトリクス!AW101 -> 0 | P93: =SDGｓマトリクス!AX101 -> 0 | Q93: =SDGｓマトリクス!AY101 -> 0 | R93: =SDGｓマトリクス!AZ101 -> 0 | S93: =SDGｓマトリクス!BA101 -> 0 | T93: =SDGｓマトリクス!BB101 -> 0
C94: ＨＦＣ、ＰＦＣ、ＳＦ６ 等を使用している製品を廃棄する際の回収に取り組んでいる | D94: =SDGｓマトリクス!AL102 -> 0 | E94: =SDGｓマトリクス!AM102 -> 0 | F94: =SDGｓマトリクス!AN102 -> 0 | G94: =SDGｓマトリクス!AO102 -> 0 | H94: =SDGｓマトリクス!AP102 -> 0 | I94: =SDGｓマトリクス!AQ102 -> 0 | J94: =SDGｓマトリクス!AR102 -> 0 | K94: =SDGｓマトリクス!AS102 -> 0 | L94: =SDGｓマトリクス!AT102 -> 0 | M94: =SDGｓマトリクス!AU102 -> 0 | N94: =SDGｓマトリクス!AV102 -> 0 | O94: =SDGｓマトリクス!AW102 -> 0 | P94: =SDGｓマトリクス!AX102 -> 0 | Q94: =SDGｓマトリクス!AY102 -> 0 | R94: =SDGｓマトリクス!AZ102 -> 0 | S94: =SDGｓマトリクス!BA102 -> 0 | T94: =SDGｓマトリクス!BB102 -> 0
C95: フロン使用機器について不調時の修理、漏洩防止、法令に定められた定期点検等がおこなわれ、履歴を記録・保存している | D95: =SDGｓマトリクス!AL103 -> 0 | E95: =SDGｓマトリクス!AM103 -> 0 | F95: =SDGｓマトリクス!AN103 -> 0 | G95: =SDGｓマトリクス!AO103 -> 0 | H95: =SDGｓマトリクス!AP103 -> 0 | I95: =SDGｓマトリクス!AQ103 -> 0 | J95: =SDGｓマトリクス!AR103 -> 0 | K95: =SDGｓマトリクス!AS103 -> 0 | L95: =SDGｓマトリクス!AT103 -> 0 | M95: =SDGｓマトリクス!AU103 -> 0 | N95: =SDGｓマトリクス!AV103 -> 0 | O95: =SDGｓマトリクス!AW103 -> 0 | P95: =SDGｓマトリクス!AX103 -> 0 | Q95: =SDGｓマトリクス!AY103 -> 0 | R95: =SDGｓマトリクス!AZ103 -> 0 | S95: =SDGｓマトリクス!BA103 -> 0 | T95: =SDGｓマトリクス!BB103 -> 0
D96: =SDGｓマトリクス!AL104 -> 0 | E96: =SDGｓマトリクス!AM104 -> 0 | F96: =SDGｓマトリクス!AN104 -> 0 | G96: =SDGｓマトリクス!AO104 -> 0 | H96: =SDGｓマトリクス!AP104 -> 0 | I96: =SDGｓマトリクス!AQ104 -> 0 | J96: =SDGｓマトリクス!AR104 -> 0 | K96: =SDGｓマトリクス!AS104 -> 0 | L96: =SDGｓマトリクス!AT104 -> 0 | M96: =SDGｓマトリクス!AU104 -> 0 | N96: =SDGｓマトリクス!AV104 -> 0 | O96: =SDGｓマトリクス!AW104 -> 0 | P96: =SDGｓマトリクス!AX104 -> 0 | Q96: =SDGｓマトリクス!AY104 -> 0 | R96: =SDGｓマトリクス!AZ104 -> 0 | S96: =SDGｓマトリクス!BA104 -> 0 | T96: =SDGｓマトリクス!BB104 -> 0
D97: =SDGｓマトリクス!AL105 -> 0 | E97: =SDGｓマトリクス!AM105 -> 0 | F97: =SDGｓマトリクス!AN105 -> 0 | G97: =SDGｓマトリクス!AO105 -> 0 | H97: =SDGｓマトリクス!AP105 -> 0 | I97: =SDGｓマトリクス!AQ105 -> 0 | J97: =SDGｓマトリクス!AR105 -> 0 | K97: =SDGｓマトリクス!AS105 -> 0 | L97: =SDGｓマトリクス!AT105 -> 0 | M97: =SDGｓマトリクス!AU105 -> 0 | N97: =SDGｓマトリクス!AV105 -> 0 | O97: =SDGｓマトリクス!AW105 -> 0 | P97: =SDGｓマトリクス!AX105 -> 0 | Q97: =SDGｓマトリクス!AY105 -> 0 | R97: =SDGｓマトリクス!AZ105 -> 0 | S97: =SDGｓマトリクス!BA105 -> 0 | T97: =SDGｓマトリクス!BB105 -> 0
D98: =SDGｓマトリクス!AL106 -> 0 | E98: =SDGｓマトリクス!AM106 -> 0 | F98: =SDGｓマトリクス!AN106 -> 0 | G98: =SDGｓマトリクス!AO106 -> 0 | H98: =SDGｓマトリクス!AP106 -> 0 | I98: =SDGｓマトリクス!AQ106 -> 0 | J98: =SDGｓマトリクス!AR106 -> 0 | K98: =SDGｓマトリクス!AS106 -> 0 | L98: =SDGｓマトリクス!AT106 -> 0 | M98: =SDGｓマトリクス!AU106 -> 0 | N98: =SDGｓマトリクス!AV106 -> 0 | O98: =SDGｓマトリクス!AW106 -> 0 | P98: =SDGｓマトリクス!AX106 -> 0 | Q98: =SDGｓマトリクス!AY106 -> 0 | R98: =SDGｓマトリクス!AZ106 -> 0 | S98: =SDGｓマトリクス!BA106 -> 0 | T98: =SDGｓマトリクス!BB106 -> 0
A99: ④ 節水・水の効率利用 | B99: 節水・水の効率利用 | D99: =SDGｓマトリクス!AL105 -> 0 | E99: =SDGｓマトリクス!AM105 -> 0 | F99: =SDGｓマトリクス!AN105 -> 0 | G99: =SDGｓマトリクス!AO105 -> 0 | H99: =SDGｓマトリクス!AP105 -> 0 | I99: =SDGｓマトリクス!AQ105 -> 0 | J99: =SDGｓマトリクス!AR105 -> 0 | K99: =SDGｓマトリクス!AS105 -> 0 | L99: =SDGｓマトリクス!AT105 -> 0 | M99: =SDGｓマトリクス!AU105 -> 0 | N99: =SDGｓマトリクス!AV105 -> 0 | O99: =SDGｓマトリクス!AW105 -> 0 | P99: =SDGｓマトリクス!AX105 -> 0 | Q99: =SDGｓマトリクス!AY105 -> 0 | R99: =SDGｓマトリクス!AZ105 -> 0 | S99: =SDGｓマトリクス!BA105 -> 0 | T99: =SDGｓマトリクス!BB105 -> 0 | U99: =SDGｓマトリクス!AI105 -> 0
C100: 雨水の貯留タンクや雨水利用施設の設置等により、雨水利用を行っている
C101: 雨水を地下浸透させる設備（浸透升、透水性舗装等）の導入や工夫等、雨水流出抑制行っている
C102: 汚排水の再利用（中水利用）を行っている
C103: 節水型の家電製品、水洗トイレ等を積極的に導入している
C104: 蛇口に節水こま（適量の水を流す機能を持つこま）を設置している
C105: 地盤沈下が問題となっている地域にあっては、地下水汲み上げの削減を行っている
C106: 水道配管からの漏洩を定期的に点検している
A111: ⑤ 製品の開発・設計等における環境配慮 | B111: 1 製品（プライベートブランド商品を含む）設計に当たっての環境配慮 | D111: =SDGｓマトリクス!AL118 -> 0 | E111: =SDGｓマトリクス!AM118 -> 0 | F111: =SDGｓマトリクス!AN118 -> 0 | G111: =SDGｓマトリクス!AO118 -> 0 | H111: =SDGｓマトリクス!AP118 -> 0 | I111: =SDGｓマトリクス!AQ118 -> 0 | J111: =SDGｓマトリクス!AR118 -> 0 | K111: =SDGｓマトリクス!AS118 -> 0 | L111: =SDGｓマトリクス!AT118 -> 0 | M111: =SDGｓマトリクス!AU118 -> 0 | N111: =SDGｓマトリクス!AV118 -> 0 | O111: =SDGｓマトリクス!AW118 -> 0 | P111: =SDGｓマトリクス!AX118 -> 0 | Q111: =SDGｓマトリクス!AY118 -> 0 | R111: =SDGｓマトリクス!AZ118 -> 0 | S111: =SDGｓマトリクス!BA118 -> 0 | T111: =SDGｓマトリクス!BB118 -> 0 | U111: =SDGｓマトリクス!AI118 -> 0
C112: 製品の小型化・軽量化等により、同一機能に対して資源使用量のミニマム化を指向している
C113: 製品の長寿命化を指向している
C114: 製品の使用過程でのエネルギー削減を指向している
C115: 再生資源の積極的利用に取り組んでいる
C116: 廃棄物の発生抑制のため、モデルチェンジの適正化に取り組んでいる
C117: リサイクルしやすいよう、素材の種類や製品の部品点数の削減や、ネジの数を減らすことなどによる解体しやすい構造を指向している
C118: 製品の包装は可能な限り簡素化している
C119: 自社独自の環境保全型商品等の開発に積極的に取り組んでいる
B120: 2 製品の出荷、販売後における環境負荷の削減 | D120: =SDGｓマトリクス!AL123 -> 0 | E120: =SDGｓマトリクス!AM123 -> 0 | F120: =SDGｓマトリクス!AN123 -> 0 | G120: =SDGｓマトリクス!AO123 -> 0 | H120: =SDGｓマトリクス!AP123 -> 0 | I120: =SDGｓマトリクス!AQ123 -> 0 | J120: =SDGｓマトリクス!AR123 -> 0 | K120: =SDGｓマトリクス!AS123 -> 0 | L120: =SDGｓマトリクス!AT123 -> 0 | M120: =SDGｓマトリクス!AU123 -> 0 | N120: =SDGｓマトリクス!AV123 -> 0 | O120: =SDGｓマトリクス!AW123 -> 0 | P120: =SDGｓマトリクス!AX123 -> 0 | Q120: =SDGｓマトリクス!AY123 -> 0 | R120: =SDGｓマトリクス!AZ123 -> 0 | S120: =SDGｓマトリクス!BA123 -> 0 | T120: =SDGｓマトリクス!BB123 -> 0 | U120: =SDGｓマトリクス!AI123 -> 0
C121: フロン類の回収に取り組んでいる
C122: フロン類の漏洩防止のための留意点など、製品に関する環境への負荷を低減するための消費者への情報提供を行っている
C123: 修理部品の長期的な確保に自主的に取り組んでいる
C124: 使用後の製品、容器包装等回収、リサイクルに取り組んでいる
B125: 3 製品（プライベートブランド商品を含む）に係る製品アセスメント等 | D125: =SDGｓマトリクス!AL129 -> 0 | E125: =SDGｓマトリクス!AM129 -> 0 | F125: =SDGｓマトリクス!AN129 -> 0 | G125: =SDGｓマトリクス!AO129 -> 0 | H125: =SDGｓマトリクス!AP129 -> 0 | I125: =SDGｓマトリクス!AQ129 -> 0 | J125: =SDGｓマトリクス!AR129 -> 0 | K125: =SDGｓマトリクス!AS129 -> 0 | L125: =SDGｓマトリクス!AT129 -> 0 | M125: =SDGｓマトリクス!AU129 -> 0 | N125: =SDGｓマトリクス!AV129 -> 0 | O125: =SDGｓマトリクス!AW129 -> 0 | P125: =SDGｓマトリクス!AX129 -> 0 | Q125: =SDGｓマトリクス!AY129 -> 0 | R125: =SDGｓマトリクス!AZ129 -> 0 | S125: =SDGｓマトリクス!BA129 -> 0 | T125: =SDGｓマトリクス!BB129 -> 0 | U125: =SDGｓマトリクス!AI129 -> 0
C126: 自社製品及び社外から購入する部品等について、想定される環境負荷のチェックリストを作成している
C127: 新製品開発、モデルチェンジ等にあたり、環境負荷の測定・記録や製品アセスメント（製品が廃棄物になった場合の適正処理困難性の評価、製品の生産から消費、廃棄に至る各段階での環境負荷の評価（ライフサイクルアセスメント）等を含む）を実施している
C128: 製品の使用時や廃棄時の環境負荷の量をカタログ等に表示している
C129: 既存製品についても、計画的に製品アセスメント等を実施している
C130: 外部から製品の環境負荷に関するデータの提供の依頼があった場合、協力している
B131: 4 環境保全型商品等の販売及び消費者に対する情報提供 | D131: =SDGｓマトリクス!AL134 -> 0 | E131: =SDGｓマトリクス!AM134 -> 0 | F131: =SDGｓマトリクス!AN134 -> 0 | G131: =SDGｓマトリクス!AO134 -> 0 | H131: =SDGｓマトリクス!AP134 -> 0 | I131: =SDGｓマトリクス!AQ134 -> 0 | J131: =SDGｓマトリクス!AR134 -> 0 | K131: =SDGｓマトリクス!AS134 -> 0 | L131: =SDGｓマトリクス!AT134 -> 0 | M131: =SDGｓマトリクス!AU134 -> 0 | N131: =SDGｓマトリクス!AV134 -> 0 | O131: =SDGｓマトリクス!AW134 -> 0 | P131: =SDGｓマトリクス!AX134 -> 0 | Q131: =SDGｓマトリクス!AY134 -> 0 | R131: =SDGｓマトリクス!AZ134 -> 0 | S131: =SDGｓマトリクス!BA134 -> 0 | T131: =SDGｓマトリクス!BB134 -> 0 | U131: =SDGｓマトリクス!AI134 -> 0
C132: 再生資源を使用した商品、再生可能な商品、繰り返し使える商品、省資源・省エネルギー型の商品、容器包装を簡素化した商品、エコマーク製品等を重点的に販売している
C133: 上記商品の販売目標を定め、販売促進に積極的に取り組んでいる
C134: 販売の際に環境保全型製品の表示、製品アセスメントの結果の表示等を行っている
C135: 消費者等に環境保全型商品に関する情報を積極的に提供している
A140: ⑥ 建築物の建築・解体、開発事業に当たっての環境配慮 | B140: 1 新規事業を始める際の環境影響評価・環境配慮 | D140: =SDGｓマトリクス!AL142 -> 0 | E140: =SDGｓマトリクス!AM142 -> 0 | F140: =SDGｓマトリクス!AN142 -> 0 | G140: =SDGｓマトリクス!AO142 -> 0 | H140: =SDGｓマトリクス!AP142 -> 0 | I140: =SDGｓマトリクス!AQ142 -> 0 | J140: =SDGｓマトリクス!AR142 -> 0 | K140: =SDGｓマトリクス!AS142 -> 0 | L140: =SDGｓマトリクス!AT142 -> 0 | M140: =SDGｓマトリクス!AU142 -> 0 | N140: =SDGｓマトリクス!AV142 -> 0 | O140: =SDGｓマトリクス!AW142 -> 0 | P140: =SDGｓマトリクス!AX142 -> 0 | Q140: =SDGｓマトリクス!AY142 -> 0 | R140: =SDGｓマトリクス!AZ142 -> 0 | S140: =SDGｓマトリクス!BA142 -> 0 | T140: =SDGｓマトリクス!BB142 -> 0 | U140: =SDGｓマトリクス!AI142 -> 0
C141: 新規事業を始める際、企画・計画・設計段階、建設段階、運用段階、改修・解体段階のそれぞれの段階における環境影響を評価し、これに基づいて環境保全のため適切な対策を行っている
C142: 事業実施前に行われた環境影響評価の結果が妥当であったかどうかのフォローアップを、事業中及び事業後に行っている
C143: 発注者及び設計者に対し、省エネルギー、建設副産物のリサイクル、合板型枠の使用合理化等、環境保全の提案をしている
B144: 2 環境整備と周辺の自然環境の保全 | D144: =SDGｓマトリクス!AL146 -> 0 | E144: =SDGｓマトリクス!AM146 -> 0 | F144: =SDGｓマトリクス!AN146 -> 0 | G144: =SDGｓマトリクス!AO146 -> 0 | H144: =SDGｓマトリクス!AP146 -> 0 | I144: =SDGｓマトリクス!AQ146 -> 0 | J144: =SDGｓマトリクス!AR146 -> 0 | K144: =SDGｓマトリクス!AS146 -> 0 | L144: =SDGｓマトリクス!AT146 -> 0 | M144: =SDGｓマトリクス!AU146 -> 0 | N144: =SDGｓマトリクス!AV146 -> 0 | O144: =SDGｓマトリクス!AW146 -> 0 | P144: =SDGｓマトリクス!AX146 -> 0 | Q144: =SDGｓマトリクス!AY146 -> 0 | R144: =SDGｓマトリクス!AZ146 -> 0 | S144: =SDGｓマトリクス!BA146 -> 0 | T144: =SDGｓマトリクス!BB146 -> 0 | U144: =SDGｓマトリクス!AI146 -> 0
C145: 敷地内、壁面、屋上等の緑化を行っている（大気浄化、都市気象の緩和にも資する）
C146: 地域の自然環境との調和に配慮し、生態系や景観の保全に取り組んでいる
C147: 環境を改変する代替措置として環境修復（ミティゲーション）を計画・設計に盛り込んでいる
B148: 3 環境負荷の少ない建築材の使用等 | D148: =SDGｓマトリクス!AL148 -> 0 | E148: =SDGｓマトリクス!AM148 -> 0 | F148: =SDGｓマトリクス!AN148 -> 0 | G148: =SDGｓマトリクス!AO148 -> 0 | H148: =SDGｓマトリクス!AP148 -> 0 | I148: =SDGｓマトリクス!AQ148 -> 0 | J148: =SDGｓマトリクス!AR148 -> 0 | K148: =SDGｓマトリクス!AS148 -> 0 | L148: =SDGｓマトリクス!AT148 -> 0 | M148: =SDGｓマトリクス!AU148 -> 0 | N148: =SDGｓマトリクス!AV148 -> 0 | O148: =SDGｓマトリクス!AW148 -> 0 | P148: =SDGｓマトリクス!AX148 -> 0 | Q148: =SDGｓマトリクス!AY148 -> 0 | R148: =SDGｓマトリクス!AZ148 -> 0 | S148: =SDGｓマトリクス!BA148 -> 0 | T148: =SDGｓマトリクス!BB148 -> 0 | U148: =SDGｓマトリクス!AI148 -> 0
C149: 建築物の建築・改築に当たり、環境負荷の少ない建築材の使用、建築材の使用合理化に取り組んでいる（合板型等の木材の使用合理化、高炉セメント、再生素材の積極的使用等）
B150: 4 環境に配慮した工法 | D150: =SDGｓマトリクス!AL157 -> 0 | E150: =SDGｓマトリクス!AM157 -> 0 | F150: =SDGｓマトリクス!AN157 -> 0 | G150: =SDGｓマトリクス!AO157 -> 0 | H150: =SDGｓマトリクス!AP157 -> 0 | I150: =SDGｓマトリクス!AQ157 -> 0 | J150: =SDGｓマトリクス!AR157 -> 0 | K150: =SDGｓマトリクス!AS157 -> 0 | L150: =SDGｓマトリクス!AT157 -> 0 | M150: =SDGｓマトリクス!AU157 -> 0 | N150: =SDGｓマトリクス!AV157 -> 0 | O150: =SDGｓマトリクス!AW157 -> 0 | P150: =SDGｓマトリクス!AX157 -> 0 | Q150: =SDGｓマトリクス!AY157 -> 0 | R150: =SDGｓマトリクス!AZ157 -> 0 | S150: =SDGｓマトリクス!BA157 -> 0 | T150: =SDGｓマトリクス!BB157 -> 0 | U150: =SDGｓマトリクス!AI157 -> 0
C151: 低騒音型の建築機械の使用等により工事騒音・振動の防止に取り組んでいる
C152: アスベストや粉じんの飛散防止等に取り組んでいる
C153: 工事濁水による水質汚濁の防止等に取り組んでいる
C154: 出入り車輌の排ガス・騒音・振動の防止に取り組んでいる
C155: 掘削工事、盛土工事における地盤の変化の防止に取り組んでいる
C156: 工事中の樹木の保護を行っている
C157: 木材、コンクリート塊、汚泥、残土等の建設副産物の削減、再利用、分別、リサイクルに取り組んでいる
C158: フロン、アスベストその他の有害物質の適正処理、代替材の使用等を行っている
B159: 5 建築物、構築物の環境への影響を予防するための方策 | D159: =SDGｓマトリクス!AL161 -> 0 | E159: =SDGｓマトリクス!AM161 -> 0 | F159: =SDGｓマトリクス!AN161 -> 0 | G159: =SDGｓマトリクス!AO161 -> 0 | H159: =SDGｓマトリクス!AP161 -> 0 | I159: =SDGｓマトリクス!AQ161 -> 0 | J159: =SDGｓマトリクス!AR161 -> 0 | K159: =SDGｓマトリクス!AS161 -> 0 | L159: =SDGｓマトリクス!AT161 -> 0 | M159: =SDGｓマトリクス!AU161 -> 0 | N159: =SDGｓマトリクス!AV161 -> 0 | O159: =SDGｓマトリクス!AW161 -> 0 | P159: =SDGｓマトリクス!AX161 -> 0 | Q159: =SDGｓマトリクス!AY161 -> 0 | R159: =SDGｓマトリクス!AZ161 -> 0 | S159: =SDGｓマトリクス!BA161 -> 0 | T159: =SDGｓマトリクス!BB161 -> 0 | U159: =SDGｓマトリクス!AI161 -> 0
C160: 竣工建築の環境面に配慮した管理、メンテナンス等を行っている
C161: 建造物の老朽化や運用の診断を行い、改善や環境保全設備の見直し等の提案を行っている
C162: 建築物の耐久性の向上に取り組んでいる
